{"text_format":"1","workbook":"xlsx","n_sheets":2,"sheets":["Directory","Sheet2"],"not_rendered":{"charts":0,"images":1,"macros":1,"external_links":0,"defined_names":2,"comments":0,"pivot_tables":0},"unopened":[],"bounds":{"document_bytes":16777216,"sheet_cells":100000,"rows_first":2000,"rows_last":500,"rows_between":2000,"halvings":0,"cell_chars":16384,"cell_head_chars":4096},"cells_cut":0,"cells_raw":0,"read":"whole","date_system":"1900"}

{"sheet":"Directory","index":0,"n_rows":1801,"n_cols":10,"rows_kept":1801,"cut":false,"hidden":false,"merged":[[2,0,2,9],[4,0,4,9],[14,0,16,9],[11,0,11,7],[12,0,12,7],[7,0,9,9],[3,0,3,9]]}
[]
[]
["HUD Minneapolis "]
["\n"]
["Multifamily Directory"]
[]
[]
["The directory provides information about all properties serviced by the HUD Minneapolis multifamily division. It is sorted alphabetically by property name. It contains the HUD ID Number, property name, city, and zip code. It also contains the name of the HUD Account Executive or Resolution Specialist, their email address, and phone number. If no Account Executive or Resolution Specialist is listed, your property has not been assigned. A HUD Account Executive or Resolution Specialist will be contacting you shortly.\n"]
[]
[]
[]
["The directory will be updated at least quarterly. Please use the following link to check for updates:"]
["Find Multifamily Contacts and HUD ID Number"]
[]
["Quick Tips:\nw The date the directory was published is in the lower left hand corner, along with the next date of the next update\nw The incoming mail box addresses are at the top of the page in the center\nw Our office front desk number is in the upper right hand corner\nw The directory is searchable; search by hitting ctrl+f\nw If you need to print, you can print only the page you need by printing the “page range\"\n"]
[]
[]
[]
["Published:","2017-02-01"]
["Next Update:",{"$f":"DATE(YEAR(B19)+IF(MONTH(B19)>9,1,0),CHOOSE(MONTH(B19),4,4,4,7,7,7,10,10,10,1,1,1),1)","v":"2017-04-01"}]
[]
["HUD ID","Property Name","City","State","Zip Code","Account Executive ","Email","Phone","inbox","Incoming Requests"]
[800011099,"092004NI -- MESABA VILLAS SOUTH                   ","DULUTH                      ","MN",55806,"GREGORY T MERZ                                     ","GREGORY.T.MERZ@hud.gov","612-370-3077","mn.incoming@hud.gov",{"$f":"HYPERLINK(\"mailto:\",Table_Front_desk_report.accdb[[#This Row],[inbox]])","v":"mn.incoming@hud.gov"}]
[800010869,"092005NI -- DELTON MANOR                          ","BEMIDJI                     ","MN","56601","MICHAEL P MORAN                                    ","MICHAEL.P.MORAN@HUD.GOV","612-370-3081","mn.incoming@hud.gov",{"$f":"HYPERLINK(\"mailto:\",Table_Front_desk_report.accdb[[#This Row],[inbox]])","v":"mn.incoming@hud.gov"}]
[800010796,"092014NI -- BRIARHILL                             ","EDEN PRAIRIE                ","MN","55346","SUSAN K ROSKOS                                     ","Susan.K.Roskos@hud.gov","612-370-3110","mn.incoming@hud.gov",{"$f":"HYPERLINK(\"mailto:\",Table_Front_desk_report.accdb[[#This Row],[inbox]])","v":"mn.incoming@hud.gov"}]
[800010887,"092015NI -- EASTRIDGE ESTATES                     ","ROCHESTER                   ","MN","55904","SHERRY K NORTON                                    ","Sherry.K.Norton@hud.gov","612-370-3087","mn.incoming@hud.gov",{"$f":"HYPERLINK(\"mailto:\",Table_Front_desk_report.accdb[[#This Row],[inbox]])","v":"mn.incoming@hud.gov"}]
[800010995,"092016NI -- HOWARD LAKE APTS.                     ","HOWARD LAKE                 ","MN","55349","SHERRY K NORTON                                    ","Sherry.K.Norton@hud.gov","612-370-3087","mn.incoming@hud.gov",{"$f":"HYPERLINK(\"mailto:\",Table_Front_desk_report.accdb[[#This Row],[inbox]])","v":"mn.incoming@hud.gov"}]
[800010938,"092017NI -- GOLDENDALE HOMES                      ","ANNANDALE                   ","MN","55302","SHERRY K NORTON                                    ","Sherry.K.Norton@hud.gov","612-370-3087","mn.incoming@hud.gov",{"$f":"HYPERLINK(\"mailto:\",Table_Front_desk_report.accdb[[#This Row],[inbox]])","v":"mn.incoming@hud.gov"}]
[800010907,"092018NI -- FAIRMONT SQUARE                       ","FAIRMONT                    ","MN","56031","THOMAS G DURSCHER                                  ","Thomas.G.Durscher@hud.gov","612-370-3018","mn.incoming@hud.gov",{"$f":"HYPERLINK(\"mailto:\",Table_Front_desk_report.accdb[[#This Row],[inbox]])","v":"mn.incoming@hud.gov"}]
[800010756,"092019NI -- MAPLE POND HOMES pka Archer Heights   ","MAPLEWOOD                   ","MN","55109","MICHAEL P MORAN                                    ","MICHAEL.P.MORAN@HUD.GOV","612-370-3081","mn.incoming@hud.gov",{"$f":"HYPERLINK(\"mailto:\",Table_Front_desk_report.accdb[[#This Row],[inbox]])","v":"mn.incoming@hud.gov"}]
[800010827,"092020NI -- CHANCELLOR MANOR                      ","BURNSVILLE                  ","MN","55306","SHERRY K NORTON                                    ","Sherry.K.Norton@hud.gov","612-370-3087","mn.incoming@hud.gov",{"$f":"HYPERLINK(\"mailto:\",Table_Front_desk_report.accdb[[#This Row],[inbox]])","v":"mn.incoming@hud.gov"}]
[800011198,"092021NI -- RC SQUARE                             ","MARSHALL                    ","MN","56258","MICHAEL P MORAN                                    ","MICHAEL.P.MORAN@HUD.GOV","612-370-3081","mn.incoming@hud.gov",{"$f":"HYPERLINK(\"mailto:\",Table_Front_desk_report.accdb[[#This Row],[inbox]])","v":"mn.incoming@hud.gov"}]
[800233716,"1800 Lake on Calhoun                              ","Minneapolis                 ","MN","55408","SHERRY K NORTON                                    ","Sherry.K.Norton@hud.gov","612-370-3087","mn.incoming@hud.gov",{"$f":"HYPERLINK(\"mailto:\",Table_Front_desk_report.accdb[[#This Row],[inbox]])","v":"mn.incoming@hud.gov"}]
[800011412,"18TH & CLINTON TOWNHOMES                          ","MINNEAPOLIS                 ","MN","55404","MICHAEL P MORAN                                    ","MICHAEL.P.MORAN@HUD.GOV","612-370-3081","mn.incoming@hud.gov",{"$f":"HYPERLINK(\"mailto:\",Table_Front_desk_report.accdb[[#This Row],[inbox]])","v":"mn.incoming@hud.gov"}]
[800233142,"1910 ON WATER                                     ","Milwaukee                   ","WI","53202","JULIE M WHITEFEATHER                               ","julie.m.whitefeather@hud.gov","312-913-8117","chi.incoming@hud.gov",{"$f":"HYPERLINK(\"mailto:\",Table_Front_desk_report.accdb[[#This Row],[inbox]])","v":"chi.incoming@hud.gov"}]
[800011414,"200 LEVEE DRIVE                                   ","SHAKOPEE                    ","MN","55379","CAROL DIXON                                        ","Carol.A.Dixon@hud.gov","612-370-3015","mn.incoming@hud.gov",{"$f":"HYPERLINK(\"mailto:\",Table_Front_desk_report.accdb[[#This Row],[inbox]])","v":"mn.incoming@hud.gov"}]
[800011415,"2100 Bloomington/Village at Franklin              ","Minneapolis                 ","MN","55404","JULIE A LASOTA                                     ","Julie.A.Lasota@hud.gov","612-370-3066","mn.incoming@hud.gov",{"$f":"HYPERLINK(\"mailto:\",Table_Front_desk_report.accdb[[#This Row],[inbox]])","v":"mn.incoming@hud.gov"}]
[800211443,"26TH STREET APARTMENTS                            ","MILWAUKEE                   ","WI","53221","MARCIA A KOLB                                      ","MARCIA.A.KOLB@hud.gov","612-370-3055","mn.incoming@hud.gov",{"$f":"HYPERLINK(\"mailto:\",Table_Front_desk_report.accdb[[#This Row],[inbox]])","v":"mn.incoming@hud.gov"}]
[800241393,"333 on the Park                                   ","Saint Paul                  ","MN","55101","SHERRY K NORTON                                    ","Sherry.K.Norton@hud.gov","612-370-3087","mn.incoming@hud.gov",{"$f":"HYPERLINK(\"mailto:\",Table_Front_desk_report.accdb[[#This Row],[inbox]])","v":"mn.incoming@hud.gov"}]
[800023051,"3700 GREEN TREE CORP.                             ","MILWAUKEE                   ","WI","53209","DONALD R COLE                                      ","donald.r.cole@hud.gov","312-913-8790","chi.incoming@hud.gov",{"$f":"HYPERLINK(\"mailto:\",Table_Front_desk_report.accdb[[#This Row],[inbox]])","v":"chi.incoming@hud.gov"}]
[800220376,"3RD AVE TOWNHOMES                                 ","MINNEAPOLIS                 ","MN","55409","DARIAN JANE ZIEGLER                                ","Darian.Ziegler@hud.gov","612-370-3270","mn.incoming@hud.gov",{"$f":"HYPERLINK(\"mailto:\",Table_Front_desk_report.accdb[[#This Row],[inbox]])","v":"mn.incoming@hud.gov"}]
[800241364,"700 Central                                       ","Minneapolis                 ","MN","55414","CAROL DIXON                                        ","Carol.A.Dixon@hud.gov","612-370-3015","mn.incoming@hud.gov",{"$f":"HYPERLINK(\"mailto:\",Table_Front_desk_report.accdb[[#This Row],[inbox]])","v":"mn.incoming@hud.gov"}]
[800236938,"808 Berry Place                                   ","Saint Paul                  ","MN","55114","SUSAN K ROSKOS                                     ","Susan.K.Roskos@hud.gov","612-370-3110","mn.incoming@hud.gov",{"$f":"HYPERLINK(\"mailto:\",Table_Front_desk_report.accdb[[#This Row],[inbox]])","v":"mn.incoming@hud.gov"}]
[null,"A"]
[800010741,"ABBEY FIELD TOWNHOUSES                            ","SAINT FRANCIS               ","MN","55070","CAROL DIXON                                        ","Carol.A.Dixon@hud.gov","612-370-3015","mn.incoming@hud.gov",{"$f":"HYPERLINK(\"mailto:\",Table_Front_desk_report.accdb[[#This Row],[inbox]])","v":"mn.incoming@hud.gov"}]
[800223161,"ABUNDANT LIFE APTS.                               ","MILWAUKEE                   ","WI","53223","TERESA C PARKER                                    ","TERESA.C.PARKER@hud.gov","612-370-3092","mn.incoming@hud.gov",{"$f":"HYPERLINK(\"mailto:\",Table_Front_desk_report.accdb[[#This Row],[inbox]])","v":"mn.incoming@hud.gov"}]
[800010742,"ACCESSIBLE SPACE                                  ","MINNEAPOLIS                 ","MN","55430","MITCHELL S HILLMAN                                 ","MITCHELL.S.HILLMAN@hud.gov","612-370-3036","mn.incoming@hud.gov",{"$f":"HYPERLINK(\"mailto:\",Table_Front_desk_report.accdb[[#This Row],[inbox]])","v":"mn.incoming@hud.gov"}]
[800078815,"ADA JAMES PLACE                                   ","RICHLAND CENTER             ","WI","53581","DARIAN JANE ZIEGLER                                ","Darian.Ziegler@hud.gov","612-370-3270","mn.incoming@hud.gov",{"$f":"HYPERLINK(\"mailto:\",Table_Front_desk_report.accdb[[#This Row],[inbox]])","v":"mn.incoming@hud.gov"}]
[800010743,"AFTON VIEW APARTMENTS                             ","SAINT PAUL                  ","MN","55119","NATASHA D GUENOVA                                  ","NATASHA.D.GUENOVA@hud.gov","612-370-3035","mn.incoming@hud.gov",{"$f":"HYPERLINK(\"mailto:\",Table_Front_desk_report.accdb[[#This Row],[inbox]])","v":"mn.incoming@hud.gov"}]
[800010744,"AGASSIZ APARTMENTS                                ","Ulen                        ","MN","56585","SUSAN K ROSKOS                                     ","Susan.K.Roskos@hud.gov","612-370-3110","mn.incoming@hud.gov",{"$f":"HYPERLINK(\"mailto:\",Table_Front_desk_report.accdb[[#This Row],[inbox]])","v":"mn.incoming@hud.gov"}]
[800112190,"AHEPA Penelope 35 Apts                            ","BLOOMINGTON                 ","MN","55431","SHERRY K NORTON                                    ","Sherry.K.Norton@hud.gov","612-370-3087","mn.incoming@hud.gov",{"$f":"HYPERLINK(\"mailto:\",Table_Front_desk_report.accdb[[#This Row],[inbox]])","v":"mn.incoming@hud.gov"}]
[800010745,"AITKIN MANOR APARTMENTS                           ","AITKIN                      ","MN","56431","TEENA M GEE                                        ","Teena.M.Gee@hud.gov","612-843-6414","mn.incoming@hud.gov",{"$f":"HYPERLINK(\"mailto:\",Table_Front_desk_report.accdb[[#This Row],[inbox]])","v":"mn.incoming@hud.gov"}]
[800237182,"ALBERT HOUSE                                      ","Racine                      ","WI","53405","VERONICA S SIMS                                    ","veronica.s.sims@hud.gov","312-913-8066","chi.incoming@hud.gov",{"$f":"HYPERLINK(\"mailto:\",Table_Front_desk_report.accdb[[#This Row],[inbox]])","v":"chi.incoming@hud.gov"}]
[800223812,"Albert Lea Senior Housing                         ","Albert Lea                  ","MN","56007","SHERRY K NORTON                                    ","Sherry.K.Norton@hud.gov","612-370-3087","mn.incoming@hud.gov",{"$f":"HYPERLINK(\"mailto:\",Table_Front_desk_report.accdb[[#This Row],[inbox]])","v":"mn.incoming@hud.gov"}]
[800215421,"ALBERT SKINNER VILLA                              ","BALSAM LAKE                 ","WI","54810","BEN OSBORN                                         ","Benjamin.M.Osborn@hud.gov","612-370-3091","mn.incoming@hud.gov",{"$f":"HYPERLINK(\"mailto:\",Table_Front_desk_report.accdb[[#This Row],[inbox]])","v":"mn.incoming@hud.gov"}]
[800010913,"ALBRIGHT TOWNHOMES aka Findley Place              ","MINNEAPOLIS                 ","MN","55408","MITCHELL S HILLMAN                                 ","MITCHELL.S.HILLMAN@hud.gov","612-370-3036","mn.incoming@hud.gov",{"$f":"HYPERLINK(\"mailto:\",Table_Front_desk_report.accdb[[#This Row],[inbox]])","v":"mn.incoming@hud.gov"}]
[800234192,"ALGONQUIN MANOR SENIOR APARTMENTS                 ","Milwaukee                   ","WI","53223","DONNA M SHEEHAN                                    ","Donna.Sheehan@hud.gov"," 312-957-4781 ","chi.incoming@hud.gov",{"$f":"HYPERLINK(\"mailto:\",Table_Front_desk_report.accdb[[#This Row],[inbox]])","v":"chi.incoming@hud.gov"}]
[800022840,"ALICE HENKE VILLA                                 ","TOMAHAWK                    ","WI","54487","ANDREA L CARSON                                    ","andrea.carson@hud.gov","414-935-6679","mn.incoming@hud.gov",{"$f":"HYPERLINK(\"mailto:\",Table_Front_desk_report.accdb[[#This Row],[inbox]])","v":"mn.incoming@hud.gov"}]
[800010746,"ALICE NETTELL TOWER                               ","VIRGINIA                    ","MN","55792","MITCHELL S HILLMAN                                 ","MITCHELL.S.HILLMAN@hud.gov","612-370-3036","mn.incoming@hud.gov",{"$f":"HYPERLINK(\"mailto:\",Table_Front_desk_report.accdb[[#This Row],[inbox]])","v":"mn.incoming@hud.gov"}]
[800010770,"ALLENDALE HOUSE / Bear Crk of Roch.               ","ROCHESTER                   ","MN","55901","THOMAS G DURSCHER                                  ","Thomas.G.Durscher@hud.gov","612-370-3018","mn.incoming@hud.gov",{"$f":"HYPERLINK(\"mailto:\",Table_Front_desk_report.accdb[[#This Row],[inbox]])","v":"mn.incoming@hud.gov"}]
[800239889,"ALPINE COURT APARTMENTS                           ","West Allis                  ","WI","53227","MARY E WATKINS                                     ","mary.e.watkins@hud.gov","312-913-8552","chi.incoming@hud.gov",{"$f":"HYPERLINK(\"mailto:\",Table_Front_desk_report.accdb[[#This Row],[inbox]])","v":"chi.incoming@hud.gov"}]
[800010749,"Alverna Apartments                                ","LITTLE FALLS                ","MN","56345","NATASHA D GUENOVA                                  ","NATASHA.D.GUENOVA@hud.gov","612-370-3035","mn.incoming@hud.gov",{"$f":"HYPERLINK(\"mailto:\",Table_Front_desk_report.accdb[[#This Row],[inbox]])","v":"mn.incoming@hud.gov"}]
[800022841,"ALVERNO HOUSING                                   ","JEFFERSON                   ","WI","53549","BEN OSBORN                                         ","Benjamin.M.Osborn@hud.gov","612-370-3091","mn.incoming@hud.gov",{"$f":"HYPERLINK(\"mailto:\",Table_Front_desk_report.accdb[[#This Row],[inbox]])","v":"mn.incoming@hud.gov"}]
[800234838,"Andrew's Pointe Townhomes                         ","Burnsvville                 ","MN","55337","DARIAN JANE ZIEGLER                                ","Darian.Ziegler@hud.gov","612-370-3270","mn.incoming@hud.gov",{"$f":"HYPERLINK(\"mailto:\",Table_Front_desk_report.accdb[[#This Row],[inbox]])","v":"mn.incoming@hud.gov"}]
[800010750,"ANGEL RIDGE, INC.                                 ","ELK RIVER                   ","MN","55330","CAROL DIXON                                        ","Carol.A.Dixon@hud.gov","612-370-3015","mn.incoming@hud.gov",{"$f":"HYPERLINK(\"mailto:\",Table_Front_desk_report.accdb[[#This Row],[inbox]])","v":"mn.incoming@hud.gov"}]
[800215341,"ANN CRIDER VILLA                                  ","BALDWIN                     ","WI","54002","CATHERINE A TEMPLE                                 ","Catherine.A.Temple@hud.gov","414-935-6695","mn.incoming@hud.gov",{"$f":"HYPERLINK(\"mailto:\",Table_Front_desk_report.accdb[[#This Row],[inbox]])","v":"mn.incoming@hud.gov"}]
[800022842,"ANNE/AUBURN VILLAGE                               ","AUBURNDALE                  ","WI","54412","MICHAEL D FURNNER                                  ","MICHAEL.D.FURNNER@hud.gov","414-935-6682","mn.incoming@hud.gov",{"$f":"HYPERLINK(\"mailto:\",Table_Front_desk_report.accdb[[#This Row],[inbox]])","v":"mn.incoming@hud.gov"}]
[800010759,"Anoka County Cities                               ","BLAINE                      ","MN","55434","MARCIA A KOLB                                      ","MARCIA.A.KOLB@hud.gov","612-370-3055","mn.incoming@hud.gov",{"$f":"HYPERLINK(\"mailto:\",Table_Front_desk_report.accdb[[#This Row],[inbox]])","v":"mn.incoming@hud.gov"}]
[800112375,"Apple Grove Court                                 ","Apple Valley                ","MN","55124","SHERRY K NORTON                                    ","Sherry.K.Norton@hud.gov","612-370-3087","mn.incoming@hud.gov",{"$f":"HYPERLINK(\"mailto:\",Table_Front_desk_report.accdb[[#This Row],[inbox]])","v":"mn.incoming@hud.gov"}]
[800079170,"APPLE LANE                                        ","MILWAUKEE                   ","WI","53224","ELLIE L CHICOSKI                                   ","ellie.l.chicoski@hud.gov","312-913-8385","chi.incoming@hud.gov",{"$f":"HYPERLINK(\"mailto:\",Table_Front_desk_report.accdb[[#This Row],[inbox]])","v":"chi.incoming@hud.gov"}]
[800022846,"APPLE RIVER APARTMENTS                            ","AMERY                       ","WI","54001","SUSAN K ROSKOS                                     ","Susan.K.Roskos@hud.gov","612-370-3110","mn.incoming@hud.gov",{"$f":"HYPERLINK(\"mailto:\",Table_Front_desk_report.accdb[[#This Row],[inbox]])","v":"mn.incoming@hud.gov"}]
[800010752,"APPLE VALLEY VILLA                                ","APPLE VALLEY                ","MN","55124","MARCIA A KOLB                                      ","MARCIA.A.KOLB@hud.gov","612-370-3055","mn.incoming@hud.gov",{"$f":"HYPERLINK(\"mailto:\",Table_Front_desk_report.accdb[[#This Row],[inbox]])","v":"mn.incoming@hud.gov"}]
[800010753,"APPLE VILLA SOUTH aka Oaks of Apple Valley        ","APPLE VALLEY                ","MN","55124","CAROL DIXON                                        ","Carol.A.Dixon@hud.gov","612-370-3015","mn.incoming@hud.gov",{"$f":"HYPERLINK(\"mailto:\",Table_Front_desk_report.accdb[[#This Row],[inbox]])","v":"mn.incoming@hud.gov"}]
[800072519,"APPLETREE COURT                                   ","BRECKENRIDGE                ","MN","56520","SHERRY K NORTON                                    ","Sherry.K.Norton@hud.gov","612-370-3087","mn.incoming@hud.gov",{"$f":"HYPERLINK(\"mailto:\",Table_Front_desk_report.accdb[[#This Row],[inbox]])","v":"mn.incoming@hud.gov"}]
[800010754,"APPLEWOOD KNOLL APARTMENTS                        ","DULUTH                      ","MN","55812","CINDY BEHNKE                                       ","cynthia.behnke@hud.gov","612-370-3278","mn.incoming@hud.gov",{"$f":"HYPERLINK(\"mailto:\",Table_Front_desk_report.accdb[[#This Row],[inbox]])","v":"mn.incoming@hud.gov"}]
[800240335,"Applewood Pointe Coop - Blmgtn - Valley West      ","Bloomington                 ","MN","55431","BEN OSBORN                                         ","Benjamin.M.Osborn@hud.gov","612-370-3091","mn.incoming@hud.gov",{"$f":"HYPERLINK(\"mailto:\",Table_Front_desk_report.accdb[[#This Row],[inbox]])","v":"mn.incoming@hud.gov"}]
[800227489,"Applewood Pointe Coop of Bloomington at Southtown ","Bloomington                 ","MN","55431","TEENA M GEE                                        ","Teena.M.Gee@hud.gov","612-843-6414","mn.incoming@hud.gov",{"$f":"HYPERLINK(\"mailto:\",Table_Front_desk_report.accdb[[#This Row],[inbox]])","v":"mn.incoming@hud.gov"}]
[800220604,"Applewood Pointe Coop Of Maple Grove              ","Maple Grove                 ","MN","55369","MICHAEL P MORAN                                    ","MICHAEL.P.MORAN@HUD.GOV","612-370-3081","mn.incoming@hud.gov",{"$f":"HYPERLINK(\"mailto:\",Table_Front_desk_report.accdb[[#This Row],[inbox]])","v":"mn.incoming@hud.gov"}]
[800242982,"Applewood Pointe Coop of Roseville at Central Park","Roseville                   ","MN","55113","DARIAN JANE ZIEGLER                                ","Darian.Ziegler@hud.gov","612-370-3270","mn.incoming@hud.gov",{"$f":"HYPERLINK(\"mailto:\",Table_Front_desk_report.accdb[[#This Row],[inbox]])","v":"mn.incoming@hud.gov"}]
[800231733,"Applewood Pointe Coop of Roseville at Langton Lake","Roseville                   ","MN","55113","MICHAEL P MORAN                                    ","MICHAEL.P.MORAN@HUD.GOV","612-370-3081","mn.incoming@hud.gov",{"$f":"HYPERLINK(\"mailto:\",Table_Front_desk_report.accdb[[#This Row],[inbox]])","v":"mn.incoming@hud.gov"}]
[800221945,"Applewood Pointe Coop of Woodbury                 ","Woodbury                    ","MN","55125","NATASHA D GUENOVA                                  ","NATASHA.D.GUENOVA@hud.gov","612-370-3035","mn.incoming@hud.gov",{"$f":"HYPERLINK(\"mailto:\",Table_Front_desk_report.accdb[[#This Row],[inbox]])","v":"mn.incoming@hud.gov"}]
[800221937,"Applewood Pointe Cooperative of Bloomington       ","Bloomington                 ","MN","55420","NATASHA D GUENOVA                                  ","NATASHA.D.GUENOVA@hud.gov","612-370-3035","mn.incoming@hud.gov",{"$f":"HYPERLINK(\"mailto:\",Table_Front_desk_report.accdb[[#This Row],[inbox]])","v":"mn.incoming@hud.gov"}]
[800241392,"Applewood Pointe Cooperative of Champlin          ","Camplin                     ","MN","55316","CAROL DIXON                                        ","Carol.A.Dixon@hud.gov","612-370-3015","mn.incoming@hud.gov",{"$f":"HYPERLINK(\"mailto:\",Table_Front_desk_report.accdb[[#This Row],[inbox]])","v":"mn.incoming@hud.gov"}]
[800222446,"Applewood Pointe Cooperative of New Brighton      ","New Brighton                ","MN","55112","MICHAEL P MORAN                                    ","MICHAEL.P.MORAN@HUD.GOV","612-370-3081","mn.incoming@hud.gov",{"$f":"HYPERLINK(\"mailto:\",Table_Front_desk_report.accdb[[#This Row],[inbox]])","v":"mn.incoming@hud.gov"}]
[800218740,"Applewood Pointe Cooperative of Roseville         ","Roseville                   ","MN","55113","MITCHELL S HILLMAN                                 ","MITCHELL.S.HILLMAN@hud.gov","612-370-3036","mn.incoming@hud.gov",{"$f":"HYPERLINK(\"mailto:\",Table_Front_desk_report.accdb[[#This Row],[inbox]])","v":"mn.incoming@hud.gov"}]
[800240804,"Applewood Pointe Cooperative of Shoreview         ","Shoreview                   ","MN","55126","DARIAN JANE ZIEGLER                                ","Darian.Ziegler@hud.gov","612-370-3270","mn.incoming@hud.gov",{"$f":"HYPERLINK(\"mailto:\",Table_Front_desk_report.accdb[[#This Row],[inbox]])","v":"mn.incoming@hud.gov"}]
[800241999,"Applewood Pointe Copperative of Minnetonka        ","Minnetonka                  ","MN","55305","ANDREA L CARSON                                    ","andrea.carson@hud.gov","414-935-6679","mn.incoming@hud.gov",{"$f":"HYPERLINK(\"mailto:\",Table_Front_desk_report.accdb[[#This Row],[inbox]])","v":"mn.incoming@hud.gov"}]
[800010755,"APPLEWOOD WEST / Fairmount Apts                   ","DULUTH                      ","MN","55807","NATASHA D GUENOVA                                  ","NATASHA.D.GUENOVA@hud.gov","612-370-3035","mn.incoming@hud.gov",{"$f":"HYPERLINK(\"mailto:\",Table_Front_desk_report.accdb[[#This Row],[inbox]])","v":"mn.incoming@hud.gov"}]
[800214095,"ARBOR GLEN  aka Longstreet Apts                   ","MAPLE GROVE                 ","MN","55311","THOMAS G DURSCHER                                  ","Thomas.G.Durscher@hud.gov","612-370-3018","mn.incoming@hud.gov",{"$f":"HYPERLINK(\"mailto:\",Table_Front_desk_report.accdb[[#This Row],[inbox]])","v":"mn.incoming@hud.gov"}]
[800022847,"ARBOR GREEN                                       ","KENOSHA                     ","WI","53142","MARLENE X TRIMUEL                                  ","Marlene.Trimuel@hud.gov","312-913-8369","chi.incoming@hud.gov",{"$f":"HYPERLINK(\"mailto:\",Table_Front_desk_report.accdb[[#This Row],[inbox]])","v":"chi.incoming@hud.gov"}]
[800233371,"ARBOR HILLS APARTMENT HOMES                       ","Madison                     ","WI","53713","YOLANDA S MILLER                                   ","yolanda.s.miller@hud.gov","312-913-8580","chi.incoming@hud.gov",{"$f":"HYPERLINK(\"mailto:\",Table_Front_desk_report.accdb[[#This Row],[inbox]])","v":"chi.incoming@hud.gov"}]
[800211266,"ARBOR LAKES COMMONS                               ","MAPLE GROVE                 ","MN","55369","SHERRY K NORTON                                    ","Sherry.K.Norton@hud.gov","612-370-3087","mn.incoming@hud.gov",{"$f":"HYPERLINK(\"mailto:\",Table_Front_desk_report.accdb[[#This Row],[inbox]])","v":"mn.incoming@hud.gov"}]
[800022848,"ARBOR TRACE                                       ","WEST BEND                   ","WI","53095","CATHERINE A TEMPLE                                 ","Catherine.A.Temple@hud.gov","414-935-6695","mn.incoming@hud.gov",{"$f":"HYPERLINK(\"mailto:\",Table_Front_desk_report.accdb[[#This Row],[inbox]])","v":"mn.incoming@hud.gov"}]
[800022843,"ARC HOUSING                                       ","NORTH FOND DU LAC           ","WI","54937","ANDREA L CARSON                                    ","andrea.carson@hud.gov","414-935-6679","mn.incoming@hud.gov",{"$f":"HYPERLINK(\"mailto:\",Table_Front_desk_report.accdb[[#This Row],[inbox]])","v":"mn.incoming@hud.gov"}]
[800022851,"ARGENT APARTMENTS OF PHILLIPS                     ","PHILLIPS                    ","WI","54555","BEN OSBORN                                         ","Benjamin.M.Osborn@hud.gov","612-370-3091","mn.incoming@hud.gov",{"$f":"HYPERLINK(\"mailto:\",Table_Front_desk_report.accdb[[#This Row],[inbox]])","v":"mn.incoming@hud.gov"}]
[800211269,"Arlington Garden Apartments                       ","SAINT PAUL                  ","MN","55117","MICHAEL P MORAN                                    ","MICHAEL.P.MORAN@HUD.GOV","612-370-3081","mn.incoming@hud.gov",{"$f":"HYPERLINK(\"mailto:\",Table_Front_desk_report.accdb[[#This Row],[inbox]])","v":"mn.incoming@hud.gov"}]
[800022852,"ASHLAND ARMS                                      ","ASHLAND                     ","WI","54806","LAWRANCE C MUNDT                                   ","LAWRENCE.C.MUNDT@hud.gov","612-370-3082","mn.incoming@hud.gov",{"$f":"HYPERLINK(\"mailto:\",Table_Front_desk_report.accdb[[#This Row],[inbox]])","v":"mn.incoming@hud.gov"}]
[800010758,"ASHLAND PLACE / Dellwood South                    ","CAMBRIDGE                   ","MN","55008","MICHAEL P MORAN                                    ","MICHAEL.P.MORAN@HUD.GOV","612-370-3081","mn.incoming@hud.gov",{"$f":"HYPERLINK(\"mailto:\",Table_Front_desk_report.accdb[[#This Row],[inbox]])","v":"mn.incoming@hud.gov"}]
[800225914,"ASI Alexandria                                    ","Alexandria                  ","MN","56308","MITCHELL S HILLMAN                                 ","MITCHELL.S.HILLMAN@hud.gov","612-370-3036","mn.incoming@hud.gov",{"$f":"HYPERLINK(\"mailto:\",Table_Front_desk_report.accdb[[#This Row],[inbox]])","v":"mn.incoming@hud.gov"}]
[800224786,"ASI Worthington                                   ","Worthington                 ","MN","56187","JULIE A LASOTA                                     ","Julie.A.Lasota@hud.gov","612-370-3066","mn.incoming@hud.gov",{"$f":"HYPERLINK(\"mailto:\",Table_Front_desk_report.accdb[[#This Row],[inbox]])","v":"mn.incoming@hud.gov"}]
[800010763,"ASI-RAMSEY COUNTY INC.                            ","FALCON HEIGHTS              ","MN","55113","TERRI A MUNSON                                     ","Terri.A.Munson@hud.gov","612-370-3086","mn.incoming@hud.gov",{"$f":"HYPERLINK(\"mailto:\",Table_Front_desk_report.accdb[[#This Row],[inbox]])","v":"mn.incoming@hud.gov"}]
[800022853,"ASSISI HOMES of KENOSHA                           ","KENOSHA                     ","WI","53140","BRUCE X NASH                                       ","bruce.nash@hud.gov","312-913-8357","chi.incoming@hud.gov",{"$f":"HYPERLINK(\"mailto:\",Table_Front_desk_report.accdb[[#This Row],[inbox]])","v":"chi.incoming@hud.gov"}]
[800022855,"ASSISI HOMES OF NEENAH                            ","NEENAH                      ","WI","54956","MICHAEL D FURNNER                                  ","MICHAEL.D.FURNNER@hud.gov","414-935-6682","mn.incoming@hud.gov",{"$f":"HYPERLINK(\"mailto:\",Table_Front_desk_report.accdb[[#This Row],[inbox]])","v":"mn.incoming@hud.gov"}]
[800022856,"ATKINSON COURT                                    ","MILWAUKEE                   ","WI","53206","CINDY BEHNKE                                       ","cynthia.behnke@hud.gov","612-370-3278","mn.incoming@hud.gov",{"$f":"HYPERLINK(\"mailto:\",Table_Front_desk_report.accdb[[#This Row],[inbox]])","v":"mn.incoming@hud.gov"}]
[800043927,"AUBURN TOWNHOMES                                  ","HOPKINS                     ","MN","55343","MICHAEL P MORAN                                    ","MICHAEL.P.MORAN@HUD.GOV","612-370-3081","mn.incoming@hud.gov",{"$f":"HYPERLINK(\"mailto:\",Table_Front_desk_report.accdb[[#This Row],[inbox]])","v":"mn.incoming@hud.gov"}]
[800022857,"AUER COURT APARTMENTS                             ","MILWAUKEE                   ","WI","53233","BRUCE X NASH                                       ","bruce.nash@hud.gov","312-913-8357","chi.incoming@hud.gov",{"$f":"HYPERLINK(\"mailto:\",Table_Front_desk_report.accdb[[#This Row],[inbox]])","v":"chi.incoming@hud.gov"}]
[800010765,"AUGUSTANA APARTMENTS                              ","FERGUS FALLS                ","MN","56537","GREGORY T MERZ                                     ","GREGORY.T.MERZ@hud.gov","612-370-3077","mn.incoming@hud.gov",{"$f":"HYPERLINK(\"mailto:\",Table_Front_desk_report.accdb[[#This Row],[inbox]])","v":"mn.incoming@hud.gov"}]
[800242930,"Autumn Ridge Apartments                           ","Brooklyn Park               ","MN","55443","THOMAS G DURSCHER                                  ","Thomas.G.Durscher@hud.gov","612-370-3018","mn.incoming@hud.gov",{"$f":"HYPERLINK(\"mailto:\",Table_Front_desk_report.accdb[[#This Row],[inbox]])","v":"mn.incoming@hud.gov"}]
[800215009,"Autumn Trails Apartments                          ","Rogers                      ","MN","55374","MICHAEL P MORAN                                    ","MICHAEL.P.MORAN@HUD.GOV","612-370-3081","mn.incoming@hud.gov",{"$f":"HYPERLINK(\"mailto:\",Table_Front_desk_report.accdb[[#This Row],[inbox]])","v":"mn.incoming@hud.gov"}]
[null,"B"]
[800022859,"BAD AXE APARTMENTS                                ","VIROQUA                     ","WI","54665","ANDREA L CARSON                                    ","andrea.carson@hud.gov","414-935-6679","mn.incoming@hud.gov",{"$f":"HYPERLINK(\"mailto:\",Table_Front_desk_report.accdb[[#This Row],[inbox]])","v":"mn.incoming@hud.gov"}]
[800023048,"BADGER TERRACE                                    ","GREEN BAY                   ","WI","54303","PAUL A DUHR                                        ","paul.a.duhr@hud.gov","414-935-6681","mn.incoming@hud.gov",{"$f":"HYPERLINK(\"mailto:\",Table_Front_desk_report.accdb[[#This Row],[inbox]])","v":"mn.incoming@hud.gov"}]
[800010769,"BAKER HOUSING                                     ","BEMIDJI                     ","MN","56601","MARCIA A KOLB                                      ","MARCIA.A.KOLB@hud.gov","612-370-3055","mn.incoming@hud.gov",{"$f":"HYPERLINK(\"mailto:\",Table_Front_desk_report.accdb[[#This Row],[inbox]])","v":"mn.incoming@hud.gov"}]
[800023187,"BAL PROPERTIES                                    ","Milwaukee                   ","WI","53212","GRACIA M SHIFFRIN                                  ","gracia.m.shiffrin@hud.gov","312-913-8141","chi.incoming@hud.gov",{"$f":"HYPERLINK(\"mailto:\",Table_Front_desk_report.accdb[[#This Row],[inbox]])","v":"chi.incoming@hud.gov"}]
[800022860,"BALDWIN APTS                                      ","BALDWIN                     ","WI","54002","JOEL R KLEMM                                       ","JOEL.R.KLEMM@hud.gov","612-370-3053","mn.incoming@hud.gov",{"$f":"HYPERLINK(\"mailto:\",Table_Front_desk_report.accdb[[#This Row],[inbox]])","v":"mn.incoming@hud.gov"}]
[800239540,"BALDWIN COTTAGES                                  ","Baldwin                     ","WI","54002","ANDREA L CARSON                                    ","andrea.carson@hud.gov","414-935-6679","mn.incoming@hud.gov",{"$f":"HYPERLINK(\"mailto:\",Table_Front_desk_report.accdb[[#This Row],[inbox]])","v":"mn.incoming@hud.gov"}]
[800022861,"BARC LANE APTS                                    ","CHETEK                      ","WI","54728","SUSAN K ROSKOS                                     ","Susan.K.Roskos@hud.gov","612-370-3110","mn.incoming@hud.gov",{"$f":"HYPERLINK(\"mailto:\",Table_Front_desk_report.accdb[[#This Row],[inbox]])","v":"mn.incoming@hud.gov"}]
[800022862,"BARRON CO. FAMILY HOUSING                         ","CHETEK                      ","WI","54728","JOEL R KLEMM                                       ","JOEL.R.KLEMM@hud.gov","612-370-3053","mn.incoming@hud.gov",{"$f":"HYPERLINK(\"mailto:\",Table_Front_desk_report.accdb[[#This Row],[inbox]])","v":"mn.incoming@hud.gov"}]
[800022863,"BARRON COUNTY HOUSING                             ","BARRON                      ","WI","54812","MICHAEL D FURNNER                                  ","MICHAEL.D.FURNNER@hud.gov","414-935-6682","mn.incoming@hud.gov",{"$f":"HYPERLINK(\"mailto:\",Table_Front_desk_report.accdb[[#This Row],[inbox]])","v":"mn.incoming@hud.gov"}]
[800022864,"BARTLEY MANOR                                     ","SUPERIOR                    ","WI","54880","CATHERINE A TEMPLE                                 ","Catherine.A.Temple@hud.gov","414-935-6695","mn.incoming@hud.gov",{"$f":"HYPERLINK(\"mailto:\",Table_Front_desk_report.accdb[[#This Row],[inbox]])","v":"mn.incoming@hud.gov"}]
[800239989,"Bass Lake Hills Th's                              ","Plymouth                    ","MN","55442","JOEL R KLEMM                                       ","JOEL.R.KLEMM@hud.gov","612-370-3053","mn.incoming@hud.gov",{"$f":"HYPERLINK(\"mailto:\",Table_Front_desk_report.accdb[[#This Row],[inbox]])","v":"mn.incoming@hud.gov"}]
[800216180,"Bassett Creek                                     ","MINNEAPOLIS                 ","MN","55411","JULIE A LASOTA                                     ","Julie.A.Lasota@hud.gov","612-370-3066","mn.incoming@hud.gov",{"$f":"HYPERLINK(\"mailto:\",Table_Front_desk_report.accdb[[#This Row],[inbox]])","v":"mn.incoming@hud.gov"}]
[800216945,"Bassett Creek Apartments                          ","Minneapolis                 ","MN","55411","JULIE A LASOTA                                     ","Julie.A.Lasota@hud.gov","612-370-3066","mn.incoming@hud.gov",{"$f":"HYPERLINK(\"mailto:\",Table_Front_desk_report.accdb[[#This Row],[inbox]])","v":"mn.incoming@hud.gov"}]
[800072523,"BASSETT CREEK SR HSING                            ","PLYMOUTH                    ","MN","55441","NATASHA D GUENOVA                                  ","NATASHA.D.GUENOVA@hud.gov","612-370-3035","mn.incoming@hud.gov",{"$f":"HYPERLINK(\"mailto:\",Table_Front_desk_report.accdb[[#This Row],[inbox]])","v":"mn.incoming@hud.gov"}]
[800022866,"BAY RIDGE APARTMENTS                              ","ASHLAND                     ","WI","54806","CATHERINE A TEMPLE                                 ","Catherine.A.Temple@hud.gov","414-935-6695","mn.incoming@hud.gov",{"$f":"HYPERLINK(\"mailto:\",Table_Front_desk_report.accdb[[#This Row],[inbox]])","v":"mn.incoming@hud.gov"}]
[800022867,"BAY SHORE APARTMENTS                              ","BEAVER DAM                  ","WI","53916","JULIE A LASOTA                                     ","Julie.A.Lasota@hud.gov","612-370-3066","mn.incoming@hud.gov",{"$f":"HYPERLINK(\"mailto:\",Table_Front_desk_report.accdb[[#This Row],[inbox]])","v":"mn.incoming@hud.gov"}]
[800022868,"BAYVIEW APARTMENTS                                ","OXFORD                      ","WI","53952","CATHERINE A TEMPLE                                 ","Catherine.A.Temple@hud.gov","414-935-6695","mn.incoming@hud.gov",{"$f":"HYPERLINK(\"mailto:\",Table_Front_desk_report.accdb[[#This Row],[inbox]])","v":"mn.incoming@hud.gov"}]
[800022870,"BAYVIEW MANOR                                     ","MILWAUKEE                   ","WI","53207","VERONICA S SIMS                                    ","veronica.s.sims@hud.gov","312-913-8066","chi.incoming@hud.gov",{"$f":"HYPERLINK(\"mailto:\",Table_Front_desk_report.accdb[[#This Row],[inbox]])","v":"chi.incoming@hud.gov"}]
[800022871,"BAYVIEW TERRACE                                   ","SISTER BAY                  ","WI","54234","PAUL A DUHR                                        ","paul.a.duhr@hud.gov","414-935-6681","mn.incoming@hud.gov",{"$f":"HYPERLINK(\"mailto:\",Table_Front_desk_report.accdb[[#This Row],[inbox]])","v":"mn.incoming@hud.gov"}]
[800022869,"BAYVIEW TOWNHOUSES                                ","MADISON                     ","WI","53715","DORTHY L HOPKINS                                   ","dorthy.l.hopkins@hud.gov","312-913-8172","chi.incoming@hud.gov",{"$f":"HYPERLINK(\"mailto:\",Table_Front_desk_report.accdb[[#This Row],[inbox]])","v":"chi.incoming@hud.gov"}]
[800236469,"BEAR ARBOR APARTMENTS                             ","Burlington                  ","WI","53105","MARLENE X TRIMUEL                                  ","Marlene.Trimuel@hud.gov","312-913-8369","chi.incoming@hud.gov",{"$f":"HYPERLINK(\"mailto:\",Table_Front_desk_report.accdb[[#This Row],[inbox]])","v":"chi.incoming@hud.gov"}]
[800010771,"BEARDSLEY APARTMENTS                              ","Beardsley                   ","MN","56211","TERESA C PARKER                                    ","TERESA.C.PARKER@hud.gov","612-370-3092","mn.incoming@hud.gov",{"$f":"HYPERLINK(\"mailto:\",Table_Front_desk_report.accdb[[#This Row],[inbox]])","v":"mn.incoming@hud.gov"}]
[800010764,"BECKER APARTMENTS                                 ","WILLMAR                     ","MN","56201","SHERRY K NORTON                                    ","Sherry.K.Norton@hud.gov","612-370-3087","mn.incoming@hud.gov",{"$f":"HYPERLINK(\"mailto:\",Table_Front_desk_report.accdb[[#This Row],[inbox]])","v":"mn.incoming@hud.gov"}]
[800236170,"BELLE HARBOR LOFTS                                ","Racine                      ","WI","53403","DORTHY L HOPKINS                                   ","dorthy.l.hopkins@hud.gov","312-913-8172","chi.incoming@hud.gov",{"$f":"HYPERLINK(\"mailto:\",Table_Front_desk_report.accdb[[#This Row],[inbox]])","v":"chi.incoming@hud.gov"}]
[800010772,"Belle Plaine Apartments                           ","BELLE PLAINE                ","MN","56011","NATASHA D GUENOVA                                  ","NATASHA.D.GUENOVA@hud.gov","612-370-3035","mn.incoming@hud.gov",{"$f":"HYPERLINK(\"mailto:\",Table_Front_desk_report.accdb[[#This Row],[inbox]])","v":"mn.incoming@hud.gov"}]
[800011287,"BENDEL APARTMENTS                                 ","STEPHEN                     ","MN","56757","THOMAS G DURSCHER                                  ","Thomas.G.Durscher@hud.gov","612-370-3018","mn.incoming@hud.gov",{"$f":"HYPERLINK(\"mailto:\",Table_Front_desk_report.accdb[[#This Row],[inbox]])","v":"mn.incoming@hud.gov"}]
[800010773,"BENET PLACE                                       ","SAINT CLOUD                 ","MN","56304","NATASHA D GUENOVA                                  ","NATASHA.D.GUENOVA@hud.gov","612-370-3035","mn.incoming@hud.gov",{"$f":"HYPERLINK(\"mailto:\",Table_Front_desk_report.accdb[[#This Row],[inbox]])","v":"mn.incoming@hud.gov"}]
[800072533,"Benet Place South                                 ","SAINT CLOUD                 ","MN","56304","NATASHA D GUENOVA                                  ","NATASHA.D.GUENOVA@hud.gov","612-370-3035","mn.incoming@hud.gov",{"$f":"HYPERLINK(\"mailto:\",Table_Front_desk_report.accdb[[#This Row],[inbox]])","v":"mn.incoming@hud.gov"}]
[800022874,"BERLIN HOUSING                                    ","BERLIN                      ","WI","54923","ANDREA L CARSON                                    ","andrea.carson@hud.gov","414-935-6679","mn.incoming@hud.gov",{"$f":"HYPERLINK(\"mailto:\",Table_Front_desk_report.accdb[[#This Row],[inbox]])","v":"mn.incoming@hud.gov"}]
[800010774,"BETHEL MANOR  I                                   ","Alexandria                  ","MN","56308","MITCHELL S HILLMAN                                 ","MITCHELL.S.HILLMAN@hud.gov","612-370-3036","mn.incoming@hud.gov",{"$f":"HYPERLINK(\"mailto:\",Table_Front_desk_report.accdb[[#This Row],[inbox]])","v":"mn.incoming@hud.gov"}]
[800010775,"Bethel Manor II                                   ","ALEXANDRIA                  ","MN","56308","TEENA M GEE                                        ","Teena.M.Gee@hud.gov","612-843-6414","mn.incoming@hud.gov",{"$f":"HYPERLINK(\"mailto:\",Table_Front_desk_report.accdb[[#This Row],[inbox]])","v":"mn.incoming@hud.gov"}]
[800112282,"BIG GUST TERRACE                                  ","GRANTSBURG                  ","WI","54840","ANDREA L CARSON                                    ","andrea.carson@hud.gov","414-935-6679","mn.incoming@hud.gov",{"$f":"HYPERLINK(\"mailto:\",Table_Front_desk_report.accdb[[#This Row],[inbox]])","v":"mn.incoming@hud.gov"}]
[800232064,"Bii Di Gain Dash Anwebi Elder Housing             ","Minneapolis                 ","MN","55404","SHERRY K NORTON                                    ","Sherry.K.Norton@hud.gov","612-370-3087","mn.incoming@hud.gov",{"$f":"HYPERLINK(\"mailto:\",Table_Front_desk_report.accdb[[#This Row],[inbox]])","v":"mn.incoming@hud.gov"}]
[800217879,"Biimaadiiziiwiin                                  ","White Earth                 ","MN","56591","TERRI A MUNSON                                     ","Terri.A.Munson@hud.gov","612-370-3086","mn.incoming@hud.gov",{"$f":"HYPERLINK(\"mailto:\",Table_Front_desk_report.accdb[[#This Row],[inbox]])","v":"mn.incoming@hud.gov"}]
[800010776,"BIRCH COURT APARTMENTS                            ","HIBBING                     ","MN","55746","CAROL DIXON                                        ","Carol.A.Dixon@hud.gov","612-370-3015","mn.incoming@hud.gov",{"$f":"HYPERLINK(\"mailto:\",Table_Front_desk_report.accdb[[#This Row],[inbox]])","v":"mn.incoming@hud.gov"}]
[800215930,"BIRCH GLEN APARTMENTS                             ","MAPLEWOOD                   ","MN","55109","SHERRY K NORTON                                    ","Sherry.K.Norton@hud.gov","612-370-3087","mn.incoming@hud.gov",{"$f":"HYPERLINK(\"mailto:\",Table_Front_desk_report.accdb[[#This Row],[inbox]])","v":"mn.incoming@hud.gov"}]
[800010777,"BIRCH LAKE APARTMENTS                             ","HACKENSACK                  ","MN","56452","SUSAN K ROSKOS                                     ","Susan.K.Roskos@hud.gov","612-370-3110","mn.incoming@hud.gov",{"$f":"HYPERLINK(\"mailto:\",Table_Front_desk_report.accdb[[#This Row],[inbox]])","v":"mn.incoming@hud.gov"}]
[800010779,"BIRCHWOOD EAST                                    ","VIRGINIA                    ","MN","55792","MITCHELL S HILLMAN                                 ","MITCHELL.S.HILLMAN@hud.gov","612-370-3036","mn.incoming@hud.gov",{"$f":"HYPERLINK(\"mailto:\",Table_Front_desk_report.accdb[[#This Row],[inbox]])","v":"mn.incoming@hud.gov"}]
[800010778,"BIRCHWOOD TOWNHOUSE APTS                          ","STILLWATER                  ","MN","55082","SUSAN K ROSKOS                                     ","Susan.K.Roskos@hud.gov","612-370-3110","mn.incoming@hud.gov",{"$f":"HYPERLINK(\"mailto:\",Table_Front_desk_report.accdb[[#This Row],[inbox]])","v":"mn.incoming@hud.gov"}]
[800022877,"BIRD CREEK/GRACE APARTMENTS                       ","WAUTOMA                     ","WI","54982","CATHERINE A TEMPLE                                 ","Catherine.A.Temple@hud.gov","414-935-6695","mn.incoming@hud.gov",{"$f":"HYPERLINK(\"mailto:\",Table_Front_desk_report.accdb[[#This Row],[inbox]])","v":"mn.incoming@hud.gov"}]
[800010780,"BIRMINGHAM                                        ","SAINT PAUL                  ","MN","55106","CINDY BEHNKE                                       ","cynthia.behnke@hud.gov","612-370-3278","mn.incoming@hud.gov",{"$f":"HYPERLINK(\"mailto:\",Table_Front_desk_report.accdb[[#This Row],[inbox]])","v":"mn.incoming@hud.gov"}]
[800240363,"BLACK HAWK TRAILS APARTMENTS                      ","Madison                     ","WI","53717","DORTHY L HOPKINS                                   ","dorthy.l.hopkins@hud.gov","312-913-8172","chi.incoming@hud.gov",{"$f":"HYPERLINK(\"mailto:\",Table_Front_desk_report.accdb[[#This Row],[inbox]])","v":"chi.incoming@hud.gov"}]
[800236850,"Blackberry Pointe Apartments                      ","Inver Grove Heights         ","MN","55076","THOMAS G DURSCHER                                  ","Thomas.G.Durscher@hud.gov","612-370-3018","mn.incoming@hud.gov",{"$f":"HYPERLINK(\"mailto:\",Table_Front_desk_report.accdb[[#This Row],[inbox]])","v":"mn.incoming@hud.gov"}]
[800010781,"BLACKDUCK APARTMENTS                              ","BLACKDUCK                   ","MN","56630","CINDY BEHNKE                                       ","cynthia.behnke@hud.gov","612-370-3278","mn.incoming@hud.gov",{"$f":"HYPERLINK(\"mailto:\",Table_Front_desk_report.accdb[[#This Row],[inbox]])","v":"mn.incoming@hud.gov"}]
[800220181,"Blaine Town Square                                ","BLAINE                      ","MN","55449","THOMAS G DURSCHER                                  ","Thomas.G.Durscher@hud.gov","612-370-3018","mn.incoming@hud.gov",{"$f":"HYPERLINK(\"mailto:\",Table_Front_desk_report.accdb[[#This Row],[inbox]])","v":"mn.incoming@hud.gov"}]
[800022878,"BLANCHE AND MADGE HOME                            ","MILWAUKEE                   ","WI","53223","MARILYN COTTON                                     ","marilyn.cotton@hud.gov","312-913-8125","chi.incoming@hud.gov",{"$f":"HYPERLINK(\"mailto:\",Table_Front_desk_report.accdb[[#This Row],[inbox]])","v":"chi.incoming@hud.gov"}]
[800023301,"BLETZINGER HOUSE                                  ","NEENAH                      ","WI","54956","PAUL A DUHR                                        ","paul.a.duhr@hud.gov","414-935-6681","mn.incoming@hud.gov",{"$f":"HYPERLINK(\"mailto:\",Table_Front_desk_report.accdb[[#This Row],[inbox]])","v":"mn.incoming@hud.gov"}]
[800010782,"BLOOMING GLEN TOWNHOMES                           ","BLOOMINGTON                 ","MN","55420","DARIAN JANE ZIEGLER                                ","Darian.Ziegler@hud.gov","612-370-3270","mn.incoming@hud.gov",{"$f":"HYPERLINK(\"mailto:\",Table_Front_desk_report.accdb[[#This Row],[inbox]])","v":"mn.incoming@hud.gov"}]
[800010783,"BLOOMINGTON BARRIER FREE HSING                    ","BLOOMINGTON                 ","MN","55420","TERESA C PARKER                                    ","TERESA.C.PARKER@hud.gov","612-370-3092","mn.incoming@hud.gov",{"$f":"HYPERLINK(\"mailto:\",Table_Front_desk_report.accdb[[#This Row],[inbox]])","v":"mn.incoming@hud.gov"}]
[800010785,"BLOOMINGTON HSG aka Penn Place aka Knox Landing   ","BLOOMINGTON                 ","MN","55431","MITCHELL S HILLMAN                                 ","MITCHELL.S.HILLMAN@hud.gov","612-370-3036","mn.incoming@hud.gov",{"$f":"HYPERLINK(\"mailto:\",Table_Front_desk_report.accdb[[#This Row],[inbox]])","v":"mn.incoming@hud.gov"}]
[800010786,"BLUE RIDGE APARTMENTS                             ","BLUE EARTH                  ","MN","56013","BEN OSBORN                                         ","Benjamin.M.Osborn@hud.gov","612-370-3091","mn.incoming@hud.gov",{"$f":"HYPERLINK(\"mailto:\",Table_Front_desk_report.accdb[[#This Row],[inbox]])","v":"mn.incoming@hud.gov"}]
[800022880,"BLUE VALLEY APARTMENTS                            ","RICE LAKE                   ","WI","54868","SUSAN K ROSKOS                                     ","Susan.K.Roskos@hud.gov","612-370-3110","mn.incoming@hud.gov",{"$f":"HYPERLINK(\"mailto:\",Table_Front_desk_report.accdb[[#This Row],[inbox]])","v":"mn.incoming@hud.gov"}]
[800022881,"BLUFF AIRE APARTMENTS                             ","NECEDAH                     ","WI","54646","CATHERINE A TEMPLE                                 ","Catherine.A.Temple@hud.gov","414-935-6695","mn.incoming@hud.gov",{"$f":"HYPERLINK(\"mailto:\",Table_Front_desk_report.accdb[[#This Row],[inbox]])","v":"mn.incoming@hud.gov"}]
[800022882,"BLUFF VIEW APARTMENTS                             ","CAMP DOUGLAS                ","WI","54618","ANDREA L CARSON                                    ","andrea.carson@hud.gov","414-935-6679","mn.incoming@hud.gov",{"$f":"HYPERLINK(\"mailto:\",Table_Front_desk_report.accdb[[#This Row],[inbox]])","v":"mn.incoming@hud.gov"}]
[800010798,"BNR Partners  aka  Bridgeway Apts                 ","ROBBINSDALE                 ","MN","55422","SUSAN K ROSKOS                                     ","Susan.K.Roskos@hud.gov","612-370-3110","mn.incoming@hud.gov",{"$f":"HYPERLINK(\"mailto:\",Table_Front_desk_report.accdb[[#This Row],[inbox]])","v":"mn.incoming@hud.gov"}]
[800211378,"BOARDMAN MEADOWS                                  ","NEW RICHMOND                ","WI","54017","JOEL R KLEMM                                       ","JOEL.R.KLEMM@hud.gov","612-370-3053","mn.incoming@hud.gov",{"$f":"HYPERLINK(\"mailto:\",Table_Front_desk_report.accdb[[#This Row],[inbox]])","v":"mn.incoming@hud.gov"}]
[800010787,"BOARDWALK                                         ","WAYZATA                     ","MN","55391","SUSAN K ROSKOS                                     ","Susan.K.Roskos@hud.gov","612-370-3110","mn.incoming@hud.gov",{"$f":"HYPERLINK(\"mailto:\",Table_Front_desk_report.accdb[[#This Row],[inbox]])","v":"mn.incoming@hud.gov"}]
[800072534,"Boessling Lutheran Village Apts                   ","BELLE PLAINE                ","MN","56011","SHERRY K NORTON                                    ","Sherry.K.Norton@hud.gov","612-370-3087","mn.incoming@hud.gov",{"$f":"HYPERLINK(\"mailto:\",Table_Front_desk_report.accdb[[#This Row],[inbox]])","v":"mn.incoming@hud.gov"}]
[800022883,"BOOTH MANOR                                       ","OAK CREEK                   ","WI","53154","LATOYA A WASHINGTON                                ","latoya.a.washington@hud.gov","312-913-8271","chi.incoming@hud.gov",{"$f":"HYPERLINK(\"mailto:\",Table_Front_desk_report.accdb[[#This Row],[inbox]])","v":"chi.incoming@hud.gov"}]
[800010788,"BOOTH MANOR / Salvation Army                      ","MINNEAPOLIS                 ","MN","55403","TERRI A MUNSON                                     ","Terri.A.Munson@hud.gov","612-370-3086","mn.incoming@hud.gov",{"$f":"HYPERLINK(\"mailto:\",Table_Front_desk_report.accdb[[#This Row],[inbox]])","v":"mn.incoming@hud.gov"}]
[800022884,"BOOTH MANOR TWO                                   ","OAK CREEK                   ","WI","53154","GRACIA M SHIFFRIN                                  ","gracia.m.shiffrin@hud.gov","312-913-8141","chi.incoming@hud.gov",{"$f":"HYPERLINK(\"mailto:\",Table_Front_desk_report.accdb[[#This Row],[inbox]])","v":"chi.incoming@hud.gov"}]
[800212650,"BOSSEN PARK APTS                                  ","MINNEAPOLIS                 ","MN","55417","DARIAN JANE ZIEGLER                                ","Darian.Ziegler@hud.gov","612-370-3270","mn.incoming@hud.gov",{"$f":"HYPERLINK(\"mailto:\",Table_Front_desk_report.accdb[[#This Row],[inbox]])","v":"mn.incoming@hud.gov"}]
[800217860,"Bostrom Terrace                                   ","ROCHESTER                   ","MN","55904","SUSAN K ROSKOS                                     ","Susan.K.Roskos@hud.gov","612-370-3110","mn.incoming@hud.gov",{"$f":"HYPERLINK(\"mailto:\",Table_Front_desk_report.accdb[[#This Row],[inbox]])","v":"mn.incoming@hud.gov"}]
[800216105,"Bottineau Commons                                 ","MINNEAPOLIS                 ","MN","55418","MICHAEL P MORAN                                    ","MICHAEL.P.MORAN@HUD.GOV","612-370-3081","mn.incoming@hud.gov",{"$f":"HYPERLINK(\"mailto:\",Table_Front_desk_report.accdb[[#This Row],[inbox]])","v":"mn.incoming@hud.gov"}]
[800217560,"Bottineau Lofts                                   ","MINNEAPOLIS                 ","MN","55418","TERESA C PARKER                                    ","TERESA.C.PARKER@hud.gov","612-370-3092","mn.incoming@hud.gov",{"$f":"HYPERLINK(\"mailto:\",Table_Front_desk_report.accdb[[#This Row],[inbox]])","v":"mn.incoming@hud.gov"}]
[800238257,"Bottineau Ridge Apartments                        ","Maple Grove                 ","MN","55369","DARIAN JANE ZIEGLER                                ","Darian.Ziegler@hud.gov","612-370-3270","mn.incoming@hud.gov",{"$f":"HYPERLINK(\"mailto:\",Table_Front_desk_report.accdb[[#This Row],[inbox]])","v":"mn.incoming@hud.gov"}]
[800212617,"Boulder Ridge                                     ","APPLE VALLEY                ","MN","55124","MARCIA A KOLB                                      ","MARCIA.A.KOLB@hud.gov","612-370-3055","mn.incoming@hud.gov",{"$f":"HYPERLINK(\"mailto:\",Table_Front_desk_report.accdb[[#This Row],[inbox]])","v":"mn.incoming@hud.gov"}]
[800022885,"BOULEVARD APARTMENTS                              ","MILWAUKEE                   ","WI","53204","DEBORAH E MONROE                                   ","deborah.e.monroe@hud.gov","312-913-8210","chi.incoming@hud.gov",{"$f":"HYPERLINK(\"mailto:\",Table_Front_desk_report.accdb[[#This Row],[inbox]])","v":"chi.incoming@hud.gov"}]
[800010768,"BOULEVARD GARDENS                                 ","MINNETONKA                  ","MN","55305","MICHAEL P MORAN                                    ","MICHAEL.P.MORAN@HUD.GOV","612-370-3081","mn.incoming@hud.gov",{"$f":"HYPERLINK(\"mailto:\",Table_Front_desk_report.accdb[[#This Row],[inbox]])","v":"mn.incoming@hud.gov"}]
[800022886,"BRADFORD PLACE                                    ","MILWAUKEE                   ","WI","53211","DONNA M SHEEHAN                                    ","Donna.Sheehan@hud.gov"," 312-957-4781 ","chi.incoming@hud.gov",{"$f":"HYPERLINK(\"mailto:\",Table_Front_desk_report.accdb[[#This Row],[inbox]])","v":"chi.incoming@hud.gov"}]
[800022893,"BRADLEY PLACE                                     ","MILWAUKEE                   ","WI","53223","MARLENE X TRIMUEL                                  ","Marlene.Trimuel@hud.gov","312-913-8369","chi.incoming@hud.gov",{"$f":"HYPERLINK(\"mailto:\",Table_Front_desk_report.accdb[[#This Row],[inbox]])","v":"chi.incoming@hud.gov"}]
[800010793,"BRAHAM MEADOWS                                    ","BRAHAM                      ","MN","55006","PAUL A DUHR                                        ","paul.a.duhr@hud.gov","414-935-6681","mn.incoming@hud.gov",{"$f":"HYPERLINK(\"mailto:\",Table_Front_desk_report.accdb[[#This Row],[inbox]])","v":"mn.incoming@hud.gov"}]
[800010794,"BRAINERD SOUTH APARTMENTS                         ","BRAINERD                    ","MN","56401","THOMAS G DURSCHER                                  ","Thomas.G.Durscher@hud.gov","612-370-3018","mn.incoming@hud.gov",{"$f":"HYPERLINK(\"mailto:\",Table_Front_desk_report.accdb[[#This Row],[inbox]])","v":"mn.incoming@hud.gov"}]
[800022887,"BRAM HILL APTS                                    ","MADISON                     ","WI","53713","RAYMOND GUNTER                                     ","raymond.p.gunter@hud.gov","312-913-8309","chi.incoming@hud.gov",{"$f":"HYPERLINK(\"mailto:\",Table_Front_desk_report.accdb[[#This Row],[inbox]])","v":"chi.incoming@hud.gov"}]
[800023479,"BREEZEWOOD VILLAGE                                ","OCONOMOWOC                  ","WI","53066","TANIKA MATHIS-EARSERY                              ","tanika.mathis-earsery@hud.gov","312-913-8433","chi.incoming@hud.gov",{"$f":"HYPERLINK(\"mailto:\",Table_Front_desk_report.accdb[[#This Row],[inbox]])","v":"chi.incoming@hud.gov"}]
[800010795,"Bremerton Townhomes                               ","AUSTIN                      ","MN","55912","DARIAN JANE ZIEGLER                                ","Darian.Ziegler@hud.gov","612-370-3270","mn.incoming@hud.gov",{"$f":"HYPERLINK(\"mailto:\",Table_Front_desk_report.accdb[[#This Row],[inbox]])","v":"mn.incoming@hud.gov"}]
[800235195,"BRIARWOOD APARTMENTS                              ","Madison                     ","WI","53704","JULIE M WHITEFEATHER                               ","julie.m.whitefeather@hud.gov","312-913-8117","chi.incoming@hud.gov",{"$f":"HYPERLINK(\"mailto:\",Table_Front_desk_report.accdb[[#This Row],[inbox]])","v":"chi.incoming@hud.gov"}]
[800010797,"BRIDGE SQUARE APARTMENTS                          ","ANOKA                       ","MN","55303","NATASHA D GUENOVA                                  ","NATASHA.D.GUENOVA@hud.gov","612-370-3035","mn.incoming@hud.gov",{"$f":"HYPERLINK(\"mailto:\",Table_Front_desk_report.accdb[[#This Row],[inbox]])","v":"mn.incoming@hud.gov"}]
[800022889,"BRIDGEWATER APTS                                  ","CHIPPEWA FALLS              ","WI","54729","JOEL R KLEMM                                       ","JOEL.R.KLEMM@hud.gov","612-370-3053","mn.incoming@hud.gov",{"$f":"HYPERLINK(\"mailto:\",Table_Front_desk_report.accdb[[#This Row],[inbox]])","v":"mn.incoming@hud.gov"}]
[800079171,"BRISTOL COURTS                                    ","SUSSEX                      ","WI","53089","ELLIE L CHICOSKI                                   ","ellie.l.chicoski@hud.gov","312-913-8385","chi.incoming@hud.gov",{"$f":"HYPERLINK(\"mailto:\",Table_Front_desk_report.accdb[[#This Row],[inbox]])","v":"chi.incoming@hud.gov"}]
[800010799,"BROADWAY APARTMENTS -- (WELLS)                    ","WELLS                       ","MN","56097","CINDY BEHNKE                                       ","cynthia.behnke@hud.gov","612-370-3278","mn.incoming@hud.gov",{"$f":"HYPERLINK(\"mailto:\",Table_Front_desk_report.accdb[[#This Row],[inbox]])","v":"mn.incoming@hud.gov"}]
[800079726,"BROADWAY APTS -- (CROOKSTON)                      ","CROOKSTON                   ","MN","56716","MITCHELL S HILLMAN                                 ","MITCHELL.S.HILLMAN@hud.gov","612-370-3036","mn.incoming@hud.gov",{"$f":"HYPERLINK(\"mailto:\",Table_Front_desk_report.accdb[[#This Row],[inbox]])","v":"mn.incoming@hud.gov"}]
[800044087,"BROADWAY APTS -- (FERGUS FALLS)                   ","FERGUS FALLS                ","MN","56537","CAROL DIXON                                        ","Carol.A.Dixon@hud.gov","612-370-3015","mn.incoming@hud.gov",{"$f":"HYPERLINK(\"mailto:\",Table_Front_desk_report.accdb[[#This Row],[inbox]])","v":"mn.incoming@hud.gov"}]
[800022891,"BROADWAY COURT II                                 ","VIROQUA                     ","WI","54665","SUSAN K ROSKOS                                     ","Susan.K.Roskos@hud.gov","612-370-3110","mn.incoming@hud.gov",{"$f":"HYPERLINK(\"mailto:\",Table_Front_desk_report.accdb[[#This Row],[inbox]])","v":"mn.incoming@hud.gov"}]
[800241470,"Broadway Flats Apartments                         ","Minneapolis                 ","MN","55411","THOMAS G DURSCHER                                  ","Thomas.G.Durscher@hud.gov","612-370-3018","mn.incoming@hud.gov",{"$f":"HYPERLINK(\"mailto:\",Table_Front_desk_report.accdb[[#This Row],[inbox]])","v":"mn.incoming@hud.gov"}]
[800022892,"BRODHEAD HOUSING                                  ","BRODHEAD                    ","WI","53520","YOLANDA S MILLER                                   ","yolanda.s.miller@hud.gov","312-913-8580","chi.incoming@hud.gov",{"$f":"HYPERLINK(\"mailto:\",Table_Front_desk_report.accdb[[#This Row],[inbox]])","v":"chi.incoming@hud.gov"}]
[800022894,"BROOKDALE MANOR                                   ","WHITEWATER                  ","WI","53190","RAYMOND GUNTER                                     ","raymond.p.gunter@hud.gov","312-913-8309","chi.incoming@hud.gov",{"$f":"HYPERLINK(\"mailto:\",Table_Front_desk_report.accdb[[#This Row],[inbox]])","v":"chi.incoming@hud.gov"}]
[800010800,"BROOKFIELD APTS                                   ","CLEARBROOK                  ","MN","56634","LAWRANCE C MUNDT                                   ","LAWRENCE.C.MUNDT@hud.gov","612-370-3082","mn.incoming@hud.gov",{"$f":"HYPERLINK(\"mailto:\",Table_Front_desk_report.accdb[[#This Row],[inbox]])","v":"mn.incoming@hud.gov"}]
[800011110,"Brookside Senior Living                           ","Montevideo                  ","MN","56265","JULIE A LASOTA                                     ","Julie.A.Lasota@hud.gov","612-370-3066","mn.incoming@hud.gov",{"$f":"HYPERLINK(\"mailto:\",Table_Front_desk_report.accdb[[#This Row],[inbox]])","v":"mn.incoming@hud.gov"}]
[800233508,"BROOKSTONE COMMONS APARTMENTS                     ","Neenah                      ","WI","54956","ANDREA L CARSON                                    ","andrea.carson@hud.gov","414-935-6679","mn.incoming@hud.gov",{"$f":"HYPERLINK(\"mailto:\",Table_Front_desk_report.accdb[[#This Row],[inbox]])","v":"mn.incoming@hud.gov"}]
[800240648,"BUCKHORN STATION APARTMENTS                       ","Cudahy                      ","WI","53110","DORTHY L HOPKINS                                   ","dorthy.l.hopkins@hud.gov","312-913-8172","chi.incoming@hud.gov",{"$f":"HYPERLINK(\"mailto:\",Table_Front_desk_report.accdb[[#This Row],[inbox]])","v":"chi.incoming@hud.gov"}]
[800010801,"BUFFALO COURT                                     ","BUFFALO                     ","MN","55313","DARIAN JANE ZIEGLER                                ","Darian.Ziegler@hud.gov","612-370-3270","mn.incoming@hud.gov",{"$f":"HYPERLINK(\"mailto:\",Table_Front_desk_report.accdb[[#This Row],[inbox]])","v":"mn.incoming@hud.gov"}]
[800023410,"BURBANK PLAZA                                     ","JANESVILLE                  ","WI","53546","NINA M SMITH                                       ","nina.m.smith@hud.gov","312-913-8212","chi.incoming@hud.gov",{"$f":"HYPERLINK(\"mailto:\",Table_Front_desk_report.accdb[[#This Row],[inbox]])","v":"chi.incoming@hud.gov"}]
[800221571,"BURKE APARTMENTS                                  ","Duluth                      ","MN","55811","LAWRANCE C MUNDT                                   ","LAWRENCE.C.MUNDT@hud.gov","612-370-3082","mn.incoming@hud.gov",{"$f":"HYPERLINK(\"mailto:\",Table_Front_desk_report.accdb[[#This Row],[inbox]])","v":"mn.incoming@hud.gov"}]
[800022895,"BURNETT COUNTY HOUSING                            ","SIREN                       ","WI","54872","MICHAEL D FURNNER                                  ","MICHAEL.D.FURNNER@hud.gov","414-935-6682","mn.incoming@hud.gov",{"$f":"HYPERLINK(\"mailto:\",Table_Front_desk_report.accdb[[#This Row],[inbox]])","v":"mn.incoming@hud.gov"}]
[800022896,"BURNHAM VILLAGE APTS.                             ","WEST MILWAUKEE              ","WI","53219","LADRENNA A FIGUEROA                                ","ladrenna.a.figueroa@hud.gov","312-913-8290","chi.incoming@hud.gov",{"$f":"HYPERLINK(\"mailto:\",Table_Front_desk_report.accdb[[#This Row],[inbox]])","v":"chi.incoming@hud.gov"}]
[800010803,"BURNSDALE 1                                       ","MONTEVIDEO                  ","MN","56265","NATASHA D GUENOVA                                  ","NATASHA.D.GUENOVA@hud.gov","612-370-3035","mn.incoming@hud.gov",{"$f":"HYPERLINK(\"mailto:\",Table_Front_desk_report.accdb[[#This Row],[inbox]])","v":"mn.incoming@hud.gov"}]
[800239541,"Buzza Lofts of Uptown                             ","Minneapolis                 ","MN","55408","BEN OSBORN                                         ","Benjamin.M.Osborn@hud.gov","612-370-3091","mn.incoming@hud.gov",{"$f":"HYPERLINK(\"mailto:\",Table_Front_desk_report.accdb[[#This Row],[inbox]])","v":"mn.incoming@hud.gov"}]
[null,"C"]
[800069645,"C. G. ROBINSON TERRACE                            ","MILWAUKEE                   ","WI","53205","LATOYA A WASHINGTON                                ","latoya.a.washington@hud.gov","312-913-8271","chi.incoming@hud.gov",{"$f":"HYPERLINK(\"mailto:\",Table_Front_desk_report.accdb[[#This Row],[inbox]])","v":"chi.incoming@hud.gov"}]
[800022897,"C. L. LUND                                        ","SUPERIOR                    ","WI","54880","MICHAEL D FURNNER                                  ","MICHAEL.D.FURNNER@hud.gov","414-935-6682","mn.incoming@hud.gov",{"$f":"HYPERLINK(\"mailto:\",Table_Front_desk_report.accdb[[#This Row],[inbox]])","v":"mn.incoming@hud.gov"}]
[800010806,"CALVARY CENTER APTS                               ","GOLDEN VALLEY               ","MN","55427","GREGORY T MERZ                                     ","GREGORY.T.MERZ@hud.gov","612-370-3077","mn.incoming@hud.gov",{"$f":"HYPERLINK(\"mailto:\",Table_Front_desk_report.accdb[[#This Row],[inbox]])","v":"mn.incoming@hud.gov"}]
[800022902,"CALVARY GARDENS                                   ","MILWAUKEE                   ","WI","53206","NINA M SMITH                                       ","nina.m.smith@hud.gov","312-913-8212","chi.incoming@hud.gov",{"$f":"HYPERLINK(\"mailto:\",Table_Front_desk_report.accdb[[#This Row],[inbox]])","v":"chi.incoming@hud.gov"}]
[800023198,"CALVIN COURTYARD APARTMENTS I                     ","MILWAUKEE                   ","WI","53212","DORTHY L HOPKINS                                   ","dorthy.l.hopkins@hud.gov","312-913-8172","chi.incoming@hud.gov",{"$f":"HYPERLINK(\"mailto:\",Table_Front_desk_report.accdb[[#This Row],[inbox]])","v":"chi.incoming@hud.gov"}]
[800023197,"CALVIN COURTYARD APARTMENTS II                    ","MILWAUKEE                   ","WI","53212","DORTHY L HOPKINS                                   ","dorthy.l.hopkins@hud.gov","312-913-8172","chi.incoming@hud.gov",{"$f":"HYPERLINK(\"mailto:\",Table_Front_desk_report.accdb[[#This Row],[inbox]])","v":"chi.incoming@hud.gov"}]
[800010807,"CAMBER HILLS TOWNHOMES                            ","SOUTH SAINT PAUL            ","MN","55075","GREGORY T MERZ                                     ","GREGORY.T.MERZ@hud.gov","612-370-3077","mn.incoming@hud.gov",{"$f":"HYPERLINK(\"mailto:\",Table_Front_desk_report.accdb[[#This Row],[inbox]])","v":"mn.incoming@hud.gov"}]
[800022903,"CAMBRIDGE APARTMENTS                              ","MILWAUKEE                   ","WI","53202","JAYSEN ALEXANDER                                   ","Jaysen.P.Alexander@hud.gov","312-913-8711","chi.incoming@hud.gov",{"$f":"HYPERLINK(\"mailto:\",Table_Front_desk_report.accdb[[#This Row],[inbox]])","v":"chi.incoming@hud.gov"}]
[800023149,"CAMELOT APARTMENTS A/K/A MARION HOUSING           ","MARION                      ","WI","54950","MICHAEL D FURNNER                                  ","MICHAEL.D.FURNNER@hud.gov","414-935-6682","mn.incoming@hud.gov",{"$f":"HYPERLINK(\"mailto:\",Table_Front_desk_report.accdb[[#This Row],[inbox]])","v":"mn.incoming@hud.gov"}]
[800022904,"CAMELOT COURT                                     ","OSHKOSH                     ","WI","54901","CATHERINE A TEMPLE                                 ","Catherine.A.Temple@hud.gov","414-935-6695","mn.incoming@hud.gov",{"$f":"HYPERLINK(\"mailto:\",Table_Front_desk_report.accdb[[#This Row],[inbox]])","v":"mn.incoming@hud.gov"}]
[800022905,"CAMELOT MANOR                                     ","SHEBOYGAN                   ","WI","53081","ANDREA L CARSON                                    ","andrea.carson@hud.gov","414-935-6679","mn.incoming@hud.gov",{"$f":"HYPERLINK(\"mailto:\",Table_Front_desk_report.accdb[[#This Row],[inbox]])","v":"mn.incoming@hud.gov"}]
[800240094,"Cameron Apartments                                ","Minneapolis                 ","MN","55401","CAROL DIXON                                        ","Carol.A.Dixon@hud.gov","612-370-3015","mn.incoming@hud.gov",{"$f":"HYPERLINK(\"mailto:\",Table_Front_desk_report.accdb[[#This Row],[inbox]])","v":"mn.incoming@hud.gov"}]
[800022906,"CAMERON APTS                                      ","CAMERON                     ","WI","54822","JOEL R KLEMM                                       ","JOEL.R.KLEMM@hud.gov","612-370-3053","mn.incoming@hud.gov",{"$f":"HYPERLINK(\"mailto:\",Table_Front_desk_report.accdb[[#This Row],[inbox]])","v":"mn.incoming@hud.gov"}]
[800022908,"CAMPBELL COURT APARTMENTS                         ","BEAVER DAM                  ","WI","53916","PAUL A DUHR                                        ","paul.a.duhr@hud.gov","414-935-6681","mn.incoming@hud.gov",{"$f":"HYPERLINK(\"mailto:\",Table_Front_desk_report.accdb[[#This Row],[inbox]])","v":"mn.incoming@hud.gov"}]
[800022909,"CAMPUS VIEW APARTMENTS                            ","PORTAGE                     ","WI","53901","LAWRANCE C MUNDT                                   ","LAWRENCE.C.MUNDT@hud.gov","612-370-3082","mn.incoming@hud.gov",{"$f":"HYPERLINK(\"mailto:\",Table_Front_desk_report.accdb[[#This Row],[inbox]])","v":"mn.incoming@hud.gov"}]
[800022910,"CANTICLE COURT                                    ","SAINT FRANCIS               ","WI","53235","LADRENNA A FIGUEROA                                ","ladrenna.a.figueroa@hud.gov","312-913-8290","chi.incoming@hud.gov",{"$f":"HYPERLINK(\"mailto:\",Table_Front_desk_report.accdb[[#This Row],[inbox]])","v":"chi.incoming@hud.gov"}]
[800223586,"CAPITAL HILL APARTMENTS                           ","Brookfield                  ","WI","53045","JOEL R KLEMM                                       ","JOEL.R.KLEMM@hud.gov","612-370-3053","mn.incoming@hud.gov",{"$f":"HYPERLINK(\"mailto:\",Table_Front_desk_report.accdb[[#This Row],[inbox]])","v":"mn.incoming@hud.gov"}]
[800022911,"CAPITOL CENTRE                                    ","MADISON                     ","WI","53703","ARNITA X SCOTT                                     ","arnita.scott@hud.gov","312-913-8574","chi.incoming@hud.gov",{"$f":"HYPERLINK(\"mailto:\",Table_Front_desk_report.accdb[[#This Row],[inbox]])","v":"chi.incoming@hud.gov"}]
[800231245,"CAPITOL CENTRE APARTMENTS                         ","MADISON                     ","WI","53703","DORTHY L HOPKINS                                   ","dorthy.l.hopkins@hud.gov","312-913-8172","chi.incoming@hud.gov",{"$f":"HYPERLINK(\"mailto:\",Table_Front_desk_report.accdb[[#This Row],[inbox]])","v":"chi.incoming@hud.gov"}]
[800010809,"CAPITOL PLAZA SOUTH                               ","SAINT PAUL                  ","MN","55103","MARCIA A KOLB                                      ","MARCIA.A.KOLB@hud.gov","612-370-3055","mn.incoming@hud.gov",{"$f":"HYPERLINK(\"mailto:\",Table_Front_desk_report.accdb[[#This Row],[inbox]])","v":"mn.incoming@hud.gov"}]
[800010810,"CARDINAL HOMES                                    ","FERGUS FALLS                ","MN","56537","CAROL DIXON                                        ","Carol.A.Dixon@hud.gov","612-370-3015","mn.incoming@hud.gov",{"$f":"HYPERLINK(\"mailto:\",Table_Front_desk_report.accdb[[#This Row],[inbox]])","v":"mn.incoming@hud.gov"}]
[800210743,"Cardinal Pointe                                   ","MAPLEWOOD                   ","MN","55109","LAWRANCE C MUNDT                                   ","LAWRENCE.C.MUNDT@hud.gov","612-370-3082","mn.incoming@hud.gov",{"$f":"HYPERLINK(\"mailto:\",Table_Front_desk_report.accdb[[#This Row],[inbox]])","v":"mn.incoming@hud.gov"}]
[800238858,"Carefree Cottages of Maplewood I & II             ","Maplewood                   ","MN","55109","SHERRY K NORTON                                    ","Sherry.K.Norton@hud.gov","612-370-3087","mn.incoming@hud.gov",{"$f":"HYPERLINK(\"mailto:\",Table_Front_desk_report.accdb[[#This Row],[inbox]])","v":"mn.incoming@hud.gov"}]
[800238872,"Carefree Cottages of Maplewood III                ","Maplewood                   ","MN","55109","SHERRY K NORTON                                    ","Sherry.K.Norton@hud.gov","612-370-3087","mn.incoming@hud.gov",{"$f":"HYPERLINK(\"mailto:\",Table_Front_desk_report.accdb[[#This Row],[inbox]])","v":"mn.incoming@hud.gov"}]
[800010841,"Carlson Crossing                                  ","SAINT JOSEPH                ","MN","56374","NATASHA D GUENOVA                                  ","NATASHA.D.GUENOVA@hud.gov","612-370-3035","mn.incoming@hud.gov",{"$f":"HYPERLINK(\"mailto:\",Table_Front_desk_report.accdb[[#This Row],[inbox]])","v":"mn.incoming@hud.gov"}]
[800022912,"CARRIAGE HILL                                     ","Columbus                    ","WI","53925","CATHERINE A TEMPLE                                 ","Catherine.A.Temple@hud.gov","414-935-6695","mn.incoming@hud.gov",{"$f":"HYPERLINK(\"mailto:\",Table_Front_desk_report.accdb[[#This Row],[inbox]])","v":"mn.incoming@hud.gov"}]
[800222951,"CARTY HEIGHTS                                     ","Saint Paul                  ","MN","55104","THOMAS G DURSCHER                                  ","Thomas.G.Durscher@hud.gov","612-370-3018","mn.incoming@hud.gov",{"$f":"HYPERLINK(\"mailto:\",Table_Front_desk_report.accdb[[#This Row],[inbox]])","v":"mn.incoming@hud.gov"}]
[800022913,"CASA CATALINA                                     ","Milwaukee                   ","WI","53215","SYLVIA HYDE                                        ","sylvia.hyde@hud.gov","312-913-8573","chi.incoming@hud.gov",{"$f":"HYPERLINK(\"mailto:\",Table_Front_desk_report.accdb[[#This Row],[inbox]])","v":"chi.incoming@hud.gov"}]
[800010813,"CASCADE APARTMENTS                                ","FERGUS FALLS                ","MN","56537","MICHAEL P MORAN                                    ","MICHAEL.P.MORAN@HUD.GOV","612-370-3081","mn.incoming@hud.gov",{"$f":"HYPERLINK(\"mailto:\",Table_Front_desk_report.accdb[[#This Row],[inbox]])","v":"mn.incoming@hud.gov"}]
[800022915,"CASTLE APARTMENTS                                 ","LAONA                       ","WI","54541","MICHAEL D FURNNER                                  ","MICHAEL.D.FURNNER@hud.gov","414-935-6682","mn.incoming@hud.gov",{"$f":"HYPERLINK(\"mailto:\",Table_Front_desk_report.accdb[[#This Row],[inbox]])","v":"mn.incoming@hud.gov"}]
[800011249,"CATHEDRAL HILL HOMES                              ","SAINT PAUL                  ","MN","55102","SHERRY K NORTON                                    ","Sherry.K.Norton@hud.gov","612-370-3087","mn.incoming@hud.gov",{"$f":"HYPERLINK(\"mailto:\",Table_Front_desk_report.accdb[[#This Row],[inbox]])","v":"mn.incoming@hud.gov"}]
[800215006,"Catholic Eldercare at St. Hedwig's                ","Minneapolis                 ","MN","55413","SHERRY K NORTON                                    ","Sherry.K.Norton@hud.gov","612-370-3087","mn.incoming@hud.gov",{"$f":"HYPERLINK(\"mailto:\",Table_Front_desk_report.accdb[[#This Row],[inbox]])","v":"mn.incoming@hud.gov"}]
[800010814,"CECIL NEWMAN PLAZA                                ","MINNEAPOLIS                 ","MN","55411","MARCIA A KOLB                                      ","MARCIA.A.KOLB@hud.gov","612-370-3055","mn.incoming@hud.gov",{"$f":"HYPERLINK(\"mailto:\",Table_Front_desk_report.accdb[[#This Row],[inbox]])","v":"mn.incoming@hud.gov"}]
[800022916,"CEDAR COURT APARTMENTS                            ","MEDFORD                     ","WI","54451","ANDREA L CARSON                                    ","andrea.carson@hud.gov","414-935-6679","mn.incoming@hud.gov",{"$f":"HYPERLINK(\"mailto:\",Table_Front_desk_report.accdb[[#This Row],[inbox]])","v":"mn.incoming@hud.gov"}]
[800022917,"CEDAR COURT II                                    ","WEST SALEM                  ","WI","54669","PAUL A DUHR                                        ","paul.a.duhr@hud.gov","414-935-6681","mn.incoming@hud.gov",{"$f":"HYPERLINK(\"mailto:\",Table_Front_desk_report.accdb[[#This Row],[inbox]])","v":"mn.incoming@hud.gov"}]
[800010815,"CEDAR CREST APTS                                  ","MONTICELLO                  ","MN","55362","TEENA M GEE                                        ","Teena.M.Gee@hud.gov","612-843-6414","mn.incoming@hud.gov",{"$f":"HYPERLINK(\"mailto:\",Table_Front_desk_report.accdb[[#This Row],[inbox]])","v":"mn.incoming@hud.gov"}]
[800010816,"CEDAR HILLS TOWNHOMES                             ","MINNETONKA                  ","MN","55305","MICHAEL P MORAN                                    ","MICHAEL.P.MORAN@HUD.GOV","612-370-3081","mn.incoming@hud.gov",{"$f":"HYPERLINK(\"mailto:\",Table_Front_desk_report.accdb[[#This Row],[inbox]])","v":"mn.incoming@hud.gov"}]
[800022918,"CEDAR MEADOWS                                     ","TIGERTON                    ","WI","54486","BEN OSBORN                                         ","Benjamin.M.Osborn@hud.gov","612-370-3091","mn.incoming@hud.gov",{"$f":"HYPERLINK(\"mailto:\",Table_Front_desk_report.accdb[[#This Row],[inbox]])","v":"mn.incoming@hud.gov"}]
[800235966,"Cedar Pointe Townhomes                            ","Minnetonka                  ","MN","55305","PAUL A DUHR                                        ","paul.a.duhr@hud.gov","414-935-6681","mn.incoming@hud.gov",{"$f":"HYPERLINK(\"mailto:\",Table_Front_desk_report.accdb[[#This Row],[inbox]])","v":"mn.incoming@hud.gov"}]
[800010817,"CEDAR TERRACE                                     ","SAINT CLOUD                 ","MN","56303","MICHAEL P MORAN                                    ","MICHAEL.P.MORAN@HUD.GOV","612-370-3081","mn.incoming@hud.gov",{"$f":"HYPERLINK(\"mailto:\",Table_Front_desk_report.accdb[[#This Row],[inbox]])","v":"mn.incoming@hud.gov"}]
[800218735,"CEDAR VILLAS                                      ","Eagan                       ","MN","55122","SHERRY K NORTON                                    ","Sherry.K.Norton@hud.gov","612-370-3087","mn.incoming@hud.gov",{"$f":"HYPERLINK(\"mailto:\",Table_Front_desk_report.accdb[[#This Row],[inbox]])","v":"mn.incoming@hud.gov"}]
[800010818,"CEDARDALE SOUTH                                   ","OWATONNA                    ","MN","55060","GREGORY T MERZ                                     ","GREGORY.T.MERZ@hud.gov","612-370-3077","mn.incoming@hud.gov",{"$f":"HYPERLINK(\"mailto:\",Table_Front_desk_report.accdb[[#This Row],[inbox]])","v":"mn.incoming@hud.gov"}]
[800010804,"CENTENNIAL  SQUARE                                ","WILLMAR                     ","MN","56201","SHERRY K NORTON                                    ","Sherry.K.Norton@hud.gov","612-370-3087","mn.incoming@hud.gov",{"$f":"HYPERLINK(\"mailto:\",Table_Front_desk_report.accdb[[#This Row],[inbox]])","v":"mn.incoming@hud.gov"}]
[800011033,"CENTENNIAL APTS--(Fulda)                          ","FULDA                       ","MN","56131","TERESA C PARKER                                    ","TERESA.C.PARKER@hud.gov","612-370-3092","mn.incoming@hud.gov",{"$f":"HYPERLINK(\"mailto:\",Table_Front_desk_report.accdb[[#This Row],[inbox]])","v":"mn.incoming@hud.gov"}]
[800010819,"CENTENNIAL APTS--(Luverne)                        ","LUVERNE                     ","MN","56156","MITCHELL S HILLMAN                                 ","MITCHELL.S.HILLMAN@hud.gov","612-370-3036","mn.incoming@hud.gov",{"$f":"HYPERLINK(\"mailto:\",Table_Front_desk_report.accdb[[#This Row],[inbox]])","v":"mn.incoming@hud.gov"}]
[800010820,"CENTENNIAL PLAZA                                  ","LE CENTER                   ","MN","56057","MITCHELL S HILLMAN                                 ","MITCHELL.S.HILLMAN@hud.gov","612-370-3036","mn.incoming@hud.gov",{"$f":"HYPERLINK(\"mailto:\",Table_Front_desk_report.accdb[[#This Row],[inbox]])","v":"mn.incoming@hud.gov"}]
[800069933,"CENTER STREET APARTMENTS                          ","WAUWATOSA                   ","WI","53210","ARNITA X SCOTT                                     ","arnita.scott@hud.gov","312-913-8574","chi.incoming@hud.gov",{"$f":"HYPERLINK(\"mailto:\",Table_Front_desk_report.accdb[[#This Row],[inbox]])","v":"chi.incoming@hud.gov"}]
[800238118,"Central Avenue Lofts                              ","Minneapolis                 ","MN","55418","TERESA C PARKER                                    ","TERESA.C.PARKER@hud.gov","612-370-3092","mn.incoming@hud.gov",{"$f":"HYPERLINK(\"mailto:\",Table_Front_desk_report.accdb[[#This Row],[inbox]])","v":"mn.incoming@hud.gov"}]
[800221857,"Central Square Apartments                         ","SAINT PETER                 ","MN","56082","DARIAN JANE ZIEGLER                                ","Darian.Ziegler@hud.gov","612-370-3270","mn.incoming@hud.gov",{"$f":"HYPERLINK(\"mailto:\",Table_Front_desk_report.accdb[[#This Row],[inbox]])","v":"mn.incoming@hud.gov"}]
[800024097,"CENTRAL TOWERS                                    ","SAINT PAUL                  ","MN","55101","DARIAN JANE ZIEGLER                                ","Darian.Ziegler@hud.gov","612-370-3270","mn.incoming@hud.gov",{"$f":"HYPERLINK(\"mailto:\",Table_Front_desk_report.accdb[[#This Row],[inbox]])","v":"mn.incoming@hud.gov"}]
[800010823,"CENTRAL TOWERS  (ROCHESTER)                       ","ROCHESTER                   ","MN","55901","DARIAN JANE ZIEGLER                                ","Darian.Ziegler@hud.gov","612-370-3270","mn.incoming@hud.gov",{"$f":"HYPERLINK(\"mailto:\",Table_Front_desk_report.accdb[[#This Row],[inbox]])","v":"mn.incoming@hud.gov"}]
[800010824,"CENTRE SQUARE APARTMENTS                          ","SAUK CENTRE                 ","MN","56378","BEN OSBORN                                         ","Benjamin.M.Osborn@hud.gov","612-370-3091","mn.incoming@hud.gov",{"$f":"HYPERLINK(\"mailto:\",Table_Front_desk_report.accdb[[#This Row],[inbox]])","v":"mn.incoming@hud.gov"}]
[800010825,"CENTURY HILL TOWNHOUSES                           ","WHITE BEAR LAKE             ","MN","55110","NATASHA D GUENOVA                                  ","NATASHA.D.GUENOVA@hud.gov","612-370-3035","mn.incoming@hud.gov",{"$f":"HYPERLINK(\"mailto:\",Table_Front_desk_report.accdb[[#This Row],[inbox]])","v":"mn.incoming@hud.gov"}]
[800010826,"CENTURY NORTH APARTMENTS                          ","OAKDALE                     ","MN","55128","MITCHELL S HILLMAN                                 ","MITCHELL.S.HILLMAN@hud.gov","612-370-3036","mn.incoming@hud.gov",{"$f":"HYPERLINK(\"mailto:\",Table_Front_desk_report.accdb[[#This Row],[inbox]])","v":"mn.incoming@hud.gov"}]
[800225938,"Century Trails                                    ","Maplewood                   ","MN","55109","LAWRANCE C MUNDT                                   ","LAWRENCE.C.MUNDT@hud.gov","612-370-3082","mn.incoming@hud.gov",{"$f":"HYPERLINK(\"mailto:\",Table_Front_desk_report.accdb[[#This Row],[inbox]])","v":"mn.incoming@hud.gov"}]
[800022983,"CHAPEL TERRACE TOWN HOMES                         ","BURLINGTON                  ","WI","53105","ARNITA X SCOTT                                     ","arnita.scott@hud.gov","312-913-8574","chi.incoming@hud.gov",{"$f":"HYPERLINK(\"mailto:\",Table_Front_desk_report.accdb[[#This Row],[inbox]])","v":"chi.incoming@hud.gov"}]
[800022922,"CHAPIN HEIGHTS APTS                               ","FLORENCE                    ","WI","54121","MICHAEL D FURNNER                                  ","MICHAEL.D.FURNNER@hud.gov","414-935-6682","mn.incoming@hud.gov",{"$f":"HYPERLINK(\"mailto:\",Table_Front_desk_report.accdb[[#This Row],[inbox]])","v":"mn.incoming@hud.gov"}]
[800069644,"CHARLES M. HILL VILLA                             ","PARK FALLS                  ","WI","54552","ANDREA L CARSON                                    ","andrea.carson@hud.gov","414-935-6679","mn.incoming@hud.gov",{"$f":"HYPERLINK(\"mailto:\",Table_Front_desk_report.accdb[[#This Row],[inbox]])","v":"mn.incoming@hud.gov"}]
[800217940,"CHARLES RASMUSSEN VILLA                           ","Superior                    ","WI","54880","MICHAEL D FURNNER                                  ","MICHAEL.D.FURNNER@hud.gov","414-935-6682","mn.incoming@hud.gov",{"$f":"HYPERLINK(\"mailto:\",Table_Front_desk_report.accdb[[#This Row],[inbox]])","v":"mn.incoming@hud.gov"}]
[800237150,"CHARLOTTE COURT APARTMENTS                        ","Antigo                      ","WI","54409","JOEL R KLEMM                                       ","JOEL.R.KLEMM@hud.gov","612-370-3053","mn.incoming@hud.gov",{"$f":"HYPERLINK(\"mailto:\",Table_Front_desk_report.accdb[[#This Row],[inbox]])","v":"mn.incoming@hud.gov"}]
[800010829,"CHARTER OAK TOWNHOMES                             ","STILLWATER                  ","MN","55082","DARIAN JANE ZIEGLER                                ","Darian.Ziegler@hud.gov","612-370-3270","mn.incoming@hud.gov",{"$f":"HYPERLINK(\"mailto:\",Table_Front_desk_report.accdb[[#This Row],[inbox]])","v":"mn.incoming@hud.gov"}]
[800212172,"Charter Oaks Townhomes                            ","Waseca                      ","MN","56093","TEENA M GEE                                        ","Teena.M.Gee@hud.gov","612-843-6414","mn.incoming@hud.gov",{"$f":"HYPERLINK(\"mailto:\",Table_Front_desk_report.accdb[[#This Row],[inbox]])","v":"mn.incoming@hud.gov"}]
[800010830,"CHASKA MANOR, INC.                                ","CHASKA                      ","MN","55318","MARCIA A KOLB                                      ","MARCIA.A.KOLB@hud.gov","612-370-3055","mn.incoming@hud.gov",{"$f":"HYPERLINK(\"mailto:\",Table_Front_desk_report.accdb[[#This Row],[inbox]])","v":"mn.incoming@hud.gov"}]
[800022925,"CHATEAU/OAKWOOD                                   ","RACINE                      ","WI","53406","ELLIE L CHICOSKI                                   ","ellie.l.chicoski@hud.gov","312-913-8385","chi.incoming@hud.gov",{"$f":"HYPERLINK(\"mailto:\",Table_Front_desk_report.accdb[[#This Row],[inbox]])","v":"chi.incoming@hud.gov"}]
[800022926,"CHATEAU/REGENCY APTS.                             ","RACINE                      ","WI","53402","MARLENE X TRIMUEL                                  ","Marlene.Trimuel@hud.gov","312-913-8369","chi.incoming@hud.gov",{"$f":"HYPERLINK(\"mailto:\",Table_Front_desk_report.accdb[[#This Row],[inbox]])","v":"chi.incoming@hud.gov"}]
[800224529,"Cherry Ridge Apartments                           ","Mankato                     ","MN","56001","DARIAN JANE ZIEGLER                                ","Darian.Ziegler@hud.gov","612-370-3270","mn.incoming@hud.gov",{"$f":"HYPERLINK(\"mailto:\",Table_Front_desk_report.accdb[[#This Row],[inbox]])","v":"mn.incoming@hud.gov"}]
[800010832,"CHERRYWOOD ESTATES                                ","MABEL                       ","MN","55954","MITCHELL S HILLMAN                                 ","MITCHELL.S.HILLMAN@hud.gov","612-370-3036","mn.incoming@hud.gov",{"$f":"HYPERLINK(\"mailto:\",Table_Front_desk_report.accdb[[#This Row],[inbox]])","v":"mn.incoming@hud.gov"}]
[800010833,"CHICAGO AVE. APARTMENTS                           ","MINNEAPOLIS                 ","MN","55404","TERRI A MUNSON                                     ","Terri.A.Munson@hud.gov","612-370-3086","mn.incoming@hud.gov",{"$f":"HYPERLINK(\"mailto:\",Table_Front_desk_report.accdb[[#This Row],[inbox]])","v":"mn.incoming@hud.gov"}]
[800239977,"CHOPIN AT WILSON COMMONS                          ","Milwaukee                   ","WI","53221","DORTHY L HOPKINS                                   ","dorthy.l.hopkins@hud.gov","312-913-8172","chi.incoming@hud.gov",{"$f":"HYPERLINK(\"mailto:\",Table_Front_desk_report.accdb[[#This Row],[inbox]])","v":"chi.incoming@hud.gov"}]
[800010834,"CHOWEN BEND TOWNHOMES                             ","BURNSVILLE                  ","MN","55337","GREGORY T MERZ                                     ","GREGORY.T.MERZ@hud.gov","612-370-3077","mn.incoming@hud.gov",{"$f":"HYPERLINK(\"mailto:\",Table_Front_desk_report.accdb[[#This Row],[inbox]])","v":"mn.incoming@hud.gov"}]
[800022929,"CHRISTOPHERSON HOUSE/SAGEN                        ","LA CROSSE                   ","WI","54601","TERESA C PARKER                                    ","TERESA.C.PARKER@hud.gov","612-370-3092","mn.incoming@hud.gov",{"$f":"HYPERLINK(\"mailto:\",Table_Front_desk_report.accdb[[#This Row],[inbox]])","v":"mn.incoming@hud.gov"}]
[800022930,"CHULA VISTA MANOR                                 ","WISCONSIN RAPIDS            ","WI","54494","SUSAN K ROSKOS                                     ","Susan.K.Roskos@hud.gov","612-370-3110","mn.incoming@hud.gov",{"$f":"HYPERLINK(\"mailto:\",Table_Front_desk_report.accdb[[#This Row],[inbox]])","v":"mn.incoming@hud.gov"}]
[800022931,"CIFALDI SQUARE                                    ","Cudahy                      ","WI","53110","LADRENNA A FIGUEROA                                ","ladrenna.a.figueroa@hud.gov","312-913-8290","chi.incoming@hud.gov",{"$f":"HYPERLINK(\"mailto:\",Table_Front_desk_report.accdb[[#This Row],[inbox]])","v":"chi.incoming@hud.gov"}]
[800219157,"CIMARRON COURT APARTMENTS                         ","Oshkosh                     ","WI","54902","MARCIA A KOLB                                      ","MARCIA.A.KOLB@hud.gov","612-370-3055","mn.incoming@hud.gov",{"$f":"HYPERLINK(\"mailto:\",Table_Front_desk_report.accdb[[#This Row],[inbox]])","v":"mn.incoming@hud.gov"}]
[800231266,"Cinnamon Ridge Apartments                         ","Eagan                       ","MN","55122","PAUL A DUHR                                        ","paul.a.duhr@hud.gov","414-935-6681","mn.incoming@hud.gov",{"$f":"HYPERLINK(\"mailto:\",Table_Front_desk_report.accdb[[#This Row],[inbox]])","v":"mn.incoming@hud.gov"}]
[800238484,"CITY HALL SQUARE APARTMENTS                       ","Milwaukee                   ","WI","53202","ANTHONY M SARKEES                                  ","anthony.m.sarkees@hud.gov","312-913-8368","chi.incoming@hud.gov",{"$f":"HYPERLINK(\"mailto:\",Table_Front_desk_report.accdb[[#This Row],[inbox]])","v":"chi.incoming@hud.gov"}]
[800235127,"City Place Lofts                                  ","Minneapolis                 ","MN","55402","DARIAN JANE ZIEGLER                                ","Darian.Ziegler@hud.gov","612-370-3270","mn.incoming@hud.gov",{"$f":"HYPERLINK(\"mailto:\",Table_Front_desk_report.accdb[[#This Row],[inbox]])","v":"mn.incoming@hud.gov"}]
[800022935,"CLARE CENTRAL/CLARE PLACE                         ","MILWAUKEE                   ","WI","53216","GRACIA M SHIFFRIN                                  ","gracia.m.shiffrin@hud.gov","312-913-8141","chi.incoming@hud.gov",{"$f":"HYPERLINK(\"mailto:\",Table_Front_desk_report.accdb[[#This Row],[inbox]])","v":"chi.incoming@hud.gov"}]
[800211455,"CLARE MELIN VILLA                                 ","RHINELANDER                 ","WI","54501","MICHAEL D FURNNER                                  ","MICHAEL.D.FURNNER@hud.gov","414-935-6682","mn.incoming@hud.gov",{"$f":"HYPERLINK(\"mailto:\",Table_Front_desk_report.accdb[[#This Row],[inbox]])","v":"mn.incoming@hud.gov"}]
[800022936,"CLARE TOWERS APARTMENTS                           ","MILWAUKEE                   ","WI","53215","NINA M SMITH                                       ","nina.m.smith@hud.gov","312-913-8212","chi.incoming@hud.gov",{"$f":"HYPERLINK(\"mailto:\",Table_Front_desk_report.accdb[[#This Row],[inbox]])","v":"chi.incoming@hud.gov"}]
[800022938,"CLARENCE PARRISH APTS.                            ","MILWAUKEE                   ","WI","53212","NINA M SMITH                                       ","nina.m.smith@hud.gov","312-913-8212","chi.incoming@hud.gov",{"$f":"HYPERLINK(\"mailto:\",Table_Front_desk_report.accdb[[#This Row],[inbox]])","v":"chi.incoming@hud.gov"}]
[800023297,"CLARITY CARE                                      ","NEENAH                      ","WI","54956","CATHERINE A TEMPLE                                 ","Catherine.A.Temple@hud.gov","414-935-6695","mn.incoming@hud.gov",{"$f":"HYPERLINK(\"mailto:\",Table_Front_desk_report.accdb[[#This Row],[inbox]])","v":"mn.incoming@hud.gov"}]
[800023303,"CLARITY CARE                                      ","OSHKOSH                     ","WI","54901","JOEL R KLEMM                                       ","JOEL.R.KLEMM@hud.gov","612-370-3053","mn.incoming@hud.gov",{"$f":"HYPERLINK(\"mailto:\",Table_Front_desk_report.accdb[[#This Row],[inbox]])","v":"mn.incoming@hud.gov"}]
[800022939,"CLARK GARDENS                                     ","MAYVILLE                    ","WI","53050","ANDREA L CARSON                                    ","andrea.carson@hud.gov","414-935-6679","mn.incoming@hud.gov",{"$f":"HYPERLINK(\"mailto:\",Table_Front_desk_report.accdb[[#This Row],[inbox]])","v":"mn.incoming@hud.gov"}]
[800213208,"CLARKE DAMON VILLA                                ","RIVER FALLS                 ","WI","54022","LAWRANCE C MUNDT                                   ","LAWRENCE.C.MUNDT@hud.gov","612-370-3082","mn.incoming@hud.gov",{"$f":"HYPERLINK(\"mailto:\",Table_Front_desk_report.accdb[[#This Row],[inbox]])","v":"mn.incoming@hud.gov"}]
[800022940,"CLEAR LAKE APTS                                   ","CLEAR LAKE                  ","WI","54005","JOEL R KLEMM                                       ","JOEL.R.KLEMM@hud.gov","612-370-3053","mn.incoming@hud.gov",{"$f":"HYPERLINK(\"mailto:\",Table_Front_desk_report.accdb[[#This Row],[inbox]])","v":"mn.incoming@hud.gov"}]
[800022941,"CLEVELAND TERRACE                                 ","MILWAUKEE                   ","WI","53215","LADRENNA A FIGUEROA                                ","ladrenna.a.figueroa@hud.gov","312-913-8290","chi.incoming@hud.gov",{"$f":"HYPERLINK(\"mailto:\",Table_Front_desk_report.accdb[[#This Row],[inbox]])","v":"chi.incoming@hud.gov"}]
[800010838,"CLIFF HILL TOWNHOUSES                             ","BURNSVILLE                  ","MN","55337","CAROL DIXON                                        ","Carol.A.Dixon@hud.gov","612-370-3015","mn.incoming@hud.gov",{"$f":"HYPERLINK(\"mailto:\",Table_Front_desk_report.accdb[[#This Row],[inbox]])","v":"mn.incoming@hud.gov"}]
[800010839,"CLIFTON                                           ","SHAKOPEE                    ","MN","55379","CAROL DIXON                                        ","Carol.A.Dixon@hud.gov","612-370-3015","mn.incoming@hud.gov",{"$f":"HYPERLINK(\"mailto:\",Table_Front_desk_report.accdb[[#This Row],[inbox]])","v":"mn.incoming@hud.gov"}]
[800010840,"CLINTON HOUSE APTS.                               ","HUTCHINSON                  ","MN","55350","SUSAN K ROSKOS                                     ","Susan.K.Roskos@hud.gov","612-370-3110","mn.incoming@hud.gov",{"$f":"HYPERLINK(\"mailto:\",Table_Front_desk_report.accdb[[#This Row],[inbox]])","v":"mn.incoming@hud.gov"}]
[800224479,"Clover Field Marketplace                          ","Chaska                      ","MN","55318","GREGORY T MERZ                                     ","GREGORY.T.MERZ@hud.gov","612-370-3077","mn.incoming@hud.gov",{"$f":"HYPERLINK(\"mailto:\",Table_Front_desk_report.accdb[[#This Row],[inbox]])","v":"mn.incoming@hud.gov"}]
[800240073,"Coachman Ridge Apartments                         ","Elk River                   ","MN","55330","DARIAN JANE ZIEGLER                                ","Darian.Ziegler@hud.gov","612-370-3270","mn.incoming@hud.gov",{"$f":"HYPERLINK(\"mailto:\",Table_Front_desk_report.accdb[[#This Row],[inbox]])","v":"mn.incoming@hud.gov"}]
[800010842,"COKATO APARTMENTS                                 ","Cokato                      ","MN","55321","GREGORY T MERZ                                     ","GREGORY.T.MERZ@hud.gov","612-370-3077","mn.incoming@hud.gov",{"$f":"HYPERLINK(\"mailto:\",Table_Front_desk_report.accdb[[#This Row],[inbox]])","v":"mn.incoming@hud.gov"}]
[800022943,"COLEMAN MANOR                                     ","COLEMAN                     ","WI","54112","PAUL A DUHR                                        ","paul.a.duhr@hud.gov","414-935-6681","mn.incoming@hud.gov",{"$f":"HYPERLINK(\"mailto:\",Table_Front_desk_report.accdb[[#This Row],[inbox]])","v":"mn.incoming@hud.gov"}]
[800010843,"COLLEGE DRIVE TOWNHOUSES                          ","BRAINERD                    ","MN","56401","TEENA M GEE                                        ","Teena.M.Gee@hud.gov","612-843-6414","mn.incoming@hud.gov",{"$f":"HYPERLINK(\"mailto:\",Table_Front_desk_report.accdb[[#This Row],[inbox]])","v":"mn.incoming@hud.gov"}]
[800241449,"COLONIAL COURT APARTMENTS                         ","Pulaski                     ","WI","54162","ANDREA L CARSON                                    ","andrea.carson@hud.gov","414-935-6679","mn.incoming@hud.gov",{"$f":"HYPERLINK(\"mailto:\",Table_Front_desk_report.accdb[[#This Row],[inbox]])","v":"mn.incoming@hud.gov"}]
[800010844,"COLONIAL SQUARE                                   ","MANKATO                     ","MN","56001","GREGORY T MERZ                                     ","GREGORY.T.MERZ@hud.gov","612-370-3077","mn.incoming@hud.gov",{"$f":"HYPERLINK(\"mailto:\",Table_Front_desk_report.accdb[[#This Row],[inbox]])","v":"mn.incoming@hud.gov"}]
[800022944,"COLONIAL VIEW APARTMENTS                          ","SUN PRAIRIE                 ","WI","53590","RAYMOND GUNTER                                     ","raymond.p.gunter@hud.gov","312-913-8309","chi.incoming@hud.gov",{"$f":"HYPERLINK(\"mailto:\",Table_Front_desk_report.accdb[[#This Row],[inbox]])","v":"chi.incoming@hud.gov"}]
[800010845,"COLONY APARTMENTS                                 ","NORTH MANKATO               ","MN","56003","DARIAN JANE ZIEGLER                                ","Darian.Ziegler@hud.gov","612-370-3270","mn.incoming@hud.gov",{"$f":"HYPERLINK(\"mailto:\",Table_Front_desk_report.accdb[[#This Row],[inbox]])","v":"mn.incoming@hud.gov"}]
[800022945,"COLONY PARK EAST APTS                             ","EAU CLAIRE                  ","WI","54701","LAWRANCE C MUNDT                                   ","LAWRENCE.C.MUNDT@hud.gov","612-370-3082","mn.incoming@hud.gov",{"$f":"HYPERLINK(\"mailto:\",Table_Front_desk_report.accdb[[#This Row],[inbox]])","v":"mn.incoming@hud.gov"}]
[800022946,"COLONY PARK WEST APTS                             ","EAU CLAIRE                  ","WI","54701","PAUL A DUHR                                        ","paul.a.duhr@hud.gov","414-935-6681","mn.incoming@hud.gov",{"$f":"HYPERLINK(\"mailto:\",Table_Front_desk_report.accdb[[#This Row],[inbox]])","v":"mn.incoming@hud.gov"}]
[800216329,"Colony Square Cooperative                         ","GRAND RAPIDS                ","MN","56484","MICHAEL P MORAN                                    ","MICHAEL.P.MORAN@HUD.GOV","612-370-3081","mn.incoming@hud.gov",{"$f":"HYPERLINK(\"mailto:\",Table_Front_desk_report.accdb[[#This Row],[inbox]])","v":"mn.incoming@hud.gov"}]
[800072532,"COLUMBIA VILLAGE                                  ","Columbia Heights            ","MN","55421","THOMAS G DURSCHER                                  ","Thomas.G.Durscher@hud.gov","612-370-3018","mn.incoming@hud.gov",{"$f":"HYPERLINK(\"mailto:\",Table_Front_desk_report.accdb[[#This Row],[inbox]])","v":"mn.incoming@hud.gov"}]
[800235351,"CommonBond Rochester                              ","Rochester                   ","MN","55904","SHERRY K NORTON                                    ","Sherry.K.Norton@hud.gov","612-370-3087","mn.incoming@hud.gov",{"$f":"HYPERLINK(\"mailto:\",Table_Front_desk_report.accdb[[#This Row],[inbox]])","v":"mn.incoming@hud.gov"}]
[800022850,"COMMUNITY CARE HUD HOUSING                        ","MILWAUKEE                   ","WI","53223","LADRENNA A FIGUEROA                                ","ladrenna.a.figueroa@hud.gov","312-913-8290","chi.incoming@hud.gov",{"$f":"HYPERLINK(\"mailto:\",Table_Front_desk_report.accdb[[#This Row],[inbox]])","v":"chi.incoming@hud.gov"}]
[800010847,"COMMUNITY PLAZA                                   ","SAINT PAUL                  ","MN","55104","MARCIA A KOLB                                      ","MARCIA.A.KOLB@hud.gov","612-370-3055","mn.incoming@hud.gov",{"$f":"HYPERLINK(\"mailto:\",Table_Front_desk_report.accdb[[#This Row],[inbox]])","v":"mn.incoming@hud.gov"}]
[800023032,"COMMUNITY VILLA APARTMENTS                        ","GLEASON                     ","WI","54435","PAUL A DUHR                                        ","paul.a.duhr@hud.gov","414-935-6681","mn.incoming@hud.gov",{"$f":"HYPERLINK(\"mailto:\",Table_Front_desk_report.accdb[[#This Row],[inbox]])","v":"mn.incoming@hud.gov"}]
[800010848,"COMO BY THE LAKE                                  ","SAINT PAUL                  ","MN","55103","LAWRANCE C MUNDT                                   ","LAWRENCE.C.MUNDT@hud.gov","612-370-3082","mn.incoming@hud.gov",{"$f":"HYPERLINK(\"mailto:\",Table_Front_desk_report.accdb[[#This Row],[inbox]])","v":"mn.incoming@hud.gov"}]
[800240076,"Compas Pointe                                     ","New Hope                    ","MN","55428","DARIAN JANE ZIEGLER                                ","Darian.Ziegler@hud.gov","612-370-3270","mn.incoming@hud.gov",{"$f":"HYPERLINK(\"mailto:\",Table_Front_desk_report.accdb[[#This Row],[inbox]])","v":"mn.incoming@hud.gov"}]
[800069472,"CONCORD APARTMENTS                                ","RACINE                      ","WI","53402","DARLETTA M BAUGH                                   ","darletta.m.baugh@hud.gov","312-913-8160","chi.incoming@hud.gov",{"$f":"HYPERLINK(\"mailto:\",Table_Front_desk_report.accdb[[#This Row],[inbox]])","v":"chi.incoming@hud.gov"}]
[800010850,"Concordia Arms                                    ","MAPLEWOOD                   ","MN","55109","LAWRANCE C MUNDT                                   ","LAWRENCE.C.MUNDT@hud.gov","612-370-3082","mn.incoming@hud.gov",{"$f":"HYPERLINK(\"mailto:\",Table_Front_desk_report.accdb[[#This Row],[inbox]])","v":"mn.incoming@hud.gov"}]
[800010851,"CONDOR BIG FORK APTS.                             ","Big Fork                    ","MN","56628","GREGORY T MERZ                                     ","GREGORY.T.MERZ@hud.gov","612-370-3077","mn.incoming@hud.gov",{"$f":"HYPERLINK(\"mailto:\",Table_Front_desk_report.accdb[[#This Row],[inbox]])","v":"mn.incoming@hud.gov"}]
[800022948,"CONGRESS & ERIN WAY                               ","WEST MILWAUKEE              ","WI","53215","RAYMOND GUNTER                                     ","raymond.p.gunter@hud.gov","312-913-8309","chi.incoming@hud.gov",{"$f":"HYPERLINK(\"mailto:\",Table_Front_desk_report.accdb[[#This Row],[inbox]])","v":"chi.incoming@hud.gov"}]
[800221438,"CONVENT HILL GARDENS                              ","Milwaukee                   ","WI","53202","PAUL A DUHR                                        ","paul.a.duhr@hud.gov","414-935-6681","mn.incoming@hud.gov",{"$f":"HYPERLINK(\"mailto:\",Table_Front_desk_report.accdb[[#This Row],[inbox]])","v":"mn.incoming@hud.gov"}]
[800010852,"COOPERIDGE/WAPASA APARTMENTS                      ","RED WING                    ","MN","55066","JOEL R KLEMM                                       ","JOEL.R.KLEMM@hud.gov","612-370-3053","mn.incoming@hud.gov",{"$f":"HYPERLINK(\"mailto:\",Table_Front_desk_report.accdb[[#This Row],[inbox]])","v":"mn.incoming@hud.gov"}]
[800212275,"Cornerstone Coop of Plymouth                      ","PLYMOUTH                    ","MN","55447","MITCHELL S HILLMAN                                 ","MITCHELL.S.HILLMAN@hud.gov","612-370-3036","mn.incoming@hud.gov",{"$f":"HYPERLINK(\"mailto:\",Table_Front_desk_report.accdb[[#This Row],[inbox]])","v":"mn.incoming@hud.gov"}]
[800231471,"Cottage Homesteads of Willow Pond                 ","Lino Lakes                  ","MN","55014","MICHAEL P MORAN                                    ","MICHAEL.P.MORAN@HUD.GOV","612-370-3081","mn.incoming@hud.gov",{"$f":"HYPERLINK(\"mailto:\",Table_Front_desk_report.accdb[[#This Row],[inbox]])","v":"mn.incoming@hud.gov"}]
[800231472,"Cottages of Hillcrest                             ","Saint Paul                  ","MN","55119","MICHAEL P MORAN                                    ","MICHAEL.P.MORAN@HUD.GOV","612-370-3081","mn.incoming@hud.gov",{"$f":"HYPERLINK(\"mailto:\",Table_Front_desk_report.accdb[[#This Row],[inbox]])","v":"mn.incoming@hud.gov"}]
[800072529,"COTTONWOOD RIDGE APARTMENTS                       ","SPRINGFIELD                 ","MN","56087","TERESA C PARKER                                    ","TERESA.C.PARKER@hud.gov","612-370-3092","mn.incoming@hud.gov",{"$f":"HYPERLINK(\"mailto:\",Table_Front_desk_report.accdb[[#This Row],[inbox]])","v":"mn.incoming@hud.gov"}]
[800022921,"COUNTRY HARBOR                                    ","SAUKVILLE                   ","WI","53080","MICHAEL D FURNNER                                  ","MICHAEL.D.FURNNER@hud.gov","414-935-6682","mn.incoming@hud.gov",{"$f":"HYPERLINK(\"mailto:\",Table_Front_desk_report.accdb[[#This Row],[inbox]])","v":"mn.incoming@hud.gov"}]
[800022920,"COUNTRY HARBOR II                                 ","RANDOM LAKE                 ","WI","53075","MICHAEL D FURNNER                                  ","MICHAEL.D.FURNNER@hud.gov","414-935-6682","mn.incoming@hud.gov",{"$f":"HYPERLINK(\"mailto:\",Table_Front_desk_report.accdb[[#This Row],[inbox]])","v":"mn.incoming@hud.gov"}]
[800211282,"COUNTRY PLACE of PIERZ - Horizon Health           ","PIERZ                       ","MN","56364","LAWRANCE C MUNDT                                   ","LAWRENCE.C.MUNDT@hud.gov","612-370-3082","mn.incoming@hud.gov",{"$f":"HYPERLINK(\"mailto:\",Table_Front_desk_report.accdb[[#This Row],[inbox]])","v":"mn.incoming@hud.gov"}]
[800238417,"Country View Apartments                           ","Savage                      ","MN","55378","TERESA C PARKER                                    ","TERESA.C.PARKER@hud.gov","612-370-3092","mn.incoming@hud.gov",{"$f":"HYPERLINK(\"mailto:\",Table_Front_desk_report.accdb[[#This Row],[inbox]])","v":"mn.incoming@hud.gov"}]
[800022951,"COUNTRY VIEW APARTMENTS                           ","NEILLSVILLE                 ","WI","54456","CINDY BEHNKE                                       ","cynthia.behnke@hud.gov","612-370-3278","mn.incoming@hud.gov",{"$f":"HYPERLINK(\"mailto:\",Table_Front_desk_report.accdb[[#This Row],[inbox]])","v":"mn.incoming@hud.gov"}]
[800010853,"COUNTRY VILLAGE APTS.                             ","REDWOOD FALLS               ","MN","56283","SUSAN K ROSKOS                                     ","Susan.K.Roskos@hud.gov","612-370-3110","mn.incoming@hud.gov",{"$f":"HYPERLINK(\"mailto:\",Table_Front_desk_report.accdb[[#This Row],[inbox]])","v":"mn.incoming@hud.gov"}]
[800022952,"COUNTRYSIDE APARTMENTS                            ","SOMERSET                    ","WI","54025","PAUL A DUHR                                        ","paul.a.duhr@hud.gov","414-935-6681","mn.incoming@hud.gov",{"$f":"HYPERLINK(\"mailto:\",Table_Front_desk_report.accdb[[#This Row],[inbox]])","v":"mn.incoming@hud.gov"}]
[800022953,"COUNTRYSIDE ESTATES                               ","WAUPACA                     ","WI","54981","ANDREA L CARSON                                    ","andrea.carson@hud.gov","414-935-6679","mn.incoming@hud.gov",{"$f":"HYPERLINK(\"mailto:\",Table_Front_desk_report.accdb[[#This Row],[inbox]])","v":"mn.incoming@hud.gov"}]
[800010854,"COUNTRYSIDE TOWNHOUSES                            ","FAIRMONT                    ","MN","56031","SUSAN K ROSKOS                                     ","Susan.K.Roskos@hud.gov","612-370-3110","mn.incoming@hud.gov",{"$f":"HYPERLINK(\"mailto:\",Table_Front_desk_report.accdb[[#This Row],[inbox]])","v":"mn.incoming@hud.gov"}]
[800022954,"COVENANT HOUSE                                    ","SHEBOYGAN                   ","WI","53081","MICHAEL D FURNNER                                  ","MICHAEL.D.FURNNER@hud.gov","414-935-6682","mn.incoming@hud.gov",{"$f":"HYPERLINK(\"mailto:\",Table_Front_desk_report.accdb[[#This Row],[inbox]])","v":"mn.incoming@hud.gov"}]
[800069632,"COVENANT PLACE                                    ","RIO                         ","WI","53960","CATHERINE A TEMPLE                                 ","Catherine.A.Temple@hud.gov","414-935-6695","mn.incoming@hud.gov",{"$f":"HYPERLINK(\"mailto:\",Table_Front_desk_report.accdb[[#This Row],[inbox]])","v":"mn.incoming@hud.gov"}]
[800010856,"COVENTRY                                          ","ROSEVILLE                   ","MN","55113","MITCHELL S HILLMAN                                 ","MITCHELL.S.HILLMAN@hud.gov","612-370-3036","mn.incoming@hud.gov",{"$f":"HYPERLINK(\"mailto:\",Table_Front_desk_report.accdb[[#This Row],[inbox]])","v":"mn.incoming@hud.gov"}]
[800238367,"CRAFTSMAN VILLAGE                                 ","Menasha                     ","WI","54952","TERESA C PARKER                                    ","TERESA.C.PARKER@hud.gov","612-370-3092","mn.incoming@hud.gov",{"$f":"HYPERLINK(\"mailto:\",Table_Front_desk_report.accdb[[#This Row],[inbox]])","v":"mn.incoming@hud.gov"}]
[800112370,"CRAIG KINNEY APARTMENTS                           ","MADISON                     ","WI","53704","YOLANDA S MILLER                                   ","yolanda.s.miller@hud.gov","312-913-8580","chi.incoming@hud.gov",{"$f":"HYPERLINK(\"mailto:\",Table_Front_desk_report.accdb[[#This Row],[inbox]])","v":"chi.incoming@hud.gov"}]
[800237509,"CRANBERRY APARTMENTS                              ","Kenosha                     ","WI","53142","DORTHY L HOPKINS                                   ","dorthy.l.hopkins@hud.gov","312-913-8172","chi.incoming@hud.gov",{"$f":"HYPERLINK(\"mailto:\",Table_Front_desk_report.accdb[[#This Row],[inbox]])","v":"chi.incoming@hud.gov"}]
[800010857,"CREEK  TERRACE                                    ","MINNEAPOLIS                 ","MN","55419","GREGORY T MERZ                                     ","GREGORY.T.MERZ@hud.gov","612-370-3077","mn.incoming@hud.gov",{"$f":"HYPERLINK(\"mailto:\",Table_Front_desk_report.accdb[[#This Row],[inbox]])","v":"mn.incoming@hud.gov"}]
[800239911,"Creek Point Apartments                            ","Saint Paul                  ","MN","55119","BEN OSBORN                                         ","Benjamin.M.Osborn@hud.gov","612-370-3091","mn.incoming@hud.gov",{"$f":"HYPERLINK(\"mailto:\",Table_Front_desk_report.accdb[[#This Row],[inbox]])","v":"mn.incoming@hud.gov"}]
[800243819,"Creeks Run Townhomes Phase II                     ","Chaska                      ","MN","55315","DARIAN JANE ZIEGLER                                ","Darian.Ziegler@hud.gov","612-370-3270","mn.incoming@hud.gov",{"$f":"HYPERLINK(\"mailto:\",Table_Front_desk_report.accdb[[#This Row],[inbox]])","v":"mn.incoming@hud.gov"}]
[800211263,"Creekside Estates Apartments                      ","PLYMOUTH                    ","MN","55441","JOEL R KLEMM                                       ","JOEL.R.KLEMM@hud.gov","612-370-3053","mn.incoming@hud.gov",{"$f":"HYPERLINK(\"mailto:\",Table_Front_desk_report.accdb[[#This Row],[inbox]])","v":"mn.incoming@hud.gov"}]
[800010859,"CRESTVIEW APARTMENTS                              ","LA CRESCENT                 ","MN","55947","CAROL DIXON                                        ","Carol.A.Dixon@hud.gov","612-370-3015","mn.incoming@hud.gov",{"$f":"HYPERLINK(\"mailto:\",Table_Front_desk_report.accdb[[#This Row],[inbox]])","v":"mn.incoming@hud.gov"}]
[800241326,"Crosby Pointe Apartments                          ","Saint Paul                  ","MN","55116","GREGORY T MERZ                                     ","GREGORY.T.MERZ@hud.gov","612-370-3077","mn.incoming@hud.gov",{"$f":"HYPERLINK(\"mailto:\",Table_Front_desk_report.accdb[[#This Row],[inbox]])","v":"mn.incoming@hud.gov"}]
[800225360,"Crossings at Valley View                          ","Bloomington                 ","MN","55420","JOEL R KLEMM                                       ","JOEL.R.KLEMM@hud.gov","612-370-3053","mn.incoming@hud.gov",{"$f":"HYPERLINK(\"mailto:\",Table_Front_desk_report.accdb[[#This Row],[inbox]])","v":"mn.incoming@hud.gov"}]
[800043848,"CROSSROADS OF EAGAN                               ","EAGAN                       ","MN","55123","JOEL R KLEMM                                       ","JOEL.R.KLEMM@hud.gov","612-370-3053","mn.incoming@hud.gov",{"$f":"HYPERLINK(\"mailto:\",Table_Front_desk_report.accdb[[#This Row],[inbox]])","v":"mn.incoming@hud.gov"}]
[800011144,"Crossroads of Edina                               ","EDINA                       ","MN","55439","SHERRY K NORTON                                    ","Sherry.K.Norton@hud.gov","612-370-3087","mn.incoming@hud.gov",{"$f":"HYPERLINK(\"mailto:\",Table_Front_desk_report.accdb[[#This Row],[inbox]])","v":"mn.incoming@hud.gov"}]
[800010860,"CROSSROADS OF NEW BRIGHTON aka Aspen Glen         ","NEW BRIGHTON                ","MN","55112","SHERRY K NORTON                                    ","Sherry.K.Norton@hud.gov","612-370-3087","mn.incoming@hud.gov",{"$f":"HYPERLINK(\"mailto:\",Table_Front_desk_report.accdb[[#This Row],[inbox]])","v":"mn.incoming@hud.gov"}]
[800044203,"CROWN RIDGE APARTMENTS                            ","MINNETONKA                  ","MN","55305","MITCHELL S HILLMAN                                 ","MITCHELL.S.HILLMAN@hud.gov","612-370-3036","mn.incoming@hud.gov",{"$f":"HYPERLINK(\"mailto:\",Table_Front_desk_report.accdb[[#This Row],[inbox]])","v":"mn.incoming@hud.gov"}]
[800010861,"CRYSTAL LAKE TOWNHOUSES                           ","GRAND RAPIDS                ","MN","55744","NATASHA D GUENOVA                                  ","NATASHA.D.GUENOVA@hud.gov","612-370-3035","mn.incoming@hud.gov",{"$f":"HYPERLINK(\"mailto:\",Table_Front_desk_report.accdb[[#This Row],[inbox]])","v":"mn.incoming@hud.gov"}]
[800022956,"CUBA CITY APARTMENTS                              ","CUBA CITY                   ","WI","53807","SYLVIA HYDE                                        ","sylvia.hyde@hud.gov","312-913-8573","chi.incoming@hud.gov",{"$f":"HYPERLINK(\"mailto:\",Table_Front_desk_report.accdb[[#This Row],[inbox]])","v":"chi.incoming@hud.gov"}]
[800236168,"CUDAHY COMMONS APARTMENT HOMES                    ","Cudahy                      ","WI","53110","DORTHY L HOPKINS                                   ","dorthy.l.hopkins@hud.gov","312-913-8172","chi.incoming@hud.gov",{"$f":"HYPERLINK(\"mailto:\",Table_Front_desk_report.accdb[[#This Row],[inbox]])","v":"chi.incoming@hud.gov"}]
[800022957,"CUMBERLAND COURT APTS                             ","OSHKOSH                     ","WI","54904","MICHAEL D FURNNER                                  ","MICHAEL.D.FURNNER@hud.gov","414-935-6682","mn.incoming@hud.gov",{"$f":"HYPERLINK(\"mailto:\",Table_Front_desk_report.accdb[[#This Row],[inbox]])","v":"mn.incoming@hud.gov"}]
[null,"D"]
[800210580,"DAKOTA STATION APARTMENTS                         ","BURNSVILLE                  ","MN","55337","CINDY BEHNKE                                       ","cynthia.behnke@hud.gov","612-370-3278","mn.incoming@hud.gov",{"$f":"HYPERLINK(\"mailto:\",Table_Front_desk_report.accdb[[#This Row],[inbox]])","v":"mn.incoming@hud.gov"}]
[800010863,"DAKOTAS ADULTS                                    ","MENDOTA HEIGHTS             ","MN","55118","NATASHA D GUENOVA                                  ","NATASHA.D.GUENOVA@hud.gov","612-370-3035","mn.incoming@hud.gov",{"$f":"HYPERLINK(\"mailto:\",Table_Front_desk_report.accdb[[#This Row],[inbox]])","v":"mn.incoming@hud.gov"}]
[800023286,"DALE HEIGHTS                                      ","MADISON                     ","WI","53705","RAYMOND GUNTER                                     ","raymond.p.gunter@hud.gov","312-913-8309","chi.incoming@hud.gov",{"$f":"HYPERLINK(\"mailto:\",Table_Front_desk_report.accdb[[#This Row],[inbox]])","v":"chi.incoming@hud.gov"}]
[800022959,"DANE COUNTY HOUSING                               ","DODGEVILLE                  ","WI","53533","GRACIA M SHIFFRIN                                  ","gracia.m.shiffrin@hud.gov","312-913-8141","chi.incoming@hud.gov",{"$f":"HYPERLINK(\"mailto:\",Table_Front_desk_report.accdb[[#This Row],[inbox]])","v":"chi.incoming@hud.gov"}]
[800069637,"DANIEL KIMBALL VILLA                              ","ASHLAND                     ","WI","54806","JULIE A LASOTA                                     ","Julie.A.Lasota@hud.gov","612-370-3066","mn.incoming@hud.gov",{"$f":"HYPERLINK(\"mailto:\",Table_Front_desk_report.accdb[[#This Row],[inbox]])","v":"mn.incoming@hud.gov"}]
[800022960,"DARTFORD BAY APARTMENTS                           ","GREEN LAKE                  ","WI","54941","CATHERINE A TEMPLE                                 ","Catherine.A.Temple@hud.gov","414-935-6695","mn.incoming@hud.gov",{"$f":"HYPERLINK(\"mailto:\",Table_Front_desk_report.accdb[[#This Row],[inbox]])","v":"mn.incoming@hud.gov"}]
[800239909,"DAVENPORT STREET ESTATES                          ","Rhinelander                 ","WI","54501","MICHAEL D FURNNER                                  ","MICHAEL.D.FURNNER@hud.gov","414-935-6682","mn.incoming@hud.gov",{"$f":"HYPERLINK(\"mailto:\",Table_Front_desk_report.accdb[[#This Row],[inbox]])","v":"mn.incoming@hud.gov"}]
[800022961,"DEBRA BEEBE APARTMENTS                            ","FITCHBURG                   ","WI","53711","YOLANDA S MILLER                                   ","yolanda.s.miller@hud.gov","312-913-8580","chi.incoming@hud.gov",{"$f":"HYPERLINK(\"mailto:\",Table_Front_desk_report.accdb[[#This Row],[inbox]])","v":"chi.incoming@hud.gov"}]
[800010865,"DEER CREEK MANOR I                                ","DEER CREEK                  ","MN","56527","CAROL DIXON                                        ","Carol.A.Dixon@hud.gov","612-370-3015","mn.incoming@hud.gov",{"$f":"HYPERLINK(\"mailto:\",Table_Front_desk_report.accdb[[#This Row],[inbox]])","v":"mn.incoming@hud.gov"}]
[800010866,"DEER CREEK MANOR II                               ","DEER CREEK                  ","MN","56527","JOEL R KLEMM                                       ","JOEL.R.KLEMM@hud.gov","612-370-3053","mn.incoming@hud.gov",{"$f":"HYPERLINK(\"mailto:\",Table_Front_desk_report.accdb[[#This Row],[inbox]])","v":"mn.incoming@hud.gov"}]
[800237598,"Deer Ridge Townhomes                              ","Alexandria                  ","MN","56308","TERRI A MUNSON                                     ","Terri.A.Munson@hud.gov","612-370-3086","mn.incoming@hud.gov",{"$f":"HYPERLINK(\"mailto:\",Table_Front_desk_report.accdb[[#This Row],[inbox]])","v":"mn.incoming@hud.gov"}]
[800010867,"DEERING MANOR                                     ","NASHWAUK                    ","MN","55769","CINDY BEHNKE                                       ","cynthia.behnke@hud.gov","612-370-3278","mn.incoming@hud.gov",{"$f":"HYPERLINK(\"mailto:\",Table_Front_desk_report.accdb[[#This Row],[inbox]])","v":"mn.incoming@hud.gov"}]
[800022963,"DEFOREST ELDERLY HOUSING                          ","DE FOREST                   ","WI","53532","TERRI A MUNSON                                     ","Terri.A.Munson@hud.gov","612-370-3086","mn.incoming@hud.gov",{"$f":"HYPERLINK(\"mailto:\",Table_Front_desk_report.accdb[[#This Row],[inbox]])","v":"mn.incoming@hud.gov"}]
[800219416,"Delano Commons                                    ","Delano                      ","MN","55328","SHERRY K NORTON                                    ","Sherry.K.Norton@hud.gov","612-370-3087","mn.incoming@hud.gov",{"$f":"HYPERLINK(\"mailto:\",Table_Front_desk_report.accdb[[#This Row],[inbox]])","v":"mn.incoming@hud.gov"}]
[800022958,"DELLS COLONIAL APARTMENTS                         ","WISCONSIN DELLS             ","WI","53965","CATHERINE A TEMPLE                                 ","Catherine.A.Temple@hud.gov","414-935-6695","mn.incoming@hud.gov",{"$f":"HYPERLINK(\"mailto:\",Table_Front_desk_report.accdb[[#This Row],[inbox]])","v":"mn.incoming@hud.gov"}]
[800010870,"DEWEY PLACE/THE PINES                             ","FOLEY                       ","MN","56329","MICHAEL P MORAN                                    ","MICHAEL.P.MORAN@HUD.GOV","612-370-3081","mn.incoming@hud.gov",{"$f":"HYPERLINK(\"mailto:\",Table_Front_desk_report.accdb[[#This Row],[inbox]])","v":"mn.incoming@hud.gov"}]
[800010789,"Diamond Hill TH's  aka  Bossen Terrace            ","MINNEAPOLIS                 ","MN","55417","JULIE A LASOTA                                     ","Julie.A.Lasota@hud.gov","612-370-3066","mn.incoming@hud.gov",{"$f":"HYPERLINK(\"mailto:\",Table_Front_desk_report.accdb[[#This Row],[inbox]])","v":"mn.incoming@hud.gov"}]
[800023481,"DIAMOND VIEW                                      ","WAUSAU                      ","WI","54401","ANDREA L CARSON                                    ","andrea.carson@hud.gov","414-935-6679","mn.incoming@hud.gov",{"$f":"HYPERLINK(\"mailto:\",Table_Front_desk_report.accdb[[#This Row],[inbox]])","v":"mn.incoming@hud.gov"}]
[800022968,"DIANE MANOR                                       ","CHILTON                     ","WI","53014","ANDREA L CARSON                                    ","andrea.carson@hud.gov","414-935-6679","mn.incoming@hud.gov",{"$f":"HYPERLINK(\"mailto:\",Table_Front_desk_report.accdb[[#This Row],[inbox]])","v":"mn.incoming@hud.gov"}]
[800243341,"District at Miller Hill                           ","Duluth                      ","MN","55811","MICHAEL P MORAN                                    ","MICHAEL.P.MORAN@HUD.GOV","612-370-3081","mn.incoming@hud.gov",{"$f":"HYPERLINK(\"mailto:\",Table_Front_desk_report.accdb[[#This Row],[inbox]])","v":"mn.incoming@hud.gov"}]
[800022969,"DOC SUM APARTMENTS                                ","MUSCODA                     ","WI","53573","SYLVIA HYDE                                        ","sylvia.hyde@hud.gov","312-913-8573","chi.incoming@hud.gov",{"$f":"HYPERLINK(\"mailto:\",Table_Front_desk_report.accdb[[#This Row],[inbox]])","v":"chi.incoming@hud.gov"}]
[800022970,"DONAHUE TERRACE                                   ","BARABOO                     ","WI","53913","ANDREA L CARSON                                    ","andrea.carson@hud.gov","414-935-6679","mn.incoming@hud.gov",{"$f":"HYPERLINK(\"mailto:\",Table_Front_desk_report.accdb[[#This Row],[inbox]])","v":"mn.incoming@hud.gov"}]
[800112188,"DONALD SYKES VILLA                                ","STRATFORD                   ","WI","54484","JOEL R KLEMM                                       ","JOEL.R.KLEMM@hud.gov","612-370-3053","mn.incoming@hud.gov",{"$f":"HYPERLINK(\"mailto:\",Table_Front_desk_report.accdb[[#This Row],[inbox]])","v":"mn.incoming@hud.gov"}]
[800217937,"DONALD WICK VILLA                                 ","WITTENBERG                  ","WI","54499","PAUL A DUHR                                        ","paul.a.duhr@hud.gov","414-935-6681","mn.incoming@hud.gov",{"$f":"HYPERLINK(\"mailto:\",Table_Front_desk_report.accdb[[#This Row],[inbox]])","v":"mn.incoming@hud.gov"}]
[800023079,"DORCHESTER NON-PROFIT HOUSING CORP.               ","DORCHESTER                  ","WI","54425","ANDREA L CARSON                                    ","andrea.carson@hud.gov","414-935-6679","mn.incoming@hud.gov",{"$f":"HYPERLINK(\"mailto:\",Table_Front_desk_report.accdb[[#This Row],[inbox]])","v":"mn.incoming@hud.gov"}]
[800213178,"DORIS KOHLER VILLA                                ","Phillips                    ","WI","54555","MICHAEL D FURNNER                                  ","MICHAEL.D.FURNNER@hud.gov","414-935-6682","mn.incoming@hud.gov",{"$f":"HYPERLINK(\"mailto:\",Table_Front_desk_report.accdb[[#This Row],[inbox]])","v":"mn.incoming@hud.gov"}]
[800022971,"DOUGLAS COUNTY ARC                                ","SUPERIOR                    ","WI","54880","LAWRANCE C MUNDT                                   ","LAWRENCE.C.MUNDT@hud.gov","612-370-3082","mn.incoming@hud.gov",{"$f":"HYPERLINK(\"mailto:\",Table_Front_desk_report.accdb[[#This Row],[inbox]])","v":"mn.incoming@hud.gov"}]
[800010872,"DOUGLAS MANOR                                     ","LAMBERTON                   ","MN","56152","THOMAS G DURSCHER                                  ","Thomas.G.Durscher@hud.gov","612-370-3018","mn.incoming@hud.gov",{"$f":"HYPERLINK(\"mailto:\",Table_Front_desk_report.accdb[[#This Row],[inbox]])","v":"mn.incoming@hud.gov"}]
[800010873,"DOVER HILL                                        ","GOLDEN VALLEY               ","MN","55427","JULIE A LASOTA                                     ","Julie.A.Lasota@hud.gov","612-370-3066","mn.incoming@hud.gov",{"$f":"HYPERLINK(\"mailto:\",Table_Front_desk_report.accdb[[#This Row],[inbox]])","v":"mn.incoming@hud.gov"}]
[800010874,"DR. GRAHEK APTS aka Ely Seniors                   ","ELY                         ","MN","55731","GREGORY T MERZ                                     ","GREGORY.T.MERZ@hud.gov","612-370-3077","mn.incoming@hud.gov",{"$f":"HYPERLINK(\"mailto:\",Table_Front_desk_report.accdb[[#This Row],[inbox]])","v":"mn.incoming@hud.gov"}]
[800044141,"DRAKE APTS                                        ","COON RAPIDS                 ","MN","55433","TEENA M GEE                                        ","Teena.M.Gee@hud.gov","612-843-6414","mn.incoming@hud.gov",{"$f":"HYPERLINK(\"mailto:\",Table_Front_desk_report.accdb[[#This Row],[inbox]])","v":"mn.incoming@hud.gov"}]
[800022972,"DRIVE IN/HIGHVIEW APTS.                           ","DARLINGTON                  ","WI","53530","DEBORAH E MONROE                                   ","deborah.e.monroe@hud.gov","312-913-8210","chi.incoming@hud.gov",{"$f":"HYPERLINK(\"mailto:\",Table_Front_desk_report.accdb[[#This Row],[inbox]])","v":"chi.incoming@hud.gov"}]
[800022973,"DRYDEN TERRACE                                    ","MADISON                     ","WI","53704","ARNITA X SCOTT                                     ","arnita.scott@hud.gov","312-913-8574","chi.incoming@hud.gov",{"$f":"HYPERLINK(\"mailto:\",Table_Front_desk_report.accdb[[#This Row],[inbox]])","v":"chi.incoming@hud.gov"}]
[800023514,"DUANE FLOGSTAD VILLA                              ","WISCONSIN RAPIDS            ","WI","54494","CATHERINE A TEMPLE                                 ","Catherine.A.Temple@hud.gov","414-935-6695","mn.incoming@hud.gov",{"$f":"HYPERLINK(\"mailto:\",Table_Front_desk_report.accdb[[#This Row],[inbox]])","v":"mn.incoming@hud.gov"}]
[800010876,"DUBLIN PARK APARTMENTS                            ","COON RAPIDS                 ","MN","55433","TERESA C PARKER                                    ","TERESA.C.PARKER@hud.gov","612-370-3092","mn.incoming@hud.gov",{"$f":"HYPERLINK(\"mailto:\",Table_Front_desk_report.accdb[[#This Row],[inbox]])","v":"mn.incoming@hud.gov"}]
[800022974,"DUNN COUNTY ELDERLY                               ","BOYCEVILLE                  ","WI","54725","SUSAN K ROSKOS                                     ","Susan.K.Roskos@hud.gov","612-370-3110","mn.incoming@hud.gov",{"$f":"HYPERLINK(\"mailto:\",Table_Front_desk_report.accdb[[#This Row],[inbox]])","v":"mn.incoming@hud.gov"}]
[800239146,"DuPont Villa Apartments                           ","Minneapolis                 ","MN","55408","BEN OSBORN                                         ","Benjamin.M.Osborn@hud.gov","612-370-3091","mn.incoming@hud.gov",{"$f":"HYPERLINK(\"mailto:\",Table_Front_desk_report.accdb[[#This Row],[inbox]])","v":"mn.incoming@hud.gov"}]
[800022976,"DURAND PLAZA                                      ","RACINE                      ","WI","53403","MARLENE X TRIMUEL                                  ","Marlene.Trimuel@hud.gov","312-913-8369","chi.incoming@hud.gov",{"$f":"HYPERLINK(\"mailto:\",Table_Front_desk_report.accdb[[#This Row],[inbox]])","v":"chi.incoming@hud.gov"}]
[null,"E"]
[800240455,"e 2                                               ","Saint Louis Park            ","MN","55416","JOEL R KLEMM                                       ","JOEL.R.KLEMM@hud.gov","612-370-3053","mn.incoming@hud.gov",{"$f":"HYPERLINK(\"mailto:\",Table_Front_desk_report.accdb[[#This Row],[inbox]])","v":"mn.incoming@hud.gov"}]
[800044166,"Eagan Gables    aka   Wescott TH's                ","Eagan                       ","MN","55123","TEENA M GEE                                        ","Teena.M.Gee@hud.gov","612-843-6414","mn.incoming@hud.gov",{"$f":"HYPERLINK(\"mailto:\",Table_Front_desk_report.accdb[[#This Row],[inbox]])","v":"mn.incoming@hud.gov"}]
[800211280,"EAGLE COURT APTS  aka  Horizon Health             ","RANDALL                     ","MN","56475","JOEL R KLEMM                                       ","JOEL.R.KLEMM@hud.gov","612-370-3053","mn.incoming@hud.gov",{"$f":"HYPERLINK(\"mailto:\",Table_Front_desk_report.accdb[[#This Row],[inbox]])","v":"mn.incoming@hud.gov"}]
[800022977,"EAGLE PINES APARTMENTS                            ","EAGLE RIVER                 ","WI","54521","PAUL A DUHR                                        ","paul.a.duhr@hud.gov","414-935-6681","mn.incoming@hud.gov",{"$f":"HYPERLINK(\"mailto:\",Table_Front_desk_report.accdb[[#This Row],[inbox]])","v":"mn.incoming@hud.gov"}]
[800221847,"Eagle Ridge Apartments                            ","Red Wing                    ","MN","55006","DARIAN JANE ZIEGLER                                ","Darian.Ziegler@hud.gov","612-370-3270","mn.incoming@hud.gov",{"$f":"HYPERLINK(\"mailto:\",Table_Front_desk_report.accdb[[#This Row],[inbox]])","v":"mn.incoming@hud.gov"}]
[800072448,"East Creek Carriage Homes                         ","CHASKA                      ","MN","55318","CAROL DIXON                                        ","Carol.A.Dixon@hud.gov","612-370-3015","mn.incoming@hud.gov",{"$f":"HYPERLINK(\"mailto:\",Table_Front_desk_report.accdb[[#This Row],[inbox]])","v":"mn.incoming@hud.gov"}]
[800218539,"EAST PHILLIPS COMMONS                             ","Minneapolis                 ","MN","55407","MARCIA A KOLB                                      ","MARCIA.A.KOLB@hud.gov","612-370-3055","mn.incoming@hud.gov",{"$f":"HYPERLINK(\"mailto:\",Table_Front_desk_report.accdb[[#This Row],[inbox]])","v":"mn.incoming@hud.gov"}]
[800215014,"East Ridge Court                                  ","RENVILLE                    ","MN","56284","MARCIA A KOLB                                      ","MARCIA.A.KOLB@hud.gov","612-370-3055","mn.incoming@hud.gov",{"$f":"HYPERLINK(\"mailto:\",Table_Front_desk_report.accdb[[#This Row],[inbox]])","v":"mn.incoming@hud.gov"}]
[800010884,"EAST SHORE PLACE                                  ","MAHTOMEDI                   ","MN","55115","CAROL DIXON                                        ","Carol.A.Dixon@hud.gov","612-370-3015","mn.incoming@hud.gov",{"$f":"HYPERLINK(\"mailto:\",Table_Front_desk_report.accdb[[#This Row],[inbox]])","v":"mn.incoming@hud.gov"}]
[800022978,"EAST TERRACE APARTMENTS                           ","WAUKESHA                    ","WI","53186","DORTHY L HOPKINS                                   ","dorthy.l.hopkins@hud.gov","312-913-8172","chi.incoming@hud.gov",{"$f":"HYPERLINK(\"mailto:\",Table_Front_desk_report.accdb[[#This Row],[inbox]])","v":"chi.incoming@hud.gov"}]
[800222510,"East Terrace Cooperative                          ","Cambridge                   ","MN","55008","SUSAN K ROSKOS                                     ","Susan.K.Roskos@hud.gov","612-370-3110","mn.incoming@hud.gov",{"$f":"HYPERLINK(\"mailto:\",Table_Front_desk_report.accdb[[#This Row],[inbox]])","v":"mn.incoming@hud.gov"}]
[800210540,"East Village South                                ","MINNEAPOLIS                 ","MN","55404","TEENA M GEE                                        ","Teena.M.Gee@hud.gov","612-843-6414","mn.incoming@hud.gov",{"$f":"HYPERLINK(\"mailto:\",Table_Front_desk_report.accdb[[#This Row],[inbox]])","v":"mn.incoming@hud.gov"}]
[800222518,"Easten Townhomes                                  ","Moorhead                    ","MN","56561","DARIAN JANE ZIEGLER                                ","Darian.Ziegler@hud.gov","612-370-3270","mn.incoming@hud.gov",{"$f":"HYPERLINK(\"mailto:\",Table_Front_desk_report.accdb[[#This Row],[inbox]])","v":"mn.incoming@hud.gov"}]
[800010885,"EASTGATE TOWNHOMES                                ","MONTEVIDEO                  ","MN","56265","CAROL DIXON                                        ","Carol.A.Dixon@hud.gov","612-370-3015","mn.incoming@hud.gov",{"$f":"HYPERLINK(\"mailto:\",Table_Front_desk_report.accdb[[#This Row],[inbox]])","v":"mn.incoming@hud.gov"}]
[800041917,"EASTPOINTE APTS.                                  ","MADISON                     ","WI","53714","DARIAN JANE ZIEGLER                                ","Darian.Ziegler@hud.gov","612-370-3270","mn.incoming@hud.gov",{"$f":"HYPERLINK(\"mailto:\",Table_Front_desk_report.accdb[[#This Row],[inbox]])","v":"mn.incoming@hud.gov"}]
[800010886,"EASTPORT                                          ","Mankato                     ","MN","56001","CINDY BEHNKE                                       ","cynthia.behnke@hud.gov","612-370-3278","mn.incoming@hud.gov",{"$f":"HYPERLINK(\"mailto:\",Table_Front_desk_report.accdb[[#This Row],[inbox]])","v":"mn.incoming@hud.gov"}]
[800010888,"EASTSIDE VILLAGE                                  ","STEWARTVILLE                ","MN","55976","SUSAN K ROSKOS                                     ","Susan.K.Roskos@hud.gov","612-370-3110","mn.incoming@hud.gov",{"$f":"HYPERLINK(\"mailto:\",Table_Front_desk_report.accdb[[#This Row],[inbox]])","v":"mn.incoming@hud.gov"}]
[800022979,"EAU CLAIRE REHABILITATION                         ","EAU CLAIRE                  ","WI","54703","CATHERINE A TEMPLE                                 ","Catherine.A.Temple@hud.gov","414-935-6695","mn.incoming@hud.gov",{"$f":"HYPERLINK(\"mailto:\",Table_Front_desk_report.accdb[[#This Row],[inbox]])","v":"mn.incoming@hud.gov"}]
[800010890,"EBENEZER PARK APARTMENTS                          ","MINNEAPOLIS                 ","MN","55407","TERRI A MUNSON                                     ","Terri.A.Munson@hud.gov","612-370-3086","mn.incoming@hud.gov",{"$f":"HYPERLINK(\"mailto:\",Table_Front_desk_report.accdb[[#This Row],[inbox]])","v":"mn.incoming@hud.gov"}]
[800010891,"EBENEZER RIDGE POINT APTS.                        ","BURNSVILLE                  ","MN","55337","NATASHA D GUENOVA                                  ","NATASHA.D.GUENOVA@hud.gov","612-370-3035","mn.incoming@hud.gov",{"$f":"HYPERLINK(\"mailto:\",Table_Front_desk_report.accdb[[#This Row],[inbox]])","v":"mn.incoming@hud.gov"}]
[800010892,"EBENEZER TOWERS                                   ","MINNEAPOLIS                 ","MN","55404","TERRI A MUNSON                                     ","Terri.A.Munson@hud.gov","612-370-3086","mn.incoming@hud.gov",{"$f":"HYPERLINK(\"mailto:\",Table_Front_desk_report.accdb[[#This Row],[inbox]])","v":"mn.incoming@hud.gov"}]
[800238708,"Eden Commons Apartments                           ","Eden Prairie                ","MN","55344","TERESA C PARKER                                    ","TERESA.C.PARKER@hud.gov","612-370-3092","mn.incoming@hud.gov",{"$f":"HYPERLINK(\"mailto:\",Table_Front_desk_report.accdb[[#This Row],[inbox]])","v":"mn.incoming@hud.gov"}]
[800010893,"EDENBROOK APTS aka Eden Valley Apts               ","EDEN VALLEY                 ","MN","55329","LAWRANCE C MUNDT                                   ","LAWRENCE.C.MUNDT@hud.gov","612-370-3082","mn.incoming@hud.gov",{"$f":"HYPERLINK(\"mailto:\",Table_Front_desk_report.accdb[[#This Row],[inbox]])","v":"mn.incoming@hud.gov"}]
[800010894,"EDENDALE RESIDENCE, INC.                          ","EDEN PRAIRIE                ","MN","55344","GREGORY T MERZ                                     ","GREGORY.T.MERZ@hud.gov","612-370-3077","mn.incoming@hud.gov",{"$f":"HYPERLINK(\"mailto:\",Table_Front_desk_report.accdb[[#This Row],[inbox]])","v":"mn.incoming@hud.gov"}]
[800072213,"EDENVALE APARTMENTS                               ","EDEN PRAIRIE                ","MN","55344","TEENA M GEE                                        ","Teena.M.Gee@hud.gov","612-843-6414","mn.incoming@hud.gov",{"$f":"HYPERLINK(\"mailto:\",Table_Front_desk_report.accdb[[#This Row],[inbox]])","v":"mn.incoming@hud.gov"}]
[800022981,"EDGEWATER TERRACE                                 ","TWO RIVERS                  ","WI","54241","CATHERINE A TEMPLE                                 ","Catherine.A.Temple@hud.gov","414-935-6695","mn.incoming@hud.gov",{"$f":"HYPERLINK(\"mailto:\",Table_Front_desk_report.accdb[[#This Row],[inbox]])","v":"mn.incoming@hud.gov"}]
[800022982,"EDGEWOOD APARTMENTS                               ","MINONG                      ","WI","54859","ANDREA L CARSON                                    ","andrea.carson@hud.gov","414-935-6679","mn.incoming@hud.gov",{"$f":"HYPERLINK(\"mailto:\",Table_Front_desk_report.accdb[[#This Row],[inbox]])","v":"mn.incoming@hud.gov"}]
[800010895,"EDGEWOOD APARTMENTS                               ","CROSBY                      ","MN","56441","TEENA M GEE                                        ","Teena.M.Gee@hud.gov","612-843-6414","mn.incoming@hud.gov",{"$f":"HYPERLINK(\"mailto:\",Table_Front_desk_report.accdb[[#This Row],[inbox]])","v":"mn.incoming@hud.gov"}]
[800022984,"EDGEWOOD MANOR                                    ","MARINETTE                   ","WI","54143","JULIE A LASOTA                                     ","Julie.A.Lasota@hud.gov","612-370-3066","mn.incoming@hud.gov",{"$f":"HYPERLINK(\"mailto:\",Table_Front_desk_report.accdb[[#This Row],[inbox]])","v":"mn.incoming@hud.gov"}]
[800010896,"EL CA BA APARTMENTS                               ","RAYMOND                     ","MN","56282","JOEL R KLEMM                                       ","JOEL.R.KLEMM@hud.gov","612-370-3053","mn.incoming@hud.gov",{"$f":"HYPERLINK(\"mailto:\",Table_Front_desk_report.accdb[[#This Row],[inbox]])","v":"mn.incoming@hud.gov"}]
[800023262,"ELAINE MEYERS APARTMENTS                          ","MADISON                     ","WI","53713","YOLANDA S MILLER                                   ","yolanda.s.miller@hud.gov","312-913-8580","chi.incoming@hud.gov",{"$f":"HYPERLINK(\"mailto:\",Table_Front_desk_report.accdb[[#This Row],[inbox]])","v":"chi.incoming@hud.gov"}]
[800010879,"ELDERS LODGE                                      ","SAINT PAUL                  ","MN","55106","TERRI A MUNSON                                     ","Terri.A.Munson@hud.gov","612-370-3086","mn.incoming@hud.gov",{"$f":"HYPERLINK(\"mailto:\",Table_Front_desk_report.accdb[[#This Row],[inbox]])","v":"mn.incoming@hud.gov"}]
[800022988,"ELIZABETH COURT                                   ","MENASHA                     ","WI","54952","ANDREA L CARSON                                    ","andrea.carson@hud.gov","414-935-6679","mn.incoming@hud.gov",{"$f":"HYPERLINK(\"mailto:\",Table_Front_desk_report.accdb[[#This Row],[inbox]])","v":"mn.incoming@hud.gov"}]
[800010897,"ELLIOT PARK                                       ","MINNEAPOLIS                 ","MN","55404","NATASHA D GUENOVA                                  ","NATASHA.D.GUENOVA@hud.gov","612-370-3035","mn.incoming@hud.gov",{"$f":"HYPERLINK(\"mailto:\",Table_Front_desk_report.accdb[[#This Row],[inbox]])","v":"mn.incoming@hud.gov"}]
[800226694,"Ellipse on Excelsior Apartments                   ","Saint Louis Park            ","MN","55416","SHERRY K NORTON                                    ","Sherry.K.Norton@hud.gov","612-370-3087","mn.incoming@hud.gov",{"$f":"HYPERLINK(\"mailto:\",Table_Front_desk_report.accdb[[#This Row],[inbox]])","v":"mn.incoming@hud.gov"}]
[800022991,"EMERSON APARTMENTS                                ","BELOIT                      ","WI","53511","GRACIA M SHIFFRIN                                  ","gracia.m.shiffrin@hud.gov","312-913-8141","chi.incoming@hud.gov",{"$f":"HYPERLINK(\"mailto:\",Table_Front_desk_report.accdb[[#This Row],[inbox]])","v":"chi.incoming@hud.gov"}]
[800010899,"EMERSON CHALET                                    ","BROOKLYN CENTER             ","MN","55430","JOEL R KLEMM                                       ","JOEL.R.KLEMM@hud.gov","612-370-3053","mn.incoming@hud.gov",{"$f":"HYPERLINK(\"mailto:\",Table_Front_desk_report.accdb[[#This Row],[inbox]])","v":"mn.incoming@hud.gov"}]
[800010900,"ENDION SCHOOL                                     ","DULUTH                      ","MN","55812","NATASHA D GUENOVA                                  ","NATASHA.D.GUENOVA@hud.gov","612-370-3035","mn.incoming@hud.gov",{"$f":"HYPERLINK(\"mailto:\",Table_Front_desk_report.accdb[[#This Row],[inbox]])","v":"mn.incoming@hud.gov"}]
[800022992,"ENGLEWOOD/BARRINGTON APT                          ","EAU CLAIRE                  ","WI","54701","SUSAN K ROSKOS                                     ","Susan.K.Roskos@hud.gov","612-370-3110","mn.incoming@hud.gov",{"$f":"HYPERLINK(\"mailto:\",Table_Front_desk_report.accdb[[#This Row],[inbox]])","v":"mn.incoming@hud.gov"}]
[800220213,"Episcopal Homes aka Cornelia House                ","SAINT PAUL                  ","MN","55104","CINDY BEHNKE                                       ","cynthia.behnke@hud.gov","612-370-3278","mn.incoming@hud.gov",{"$f":"HYPERLINK(\"mailto:\",Table_Front_desk_report.accdb[[#This Row],[inbox]])","v":"mn.incoming@hud.gov"}]
[800209714,"ESSEX PARK APTS TOWNHOMES                         ","ROCHESTER                   ","MN","55901","GREGORY T MERZ                                     ","GREGORY.T.MERZ@hud.gov","612-370-3077","mn.incoming@hud.gov",{"$f":"HYPERLINK(\"mailto:\",Table_Front_desk_report.accdb[[#This Row],[inbox]])","v":"mn.incoming@hud.gov"}]
[800242972,"Essex Senior Rentals                              ","Waunakee                    ","WI","53597","MARLENE X TRIMUEL                                  ","Marlene.Trimuel@hud.gov","312-913-8369","chi.incoming@hud.gov",{"$f":"HYPERLINK(\"mailto:\",Table_Front_desk_report.accdb[[#This Row],[inbox]])","v":"chi.incoming@hud.gov"}]
[800022993,"EUCLID ARMS APARTMENTS                            ","MILWAUKEE                   ","WI","53215","LADRENNA A FIGUEROA                                ","ladrenna.a.figueroa@hud.gov","312-913-8290","chi.incoming@hud.gov",{"$f":"HYPERLINK(\"mailto:\",Table_Front_desk_report.accdb[[#This Row],[inbox]])","v":"chi.incoming@hud.gov"}]
[800237475,"Evans Meadows                                     ","Elk River                   ","MN","55330","CAROL DIXON                                        ","Carol.A.Dixon@hud.gov","612-370-3015","mn.incoming@hud.gov",{"$f":"HYPERLINK(\"mailto:\",Table_Front_desk_report.accdb[[#This Row],[inbox]])","v":"mn.incoming@hud.gov"}]
[800010903,"EVENTIDE LIVING CENTER, A MN N-P CP               ","MOORHEAD                    ","MN","56560","NATASHA D GUENOVA                                  ","NATASHA.D.GUENOVA@hud.gov","612-370-3035","mn.incoming@hud.gov",{"$f":"HYPERLINK(\"mailto:\",Table_Front_desk_report.accdb[[#This Row],[inbox]])","v":"mn.incoming@hud.gov"}]
[800079717,"EVERGREEN APTS -- HUTCHINSON                      ","HUTCHINSON                  ","MN","55350","DARIAN JANE ZIEGLER                                ","Darian.Ziegler@hud.gov","612-370-3270","mn.incoming@hud.gov",{"$f":"HYPERLINK(\"mailto:\",Table_Front_desk_report.accdb[[#This Row],[inbox]])","v":"mn.incoming@hud.gov"}]
[800072703,"EVERGREEN APTS aka NHHI Brklyn Pk Inc.            ","BROOKLYN PARK               ","MN","55428","THOMAS G DURSCHER                                  ","Thomas.G.Durscher@hud.gov","612-370-3018","mn.incoming@hud.gov",{"$f":"HYPERLINK(\"mailto:\",Table_Front_desk_report.accdb[[#This Row],[inbox]])","v":"mn.incoming@hud.gov"}]
[800010904,"EVERGREEN APTS. -- WACONIA, MN                    ","WACONIA                     ","MN","55387","GREGORY T MERZ                                     ","GREGORY.T.MERZ@hud.gov","612-370-3077","mn.incoming@hud.gov",{"$f":"HYPERLINK(\"mailto:\",Table_Front_desk_report.accdb[[#This Row],[inbox]])","v":"mn.incoming@hud.gov"}]
[800022995,"EVERGREEN SQUARE I, II, & III                     ","MILWAUKEE                   ","WI","53219","ARUNA SHAH                                         ","aruna.shah@hud.gov","312-913-8588","chi.incoming@hud.gov",{"$f":"HYPERLINK(\"mailto:\",Table_Front_desk_report.accdb[[#This Row],[inbox]])","v":"chi.incoming@hud.gov"}]
[800022998,"EVERGREEN SQUARE IV                               ","MILWAUKEE                   ","WI","53219","ARUNA SHAH                                         ","aruna.shah@hud.gov","312-913-8588","chi.incoming@hud.gov",{"$f":"HYPERLINK(\"mailto:\",Table_Front_desk_report.accdb[[#This Row],[inbox]])","v":"chi.incoming@hud.gov"}]
[800022999,"EVERGREEN SQUARE OF CUDAHY                        ","CUDAHY                      ","WI","53110","ARUNA SHAH                                         ","aruna.shah@hud.gov","312-913-8588","chi.incoming@hud.gov",{"$f":"HYPERLINK(\"mailto:\",Table_Front_desk_report.accdb[[#This Row],[inbox]])","v":"chi.incoming@hud.gov"}]
[800010905,"EWING SQUARE                                      ","BROOKLYN CENTER             ","MN","55429","DARIAN JANE ZIEGLER                                ","Darian.Ziegler@hud.gov","612-370-3270","mn.incoming@hud.gov",{"$f":"HYPERLINK(\"mailto:\",Table_Front_desk_report.accdb[[#This Row],[inbox]])","v":"mn.incoming@hud.gov"}]
[800011000,"EXCELSIOR COURT                                   ","MINNETONKA                  ","MN","55345","CAROL DIXON                                        ","Carol.A.Dixon@hud.gov","612-370-3015","mn.incoming@hud.gov",{"$f":"HYPERLINK(\"mailto:\",Table_Front_desk_report.accdb[[#This Row],[inbox]])","v":"mn.incoming@hud.gov"}]
[800023000,"EXCHANGE HOUSE                                    ","GRATIOT                     ","WI","53541","DORTHY L HOPKINS                                   ","dorthy.l.hopkins@hud.gov","312-913-8172","chi.incoming@hud.gov",{"$f":"HYPERLINK(\"mailto:\",Table_Front_desk_report.accdb[[#This Row],[inbox]])","v":"chi.incoming@hud.gov"}]
[null,"F"]
[800023002,"FAIRCHILD HOUSING                                 ","FAIRCHILD                   ","WI","53741","PAUL A DUHR                                        ","paul.a.duhr@hud.gov","414-935-6681","mn.incoming@hud.gov",{"$f":"HYPERLINK(\"mailto:\",Table_Front_desk_report.accdb[[#This Row],[inbox]])","v":"mn.incoming@hud.gov"}]
[800023003,"FAIRFIELD HOMES                                   ","CRANDON                     ","WI","54520","LAWRANCE C MUNDT                                   ","LAWRENCE.C.MUNDT@hud.gov","612-370-3082","mn.incoming@hud.gov",{"$f":"HYPERLINK(\"mailto:\",Table_Front_desk_report.accdb[[#This Row],[inbox]])","v":"mn.incoming@hud.gov"}]
[800010906,"FAIRFIELD TERRACE                                 ","LAKEVILLE                   ","MN","55044","MITCHELL S HILLMAN                                 ","MITCHELL.S.HILLMAN@hud.gov","612-370-3036","mn.incoming@hud.gov",{"$f":"HYPERLINK(\"mailto:\",Table_Front_desk_report.accdb[[#This Row],[inbox]])","v":"mn.incoming@hud.gov"}]
[800240756,"FAIRMOUNT MEADOWS                                 ","Milwaukee                   ","WI","53225","GRACIA M SHIFFRIN                                  ","gracia.m.shiffrin@hud.gov","312-913-8141","chi.incoming@hud.gov",{"$f":"HYPERLINK(\"mailto:\",Table_Front_desk_report.accdb[[#This Row],[inbox]])","v":"chi.incoming@hud.gov"}]
[800010908,"FAIRVIEW APARTMENTS                               ","SAINT PETER                 ","MN","56082","DARIAN JANE ZIEGLER                                ","Darian.Ziegler@hud.gov","612-370-3270","mn.incoming@hud.gov",{"$f":"HYPERLINK(\"mailto:\",Table_Front_desk_report.accdb[[#This Row],[inbox]])","v":"mn.incoming@hud.gov"}]
[800079715,"FAIRVIEW APTS -- FAIRFAX, MN                      ","FAIRFAX                     ","MN","55332","MARCIA A KOLB                                      ","MARCIA.A.KOLB@hud.gov","612-370-3055","mn.incoming@hud.gov",{"$f":"HYPERLINK(\"mailto:\",Table_Front_desk_report.accdb[[#This Row],[inbox]])","v":"mn.incoming@hud.gov"}]
[800023004,"FAIRVIEW ESTATES/SPARTA ARMS                      ","SPARTA                      ","WI","54656","PAUL A DUHR                                        ","paul.a.duhr@hud.gov","414-935-6681","mn.incoming@hud.gov",{"$f":"HYPERLINK(\"mailto:\",Table_Front_desk_report.accdb[[#This Row],[inbox]])","v":"mn.incoming@hud.gov"}]
[800218517,"FAIRWAY RIDGE  aka  Silvercrest                   ","ROCHESTER                   ","MN","55902","MICHAEL P MORAN                                    ","MICHAEL.P.MORAN@HUD.GOV","612-370-3081","mn.incoming@hud.gov",{"$f":"HYPERLINK(\"mailto:\",Table_Front_desk_report.accdb[[#This Row],[inbox]])","v":"mn.incoming@hud.gov"}]
[800215317,"FAITH MANOR APARTMENTS                            ","MILWAUKEE                   ","WI","53223","DONNA M SHEEHAN                                    ","Donna.Sheehan@hud.gov"," 312-957-4781 ","chi.incoming@hud.gov",{"$f":"HYPERLINK(\"mailto:\",Table_Front_desk_report.accdb[[#This Row],[inbox]])","v":"chi.incoming@hud.gov"}]
[800217868,"FAITH RESIDENCE  aka  Lutheran Home Belle Plaine  ","Belle Plaine                ","MN","56011","SHERRY K NORTON                                    ","Sherry.K.Norton@hud.gov","612-370-3087","mn.incoming@hud.gov",{"$f":"HYPERLINK(\"mailto:\",Table_Front_desk_report.accdb[[#This Row],[inbox]])","v":"mn.incoming@hud.gov"}]
[800219158,"Falcon Heights Town Square - Seniors              ","FALCON HEIGHTS              ","MN","55113","MITCHELL S HILLMAN                                 ","MITCHELL.S.HILLMAN@hud.gov","612-370-3036","mn.incoming@hud.gov",{"$f":"HYPERLINK(\"mailto:\",Table_Front_desk_report.accdb[[#This Row],[inbox]])","v":"mn.incoming@hud.gov"}]
[800219156,"Falcon Heights Town Square Apartments             ","FALCON HEIGHTS              ","MN","55113","THOMAS G DURSCHER                                  ","Thomas.G.Durscher@hud.gov","612-370-3018","mn.incoming@hud.gov",{"$f":"HYPERLINK(\"mailto:\",Table_Front_desk_report.accdb[[#This Row],[inbox]])","v":"mn.incoming@hud.gov"}]
[800010911,"FALLS MEADOWRIDGE TOWNHOUSES                      ","Little Falls                ","MN","56345","JULIE A LASOTA                                     ","Julie.A.Lasota@hud.gov","612-370-3066","mn.incoming@hud.gov",{"$f":"HYPERLINK(\"mailto:\",Table_Front_desk_report.accdb[[#This Row],[inbox]])","v":"mn.incoming@hud.gov"}]
[800010912,"FALLS SOUTH APARTMENTS, A MN LP                   ","INTERNATIONAL FALLS         ","MN","56649","THOMAS G DURSCHER                                  ","Thomas.G.Durscher@hud.gov","612-370-3018","mn.incoming@hud.gov",{"$f":"HYPERLINK(\"mailto:\",Table_Front_desk_report.accdb[[#This Row],[inbox]])","v":"mn.incoming@hud.gov"}]
[800023006,"FERNWOOD COURT                                    ","MILWAUKEE                   ","WI","53216","ARUNA SHAH                                         ","aruna.shah@hud.gov","312-913-8588","chi.incoming@hud.gov",{"$f":"HYPERLINK(\"mailto:\",Table_Front_desk_report.accdb[[#This Row],[inbox]])","v":"chi.incoming@hud.gov"}]
[800011316,"FIELDCREST TOWNHOMES aka Times Estates            ","MOORHEAD                    ","MN","56560","BEN OSBORN                                         ","Benjamin.M.Osborn@hud.gov","612-370-3091","mn.incoming@hud.gov",{"$f":"HYPERLINK(\"mailto:\",Table_Front_desk_report.accdb[[#This Row],[inbox]])","v":"mn.incoming@hud.gov"}]
[800023007,"FIRESIDE APARTMENTS                               ","WHITING                     ","WI","54481","MARLENE X TRIMUEL                                  ","Marlene.Trimuel@hud.gov","312-913-8369","chi.incoming@hud.gov",{"$f":"HYPERLINK(\"mailto:\",Table_Front_desk_report.accdb[[#This Row],[inbox]])","v":"chi.incoming@hud.gov"}]
[800023008,"FIRESIDE COMMONS APARTMENTS                       ","NEENAH                      ","WI","54956","ANDREA L CARSON                                    ","andrea.carson@hud.gov","414-935-6679","mn.incoming@hud.gov",{"$f":"HYPERLINK(\"mailto:\",Table_Front_desk_report.accdb[[#This Row],[inbox]])","v":"mn.incoming@hud.gov"}]
[800023009,"FIRST AVENUE APARTMENTS                           ","ANTIGO                      ","WI","54409","MICHAEL D FURNNER                                  ","MICHAEL.D.FURNNER@hud.gov","414-935-6682","mn.incoming@hud.gov",{"$f":"HYPERLINK(\"mailto:\",Table_Front_desk_report.accdb[[#This Row],[inbox]])","v":"mn.incoming@hud.gov"}]
[800023010,"FIRST CAPITOL APARTMENTS                          ","BELMONT                     ","WI","53510","DEBORAH E MONROE                                   ","deborah.e.monroe@hud.gov","312-913-8210","chi.incoming@hud.gov",{"$f":"HYPERLINK(\"mailto:\",Table_Front_desk_report.accdb[[#This Row],[inbox]])","v":"chi.incoming@hud.gov"}]
[800240100,"Five 15 on the Park                               ","Minneapolis                 ","MN","55454","TERRI A MUNSON                                     ","Terri.A.Munson@hud.gov","612-370-3086","mn.incoming@hud.gov",{"$f":"HYPERLINK(\"mailto:\",Table_Front_desk_report.accdb[[#This Row],[inbox]])","v":"mn.incoming@hud.gov"}]
[800232704,"Flo Co Fusion                                     ","Minneapolis                 ","MN","55414","NATASHA D GUENOVA                                  ","NATASHA.D.GUENOVA@hud.gov","612-370-3035","mn.incoming@hud.gov",{"$f":"HYPERLINK(\"mailto:\",Table_Front_desk_report.accdb[[#This Row],[inbox]])","v":"mn.incoming@hud.gov"}]
[800023012,"FLORENCE TERRACE                                  ","FLORENCE                    ","WI","54121","LAWRANCE C MUNDT                                   ","LAWRENCE.C.MUNDT@hud.gov","612-370-3082","mn.incoming@hud.gov",{"$f":"HYPERLINK(\"mailto:\",Table_Front_desk_report.accdb[[#This Row],[inbox]])","v":"mn.incoming@hud.gov"}]
[800023013,"FLORIST GARDENS APTS                              ","MILWAUKEE                   ","WI","53209","RAYMOND GUNTER                                     ","raymond.p.gunter@hud.gov","312-913-8309","chi.incoming@hud.gov",{"$f":"HYPERLINK(\"mailto:\",Table_Front_desk_report.accdb[[#This Row],[inbox]])","v":"chi.incoming@hud.gov"}]
[800010914,"FONTAINE TOWERS                                   ","ROCHESTER                   ","MN","55904","MICHAEL P MORAN                                    ","MICHAEL.P.MORAN@HUD.GOV","612-370-3081","mn.incoming@hud.gov",{"$f":"HYPERLINK(\"mailto:\",Table_Front_desk_report.accdb[[#This Row],[inbox]])","v":"mn.incoming@hud.gov"}]
[800010915,"FORD HOUSE                                        ","MINNEAPOLIS                 ","MN","55407","NATASHA D GUENOVA                                  ","NATASHA.D.GUENOVA@hud.gov","612-370-3035","mn.incoming@hud.gov",{"$f":"HYPERLINK(\"mailto:\",Table_Front_desk_report.accdb[[#This Row],[inbox]])","v":"mn.incoming@hud.gov"}]
[800023016,"FORDEM CENTER TOWERS                              ","MADISON                     ","WI","53704","NINA M SMITH                                       ","nina.m.smith@hud.gov","312-913-8212","chi.incoming@hud.gov",{"$f":"HYPERLINK(\"mailto:\",Table_Front_desk_report.accdb[[#This Row],[inbox]])","v":"chi.incoming@hud.gov"}]
[800023017,"FOREST ACRES                                      ","HALES CORNERS               ","WI","53130","ARNOLD PEOPLES                                     ","arnold.peoples@hud.gov","312-913-8103","chi.incoming@hud.gov",{"$f":"HYPERLINK(\"mailto:\",Table_Front_desk_report.accdb[[#This Row],[inbox]])","v":"chi.incoming@hud.gov"}]
[800023018,"FOREST COURT                                      ","KENOSHA                     ","WI","53140","ALETHA BREWER                                      ","aletha.brewer@hud.gov ","312-913-8110","chi.incoming@hud.gov",{"$f":"HYPERLINK(\"mailto:\",Table_Front_desk_report.accdb[[#This Row],[inbox]])","v":"chi.incoming@hud.gov"}]
[800069642,"FOREST HEIGHTS APARTMENTS                         ","SAINT CROIX FALLS           ","WI","54024","ANDREA L CARSON                                    ","andrea.carson@hud.gov","414-935-6679","mn.incoming@hud.gov",{"$f":"HYPERLINK(\"mailto:\",Table_Front_desk_report.accdb[[#This Row],[inbox]])","v":"mn.incoming@hud.gov"}]
[800023019,"FOREST PARK APARTMENTS                            ","LA CROSSE                   ","WI","54601","ANDREA L CARSON                                    ","andrea.carson@hud.gov","414-935-6679","mn.incoming@hud.gov",{"$f":"HYPERLINK(\"mailto:\",Table_Front_desk_report.accdb[[#This Row],[inbox]])","v":"mn.incoming@hud.gov"}]
[800044160,"FOREST RIDGE APARTMENTS                           ","EAGAN                       ","MN","55123","CINDY BEHNKE                                       ","cynthia.behnke@hud.gov","612-370-3278","mn.incoming@hud.gov",{"$f":"HYPERLINK(\"mailto:\",Table_Front_desk_report.accdb[[#This Row],[inbox]])","v":"mn.incoming@hud.gov"}]
[800023020,"FOREST TOWERS                                     ","Shawano                     ","WI","54166","CATHERINE A TEMPLE                                 ","Catherine.A.Temple@hud.gov","414-935-6695","mn.incoming@hud.gov",{"$f":"HYPERLINK(\"mailto:\",Table_Front_desk_report.accdb[[#This Row],[inbox]])","v":"mn.incoming@hud.gov"}]
[800023021,"FOREST TOWERS-METRO                               ","MILWAUKEE                   ","WI","53224","JULIE M WHITEFEATHER                               ","julie.m.whitefeather@hud.gov","312-913-8117","chi.incoming@hud.gov",{"$f":"HYPERLINK(\"mailto:\",Table_Front_desk_report.accdb[[#This Row],[inbox]])","v":"chi.incoming@hud.gov"}]
[800023001,"FORT HOWARD APARTMENTS                            ","GREEN BAY                   ","WI","54303","PAUL A DUHR                                        ","paul.a.duhr@hud.gov","414-935-6681","mn.incoming@hud.gov",{"$f":"HYPERLINK(\"mailto:\",Table_Front_desk_report.accdb[[#This Row],[inbox]])","v":"mn.incoming@hud.gov"}]
[800010917,"FOUR SEASONS                                      ","CRYSTAL                     ","MN","55422","MITCHELL S HILLMAN                                 ","MITCHELL.S.HILLMAN@hud.gov","612-370-3036","mn.incoming@hud.gov",{"$f":"HYPERLINK(\"mailto:\",Table_Front_desk_report.accdb[[#This Row],[inbox]])","v":"mn.incoming@hud.gov"}]
[800242439,"Four Seasons Apartments                           ","Faribault                   ","MN","55021","NATASHA D GUENOVA                                  ","NATASHA.D.GUENOVA@hud.gov","612-370-3035","mn.incoming@hud.gov",{"$f":"HYPERLINK(\"mailto:\",Table_Front_desk_report.accdb[[#This Row],[inbox]])","v":"mn.incoming@hud.gov"}]
[800043926,"Fox Forest Townhomes                              ","PLYMOUTH                    ","MN","55441","TEENA M GEE                                        ","Teena.M.Gee@hud.gov","612-843-6414","mn.incoming@hud.gov",{"$f":"HYPERLINK(\"mailto:\",Table_Front_desk_report.accdb[[#This Row],[inbox]])","v":"mn.incoming@hud.gov"}]
[800010918,"FOX MEADOWS                                       ","PINE ISLAND                 ","MN","55963","TEENA M GEE                                        ","Teena.M.Gee@hud.gov","612-843-6414","mn.incoming@hud.gov",{"$f":"HYPERLINK(\"mailto:\",Table_Front_desk_report.accdb[[#This Row],[inbox]])","v":"mn.incoming@hud.gov"}]
[800023022,"FOX VIEW MANOR                                    ","OMRO                        ","WI","54963","MICHAEL D FURNNER                                  ","MICHAEL.D.FURNNER@hud.gov","414-935-6682","mn.incoming@hud.gov",{"$f":"HYPERLINK(\"mailto:\",Table_Front_desk_report.accdb[[#This Row],[inbox]])","v":"mn.incoming@hud.gov"}]
[800023293,"FOXBRIDGE APARTMENTS                              ","PRINCETON                   ","WI","54968","PAUL A DUHR                                        ","paul.a.duhr@hud.gov","414-935-6681","mn.incoming@hud.gov",{"$f":"HYPERLINK(\"mailto:\",Table_Front_desk_report.accdb[[#This Row],[inbox]])","v":"mn.incoming@hud.gov"}]
[800216762,"Franciscan Senior Housing                         ","SAINT PAUL                  ","MN","55116","TERESA C PARKER                                    ","TERESA.C.PARKER@hud.gov","612-370-3092","mn.incoming@hud.gov",{"$f":"HYPERLINK(\"mailto:\",Table_Front_desk_report.accdb[[#This Row],[inbox]])","v":"mn.incoming@hud.gov"}]
[800010919,"FRANKLIN LANE GOLDEN APARTMENTS                   ","ANOKA                       ","MN","55303","THOMAS G DURSCHER                                  ","Thomas.G.Durscher@hud.gov","612-370-3018","mn.incoming@hud.gov",{"$f":"HYPERLINK(\"mailto:\",Table_Front_desk_report.accdb[[#This Row],[inbox]])","v":"mn.incoming@hud.gov"}]
[800232278,"FRANKLIN MEADOWS                                  ","FRANKLIN                    ","WI","53132","RAYMOND GUNTER                                     ","raymond.p.gunter@hud.gov","312-913-8309","chi.incoming@hud.gov",{"$f":"HYPERLINK(\"mailto:\",Table_Front_desk_report.accdb[[#This Row],[inbox]])","v":"chi.incoming@hud.gov"}]
[800010920,"FRANKLYN PARK APARTMENTS                          ","North Saint Paul            ","MN","55109","SUSAN K ROSKOS                                     ","Susan.K.Roskos@hud.gov","612-370-3110","mn.incoming@hud.gov",{"$f":"HYPERLINK(\"mailto:\",Table_Front_desk_report.accdb[[#This Row],[inbox]])","v":"mn.incoming@hud.gov"}]
[800023023,"FRANMAR                                           ","HAYWARD                     ","WI","54843","LAWRANCE C MUNDT                                   ","LAWRENCE.C.MUNDT@hud.gov","612-370-3082","mn.incoming@hud.gov",{"$f":"HYPERLINK(\"mailto:\",Table_Front_desk_report.accdb[[#This Row],[inbox]])","v":"mn.incoming@hud.gov"}]
[800225917,"Fraser Hopkins Court                              ","Hopkins                     ","MN","55343","GREGORY T MERZ                                     ","GREGORY.T.MERZ@hud.gov","612-370-3077","mn.incoming@hud.gov",{"$f":"HYPERLINK(\"mailto:\",Table_Front_desk_report.accdb[[#This Row],[inbox]])","v":"mn.incoming@hud.gov"}]
[800010921,"FREEBORN MANOR                                    ","CANNON FALLS                ","MN","55009","BEN OSBORN                                         ","Benjamin.M.Osborn@hud.gov","612-370-3091","mn.incoming@hud.gov",{"$f":"HYPERLINK(\"mailto:\",Table_Front_desk_report.accdb[[#This Row],[inbox]])","v":"mn.incoming@hud.gov"}]
[800023409,"FUTURE WISCONSIN TAYLOR COUNTY                    ","GILMAN                      ","WI","54433","JOEL R KLEMM                                       ","JOEL.R.KLEMM@hud.gov","612-370-3053","mn.incoming@hud.gov",{"$f":"HYPERLINK(\"mailto:\",Table_Front_desk_report.accdb[[#This Row],[inbox]])","v":"mn.incoming@hud.gov"}]
[null,"G"]
[800010923,"GALWAY PLACE                                      ","COON RAPIDS                 ","MN","55433","TERRI A MUNSON                                     ","Terri.A.Munson@hud.gov","612-370-3086","mn.incoming@hud.gov",{"$f":"HYPERLINK(\"mailto:\",Table_Front_desk_report.accdb[[#This Row],[inbox]])","v":"mn.incoming@hud.gov"}]
[800010924,"GARDEN COURT APARTMENTS                           ","WINNEBAGO                   ","MN","56098","SUSAN K ROSKOS                                     ","Susan.K.Roskos@hud.gov","612-370-3110","mn.incoming@hud.gov",{"$f":"HYPERLINK(\"mailto:\",Table_Front_desk_report.accdb[[#This Row],[inbox]])","v":"mn.incoming@hud.gov"}]
[800023025,"GARDEN COURT/GRANT VILLAGE                        ","JANESVILLE                  ","WI","53545","DONNA M SHEEHAN                                    ","Donna.Sheehan@hud.gov"," 312-957-4781 ","chi.incoming@hud.gov",{"$f":"HYPERLINK(\"mailto:\",Table_Front_desk_report.accdb[[#This Row],[inbox]])","v":"chi.incoming@hud.gov"}]
[800211450,"GARDEN GROVE APARTMENTS                           ","MILWAUKEE                   ","WI","53224","DONNA M SHEEHAN                                    ","Donna.Sheehan@hud.gov"," 312-957-4781 ","chi.incoming@hud.gov",{"$f":"HYPERLINK(\"mailto:\",Table_Front_desk_report.accdb[[#This Row],[inbox]])","v":"chi.incoming@hud.gov"}]
[800010925,"GARDEN TERRACE APARTMENTS                         ","LITTLE CANADA               ","MN","55117","NATASHA D GUENOVA                                  ","NATASHA.D.GUENOVA@hud.gov","612-370-3035","mn.incoming@hud.gov",{"$f":"HYPERLINK(\"mailto:\",Table_Front_desk_report.accdb[[#This Row],[inbox]])","v":"mn.incoming@hud.gov"}]
[800215011,"GARDEN TERRACE COMMONS                            ","LITTLE CANADA               ","MN","55117","NATASHA D GUENOVA                                  ","NATASHA.D.GUENOVA@hud.gov","612-370-3035","mn.incoming@hud.gov",{"$f":"HYPERLINK(\"mailto:\",Table_Front_desk_report.accdb[[#This Row],[inbox]])","v":"mn.incoming@hud.gov"}]
[800022839,"GARDENVIEW APARTMENTS                             ","MILWAUKEE                   ","WI","53216","TERRI A MUNSON                                     ","Terri.A.Munson@hud.gov","612-370-3086","mn.incoming@hud.gov",{"$f":"HYPERLINK(\"mailto:\",Table_Front_desk_report.accdb[[#This Row],[inbox]])","v":"mn.incoming@hud.gov"}]
[800211256,"Garfield Commons                                  ","BLOOMINGTON                 ","MN","55420","THOMAS G DURSCHER                                  ","Thomas.G.Durscher@hud.gov","612-370-3018","mn.incoming@hud.gov",{"$f":"HYPERLINK(\"mailto:\",Table_Front_desk_report.accdb[[#This Row],[inbox]])","v":"mn.incoming@hud.gov"}]
[800023026,"GARFIELD GARDENS                                  ","MANITOWOC                   ","WI","54220","MICHAEL D FURNNER                                  ","MICHAEL.D.FURNNER@hud.gov","414-935-6682","mn.incoming@hud.gov",{"$f":"HYPERLINK(\"mailto:\",Table_Front_desk_report.accdb[[#This Row],[inbox]])","v":"mn.incoming@hud.gov"}]
[800242161,"Garton Toy Factory Apartment Homes                ","Sheboygan                   ","WI","53081","MICHAEL D FURNNER                                  ","MICHAEL.D.FURNNER@hud.gov","414-935-6682","mn.incoming@hud.gov",{"$f":"HYPERLINK(\"mailto:\",Table_Front_desk_report.accdb[[#This Row],[inbox]])","v":"mn.incoming@hud.gov"}]
[800234031,"Gateway Commons                                   ","Minneapolis                 ","MN","55403","CAROL DIXON                                        ","Carol.A.Dixon@hud.gov","612-370-3015","mn.incoming@hud.gov",{"$f":"HYPERLINK(\"mailto:\",Table_Front_desk_report.accdb[[#This Row],[inbox]])","v":"mn.incoming@hud.gov"}]
[800221141,"Gateway Village                                   ","Delano                      ","MN","55328","DARIAN JANE ZIEGLER                                ","Darian.Ziegler@hud.gov","612-370-3270","mn.incoming@hud.gov",{"$f":"HYPERLINK(\"mailto:\",Table_Front_desk_report.accdb[[#This Row],[inbox]])","v":"mn.incoming@hud.gov"}]
[800212147,"GATEWAY VILLAGE APARTMENTS                        ","NEW LONDON                  ","WI","54935","TERRI A MUNSON                                     ","Terri.A.Munson@hud.gov","612-370-3086","mn.incoming@hud.gov",{"$f":"HYPERLINK(\"mailto:\",Table_Front_desk_report.accdb[[#This Row],[inbox]])","v":"mn.incoming@hud.gov"}]
[800069633,"GENEVA HILLS APARTMENTS                           ","LAKE GENEVA                 ","WI","53147","ARNITA X SCOTT                                     ","arnita.scott@hud.gov","312-913-8574","chi.incoming@hud.gov",{"$f":"HYPERLINK(\"mailto:\",Table_Front_desk_report.accdb[[#This Row],[inbox]])","v":"chi.incoming@hud.gov"}]
[800010928,"GENTRY PLACE                                      ","OAKDALE                     ","MN","55128","THOMAS G DURSCHER                                  ","Thomas.G.Durscher@hud.gov","612-370-3018","mn.incoming@hud.gov",{"$f":"HYPERLINK(\"mailto:\",Table_Front_desk_report.accdb[[#This Row],[inbox]])","v":"mn.incoming@hud.gov"}]
[800023029,"GEORGETOWN HOUSE                                  ","ELROY                       ","WI","53929","PAUL A DUHR                                        ","paul.a.duhr@hud.gov","414-935-6681","mn.incoming@hud.gov",{"$f":"HYPERLINK(\"mailto:\",Table_Front_desk_report.accdb[[#This Row],[inbox]])","v":"mn.incoming@hud.gov"}]
[800010929,"GERMAIN TOWERS                                    ","Saint Cloud                 ","MN","56301","JOEL R KLEMM                                       ","JOEL.R.KLEMM@hud.gov","612-370-3053","mn.incoming@hud.gov",{"$f":"HYPERLINK(\"mailto:\",Table_Front_desk_report.accdb[[#This Row],[inbox]])","v":"mn.incoming@hud.gov"}]
[800023031,"GILEAD APARTMENTS                                 ","OSHKOSH                     ","WI","54901","PAUL A DUHR                                        ","paul.a.duhr@hud.gov","414-935-6681","mn.incoming@hud.gov",{"$f":"HYPERLINK(\"mailto:\",Table_Front_desk_report.accdb[[#This Row],[inbox]])","v":"mn.incoming@hud.gov"}]
[800069932,"GILEAD II                                         ","OSHKOSH                     ","WI","54902","PAUL A DUHR                                        ","paul.a.duhr@hud.gov","414-935-6681","mn.incoming@hud.gov",{"$f":"HYPERLINK(\"mailto:\",Table_Front_desk_report.accdb[[#This Row],[inbox]])","v":"mn.incoming@hud.gov"}]
[800112372,"GILEAD III, APARTMENTS                            ","OSHKOSH                     ","WI","54902","ANDREA L CARSON                                    ","andrea.carson@hud.gov","414-935-6679","mn.incoming@hud.gov",{"$f":"HYPERLINK(\"mailto:\",Table_Front_desk_report.accdb[[#This Row],[inbox]])","v":"mn.incoming@hud.gov"}]
[800079172,"GLEN COURTS APARTMENTS                            ","GLENDALE                    ","WI","53209","ELLIE L CHICOSKI                                   ","ellie.l.chicoski@hud.gov","312-913-8385","chi.incoming@hud.gov",{"$f":"HYPERLINK(\"mailto:\",Table_Front_desk_report.accdb[[#This Row],[inbox]])","v":"chi.incoming@hud.gov"}]
[800010931,"GLEN LAKE LANDING                                 ","MINNETONKA                  ","MN","55345","TERRI A MUNSON                                     ","Terri.A.Munson@hud.gov","612-370-3086","mn.incoming@hud.gov",{"$f":"HYPERLINK(\"mailto:\",Table_Front_desk_report.accdb[[#This Row],[inbox]])","v":"mn.incoming@hud.gov"}]
[800010932,"GLENVIEW APARTMENTS                               ","GLENWOOD                    ","MN","56334","MITCHELL S HILLMAN                                 ","MITCHELL.S.HILLMAN@hud.gov","612-370-3036","mn.incoming@hud.gov",{"$f":"HYPERLINK(\"mailto:\",Table_Front_desk_report.accdb[[#This Row],[inbox]])","v":"mn.incoming@hud.gov"}]
[800010933,"GLENWOOD MANOR                                    ","GLENWOOD                    ","MN","56334","NATASHA D GUENOVA                                  ","NATASHA.D.GUENOVA@hud.gov","612-370-3035","mn.incoming@hud.gov",{"$f":"HYPERLINK(\"mailto:\",Table_Front_desk_report.accdb[[#This Row],[inbox]])","v":"mn.incoming@hud.gov"}]
[800010766,"GLORIA DEI MANOR / Augustana Luth Hms             ","LITCHFIELD                  ","MN","55355","NATASHA D GUENOVA                                  ","NATASHA.D.GUENOVA@hud.gov","612-370-3035","mn.incoming@hud.gov",{"$f":"HYPERLINK(\"mailto:\",Table_Front_desk_report.accdb[[#This Row],[inbox]])","v":"mn.incoming@hud.gov"}]
[800010934,"GOELZ APARTMENTS III                              ","DANUBE                      ","MN","56230","TERESA C PARKER                                    ","TERESA.C.PARKER@hud.gov","612-370-3092","mn.incoming@hud.gov",{"$f":"HYPERLINK(\"mailto:\",Table_Front_desk_report.accdb[[#This Row],[inbox]])","v":"mn.incoming@hud.gov"}]
[800023036,"GOLDA MEIR HOUSE                                  ","MILWAUKEE                   ","WI","53202","ARUNA SHAH                                         ","aruna.shah@hud.gov","312-913-8588","chi.incoming@hud.gov",{"$f":"HYPERLINK(\"mailto:\",Table_Front_desk_report.accdb[[#This Row],[inbox]])","v":"chi.incoming@hud.gov"}]
[800079653,"GOLDEN ACRES                                      ","SOLDIERS GROVE              ","WI","54655","ANDREA L CARSON                                    ","andrea.carson@hud.gov","414-935-6679","mn.incoming@hud.gov",{"$f":"HYPERLINK(\"mailto:\",Table_Front_desk_report.accdb[[#This Row],[inbox]])","v":"mn.incoming@hud.gov"}]
[800023038,"GOLDEN ACRES II                                   ","ALTOONA                     ","WI","54720","LAWRANCE C MUNDT                                   ","LAWRENCE.C.MUNDT@hud.gov","612-370-3082","mn.incoming@hud.gov",{"$f":"HYPERLINK(\"mailto:\",Table_Front_desk_report.accdb[[#This Row],[inbox]])","v":"mn.incoming@hud.gov"}]
[800010935,"GOLDEN AGE ESTATES aka Whispering Pines           ","CALEDONIA                   ","MN","55921","SUSAN K ROSKOS                                     ","Susan.K.Roskos@hud.gov","612-370-3110","mn.incoming@hud.gov",{"$f":"HYPERLINK(\"mailto:\",Table_Front_desk_report.accdb[[#This Row],[inbox]])","v":"mn.incoming@hud.gov"}]
[800236139,"GOLDEN DOMES APARTMENTS                           ","Milwaukee                   ","WI","53204","MARCIA A KOLB                                      ","MARCIA.A.KOLB@hud.gov","612-370-3055","mn.incoming@hud.gov",{"$f":"HYPERLINK(\"mailto:\",Table_Front_desk_report.accdb[[#This Row],[inbox]])","v":"mn.incoming@hud.gov"}]
[800010936,"GOLDEN MEADOWS APTS.                              ","FARIBAULT                   ","MN","55021","TEENA M GEE                                        ","Teena.M.Gee@hud.gov","612-843-6414","mn.incoming@hud.gov",{"$f":"HYPERLINK(\"mailto:\",Table_Front_desk_report.accdb[[#This Row],[inbox]])","v":"mn.incoming@hud.gov"}]
[800010937,"GOLDEN VALLEY TOWNHOUSES                          ","GOLDEN VALLEY               ","MN","55422","TEENA M GEE                                        ","Teena.M.Gee@hud.gov","612-843-6414","mn.incoming@hud.gov",{"$f":"HYPERLINK(\"mailto:\",Table_Front_desk_report.accdb[[#This Row],[inbox]])","v":"mn.incoming@hud.gov"}]
[800010939,"GOLF VIEW APTS.                                   ","Cokato                      ","MN","55321","DARIAN JANE ZIEGLER                                ","Darian.Ziegler@hud.gov","612-370-3270","mn.incoming@hud.gov",{"$f":"HYPERLINK(\"mailto:\",Table_Front_desk_report.accdb[[#This Row],[inbox]])","v":"mn.incoming@hud.gov"}]
[800010940,"GONVICK RENTALS                                   ","GONVICK                     ","MN","56644","THOMAS G DURSCHER                                  ","Thomas.G.Durscher@hud.gov","612-370-3018","mn.incoming@hud.gov",{"$f":"HYPERLINK(\"mailto:\",Table_Front_desk_report.accdb[[#This Row],[inbox]])","v":"mn.incoming@hud.gov"}]
[800219745,"GONZAGA VILLAGE APARTMENTS                        ","West Allis                  ","WI","53214","LADRENNA A FIGUEROA                                ","ladrenna.a.figueroa@hud.gov","312-913-8290","chi.incoming@hud.gov",{"$f":"HYPERLINK(\"mailto:\",Table_Front_desk_report.accdb[[#This Row],[inbox]])","v":"chi.incoming@hud.gov"}]
[800010941,"GOOD SHEPHERD COMMUNITY APARTMENTS                ","Rushford                    ","MN","55971","GREGORY T MERZ                                     ","GREGORY.T.MERZ@hud.gov","612-370-3077","mn.incoming@hud.gov",{"$f":"HYPERLINK(\"mailto:\",Table_Front_desk_report.accdb[[#This Row],[inbox]])","v":"mn.incoming@hud.gov"}]
[800010942,"GOOD SHEPHERD HOMES                               ","SAUK RAPIDS                 ","MN","56379","LAWRANCE C MUNDT                                   ","LAWRENCE.C.MUNDT@hud.gov","612-370-3082","mn.incoming@hud.gov",{"$f":"HYPERLINK(\"mailto:\",Table_Front_desk_report.accdb[[#This Row],[inbox]])","v":"mn.incoming@hud.gov"}]
[800023039,"GOODMAN HOMES                                     ","GOODMAN                     ","WI","54125","ANDREA L CARSON                                    ","andrea.carson@hud.gov","414-935-6679","mn.incoming@hud.gov",{"$f":"HYPERLINK(\"mailto:\",Table_Front_desk_report.accdb[[#This Row],[inbox]])","v":"mn.incoming@hud.gov"}]
[800023040,"GRACE APARTMENTS                                  ","WISCONSIN RAPIDS            ","WI","54494","MICHAEL D FURNNER                                  ","MICHAEL.D.FURNNER@hud.gov","414-935-6682","mn.incoming@hud.gov",{"$f":"HYPERLINK(\"mailto:\",Table_Front_desk_report.accdb[[#This Row],[inbox]])","v":"mn.incoming@hud.gov"}]
[800023315,"GRACE APARTMENTS                                  ","Poysippi                    ","WI","54967","CATHERINE A TEMPLE                                 ","Catherine.A.Temple@hud.gov","414-935-6695","mn.incoming@hud.gov",{"$f":"HYPERLINK(\"mailto:\",Table_Front_desk_report.accdb[[#This Row],[inbox]])","v":"mn.incoming@hud.gov"}]
[800079700,"GRACE APARTMENTS                                  ","MAUSTON                     ","WI","53948","CATHERINE A TEMPLE                                 ","Catherine.A.Temple@hud.gov","414-935-6695","mn.incoming@hud.gov",{"$f":"HYPERLINK(\"mailto:\",Table_Front_desk_report.accdb[[#This Row],[inbox]])","v":"mn.incoming@hud.gov"}]
[800023041,"GRACE BARSTOW APARTMENTS                          ","EAU CLAIRE                  ","WI","54701","SUSAN K ROSKOS                                     ","Susan.K.Roskos@hud.gov","612-370-3110","mn.incoming@hud.gov",{"$f":"HYPERLINK(\"mailto:\",Table_Front_desk_report.accdb[[#This Row],[inbox]])","v":"mn.incoming@hud.gov"}]
[800023042,"GRACE PARKSIDE APT                                ","CHIPPEWA FALLS              ","WI","54729","ANDREA L CARSON                                    ","andrea.carson@hud.gov","414-935-6679","mn.incoming@hud.gov",{"$f":"HYPERLINK(\"mailto:\",Table_Front_desk_report.accdb[[#This Row],[inbox]])","v":"mn.incoming@hud.gov"}]
[800237516,"Grain Belt Terraces                               ","Minneapolis                 ","MN","55413","THOMAS G DURSCHER                                  ","Thomas.G.Durscher@hud.gov","612-370-3018","mn.incoming@hud.gov",{"$f":"HYPERLINK(\"mailto:\",Table_Front_desk_report.accdb[[#This Row],[inbox]])","v":"mn.incoming@hud.gov"}]
[800216787,"Gramercy Club at Greenhaven Drive                 ","Burnsville                  ","MN","55306","TEENA M GEE                                        ","Teena.M.Gee@hud.gov","612-843-6414","mn.incoming@hud.gov",{"$f":"HYPERLINK(\"mailto:\",Table_Front_desk_report.accdb[[#This Row],[inbox]])","v":"mn.incoming@hud.gov"}]
[800209711,"GRAMERCY PARK AT LAKE SHORE DR                    ","RICHFIELD                   ","MN","55423","MITCHELL S HILLMAN                                 ","MITCHELL.S.HILLMAN@hud.gov","612-370-3036","mn.incoming@hud.gov",{"$f":"HYPERLINK(\"mailto:\",Table_Front_desk_report.accdb[[#This Row],[inbox]])","v":"mn.incoming@hud.gov"}]
[800044200,"GRAMERCY PARK COOP (Inver Grove)                  ","INVER GROVE                 ","MN","55076","MITCHELL S HILLMAN                                 ","MITCHELL.S.HILLMAN@hud.gov","612-370-3036","mn.incoming@hud.gov",{"$f":"HYPERLINK(\"mailto:\",Table_Front_desk_report.accdb[[#This Row],[inbox]])","v":"mn.incoming@hud.gov"}]
[800044201,"GRAMERCY PARK COOP (Rochester)                    ","ROCHESTER                   ","MN","55901","TERRI A MUNSON                                     ","Terri.A.Munson@hud.gov","612-370-3086","mn.incoming@hud.gov",{"$f":"HYPERLINK(\"mailto:\",Table_Front_desk_report.accdb[[#This Row],[inbox]])","v":"mn.incoming@hud.gov"}]
[800209712,"GRAMERCY PARK CO-OP of DULUTH                     ","DULUTH                      ","MN","55811","SUSAN K ROSKOS                                     ","Susan.K.Roskos@hud.gov","612-370-3110","mn.incoming@hud.gov",{"$f":"HYPERLINK(\"mailto:\",Table_Front_desk_report.accdb[[#This Row],[inbox]])","v":"mn.incoming@hud.gov"}]
[800212460,"Gramercy Park Coop of Eagan                       ","EAGAN                       ","MN","55121","MICHAEL P MORAN                                    ","MICHAEL.P.MORAN@HUD.GOV","612-370-3081","mn.incoming@hud.gov",{"$f":"HYPERLINK(\"mailto:\",Table_Front_desk_report.accdb[[#This Row],[inbox]])","v":"mn.incoming@hud.gov"}]
[800214470,"Gramercy Park Coop of NW Plymouth                 ","PLYMOUTH                    ","MN","55442","TERESA C PARKER                                    ","TERESA.C.PARKER@hud.gov","612-370-3092","mn.incoming@hud.gov",{"$f":"HYPERLINK(\"mailto:\",Table_Front_desk_report.accdb[[#This Row],[inbox]])","v":"mn.incoming@hud.gov"}]
[800072458,"Gramercy Park Coop of Plymouth                    ","PLYMOUTH                    ","MN","55442","SUSAN K ROSKOS                                     ","Susan.K.Roskos@hud.gov","612-370-3110","mn.incoming@hud.gov",{"$f":"HYPERLINK(\"mailto:\",Table_Front_desk_report.accdb[[#This Row],[inbox]])","v":"mn.incoming@hud.gov"}]
[800210514,"Granada Briar Pond                                ","OAKDALE                     ","MN","55128","SHERRY K NORTON                                    ","Sherry.K.Norton@hud.gov","612-370-3087","mn.incoming@hud.gov",{"$f":"HYPERLINK(\"mailto:\",Table_Front_desk_report.accdb[[#This Row],[inbox]])","v":"mn.incoming@hud.gov"}]
[800232712,"Granada Lake Townhomes                            ","Oakdale                     ","MN","55128","LAWRANCE C MUNDT                                   ","LAWRENCE.C.MUNDT@hud.gov","612-370-3082","mn.incoming@hud.gov",{"$f":"HYPERLINK(\"mailto:\",Table_Front_desk_report.accdb[[#This Row],[inbox]])","v":"mn.incoming@hud.gov"}]
[800023043,"GRAND HAVEN APARTMENTS                            ","MILWAUKEE                   ","WI","53233","ARNITA X SCOTT                                     ","arnita.scott@hud.gov","312-913-8574","chi.incoming@hud.gov",{"$f":"HYPERLINK(\"mailto:\",Table_Front_desk_report.accdb[[#This Row],[inbox]])","v":"chi.incoming@hud.gov"}]
[800010944,"GRAND PRE BY THE PARK                             ","SAINT PAUL                  ","MN","55119","BEN OSBORN                                         ","Benjamin.M.Osborn@hud.gov","612-370-3091","mn.incoming@hud.gov",{"$f":"HYPERLINK(\"mailto:\",Table_Front_desk_report.accdb[[#This Row],[inbox]])","v":"mn.incoming@hud.gov"}]
[800217339,"Grande Market Apartments                          ","Burnsville                  ","MN","55337","JULIE A LASOTA                                     ","Julie.A.Lasota@hud.gov","612-370-3066","mn.incoming@hud.gov",{"$f":"HYPERLINK(\"mailto:\",Table_Front_desk_report.accdb[[#This Row],[inbox]])","v":"mn.incoming@hud.gov"}]
[800011114,"GRANDVIEW /Riverside Apts. /Mower Co              ","GRAND MEADOW                ","MN","55936","CAROL DIXON                                        ","Carol.A.Dixon@hud.gov","612-370-3015","mn.incoming@hud.gov",{"$f":"HYPERLINK(\"mailto:\",Table_Front_desk_report.accdb[[#This Row],[inbox]])","v":"mn.incoming@hud.gov"}]
[800237811,"Granite City Communities                          ","Saint Cloud                 ","MN","56303","DARIAN JANE ZIEGLER                                ","Darian.Ziegler@hud.gov","612-370-3270","mn.incoming@hud.gov",{"$f":"HYPERLINK(\"mailto:\",Table_Front_desk_report.accdb[[#This Row],[inbox]])","v":"mn.incoming@hud.gov"}]
[800237693,"Granite Cliffs Apartments                         ","Crystal                     ","MN","55422","MARCIA A KOLB                                      ","MARCIA.A.KOLB@hud.gov","612-370-3055","mn.incoming@hud.gov",{"$f":"HYPERLINK(\"mailto:\",Table_Front_desk_report.accdb[[#This Row],[inbox]])","v":"mn.incoming@hud.gov"}]
[800023045,"GRANT COUNTY HOUSING                              ","BOSCOBEL                    ","WI","53805","YOLANDA S MILLER                                   ","yolanda.s.miller@hud.gov","312-913-8580","chi.incoming@hud.gov",{"$f":"HYPERLINK(\"mailto:\",Table_Front_desk_report.accdb[[#This Row],[inbox]])","v":"chi.incoming@hud.gov"}]
[800023046,"GRANT PARK SQUARE                                 ","SOUTH MILWAUKEE             ","WI","53172","ELLIE L CHICOSKI                                   ","ellie.l.chicoski@hud.gov","312-913-8385","chi.incoming@hud.gov",{"$f":"HYPERLINK(\"mailto:\",Table_Front_desk_report.accdb[[#This Row],[inbox]])","v":"chi.incoming@hud.gov"}]
[800069929,"GRANVILLE APARTMENTS                              ","MILWAUKEE                   ","WI","53223","DARLETTA M BAUGH                                   ","darletta.m.baugh@hud.gov","312-913-8160","chi.incoming@hud.gov",{"$f":"HYPERLINK(\"mailto:\",Table_Front_desk_report.accdb[[#This Row],[inbox]])","v":"chi.incoming@hud.gov"}]
[800010922,"GRASSLANDS HOUSING INC.                           ","COON RAPIDS                 ","MN","55433","THOMAS G DURSCHER                                  ","Thomas.G.Durscher@hud.gov","612-370-3018","mn.incoming@hud.gov",{"$f":"HYPERLINK(\"mailto:\",Table_Front_desk_report.accdb[[#This Row],[inbox]])","v":"mn.incoming@hud.gov"}]
[800023047,"GREEK ORTHODOX MANOR                              ","WAUWATOSA                   ","WI","53225","LADRENNA A FIGUEROA                                ","ladrenna.a.figueroa@hud.gov","312-913-8290","chi.incoming@hud.gov",{"$f":"HYPERLINK(\"mailto:\",Table_Front_desk_report.accdb[[#This Row],[inbox]])","v":"chi.incoming@hud.gov"}]
[800023255,"GREEN BAY PROPERTIES                              ","GREEN BAY                   ","WI","54302","PAUL A DUHR                                        ","paul.a.duhr@hud.gov","414-935-6681","mn.incoming@hud.gov",{"$f":"HYPERLINK(\"mailto:\",Table_Front_desk_report.accdb[[#This Row],[inbox]])","v":"mn.incoming@hud.gov"}]
[800023049,"GREEN COURT APTS                                  ","MILWAUKEE                   ","WI","53209","DORTHY L HOPKINS                                   ","dorthy.l.hopkins@hud.gov","312-913-8172","chi.incoming@hud.gov",{"$f":"HYPERLINK(\"mailto:\",Table_Front_desk_report.accdb[[#This Row],[inbox]])","v":"chi.incoming@hud.gov"}]
[800213021,"GREEN FOREST RUN I                                ","Janesville                  ","WI","53546","LATOYA A WASHINGTON                                ","latoya.a.washington@hud.gov","312-913-8271","chi.incoming@hud.gov",{"$f":"HYPERLINK(\"mailto:\",Table_Front_desk_report.accdb[[#This Row],[inbox]])","v":"chi.incoming@hud.gov"}]
[800215337,"GREEN FOREST RUN II                               ","Janesville                  ","WI","53546","LATOYA A WASHINGTON                                ","latoya.a.washington@hud.gov","312-913-8271","chi.incoming@hud.gov",{"$f":"HYPERLINK(\"mailto:\",Table_Front_desk_report.accdb[[#This Row],[inbox]])","v":"chi.incoming@hud.gov"}]
[800234984,"GREEN MEADOWS VILLAGE                             ","Green Bay                   ","WI","54302","MICHAEL D FURNNER                                  ","MICHAEL.D.FURNNER@hud.gov","414-935-6682","mn.incoming@hud.gov",{"$f":"HYPERLINK(\"mailto:\",Table_Front_desk_report.accdb[[#This Row],[inbox]])","v":"mn.incoming@hud.gov"}]
[800023052,"GREEN VALLEY ESTATES                              ","WHITEWATER                  ","WI","53190","JULIE M WHITEFEATHER                               ","julie.m.whitefeather@hud.gov","312-913-8117","chi.incoming@hud.gov",{"$f":"HYPERLINK(\"mailto:\",Table_Front_desk_report.accdb[[#This Row],[inbox]])","v":"chi.incoming@hud.gov"}]
[800023178,"GREENBRIER VILLAGE                                ","MENOMONEE FALLS             ","WI","53051","NINA M SMITH                                       ","nina.m.smith@hud.gov","312-913-8212","chi.incoming@hud.gov",{"$f":"HYPERLINK(\"mailto:\",Table_Front_desk_report.accdb[[#This Row],[inbox]])","v":"chi.incoming@hud.gov"}]
[800069471,"GREENBROOK APARTMENTS                             ","GREENFIELD                  ","WI","53220","MARLENE X TRIMUEL                                  ","Marlene.Trimuel@hud.gov","312-913-8369","chi.incoming@hud.gov",{"$f":"HYPERLINK(\"mailto:\",Table_Front_desk_report.accdb[[#This Row],[inbox]])","v":"chi.incoming@hud.gov"}]
[800023054,"Greenbrook Elderly Phase II                       ","GREENFIELD                  ","WI","53220","MARLENE X TRIMUEL                                  ","Marlene.Trimuel@hud.gov","312-913-8369","chi.incoming@hud.gov",{"$f":"HYPERLINK(\"mailto:\",Table_Front_desk_report.accdb[[#This Row],[inbox]])","v":"chi.incoming@hud.gov"}]
[800023056,"GREENSPIRE I                                      ","STOUGHTON                   ","WI","53589","GLORY J MCDONALD                                   ","glory.j.mcdonald@hud.gov","312-913-8126","chi.incoming@hud.gov",{"$f":"HYPERLINK(\"mailto:\",Table_Front_desk_report.accdb[[#This Row],[inbox]])","v":"chi.incoming@hud.gov"}]
[800023057,"GREENSPIRE II                                     ","STOUGHTON                   ","WI","53589","GLORY J MCDONALD                                   ","glory.j.mcdonald@hud.gov","312-913-8126","chi.incoming@hud.gov",{"$f":"HYPERLINK(\"mailto:\",Table_Front_desk_report.accdb[[#This Row],[inbox]])","v":"chi.incoming@hud.gov"}]
[800210727,"GREENTREE GLEN APARTMENTS                         ","Madison                     ","WI","53711","DEBORAH E MONROE                                   ","deborah.e.monroe@hud.gov","312-913-8210","chi.incoming@hud.gov",{"$f":"HYPERLINK(\"mailto:\",Table_Front_desk_report.accdb[[#This Row],[inbox]])","v":"chi.incoming@hud.gov"}]
[800010945,"GREENVALE PLACE                                   ","NORTHFIELD                  ","MN","55057","THOMAS G DURSCHER                                  ","Thomas.G.Durscher@hud.gov","612-370-3018","mn.incoming@hud.gov",{"$f":"HYPERLINK(\"mailto:\",Table_Front_desk_report.accdb[[#This Row],[inbox]])","v":"mn.incoming@hud.gov"}]
[800023058,"GREENVIEW                                         ","RANDOLPH                    ","WI","53956","ANDREA L CARSON                                    ","andrea.carson@hud.gov","414-935-6679","mn.incoming@hud.gov",{"$f":"HYPERLINK(\"mailto:\",Table_Front_desk_report.accdb[[#This Row],[inbox]])","v":"mn.incoming@hud.gov"}]
[800010946,"GREENWOOD APARTMENTS                              ","WADENA                      ","MN","56482","MITCHELL S HILLMAN                                 ","MITCHELL.S.HILLMAN@hud.gov","612-370-3036","mn.incoming@hud.gov",{"$f":"HYPERLINK(\"mailto:\",Table_Front_desk_report.accdb[[#This Row],[inbox]])","v":"mn.incoming@hud.gov"}]
[800023059,"GREENWOOD MANOR                                   ","LADYSMITH                   ","WI","54848","PAUL A DUHR                                        ","paul.a.duhr@hud.gov","414-935-6681","mn.incoming@hud.gov",{"$f":"HYPERLINK(\"mailto:\",Table_Front_desk_report.accdb[[#This Row],[inbox]])","v":"mn.incoming@hud.gov"}]
[800010947,"GREENWOOD PLACE                                   ","FARIBAULT                   ","MN","55021","JOEL R KLEMM                                       ","JOEL.R.KLEMM@hud.gov","612-370-3053","mn.incoming@hud.gov",{"$f":"HYPERLINK(\"mailto:\",Table_Front_desk_report.accdb[[#This Row],[inbox]])","v":"mn.incoming@hud.gov"}]
[800011343,"GREY EAGLE HOUSING ASSOC.                         ","GREY EAGLE                  ","MN","56336","GREGORY T MERZ                                     ","GREGORY.T.MERZ@hud.gov","612-370-3077","mn.incoming@hud.gov",{"$f":"HYPERLINK(\"mailto:\",Table_Front_desk_report.accdb[[#This Row],[inbox]])","v":"mn.incoming@hud.gov"}]
[800010948,"GREYSOLON PLAZA                                   ","DULUTH                      ","MN","55802","DARIAN JANE ZIEGLER                                ","Darian.Ziegler@hud.gov","612-370-3270","mn.incoming@hud.gov",{"$f":"HYPERLINK(\"mailto:\",Table_Front_desk_report.accdb[[#This Row],[inbox]])","v":"mn.incoming@hud.gov"}]
[800010949,"GROVE APARTMENTS                                  ","WALNUT GROVE                ","MN","56180","THOMAS G DURSCHER                                  ","Thomas.G.Durscher@hud.gov","612-370-3018","mn.incoming@hud.gov",{"$f":"HYPERLINK(\"mailto:\",Table_Front_desk_report.accdb[[#This Row],[inbox]])","v":"mn.incoming@hud.gov"}]
[800010950,"GROVELAND ESTATES / Edgewood Townhomes            ","LITCHFIELD                  ","MN","55355","SUSAN K ROSKOS                                     ","Susan.K.Roskos@hud.gov","612-370-3110","mn.incoming@hud.gov",{"$f":"HYPERLINK(\"mailto:\",Table_Front_desk_report.accdb[[#This Row],[inbox]])","v":"mn.incoming@hud.gov"}]
[800010951,"Guardian Oaks, Pine Tree, Woodbriar               ","ELK RIVER                   ","MN","55330","CAROL DIXON                                        ","Carol.A.Dixon@hud.gov","612-370-3015","mn.incoming@hud.gov",{"$f":"HYPERLINK(\"mailto:\",Table_Front_desk_report.accdb[[#This Row],[inbox]])","v":"mn.incoming@hud.gov"}]
[800010953,"GUS JOHNSON PLAZA                                 ","MANKATO                     ","MN","56001","GREGORY T MERZ                                     ","GREGORY.T.MERZ@hud.gov","612-370-3077","mn.incoming@hud.gov",{"$f":"HYPERLINK(\"mailto:\",Table_Front_desk_report.accdb[[#This Row],[inbox]])","v":"mn.incoming@hud.gov"}]
[null,"H"]
[800023060,"HADLEY TERRACE                                    ","MILWAUKEE                   ","WI","53210","LADRENNA A FIGUEROA                                ","ladrenna.a.figueroa@hud.gov","312-913-8290","chi.incoming@hud.gov",{"$f":"HYPERLINK(\"mailto:\",Table_Front_desk_report.accdb[[#This Row],[inbox]])","v":"chi.incoming@hud.gov"}]
[800010954,"HALLOCK HOMES, INC.                               ","HALLOCK                     ","MN","56728","CINDY BEHNKE                                       ","cynthia.behnke@hud.gov","612-370-3278","mn.incoming@hud.gov",{"$f":"HYPERLINK(\"mailto:\",Table_Front_desk_report.accdb[[#This Row],[inbox]])","v":"mn.incoming@hud.gov"}]
[800010955,"HALTER MANOR 1                                    ","ROUND LAKE                  ","MN","56167","BEN OSBORN                                         ","Benjamin.M.Osborn@hud.gov","612-370-3091","mn.incoming@hud.gov",{"$f":"HYPERLINK(\"mailto:\",Table_Front_desk_report.accdb[[#This Row],[inbox]])","v":"mn.incoming@hud.gov"}]
[800023062,"HAMILTON TERRACE                                  ","JANESVILLE                  ","WI","53545","MARLENE X TRIMUEL                                  ","Marlene.Trimuel@hud.gov","312-913-8369","chi.incoming@hud.gov",{"$f":"HYPERLINK(\"mailto:\",Table_Front_desk_report.accdb[[#This Row],[inbox]])","v":"chi.incoming@hud.gov"}]
[800240078,"Hamline Station                                   ","Saint Paul                  ","MN","55104","DARIAN JANE ZIEGLER                                ","Darian.Ziegler@hud.gov","612-370-3270","mn.incoming@hud.gov",{"$f":"HYPERLINK(\"mailto:\",Table_Front_desk_report.accdb[[#This Row],[inbox]])","v":"mn.incoming@hud.gov"}]
[800023063,"HAMPTON HOUSE                                     ","MILWAUKEE                   ","WI","53225","ARNITA X SCOTT                                     ","arnita.scott@hud.gov","312-913-8574","chi.incoming@hud.gov",{"$f":"HYPERLINK(\"mailto:\",Table_Front_desk_report.accdb[[#This Row],[inbox]])","v":"chi.incoming@hud.gov"}]
[800023064,"HAMPTON REGENCY                                   ","BUTLER                      ","WI","53007","VERONICA S SIMS                                    ","veronica.s.sims@hud.gov","312-913-8066","chi.incoming@hud.gov",{"$f":"HYPERLINK(\"mailto:\",Table_Front_desk_report.accdb[[#This Row],[inbox]])","v":"chi.incoming@hud.gov"}]
[800011324,"HANDICAPPED HSG. OF SPRING GROVE                  ","SPRING GROVE                ","MN","55974","SHERRY K NORTON                                    ","Sherry.K.Norton@hud.gov","612-370-3087","mn.incoming@hud.gov",{"$f":"HYPERLINK(\"mailto:\",Table_Front_desk_report.accdb[[#This Row],[inbox]])","v":"mn.incoming@hud.gov"}]
[800010957,"HANOVER TOWNHOMES                                 ","SAINT PAUL                  ","MN","55103","THOMAS G DURSCHER                                  ","Thomas.G.Durscher@hud.gov","612-370-3018","mn.incoming@hud.gov",{"$f":"HYPERLINK(\"mailto:\",Table_Front_desk_report.accdb[[#This Row],[inbox]])","v":"mn.incoming@hud.gov"}]
[800023066,"HARBOR HEIGHTS APARTMENTS                         ","MANITOWOC                   ","WI","54220","ANDREA L CARSON                                    ","andrea.carson@hud.gov","414-935-6679","mn.incoming@hud.gov",{"$f":"HYPERLINK(\"mailto:\",Table_Front_desk_report.accdb[[#This Row],[inbox]])","v":"mn.incoming@hud.gov"}]
[800235763,"HARBOR HOUSE MOVIN' OUT                           ","Madison                     ","WI","53715","DONNA M SHEEHAN                                    ","Donna.Sheehan@hud.gov"," 312-957-4781 ","chi.incoming@hud.gov",{"$f":"HYPERLINK(\"mailto:\",Table_Front_desk_report.accdb[[#This Row],[inbox]])","v":"chi.incoming@hud.gov"}]
[800010958,"HARBOR POINT                                      ","TWO HARBORS                 ","MN","55616","DARIAN JANE ZIEGLER                                ","Darian.Ziegler@hud.gov","612-370-3270","mn.incoming@hud.gov",{"$f":"HYPERLINK(\"mailto:\",Table_Front_desk_report.accdb[[#This Row],[inbox]])","v":"mn.incoming@hud.gov"}]
[800010959,"HARBOR VIEW                                       ","GRAND MARAIS                ","MN","55604","SUSAN K ROSKOS                                     ","Susan.K.Roskos@hud.gov","612-370-3110","mn.incoming@hud.gov",{"$f":"HYPERLINK(\"mailto:\",Table_Front_desk_report.accdb[[#This Row],[inbox]])","v":"mn.incoming@hud.gov"}]
[800232853,"HARBORSIDE COMMONS                                ","Kenosha                     ","WI","53140","DONNA M SHEEHAN                                    ","Donna.Sheehan@hud.gov"," 312-957-4781 ","chi.incoming@hud.gov",{"$f":"HYPERLINK(\"mailto:\",Table_Front_desk_report.accdb[[#This Row],[inbox]])","v":"chi.incoming@hud.gov"}]
[800010960,"HARMONY MANOR                                     ","HARMONY                     ","MN","55939","MITCHELL S HILLMAN                                 ","MITCHELL.S.HILLMAN@hud.gov","612-370-3036","mn.incoming@hud.gov",{"$f":"HYPERLINK(\"mailto:\",Table_Front_desk_report.accdb[[#This Row],[inbox]])","v":"mn.incoming@hud.gov"}]
[800023067,"HARRIS COURT                                      ","WAUPUN                      ","WI","53963","MICHAEL D FURNNER                                  ","MICHAEL.D.FURNNER@hud.gov","414-935-6682","mn.incoming@hud.gov",{"$f":"HYPERLINK(\"mailto:\",Table_Front_desk_report.accdb[[#This Row],[inbox]])","v":"mn.incoming@hud.gov"}]
[800069639,"HARRY & VELMA HAMILTON VILLA                      ","WAUSAU                      ","WI","54401","JULIE A LASOTA                                     ","Julie.A.Lasota@hud.gov","612-370-3066","mn.incoming@hud.gov",{"$f":"HYPERLINK(\"mailto:\",Table_Front_desk_report.accdb[[#This Row],[inbox]])","v":"mn.incoming@hud.gov"}]
[800023069,"HARTHAVEN                                         ","HARTFORD                    ","WI","53027","MICHAEL D FURNNER                                  ","MICHAEL.D.FURNNER@hud.gov","414-935-6682","mn.incoming@hud.gov",{"$f":"HYPERLINK(\"mailto:\",Table_Front_desk_report.accdb[[#This Row],[inbox]])","v":"mn.incoming@hud.gov"}]
[800010962,"HARTSHORN MANOR                                   ","MADELIA                     ","MN","56062","MARCIA A KOLB                                      ","MARCIA.A.KOLB@hud.gov","612-370-3055","mn.incoming@hud.gov",{"$f":"HYPERLINK(\"mailto:\",Table_Front_desk_report.accdb[[#This Row],[inbox]])","v":"mn.incoming@hud.gov"}]
[800222236,"Harvest Ridge Townhomes                           ","Plainview                   ","MN","55964","DARIAN JANE ZIEGLER                                ","Darian.Ziegler@hud.gov","612-370-3270","mn.incoming@hud.gov",{"$f":"HYPERLINK(\"mailto:\",Table_Front_desk_report.accdb[[#This Row],[inbox]])","v":"mn.incoming@hud.gov"}]
[800233267,"HAWK'S RIDGE APARTMENTS                           ","Beloit                      ","WI","53511","MARLENE X TRIMUEL                                  ","Marlene.Trimuel@hud.gov","312-913-8369","chi.incoming@hud.gov",{"$f":"HYPERLINK(\"mailto:\",Table_Front_desk_report.accdb[[#This Row],[inbox]])","v":"chi.incoming@hud.gov"}]
[800242793,"Hawthorne EcoVillage                              ","Minneapolis                 ","MN","55411","ANDREA L CARSON                                    ","andrea.carson@hud.gov","414-935-6679","mn.incoming@hud.gov",{"$f":"HYPERLINK(\"mailto:\",Table_Front_desk_report.accdb[[#This Row],[inbox]])","v":"mn.incoming@hud.gov"}]
[800022873,"HAWTHORNE WOODS APARTMENTS                        ","PLYMOUTH                    ","WI","53073","PAUL A DUHR                                        ","paul.a.duhr@hud.gov","414-935-6681","mn.incoming@hud.gov",{"$f":"HYPERLINK(\"mailto:\",Table_Front_desk_report.accdb[[#This Row],[inbox]])","v":"mn.incoming@hud.gov"}]
[800011377,"HAYDEN LAKE APTS aka The Wiggins                  ","CHAMPLIN                    ","MN","55316","THOMAS G DURSCHER                                  ","Thomas.G.Durscher@hud.gov","612-370-3018","mn.incoming@hud.gov",{"$f":"HYPERLINK(\"mailto:\",Table_Front_desk_report.accdb[[#This Row],[inbox]])","v":"mn.incoming@hud.gov"}]
[800010963,"HAYFIELD SENIOR HOUSING                           ","HAYFIELD                    ","MN","55940","SHERRY K NORTON                                    ","Sherry.K.Norton@hud.gov","612-370-3087","mn.incoming@hud.gov",{"$f":"HYPERLINK(\"mailto:\",Table_Front_desk_report.accdb[[#This Row],[inbox]])","v":"mn.incoming@hud.gov"}]
[800010988,"HCO INVESTMENTS, INC.                             ","LEWISTON                    ","MN","55952","NATASHA D GUENOVA                                  ","NATASHA.D.GUENOVA@hud.gov","612-370-3035","mn.incoming@hud.gov",{"$f":"HYPERLINK(\"mailto:\",Table_Front_desk_report.accdb[[#This Row],[inbox]])","v":"mn.incoming@hud.gov"}]
[800023203,"HEARTHSIDE APARTMENTS                             ","NEENAH                      ","WI","54956","MICHAEL D FURNNER                                  ","MICHAEL.D.FURNNER@hud.gov","414-935-6682","mn.incoming@hud.gov",{"$f":"HYPERLINK(\"mailto:\",Table_Front_desk_report.accdb[[#This Row],[inbox]])","v":"mn.incoming@hud.gov"}]
[800236033,"Hearthstone Apartments                            ","Apple Valley                ","MN","55124","JOEL R KLEMM                                       ","JOEL.R.KLEMM@hud.gov","612-370-3053","mn.incoming@hud.gov",{"$f":"HYPERLINK(\"mailto:\",Table_Front_desk_report.accdb[[#This Row],[inbox]])","v":"mn.incoming@hud.gov"}]
[800010965,"HEARTLAND APARTMENTS                              ","PINE RIVER                  ","MN","56474","MITCHELL S HILLMAN                                 ","MITCHELL.S.HILLMAN@hud.gov","612-370-3036","mn.incoming@hud.gov",{"$f":"HYPERLINK(\"mailto:\",Table_Front_desk_report.accdb[[#This Row],[inbox]])","v":"mn.incoming@hud.gov"}]
[800010966,"HEATHER CREEK APARTMENTS                          ","CHISAGO CITY                ","MN","55013","TERRI A MUNSON                                     ","Terri.A.Munson@hud.gov","612-370-3086","mn.incoming@hud.gov",{"$f":"HYPERLINK(\"mailto:\",Table_Front_desk_report.accdb[[#This Row],[inbox]])","v":"mn.incoming@hud.gov"}]
[800235759,"HEBRON HOUSE OF HOSPITALITY                       ","Waukesha                    ","WI","53188","DORTHY L HOPKINS                                   ","dorthy.l.hopkins@hud.gov","312-913-8172","chi.incoming@hud.gov",{"$f":"HYPERLINK(\"mailto:\",Table_Front_desk_report.accdb[[#This Row],[inbox]])","v":"chi.incoming@hud.gov"}]
[800023070,"HEDWIG HOUSE APARTMENTS                           ","MILWAUKEE                   ","WI","53202","LADRENNA A FIGUEROA                                ","ladrenna.a.figueroa@hud.gov","312-913-8290","chi.incoming@hud.gov",{"$f":"HYPERLINK(\"mailto:\",Table_Front_desk_report.accdb[[#This Row],[inbox]])","v":"chi.incoming@hud.gov"}]
[800023071,"HEIDI APARTMENTS                                  ","EDGAR                       ","WI","54426","CATHERINE A TEMPLE                                 ","Catherine.A.Temple@hud.gov","414-935-6695","mn.incoming@hud.gov",{"$f":"HYPERLINK(\"mailto:\",Table_Front_desk_report.accdb[[#This Row],[inbox]])","v":"mn.incoming@hud.gov"}]
[800010967,"HEIGHTS MANOR                                     ","COLUMBIA HEIGHTS            ","MN","55421","MITCHELL S HILLMAN                                 ","MITCHELL.S.HILLMAN@hud.gov","612-370-3036","mn.incoming@hud.gov",{"$f":"HYPERLINK(\"mailto:\",Table_Front_desk_report.accdb[[#This Row],[inbox]])","v":"mn.incoming@hud.gov"}]
[800225890,"HEIRLOOM COURT APARTMENTS                         ","Hudson                      ","WI","54016","JOEL R KLEMM                                       ","JOEL.R.KLEMM@hud.gov","612-370-3053","mn.incoming@hud.gov",{"$f":"HYPERLINK(\"mailto:\",Table_Front_desk_report.accdb[[#This Row],[inbox]])","v":"mn.incoming@hud.gov"}]
[800010969,"HENRY HILL APARTMENTS                             ","GRANITE FALLS               ","MN","56241","GREGORY T MERZ                                     ","GREGORY.T.MERZ@hud.gov","612-370-3077","mn.incoming@hud.gov",{"$f":"HYPERLINK(\"mailto:\",Table_Front_desk_report.accdb[[#This Row],[inbox]])","v":"mn.incoming@hud.gov"}]
[800010868,"HERITAGE APTS                                     ","DULUTH                      ","MN","55808","SUSAN K ROSKOS                                     ","Susan.K.Roskos@hud.gov","612-370-3110","mn.incoming@hud.gov",{"$f":"HYPERLINK(\"mailto:\",Table_Front_desk_report.accdb[[#This Row],[inbox]])","v":"mn.incoming@hud.gov"}]
[800240244,"Heritage Hills Apartments                         ","Bloomington                 ","MN","55437","MITCHELL S HILLMAN                                 ","MITCHELL.S.HILLMAN@hud.gov","612-370-3036","mn.incoming@hud.gov",{"$f":"HYPERLINK(\"mailto:\",Table_Front_desk_report.accdb[[#This Row],[inbox]])","v":"mn.incoming@hud.gov"}]
[800023074,"HERITAGE HOUSE                                    ","WEST ALLIS                  ","WI","53227","JULIE M WHITEFEATHER                               ","julie.m.whitefeather@hud.gov","312-913-8117","chi.incoming@hud.gov",{"$f":"HYPERLINK(\"mailto:\",Table_Front_desk_report.accdb[[#This Row],[inbox]])","v":"chi.incoming@hud.gov"}]
[800010970,"HERITAGE HOUSE                                    ","SAINT PAUL                  ","MN","55101","SHERRY K NORTON                                    ","Sherry.K.Norton@hud.gov","612-370-3087","mn.incoming@hud.gov",{"$f":"HYPERLINK(\"mailto:\",Table_Front_desk_report.accdb[[#This Row],[inbox]])","v":"mn.incoming@hud.gov"}]
[800209716,"HERITAGE LANDING                                  ","MINNEAPOLIS                 ","MN","55401","JOEL R KLEMM                                       ","JOEL.R.KLEMM@hud.gov","612-370-3053","mn.incoming@hud.gov",{"$f":"HYPERLINK(\"mailto:\",Table_Front_desk_report.accdb[[#This Row],[inbox]])","v":"mn.incoming@hud.gov"}]
[800072530,"HERITAGE MANOR -- (New York Mills, MN)            ","NEW YORK MILLS              ","MN","56567","TERRI A MUNSON                                     ","Terri.A.Munson@hud.gov","612-370-3086","mn.incoming@hud.gov",{"$f":"HYPERLINK(\"mailto:\",Table_Front_desk_report.accdb[[#This Row],[inbox]])","v":"mn.incoming@hud.gov"}]
[800219815,"Heritage Park II (Near North)                     ","Minneapolis                 ","MN","55411","JULIE A LASOTA                                     ","Julie.A.Lasota@hud.gov","612-370-3066","mn.incoming@hud.gov",{"$f":"HYPERLINK(\"mailto:\",Table_Front_desk_report.accdb[[#This Row],[inbox]])","v":"mn.incoming@hud.gov"}]
[800221014,"Heritage Park III                                 ","Minneapolis                 ","MN","55405","JULIE A LASOTA                                     ","Julie.A.Lasota@hud.gov","612-370-3066","mn.incoming@hud.gov",{"$f":"HYPERLINK(\"mailto:\",Table_Front_desk_report.accdb[[#This Row],[inbox]])","v":"mn.incoming@hud.gov"}]
[800010971,"HERITAGE PRAIRIE APTS.                            ","WABASSO                     ","MN","56293","CINDY BEHNKE                                       ","cynthia.behnke@hud.gov","612-370-3278","mn.incoming@hud.gov",{"$f":"HYPERLINK(\"mailto:\",Table_Front_desk_report.accdb[[#This Row],[inbox]])","v":"mn.incoming@hud.gov"}]
[800023075,"HEUERS HARBOUR APARTMENTS                         ","WEYERHAUESER                ","WI","54895","MARCIA A KOLB                                      ","MARCIA.A.KOLB@hud.gov","612-370-3055","mn.incoming@hud.gov",{"$f":"HYPERLINK(\"mailto:\",Table_Front_desk_report.accdb[[#This Row],[inbox]])","v":"mn.incoming@hud.gov"}]
[800222491,"Hiawatha Commons                                  ","Minneapolis                 ","MN","55406","DARIAN JANE ZIEGLER                                ","Darian.Ziegler@hud.gov","612-370-3270","mn.incoming@hud.gov",{"$f":"HYPERLINK(\"mailto:\",Table_Front_desk_report.accdb[[#This Row],[inbox]])","v":"mn.incoming@hud.gov"}]
[800072693,"HICKORY HAVEN aka Supportive Hsing                ","BIRD ISLAND                 ","MN","55310","JULIE A LASOTA                                     ","Julie.A.Lasota@hud.gov","612-370-3066","mn.incoming@hud.gov",{"$f":"HYPERLINK(\"mailto:\",Table_Front_desk_report.accdb[[#This Row],[inbox]])","v":"mn.incoming@hud.gov"}]
[800072702,"HICKORY HAVEN, INC.                               ","OLIVIA                      ","MN","56277","JULIE A LASOTA                                     ","Julie.A.Lasota@hud.gov","612-370-3066","mn.incoming@hud.gov",{"$f":"HYPERLINK(\"mailto:\",Table_Front_desk_report.accdb[[#This Row],[inbox]])","v":"mn.incoming@hud.gov"}]
[800010972,"HICKORY RIDGE                                     ","MAPLE GROVE                 ","MN","55369","THOMAS G DURSCHER                                  ","Thomas.G.Durscher@hud.gov","612-370-3018","mn.incoming@hud.gov",{"$f":"HYPERLINK(\"mailto:\",Table_Front_desk_report.accdb[[#This Row],[inbox]])","v":"mn.incoming@hud.gov"}]
[800023077,"HICKORY VIEW COMMONS                              ","OCONOMOWOC                  ","WI","53066","SYLVIA HYDE                                        ","sylvia.hyde@hud.gov","312-913-8573","chi.incoming@hud.gov",{"$f":"HYPERLINK(\"mailto:\",Table_Front_desk_report.accdb[[#This Row],[inbox]])","v":"chi.incoming@hud.gov"}]
[800238523,"Hidden Ponds                                      ","Apple Valley                ","MN","55124","CAROL DIXON                                        ","Carol.A.Dixon@hud.gov","612-370-3015","mn.incoming@hud.gov",{"$f":"HYPERLINK(\"mailto:\",Table_Front_desk_report.accdb[[#This Row],[inbox]])","v":"mn.incoming@hud.gov"}]
[800237728,"HIGH GROVE AT WOODLAND RIDGE                      ","Greenfield                  ","WI","53228","DEBORAH E MONROE                                   ","deborah.e.monroe@hud.gov","312-913-8210","chi.incoming@hud.gov",{"$f":"HYPERLINK(\"mailto:\",Table_Front_desk_report.accdb[[#This Row],[inbox]])","v":"chi.incoming@hud.gov"}]
[800112191,"HIGH POINTE aka Rochester VOA Eld Hsing           ","ROCHESTER                   ","MN","55901","SHERRY K NORTON                                    ","Sherry.K.Norton@hud.gov","612-370-3087","mn.incoming@hud.gov",{"$f":"HYPERLINK(\"mailto:\",Table_Front_desk_report.accdb[[#This Row],[inbox]])","v":"mn.incoming@hud.gov"}]
[800214869,"High Pointe II Apartments                         ","ROCHESTER                   ","MN","55901","SHERRY K NORTON                                    ","Sherry.K.Norton@hud.gov","612-370-3087","mn.incoming@hud.gov",{"$f":"HYPERLINK(\"mailto:\",Table_Front_desk_report.accdb[[#This Row],[inbox]])","v":"mn.incoming@hud.gov"}]
[800023078,"HIGH RIDGE MANOR                                  ","NEW BERLIN                  ","WI","53151","ARNITA X SCOTT                                     ","arnita.scott@hud.gov","312-913-8574","chi.incoming@hud.gov",{"$f":"HYPERLINK(\"mailto:\",Table_Front_desk_report.accdb[[#This Row],[inbox]])","v":"chi.incoming@hud.gov"}]
[800079685,"HIGHLAND APARTMENTS                               ","HIGHLAND                    ","WI","53543","DEBORAH E MONROE                                   ","deborah.e.monroe@hud.gov","312-913-8210","chi.incoming@hud.gov",{"$f":"HYPERLINK(\"mailto:\",Table_Front_desk_report.accdb[[#This Row],[inbox]])","v":"chi.incoming@hud.gov"}]
[800079739,"HIGHLAND APARTMENTS -- (WALKER)                   ","WALKER                      ","MN","56484","JULIE A LASOTA                                     ","Julie.A.Lasota@hud.gov","612-370-3066","mn.incoming@hud.gov",{"$f":"HYPERLINK(\"mailto:\",Table_Front_desk_report.accdb[[#This Row],[inbox]])","v":"mn.incoming@hud.gov"}]
[800010973,"HIGHLAND APARTMENTS -- (WILLMAR)                  ","WILLMAR                     ","MN","56201","GREGORY T MERZ                                     ","GREGORY.T.MERZ@hud.gov","612-370-3077","mn.incoming@hud.gov",{"$f":"HYPERLINK(\"mailto:\",Table_Front_desk_report.accdb[[#This Row],[inbox]])","v":"mn.incoming@hud.gov"}]
[800243153,"Highland Chateau Apartments                       ","Duluth                      ","MN","55811","THOMAS G DURSCHER                                  ","Thomas.G.Durscher@hud.gov","612-370-3018","mn.incoming@hud.gov",{"$f":"HYPERLINK(\"mailto:\",Table_Front_desk_report.accdb[[#This Row],[inbox]])","v":"mn.incoming@hud.gov"}]
[800010974,"HIGHLAND COMMONS                                  ","ARLINGTON                   ","MN","55307","TERRI A MUNSON                                     ","Terri.A.Munson@hud.gov","612-370-3086","mn.incoming@hud.gov",{"$f":"HYPERLINK(\"mailto:\",Table_Front_desk_report.accdb[[#This Row],[inbox]])","v":"mn.incoming@hud.gov"}]
[800023080,"HIGHLAND ESTATES II                               ","RHINELANDER                 ","WI","54501","MICHAEL D FURNNER                                  ","MICHAEL.D.FURNNER@hud.gov","414-935-6682","mn.incoming@hud.gov",{"$f":"HYPERLINK(\"mailto:\",Table_Front_desk_report.accdb[[#This Row],[inbox]])","v":"mn.incoming@hud.gov"}]
[800010975,"HIGHLAND HOMES AKA SUNSET APTS                    ","NEW ULM                     ","MN","56073","MITCHELL S HILLMAN                                 ","MITCHELL.S.HILLMAN@hud.gov","612-370-3036","mn.incoming@hud.gov",{"$f":"HYPERLINK(\"mailto:\",Table_Front_desk_report.accdb[[#This Row],[inbox]])","v":"mn.incoming@hud.gov"}]
[800022898,"HIGHLAND PARK APARTMENTS                          ","MILWAUKEE                   ","WI","53233","DORTHY L HOPKINS                                   ","dorthy.l.hopkins@hud.gov","312-913-8172","chi.incoming@hud.gov",{"$f":"HYPERLINK(\"mailto:\",Table_Front_desk_report.accdb[[#This Row],[inbox]])","v":"chi.incoming@hud.gov"}]
[800010784,"HIGHLANDS APTS aka Bloomington Family Hsing       ","Minneapolis                 ","MN","55437","MITCHELL S HILLMAN                                 ","MITCHELL.S.HILLMAN@hud.gov","612-370-3036","mn.incoming@hud.gov",{"$f":"HYPERLINK(\"mailto:\",Table_Front_desk_report.accdb[[#This Row],[inbox]])","v":"mn.incoming@hud.gov"}]
[800212387,"Highview Commons Townhomes                        ","Savage                      ","MN","55378","NATASHA D GUENOVA                                  ","NATASHA.D.GUENOVA@hud.gov","612-370-3035","mn.incoming@hud.gov",{"$f":"HYPERLINK(\"mailto:\",Table_Front_desk_report.accdb[[#This Row],[inbox]])","v":"mn.incoming@hud.gov"}]
[800010976,"HIGHWOOD HOMES                                    ","PRIOR LAKE                  ","MN","55372","NATASHA D GUENOVA                                  ","NATASHA.D.GUENOVA@hud.gov","612-370-3035","mn.incoming@hud.gov",{"$f":"HYPERLINK(\"mailto:\",Table_Front_desk_report.accdb[[#This Row],[inbox]])","v":"mn.incoming@hud.gov"}]
[800023194,"HILLCREST APARTMENTS                              ","Waukesha                    ","WI","53189","DORTHY L HOPKINS                                   ","dorthy.l.hopkins@hud.gov","312-913-8172","chi.incoming@hud.gov",{"$f":"HYPERLINK(\"mailto:\",Table_Front_desk_report.accdb[[#This Row],[inbox]])","v":"chi.incoming@hud.gov"}]
[800010977,"HILLCREST APTS aka ASI Stillwater, Inc            ","STILLWATER                  ","MN","55082","MITCHELL S HILLMAN                                 ","MITCHELL.S.HILLMAN@hud.gov","612-370-3036","mn.incoming@hud.gov",{"$f":"HYPERLINK(\"mailto:\",Table_Front_desk_report.accdb[[#This Row],[inbox]])","v":"mn.incoming@hud.gov"}]
[800023230,"HILLCREST MANOR APARTMENTS                        ","Ontario                     ","WI","54651","PAUL A DUHR                                        ","paul.a.duhr@hud.gov","414-935-6681","mn.incoming@hud.gov",{"$f":"HYPERLINK(\"mailto:\",Table_Front_desk_report.accdb[[#This Row],[inbox]])","v":"mn.incoming@hud.gov"}]
[800023081,"HILLPARK HEIGHTS I                                ","UNION GROVE                 ","WI","53182","MARLENE X TRIMUEL                                  ","Marlene.Trimuel@hud.gov","312-913-8369","chi.incoming@hud.gov",{"$f":"HYPERLINK(\"mailto:\",Table_Front_desk_report.accdb[[#This Row],[inbox]])","v":"chi.incoming@hud.gov"}]
[800023082,"HILLS MANOR APARTMENTS                            ","HILLSBORO                   ","WI","54634","TERESA C PARKER                                    ","TERESA.C.PARKER@hud.gov","612-370-3092","mn.incoming@hud.gov",{"$f":"HYPERLINK(\"mailto:\",Table_Front_desk_report.accdb[[#This Row],[inbox]])","v":"mn.incoming@hud.gov"}]
[800239988,"Hillsborough Apartments                           ","Roseville                   ","MN","55113","CINDY BEHNKE                                       ","cynthia.behnke@hud.gov","612-370-3278","mn.incoming@hud.gov",{"$f":"HYPERLINK(\"mailto:\",Table_Front_desk_report.accdb[[#This Row],[inbox]])","v":"mn.incoming@hud.gov"}]
[800010978,"HILLSIDE APTS / Midaka Properties                 ","EDEN VALLEY                 ","MN","55329","SHERRY K NORTON                                    ","Sherry.K.Norton@hud.gov","612-370-3087","mn.incoming@hud.gov",{"$f":"HYPERLINK(\"mailto:\",Table_Front_desk_report.accdb[[#This Row],[inbox]])","v":"mn.incoming@hud.gov"}]
[800010979,"HILLSIDE GARDEN                                   ","PROCTOR                     ","MN","55810","THOMAS G DURSCHER                                  ","Thomas.G.Durscher@hud.gov","612-370-3018","mn.incoming@hud.gov",{"$f":"HYPERLINK(\"mailto:\",Table_Front_desk_report.accdb[[#This Row],[inbox]])","v":"mn.incoming@hud.gov"}]
[800010980,"HILLSIDE HOMES                                    ","SPRING VALLEY               ","MN","55975","JOEL R KLEMM                                       ","JOEL.R.KLEMM@hud.gov","612-370-3053","mn.incoming@hud.gov",{"$f":"HYPERLINK(\"mailto:\",Table_Front_desk_report.accdb[[#This Row],[inbox]])","v":"mn.incoming@hud.gov"}]
[800010982,"HILLSIDE MANOR EAST                               ","MOOSE LAKE                  ","MN","55767","NATASHA D GUENOVA                                  ","NATASHA.D.GUENOVA@hud.gov","612-370-3035","mn.incoming@hud.gov",{"$f":"HYPERLINK(\"mailto:\",Table_Front_desk_report.accdb[[#This Row],[inbox]])","v":"mn.incoming@hud.gov"}]
[800010983,"HILLSIDE TERRACE -- LONG LAKE                     ","Long Lake                   ","MN","55356","DARIAN JANE ZIEGLER                                ","Darian.Ziegler@hud.gov","612-370-3270","mn.incoming@hud.gov",{"$f":"HYPERLINK(\"mailto:\",Table_Front_desk_report.accdb[[#This Row],[inbox]])","v":"mn.incoming@hud.gov"}]
[800079712,"Hillside Terrace Townhomes                        ","MONTICELLO                  ","MN","55362","SHERRY K NORTON                                    ","Sherry.K.Norton@hud.gov","612-370-3087","mn.incoming@hud.gov",{"$f":"HYPERLINK(\"mailto:\",Table_Front_desk_report.accdb[[#This Row],[inbox]])","v":"mn.incoming@hud.gov"}]
[800023083,"HILLSIDE VILLAGE                                  ","GLIDDEN                     ","WI","54527","ANDREA L CARSON                                    ","andrea.carson@hud.gov","414-935-6679","mn.incoming@hud.gov",{"$f":"HYPERLINK(\"mailto:\",Table_Front_desk_report.accdb[[#This Row],[inbox]])","v":"mn.incoming@hud.gov"}]
[800010984,"HILLTOP MANOR                                     ","EVELETH                     ","MN","55734","CAROL DIXON                                        ","Carol.A.Dixon@hud.gov","612-370-3015","mn.incoming@hud.gov",{"$f":"HYPERLINK(\"mailto:\",Table_Front_desk_report.accdb[[#This Row],[inbox]])","v":"mn.incoming@hud.gov"}]
[800023084,"HILLTOP MANOR                                     ","BRUCE                       ","WI","54819","MARCIA A KOLB                                      ","MARCIA.A.KOLB@hud.gov","612-370-3055","mn.incoming@hud.gov",{"$f":"HYPERLINK(\"mailto:\",Table_Front_desk_report.accdb[[#This Row],[inbox]])","v":"mn.incoming@hud.gov"}]
[800010985,"HILLTOP RESIDENCE, INC                            ","MADISON                     ","MN","56256","SHERRY K NORTON                                    ","Sherry.K.Norton@hud.gov","612-370-3087","mn.incoming@hud.gov",{"$f":"HYPERLINK(\"mailto:\",Table_Front_desk_report.accdb[[#This Row],[inbox]])","v":"mn.incoming@hud.gov"}]
[800239439,"HIMMEL HAUS AT GABLES OF GERMANTOWN               ","Germantown                  ","WI","53022","JULIE A LASOTA                                     ","Julie.A.Lasota@hud.gov","612-370-3066","mn.incoming@hud.gov",{"$f":"HYPERLINK(\"mailto:\",Table_Front_desk_report.accdb[[#This Row],[inbox]])","v":"mn.incoming@hud.gov"}]
[800218579,"HIMOUNT GARDEN APARTMENTS                         ","MILWAUKEE                   ","WI","53202","LATOYA A WASHINGTON                                ","latoya.a.washington@hud.gov","312-913-8271","chi.incoming@hud.gov",{"$f":"HYPERLINK(\"mailto:\",Table_Front_desk_report.accdb[[#This Row],[inbox]])","v":"chi.incoming@hud.gov"}]
[800022986,"HISPANIC HOUSING CORPORATION                      ","MILWAUKEE                   ","WI","53204","TERRI A MUNSON                                     ","Terri.A.Munson@hud.gov","612-370-3086","mn.incoming@hud.gov",{"$f":"HYPERLINK(\"mailto:\",Table_Front_desk_report.accdb[[#This Row],[inbox]])","v":"mn.incoming@hud.gov"}]
[800236140,"HISTORIC LOFTS ON KILBOURN                        ","Milwaukee                   ","WI","53223","DORTHY L HOPKINS                                   ","dorthy.l.hopkins@hud.gov","312-913-8172","chi.incoming@hud.gov",{"$f":"HYPERLINK(\"mailto:\",Table_Front_desk_report.accdb[[#This Row],[inbox]])","v":"chi.incoming@hud.gov"}]
[800010986,"HOLMES GREENWAY HOUSING                           ","MINNEAPOLIS                 ","MN","55414","MICHAEL P MORAN                                    ","MICHAEL.P.MORAN@HUD.GOV","612-370-3081","mn.incoming@hud.gov",{"$f":"HYPERLINK(\"mailto:\",Table_Front_desk_report.accdb[[#This Row],[inbox]])","v":"mn.incoming@hud.gov"}]
[800010987,"HOLMES PARK                                       ","MINNEAPOLIS                 ","MN","55414","GREGORY T MERZ                                     ","GREGORY.T.MERZ@hud.gov","612-370-3077","mn.incoming@hud.gov",{"$f":"HYPERLINK(\"mailto:\",Table_Front_desk_report.accdb[[#This Row],[inbox]])","v":"mn.incoming@hud.gov"}]
[800010846,"HOME SHARE                                        ","MINNEAPOLIS                 ","MN","55418","CAROL DIXON                                        ","Carol.A.Dixon@hud.gov","612-370-3015","mn.incoming@hud.gov",{"$f":"HYPERLINK(\"mailto:\",Table_Front_desk_report.accdb[[#This Row],[inbox]])","v":"mn.incoming@hud.gov"}]
[800023085,"HOME SWEET HOME                                   ","MILWAUKEE                   ","WI","53204","JULIE A LASOTA                                     ","Julie.A.Lasota@hud.gov","612-370-3066","mn.incoming@hud.gov",{"$f":"HYPERLINK(\"mailto:\",Table_Front_desk_report.accdb[[#This Row],[inbox]])","v":"mn.incoming@hud.gov"}]
[800010989,"HOMESTEAD APARTMENTS                              ","MANKATO                     ","MN","56001","DARIAN JANE ZIEGLER                                ","Darian.Ziegler@hud.gov","612-370-3270","mn.incoming@hud.gov",{"$f":"HYPERLINK(\"mailto:\",Table_Front_desk_report.accdb[[#This Row],[inbox]])","v":"mn.incoming@hud.gov"}]
[800023086,"HOMETOWN VILLAGES                                 ","CENTURIA                    ","WI","54824","CATHERINE A TEMPLE                                 ","Catherine.A.Temple@hud.gov","414-935-6695","mn.incoming@hud.gov",{"$f":"HYPERLINK(\"mailto:\",Table_Front_desk_report.accdb[[#This Row],[inbox]])","v":"mn.incoming@hud.gov"}]
[800236414,"Honey Creek Apartments                            ","East Troy                   ","WI","53120","LATOYA A WASHINGTON                                ","latoya.a.washington@hud.gov","312-913-8271","chi.incoming@hud.gov",{"$f":"HYPERLINK(\"mailto:\",Table_Front_desk_report.accdb[[#This Row],[inbox]])","v":"chi.incoming@hud.gov"}]
[800023162,"HOPKINS PLACE                                     ","MILWAUKEE                   ","WI","53209","TANIKA MATHIS-EARSERY                              ","tanika.mathis-earsery@hud.gov","312-913-8433","chi.incoming@hud.gov",{"$f":"HYPERLINK(\"mailto:\",Table_Front_desk_report.accdb[[#This Row],[inbox]])","v":"chi.incoming@hud.gov"}]
[800010990,"HOPKINS VILLAGE APARTMENTS, A L.P.                ","HOPKINS                     ","MN","55343","THOMAS G DURSCHER                                  ","Thomas.G.Durscher@hud.gov","612-370-3018","mn.incoming@hud.gov",{"$f":"HYPERLINK(\"mailto:\",Table_Front_desk_report.accdb[[#This Row],[inbox]])","v":"mn.incoming@hud.gov"}]
[800023087,"HORICON HEIGHTS                                   ","HORICON                     ","WI","53032","ANDREA L CARSON                                    ","andrea.carson@hud.gov","414-935-6679","mn.incoming@hud.gov",{"$f":"HYPERLINK(\"mailto:\",Table_Front_desk_report.accdb[[#This Row],[inbox]])","v":"mn.incoming@hud.gov"}]
[800010991,"HORIZON HEIGHTS                                   ","BURNSVILLE                  ","MN","55337","BEN OSBORN                                         ","Benjamin.M.Osborn@hud.gov","612-370-3091","mn.incoming@hud.gov",{"$f":"HYPERLINK(\"mailto:\",Table_Front_desk_report.accdb[[#This Row],[inbox]])","v":"mn.incoming@hud.gov"}]
[800010992,"HORIZON MANOR APARTMENTS                          ","Bertha                      ","MN","56437","SUSAN K ROSKOS                                     ","Susan.K.Roskos@hud.gov","612-370-3110","mn.incoming@hud.gov",{"$f":"HYPERLINK(\"mailto:\",Table_Front_desk_report.accdb[[#This Row],[inbox]])","v":"mn.incoming@hud.gov"}]
[800010993,"HOUGE ESTATES                                     ","DILWORTH                    ","MN","56529","MICHAEL P MORAN                                    ","MICHAEL.P.MORAN@HUD.GOV","612-370-3081","mn.incoming@hud.gov",{"$f":"HYPERLINK(\"mailto:\",Table_Front_desk_report.accdb[[#This Row],[inbox]])","v":"mn.incoming@hud.gov"}]
[800010994,"HOUSING OF OLIVIA / Westcourt                     ","OLIVIA                      ","MN","56277","TERRI A MUNSON                                     ","Terri.A.Munson@hud.gov","612-370-3086","mn.incoming@hud.gov",{"$f":"HYPERLINK(\"mailto:\",Table_Front_desk_report.accdb[[#This Row],[inbox]])","v":"mn.incoming@hud.gov"}]
[800023089,"HOWARD WOODS APTS                                 ","PORTAGE                     ","WI","53901","LAWRANCE C MUNDT                                   ","LAWRENCE.C.MUNDT@hud.gov","612-370-3082","mn.incoming@hud.gov",{"$f":"HYPERLINK(\"mailto:\",Table_Front_desk_report.accdb[[#This Row],[inbox]])","v":"mn.incoming@hud.gov"}]
[800069653,"HOWARD WYNNE VILLA                                ","REEDSBURG                   ","WI","53959","PAUL A DUHR                                        ","paul.a.duhr@hud.gov","414-935-6681","mn.incoming@hud.gov",{"$f":"HYPERLINK(\"mailto:\",Table_Front_desk_report.accdb[[#This Row],[inbox]])","v":"mn.incoming@hud.gov"}]
[800010997,"HUMPHREY MANOR EAST                               ","WADENA                      ","MN","56482","JOEL R KLEMM                                       ","JOEL.R.KLEMM@hud.gov","612-370-3053","mn.incoming@hud.gov",{"$f":"HYPERLINK(\"mailto:\",Table_Front_desk_report.accdb[[#This Row],[inbox]])","v":"mn.incoming@hud.gov"}]
[800023090,"HURLEY GARDENS ESTATES                            ","HURLEY                      ","WI","54534","PAUL A DUHR                                        ","paul.a.duhr@hud.gov","414-935-6681","mn.incoming@hud.gov",{"$f":"HYPERLINK(\"mailto:\",Table_Front_desk_report.accdb[[#This Row],[inbox]])","v":"mn.incoming@hud.gov"}]
[null,"I"]
[800022837,"IMPACT HOUSING                                    ","WAUSAU                      ","WI","54401","CATHERINE A TEMPLE                                 ","Catherine.A.Temple@hud.gov","414-935-6695","mn.incoming@hud.gov",{"$f":"HYPERLINK(\"mailto:\",Table_Front_desk_report.accdb[[#This Row],[inbox]])","v":"mn.incoming@hud.gov"}]
[800216949,"Independence Place                                ","WILLMAR                     ","MN","56201","NATASHA D GUENOVA                                  ","NATASHA.D.GUENOVA@hud.gov","612-370-3035","mn.incoming@hud.gov",{"$f":"HYPERLINK(\"mailto:\",Table_Front_desk_report.accdb[[#This Row],[inbox]])","v":"mn.incoming@hud.gov"}]
[800244265,"Indian Knoll Manor                                ","Mound                       ","MN","55364","JULIE A LASOTA                                     ","Julie.A.Lasota@hud.gov","612-370-3066","mn.incoming@hud.gov",{"$f":"HYPERLINK(\"mailto:\",Table_Front_desk_report.accdb[[#This Row],[inbox]])","v":"mn.incoming@hud.gov"}]
[800011002,"INNSBRUCK                                         ","ROCHESTER                   ","MN","55901","TERESA C PARKER                                    ","TERESA.C.PARKER@hud.gov","612-370-3092","mn.incoming@hud.gov",{"$f":"HYPERLINK(\"mailto:\",Table_Front_desk_report.accdb[[#This Row],[inbox]])","v":"mn.incoming@hud.gov"}]
[800023092,"IOWA COUNTY HOUSING                               ","DODGEVILLE                  ","WI","53533","ARNITA X SCOTT                                     ","arnita.scott@hud.gov","312-913-8574","chi.incoming@hud.gov",{"$f":"HYPERLINK(\"mailto:\",Table_Front_desk_report.accdb[[#This Row],[inbox]])","v":"chi.incoming@hud.gov"}]
[800023093,"IRON DRIFT/KNIGHT APARTMENTS                      ","MONTREAL                    ","WI","54550","LAWRANCE C MUNDT                                   ","LAWRENCE.C.MUNDT@hud.gov","612-370-3082","mn.incoming@hud.gov",{"$f":"HYPERLINK(\"mailto:\",Table_Front_desk_report.accdb[[#This Row],[inbox]])","v":"mn.incoming@hud.gov"}]
[800011003,"IRONGATE APTS                                     ","AURORA                      ","MN","55705","BEN OSBORN                                         ","Benjamin.M.Osborn@hud.gov","612-370-3091","mn.incoming@hud.gov",{"$f":"HYPERLINK(\"mailto:\",Table_Front_desk_report.accdb[[#This Row],[inbox]])","v":"mn.incoming@hud.gov"}]
[800011004,"IRONTON TERRACE APARTMENTS                        ","IRONTON                     ","MN","56455","MITCHELL S HILLMAN                                 ","MITCHELL.S.HILLMAN@hud.gov","612-370-3036","mn.incoming@hud.gov",{"$f":"HYPERLINK(\"mailto:\",Table_Front_desk_report.accdb[[#This Row],[inbox]])","v":"mn.incoming@hud.gov"}]
[800023094,"ISLAND CITY APARTMENTS                            ","CUMBERLAND                  ","WI","54829","MICHAEL D FURNNER                                  ","MICHAEL.D.FURNNER@hud.gov","414-935-6682","mn.incoming@hud.gov",{"$f":"HYPERLINK(\"mailto:\",Table_Front_desk_report.accdb[[#This Row],[inbox]])","v":"mn.incoming@hud.gov"}]
[800240041,"ISLAND PLACE APARTMENTS                           ","Wausau                      ","WI","54403","MICHAEL D FURNNER                                  ","MICHAEL.D.FURNNER@hud.gov","414-935-6682","mn.incoming@hud.gov",{"$f":"HYPERLINK(\"mailto:\",Table_Front_desk_report.accdb[[#This Row],[inbox]])","v":"mn.incoming@hud.gov"}]
[800011005,"ISLE VIEW APARTMENTS                              ","ISLE                        ","MN","56342","NATASHA D GUENOVA                                  ","NATASHA.D.GUENOVA@hud.gov","612-370-3035","mn.incoming@hud.gov",{"$f":"HYPERLINK(\"mailto:\",Table_Front_desk_report.accdb[[#This Row],[inbox]])","v":"mn.incoming@hud.gov"}]
[800011006,"ITASCA APARTMENTS                                 ","PARK RAPIDS                 ","MN","56470","SUSAN K ROSKOS                                     ","Susan.K.Roskos@hud.gov","612-370-3110","mn.incoming@hud.gov",{"$f":"HYPERLINK(\"mailto:\",Table_Front_desk_report.accdb[[#This Row],[inbox]])","v":"mn.incoming@hud.gov"}]
[800011007,"ITASCA CNTY APTS, A GNRL PTNRSHP                  ","DEER RIVER                  ","MN","56636","SUSAN K ROSKOS                                     ","Susan.K.Roskos@hud.gov","612-370-3110","mn.incoming@hud.gov",{"$f":"HYPERLINK(\"mailto:\",Table_Front_desk_report.accdb[[#This Row],[inbox]])","v":"mn.incoming@hud.gov"}]
[800011008,"IVANHOE APARTMENTS                                ","OWATONNA                    ","MN","55060","MITCHELL S HILLMAN                                 ","MITCHELL.S.HILLMAN@hud.gov","612-370-3036","mn.incoming@hud.gov",{"$f":"HYPERLINK(\"mailto:\",Table_Front_desk_report.accdb[[#This Row],[inbox]])","v":"mn.incoming@hud.gov"}]
[800011009,"IVERSON COURT                                     ","WINONA                      ","MN","55987","GREGORY T MERZ                                     ","GREGORY.T.MERZ@hud.gov","612-370-3077","mn.incoming@hud.gov",{"$f":"HYPERLINK(\"mailto:\",Table_Front_desk_report.accdb[[#This Row],[inbox]])","v":"mn.incoming@hud.gov"}]
[null,"J"]
[800023095,"JACKSON COUNTY                                    ","BLACK RIVER FALLS           ","WI","54615","ANDREA L CARSON                                    ","andrea.carson@hud.gov","414-935-6679","mn.incoming@hud.gov",{"$f":"HYPERLINK(\"mailto:\",Table_Front_desk_report.accdb[[#This Row],[inbox]])","v":"mn.incoming@hud.gov"}]
[800211404,"JACQUELINE LAWRENCE VILLA                         ","CENTURIA                    ","WI","54824","ANDREA L CARSON                                    ","andrea.carson@hud.gov","414-935-6679","mn.incoming@hud.gov",{"$f":"HYPERLINK(\"mailto:\",Table_Front_desk_report.accdb[[#This Row],[inbox]])","v":"mn.incoming@hud.gov"}]
[800023096,"JAMES AND JOHN APARTMENTS                         ","MILWAUKEE                   ","WI","53225","ELLIE L CHICOSKI                                   ","ellie.l.chicoski@hud.gov","312-913-8385","chi.incoming@hud.gov",{"$f":"HYPERLINK(\"mailto:\",Table_Front_desk_report.accdb[[#This Row],[inbox]])","v":"chi.incoming@hud.gov"}]
[800213205,"JAMES POEHLMAN VILLA                              ","Eagle River                 ","WI","54521","MARCIA A KOLB                                      ","MARCIA.A.KOLB@hud.gov","612-370-3055","mn.incoming@hud.gov",{"$f":"HYPERLINK(\"mailto:\",Table_Front_desk_report.accdb[[#This Row],[inbox]])","v":"mn.incoming@hud.gov"}]
[800011010,"JAMESTOWN HOMES                                   ","SAINT PAUL                  ","MN","55103","THOMAS G DURSCHER                                  ","Thomas.G.Durscher@hud.gov","612-370-3018","mn.incoming@hud.gov",{"$f":"HYPERLINK(\"mailto:\",Table_Front_desk_report.accdb[[#This Row],[inbox]])","v":"mn.incoming@hud.gov"}]
[800219782,"JEFFERS ROAD APARTMENTS                           ","Eau Claire                  ","WI","54703","JULIE A LASOTA                                     ","Julie.A.Lasota@hud.gov","612-370-3066","mn.incoming@hud.gov",{"$f":"HYPERLINK(\"mailto:\",Table_Front_desk_report.accdb[[#This Row],[inbox]])","v":"mn.incoming@hud.gov"}]
[800211217,"Jefferson County Apartments                       ","JEFFERSON                   ","WI","53549","YOLANDA S MILLER                                   ","yolanda.s.miller@hud.gov","312-913-8580","chi.incoming@hud.gov",{"$f":"HYPERLINK(\"mailto:\",Table_Front_desk_report.accdb[[#This Row],[inbox]])","v":"chi.incoming@hud.gov"}]
[800023098,"JEFFERSON COURT                                   ","Milwaukee                   ","WI","53202","YOLANDA S MILLER                                   ","yolanda.s.miller@hud.gov","312-913-8580","chi.incoming@hud.gov",{"$f":"HYPERLINK(\"mailto:\",Table_Front_desk_report.accdb[[#This Row],[inbox]])","v":"chi.incoming@hud.gov"}]
[800235032,"Jefferson Heights Apartments                      ","Zumbrota                    ","MN","55992","NATASHA D GUENOVA                                  ","NATASHA.D.GUENOVA@hud.gov","612-370-3035","mn.incoming@hud.gov",{"$f":"HYPERLINK(\"mailto:\",Table_Front_desk_report.accdb[[#This Row],[inbox]])","v":"mn.incoming@hud.gov"}]
[800023099,"JEFFERSON OAKS WEST APARTMENTS                    ","JEFFERSON                   ","WI","53549","ARNOLD PEOPLES                                     ","arnold.peoples@hud.gov","312-913-8103","chi.incoming@hud.gov",{"$f":"HYPERLINK(\"mailto:\",Table_Front_desk_report.accdb[[#This Row],[inbox]])","v":"chi.incoming@hud.gov"}]
[800011011,"JEFFERSON SQUARE                                  ","NORTHFIELD                  ","MN","55057","DARIAN JANE ZIEGLER                                ","Darian.Ziegler@hud.gov","612-370-3270","mn.incoming@hud.gov",{"$f":"HYPERLINK(\"mailto:\",Table_Front_desk_report.accdb[[#This Row],[inbox]])","v":"mn.incoming@hud.gov"}]
[800023100,"JENNY TOWERS                                      ","MERRILL                     ","WI","54452","PAUL A DUHR                                        ","paul.a.duhr@hud.gov","414-935-6681","mn.incoming@hud.gov",{"$f":"HYPERLINK(\"mailto:\",Table_Front_desk_report.accdb[[#This Row],[inbox]])","v":"mn.incoming@hud.gov"}]
[800023101,"JENOR TOWERS                                      ","PLATTEVILLE                 ","WI","53818","YOLANDA S MILLER                                   ","yolanda.s.miller@hud.gov","312-913-8580","chi.incoming@hud.gov",{"$f":"HYPERLINK(\"mailto:\",Table_Front_desk_report.accdb[[#This Row],[inbox]])","v":"chi.incoming@hud.gov"}]
[800223886,"JERRY DRAHOS VILLA                                ","Wisconsin Rapids            ","WI","54494","MARCIA A KOLB                                      ","MARCIA.A.KOLB@hud.gov","612-370-3055","mn.incoming@hud.gov",{"$f":"HYPERLINK(\"mailto:\",Table_Front_desk_report.accdb[[#This Row],[inbox]])","v":"mn.incoming@hud.gov"}]
[800023102,"JOANNE APTS                                       ","KENOSHA                     ","WI","53142","DEBORAH E MONROE                                   ","deborah.e.monroe@hud.gov","312-913-8210","chi.incoming@hud.gov",{"$f":"HYPERLINK(\"mailto:\",Table_Front_desk_report.accdb[[#This Row],[inbox]])","v":"chi.incoming@hud.gov"}]
[800023103,"JOHN FISCHER MANOR                                ","APPLETON                    ","WI","54911","CATHERINE A TEMPLE                                 ","Catherine.A.Temple@hud.gov","414-935-6695","mn.incoming@hud.gov",{"$f":"HYPERLINK(\"mailto:\",Table_Front_desk_report.accdb[[#This Row],[inbox]])","v":"mn.incoming@hud.gov"}]
[800011186,"JOHN PAUL APTS                                    ","COLD SPRING                 ","MN","56320","DARIAN JANE ZIEGLER                                ","Darian.Ziegler@hud.gov","612-370-3270","mn.incoming@hud.gov",{"$f":"HYPERLINK(\"mailto:\",Table_Front_desk_report.accdb[[#This Row],[inbox]])","v":"mn.incoming@hud.gov"}]
[800222636,"JOHN RINGSTAND VILLA                              ","Marshfield                  ","WI","54449","CATHERINE A TEMPLE                                 ","Catherine.A.Temple@hud.gov","414-935-6695","mn.incoming@hud.gov",{"$f":"HYPERLINK(\"mailto:\",Table_Front_desk_report.accdb[[#This Row],[inbox]])","v":"mn.incoming@hud.gov"}]
[800221579,"JOHN SLABY VILLA                                  ","Stevens Point               ","WI","54481","CATHERINE A TEMPLE                                 ","Catherine.A.Temple@hud.gov","414-935-6695","mn.incoming@hud.gov",{"$f":"HYPERLINK(\"mailto:\",Table_Front_desk_report.accdb[[#This Row],[inbox]])","v":"mn.incoming@hud.gov"}]
[800212989,"JOMAR OF ZION                                     ","OSHKOSH                     ","WI","54901","PAUL A DUHR                                        ","paul.a.duhr@hud.gov","414-935-6681","mn.incoming@hud.gov",{"$f":"HYPERLINK(\"mailto:\",Table_Front_desk_report.accdb[[#This Row],[inbox]])","v":"mn.incoming@hud.gov"}]
[800011013,"JONATHAN ACRES                                    ","CHASKA                      ","MN","55318","TERESA C PARKER                                    ","TERESA.C.PARKER@hud.gov","612-370-3092","mn.incoming@hud.gov",{"$f":"HYPERLINK(\"mailto:\",Table_Front_desk_report.accdb[[#This Row],[inbox]])","v":"mn.incoming@hud.gov"}]
[800011014,"JORDAN TOWER II                                   ","RED WING                    ","MN","55066","SUSAN K ROSKOS                                     ","Susan.K.Roskos@hud.gov","612-370-3110","mn.incoming@hud.gov",{"$f":"HYPERLINK(\"mailto:\",Table_Front_desk_report.accdb[[#This Row],[inbox]])","v":"mn.incoming@hud.gov"}]
[800023104,"JOSEPH J. VINOPAL VILLA                           ","ALMENA                      ","WI","54805","SUSAN K ROSKOS                                     ","Susan.K.Roskos@hud.gov","612-370-3110","mn.incoming@hud.gov",{"$f":"HYPERLINK(\"mailto:\",Table_Front_desk_report.accdb[[#This Row],[inbox]])","v":"mn.incoming@hud.gov"}]
[800239987,"Joseph's Point at Upper Landing                   ","Saint Paul                  ","MN","55102","THOMAS G DURSCHER                                  ","Thomas.G.Durscher@hud.gov","612-370-3018","mn.incoming@hud.gov",{"$f":"HYPERLINK(\"mailto:\",Table_Front_desk_report.accdb[[#This Row],[inbox]])","v":"mn.incoming@hud.gov"}]
[800235315,"JUNIOR HOUSE LOFTS                                ","Milwaukee                   ","WI","53204","LATOYA A WASHINGTON                                ","latoya.a.washington@hud.gov","312-913-8271","chi.incoming@hud.gov",{"$f":"HYPERLINK(\"mailto:\",Table_Front_desk_report.accdb[[#This Row],[inbox]])","v":"chi.incoming@hud.gov"}]
[null,"K"]
[800011015,"KALEVA  APARTMENTS                                ","New York Mills              ","MN","56567","CAROL DIXON                                        ","Carol.A.Dixon@hud.gov","612-370-3015","mn.incoming@hud.gov",{"$f":"HYPERLINK(\"mailto:\",Table_Front_desk_report.accdb[[#This Row],[inbox]])","v":"mn.incoming@hud.gov"}]
[800011016,"KAMNIC LANE APARTMENTS                            ","PIERZ                       ","MN","56364","LAWRANCE C MUNDT                                   ","LAWRENCE.C.MUNDT@hud.gov","612-370-3082","mn.incoming@hud.gov",{"$f":"HYPERLINK(\"mailto:\",Table_Front_desk_report.accdb[[#This Row],[inbox]])","v":"mn.incoming@hud.gov"}]
[800023108,"KANNENBERG PLAZA                                  ","WAUSAU                      ","WI","54401","MICHAEL D FURNNER                                  ","MICHAEL.D.FURNNER@hud.gov","414-935-6682","mn.incoming@hud.gov",{"$f":"HYPERLINK(\"mailto:\",Table_Front_desk_report.accdb[[#This Row],[inbox]])","v":"mn.incoming@hud.gov"}]
[800215563,"KAPOSIA APTS aka Rose Apts                        ","South Saint Paul            ","MN","55075","CAROL DIXON                                        ","Carol.A.Dixon@hud.gov","612-370-3015","mn.incoming@hud.gov",{"$f":"HYPERLINK(\"mailto:\",Table_Front_desk_report.accdb[[#This Row],[inbox]])","v":"mn.incoming@hud.gov"}]
[800023109,"KARABIS APARTMENTS                                ","MADISON                     ","WI","53715","RAYMOND GUNTER                                     ","raymond.p.gunter@hud.gov","312-913-8309","chi.incoming@hud.gov",{"$f":"HYPERLINK(\"mailto:\",Table_Front_desk_report.accdb[[#This Row],[inbox]])","v":"chi.incoming@hud.gov"}]
[800011017,"KASSON SENIOR HOUSING                             ","KASSON                      ","MN","55944","JULIE A LASOTA                                     ","Julie.A.Lasota@hud.gov","612-370-3066","mn.incoming@hud.gov",{"$f":"HYPERLINK(\"mailto:\",Table_Front_desk_report.accdb[[#This Row],[inbox]])","v":"mn.incoming@hud.gov"}]
[800224829,"Kay Knutson Apts   aka   ASI-Owatonna, Inc        ","Owatonna                    ","MN","55060","GREGORY T MERZ                                     ","GREGORY.T.MERZ@hud.gov","612-370-3077","mn.incoming@hud.gov",{"$f":"HYPERLINK(\"mailto:\",Table_Front_desk_report.accdb[[#This Row],[inbox]])","v":"mn.incoming@hud.gov"}]
[800011018,"KEEWATIN APARTMENTS, A PARTNERSHIP                ","KEEWATIN                    ","MN","55753","MICHAEL P MORAN                                    ","MICHAEL.P.MORAN@HUD.GOV","612-370-3081","mn.incoming@hud.gov",{"$f":"HYPERLINK(\"mailto:\",Table_Front_desk_report.accdb[[#This Row],[inbox]])","v":"mn.incoming@hud.gov"}]
[800011019,"KELLIHER APARTMENTS, A PARTNERSHIP                ","Kelliher                    ","MN","56650","CAROL DIXON                                        ","Carol.A.Dixon@hud.gov","612-370-3015","mn.incoming@hud.gov",{"$f":"HYPERLINK(\"mailto:\",Table_Front_desk_report.accdb[[#This Row],[inbox]])","v":"mn.incoming@hud.gov"}]
[800011020,"KELLY APARTMENTS                                  ","SAINT LOUIS PARK            ","MN","55426","NATASHA D GUENOVA                                  ","NATASHA.D.GUENOVA@hud.gov","612-370-3035","mn.incoming@hud.gov",{"$f":"HYPERLINK(\"mailto:\",Table_Front_desk_report.accdb[[#This Row],[inbox]])","v":"mn.incoming@hud.gov"}]
[800022919,"KENDALL OAKS OF SAUKVILLE                         ","SAUKVILLE                   ","WI","53080","MICHAEL D FURNNER                                  ","MICHAEL.D.FURNNER@hud.gov","414-935-6682","mn.incoming@hud.gov",{"$f":"HYPERLINK(\"mailto:\",Table_Front_desk_report.accdb[[#This Row],[inbox]])","v":"mn.incoming@hud.gov"}]
[800023110,"KENNEDY HEIGHTS TOWNHOUSES                        ","MADISON                     ","WI","53704","ARNITA X SCOTT                                     ","arnita.scott@hud.gov","312-913-8574","chi.incoming@hud.gov",{"$f":"HYPERLINK(\"mailto:\",Table_Front_desk_report.accdb[[#This Row],[inbox]])","v":"chi.incoming@hud.gov"}]
[800023111,"KENOSHA GARDENS                                   ","KENOSHA                     ","WI","53144","ARNOLD PEOPLES                                     ","arnold.peoples@hud.gov","312-913-8103","chi.incoming@hud.gov",{"$f":"HYPERLINK(\"mailto:\",Table_Front_desk_report.accdb[[#This Row],[inbox]])","v":"chi.incoming@hud.gov"}]
[800209718,"KENTUCKY LANE APTS                                ","CRYSTAL                     ","MN","55428","DARIAN JANE ZIEGLER                                ","Darian.Ziegler@hud.gov","612-370-3270","mn.incoming@hud.gov",{"$f":"HYPERLINK(\"mailto:\",Table_Front_desk_report.accdb[[#This Row],[inbox]])","v":"mn.incoming@hud.gov"}]
[800215420,"KENWOOD APARTMENTS                                ","ADAMS                       ","WI","53910","CATHERINE A TEMPLE                                 ","Catherine.A.Temple@hud.gov","414-935-6695","mn.incoming@hud.gov",{"$f":"HYPERLINK(\"mailto:\",Table_Front_desk_report.accdb[[#This Row],[inbox]])","v":"mn.incoming@hud.gov"}]
[800011022,"KEY ROW  LITTLE FALLS                             ","LITTLE FALLS                ","MN","56345","GREGORY T MERZ                                     ","GREGORY.T.MERZ@hud.gov","612-370-3077","mn.incoming@hud.gov",{"$f":"HYPERLINK(\"mailto:\",Table_Front_desk_report.accdb[[#This Row],[inbox]])","v":"mn.incoming@hud.gov"}]
[800011024,"KEY ROW - MILACA                                  ","MILACA                      ","MN","56353","GREGORY T MERZ                                     ","GREGORY.T.MERZ@hud.gov","612-370-3077","mn.incoming@hud.gov",{"$f":"HYPERLINK(\"mailto:\",Table_Front_desk_report.accdb[[#This Row],[inbox]])","v":"mn.incoming@hud.gov"}]
[800011025,"KEY ROW -- MORRIS                                 ","MORRIS                      ","MN","56267","GREGORY T MERZ                                     ","GREGORY.T.MERZ@hud.gov","612-370-3077","mn.incoming@hud.gov",{"$f":"HYPERLINK(\"mailto:\",Table_Front_desk_report.accdb[[#This Row],[inbox]])","v":"mn.incoming@hud.gov"}]
[800011026,"KEY ROW -- WHEATON                                ","WHEATON                     ","MN","56296","CINDY BEHNKE                                       ","cynthia.behnke@hud.gov","612-370-3278","mn.incoming@hud.gov",{"$f":"HYPERLINK(\"mailto:\",Table_Front_desk_report.accdb[[#This Row],[inbox]])","v":"mn.incoming@hud.gov"}]
[800044447,"KEY ROW COMM                                      ","SAINT CLOUD                 ","MN","56301","NATASHA D GUENOVA                                  ","NATASHA.D.GUENOVA@hud.gov","612-370-3035","mn.incoming@hud.gov",{"$f":"HYPERLINK(\"mailto:\",Table_Front_desk_report.accdb[[#This Row],[inbox]])","v":"mn.incoming@hud.gov"}]
[800023112,"KILBOURNE APARTMENTS                              ","Tomah                       ","WI","54660","PAUL A DUHR                                        ","paul.a.duhr@hud.gov","414-935-6681","mn.incoming@hud.gov",{"$f":"HYPERLINK(\"mailto:\",Table_Front_desk_report.accdb[[#This Row],[inbox]])","v":"mn.incoming@hud.gov"}]
[800223421,"Kildahl Park Cooperative                          ","Northfield                  ","MN","55057","NATASHA D GUENOVA                                  ","NATASHA.D.GUENOVA@hud.gov","612-370-3035","mn.incoming@hud.gov",{"$f":"HYPERLINK(\"mailto:\",Table_Front_desk_report.accdb[[#This Row],[inbox]])","v":"mn.incoming@hud.gov"}]
[800011027,"KILKENNY COURT APARTMENTS                         ","FOREST LAKE                 ","MN","55025","JOEL R KLEMM                                       ","JOEL.R.KLEMM@hud.gov","612-370-3053","mn.incoming@hud.gov",{"$f":"HYPERLINK(\"mailto:\",Table_Front_desk_report.accdb[[#This Row],[inbox]])","v":"mn.incoming@hud.gov"}]
[800011028,"KIMBERLY MEADOWS                                  ","PLYMOUTH                    ","MN","55447","NATASHA D GUENOVA                                  ","NATASHA.D.GUENOVA@hud.gov","612-370-3035","mn.incoming@hud.gov",{"$f":"HYPERLINK(\"mailto:\",Table_Front_desk_report.accdb[[#This Row],[inbox]])","v":"mn.incoming@hud.gov"}]
[800225929,"King's Crossing                                   ","Saint Paul                  ","MN","55103","THOMAS G DURSCHER                                  ","Thomas.G.Durscher@hud.gov","612-370-3018","mn.incoming@hud.gov",{"$f":"HYPERLINK(\"mailto:\",Table_Front_desk_report.accdb[[#This Row],[inbox]])","v":"mn.incoming@hud.gov"}]
[800221542,"Kingsley Commons                                  ","Minneapolis                 ","MN","55412","GREGORY T MERZ                                     ","GREGORY.T.MERZ@hud.gov","612-370-3077","mn.incoming@hud.gov",{"$f":"HYPERLINK(\"mailto:\",Table_Front_desk_report.accdb[[#This Row],[inbox]])","v":"mn.incoming@hud.gov"}]
[800011029,"KINGSLEY HEIGHTS APARTMENTS                       ","DULUTH                      ","MN","55802","MICHAEL P MORAN                                    ","MICHAEL.P.MORAN@HUD.GOV","612-370-3081","mn.incoming@hud.gov",{"$f":"HYPERLINK(\"mailto:\",Table_Front_desk_report.accdb[[#This Row],[inbox]])","v":"mn.incoming@hud.gov"}]
[800011030,"KINGSWAY ESTATES / LeSueur Apts                   ","LE SUEUR                    ","MN","56058","MICHAEL P MORAN                                    ","MICHAEL.P.MORAN@HUD.GOV","612-370-3081","mn.incoming@hud.gov",{"$f":"HYPERLINK(\"mailto:\",Table_Front_desk_report.accdb[[#This Row],[inbox]])","v":"mn.incoming@hud.gov"}]
[800069569,"KIWANIS APARTMENTS                                ","EAST TROY                   ","WI","53120","DONNA M SHEEHAN                                    ","Donna.Sheehan@hud.gov"," 312-957-4781 ","chi.incoming@hud.gov",{"$f":"HYPERLINK(\"mailto:\",Table_Front_desk_report.accdb[[#This Row],[inbox]])","v":"chi.incoming@hud.gov"}]
[800022965,"KNOLL CREST                                       ","DELAFIELD                   ","WI","53018","ARNITA X SCOTT                                     ","arnita.scott@hud.gov","312-913-8574","chi.incoming@hud.gov",{"$f":"HYPERLINK(\"mailto:\",Table_Front_desk_report.accdb[[#This Row],[inbox]])","v":"chi.incoming@hud.gov"}]
[800011135,"Koochiching County Apts.                          ","Littlefork                  ","MN","56653","MARCIA A KOLB                                      ","MARCIA.A.KOLB@hud.gov","612-370-3055","mn.incoming@hud.gov",{"$f":"HYPERLINK(\"mailto:\",Table_Front_desk_report.accdb[[#This Row],[inbox]])","v":"mn.incoming@hud.gov"}]
[800011031,"KOSCIOLEK HOUSE                                   ","MINNEAPOLIS                 ","MN","55404","NATASHA D GUENOVA                                  ","NATASHA.D.GUENOVA@hud.gov","612-370-3035","mn.incoming@hud.gov",{"$f":"HYPERLINK(\"mailto:\",Table_Front_desk_report.accdb[[#This Row],[inbox]])","v":"mn.incoming@hud.gov"}]
[null,"L"]
[800011070,"L.W. FRASER INDEP LIVING PRJ 2 - Lyndale Court    ","Bloomington                 ","MN","55420","SHERRY K NORTON                                    ","Sherry.K.Norton@hud.gov","612-370-3087","mn.incoming@hud.gov",{"$f":"HYPERLINK(\"mailto:\",Table_Front_desk_report.accdb[[#This Row],[inbox]])","v":"mn.incoming@hud.gov"}]
[800023114,"LA CASA VILLAGE APT                               ","WAUKESHA                    ","WI","53186","BRUCE X NASH                                       ","bruce.nash@hud.gov","312-913-8357","chi.incoming@hud.gov",{"$f":"HYPERLINK(\"mailto:\",Table_Front_desk_report.accdb[[#This Row],[inbox]])","v":"chi.incoming@hud.gov"}]
[800069648,"LA CASA VILLAGE II                                ","WAUKESHA                    ","WI","53189","BRUCE X NASH                                       ","bruce.nash@hud.gov","312-913-8357","chi.incoming@hud.gov",{"$f":"HYPERLINK(\"mailto:\",Table_Front_desk_report.accdb[[#This Row],[inbox]])","v":"chi.incoming@hud.gov"}]
[800023115,"LA CORONA  APARTMENTS                             ","MILWAUKEE                   ","WI","53204","LADRENNA A FIGUEROA                                ","ladrenna.a.figueroa@hud.gov","312-913-8290","chi.incoming@hud.gov",{"$f":"HYPERLINK(\"mailto:\",Table_Front_desk_report.accdb[[#This Row],[inbox]])","v":"chi.incoming@hud.gov"}]
[800023116,"LA CROSSE COUNTY HOUSING                          ","HOLMEN                      ","WI","54636","LAWRANCE C MUNDT                                   ","LAWRENCE.C.MUNDT@hud.gov","612-370-3082","mn.incoming@hud.gov",{"$f":"HYPERLINK(\"mailto:\",Table_Front_desk_report.accdb[[#This Row],[inbox]])","v":"mn.incoming@hud.gov"}]
[800023117,"LA FOLLETTE  PARK APARTMENTS                      ","WEST ALLIS                  ","WI","53214","JULIE M WHITEFEATHER                               ","julie.m.whitefeather@hud.gov","312-913-8117","chi.incoming@hud.gov",{"$f":"HYPERLINK(\"mailto:\",Table_Front_desk_report.accdb[[#This Row],[inbox]])","v":"chi.incoming@hud.gov"}]
[800011034,"La Paz Community Apartments                       ","SAINT CLOUD                 ","MN","56301","GREGORY T MERZ                                     ","GREGORY.T.MERZ@hud.gov","612-370-3077","mn.incoming@hud.gov",{"$f":"HYPERLINK(\"mailto:\",Table_Front_desk_report.accdb[[#This Row],[inbox]])","v":"mn.incoming@hud.gov"}]
[800069646,"LA VILLA APARTMENTS                               ","MILWAUKEE                   ","WI","53219","SYLVIA HYDE                                        ","sylvia.hyde@hud.gov","312-913-8573","chi.incoming@hud.gov",{"$f":"HYPERLINK(\"mailto:\",Table_Front_desk_report.accdb[[#This Row],[inbox]])","v":"chi.incoming@hud.gov"}]
[800011035,"LABOR PLAZA                                       ","SAINT PAUL                  ","MN","55101","CAROL DIXON                                        ","Carol.A.Dixon@hud.gov","612-370-3015","mn.incoming@hud.gov",{"$f":"HYPERLINK(\"mailto:\",Table_Front_desk_report.accdb[[#This Row],[inbox]])","v":"mn.incoming@hud.gov"}]
[800011036,"LABOR RETREAT                                     ","MINNEAPOLIS                 ","MN","55414","MITCHELL S HILLMAN                                 ","MITCHELL.S.HILLMAN@hud.gov","612-370-3036","mn.incoming@hud.gov",{"$f":"HYPERLINK(\"mailto:\",Table_Front_desk_report.accdb[[#This Row],[inbox]])","v":"mn.incoming@hud.gov"}]
[800023119,"LACY STREET APARTMENTS                            ","SHELDON                     ","WI","54766","MARCIA A KOLB                                      ","MARCIA.A.KOLB@hud.gov","612-370-3055","mn.incoming@hud.gov",{"$f":"HYPERLINK(\"mailto:\",Table_Front_desk_report.accdb[[#This Row],[inbox]])","v":"mn.incoming@hud.gov"}]
[800011037,"LAKE CITY APARTMENTS                              ","LAKE CITY                   ","MN","55041","JOEL R KLEMM                                       ","JOEL.R.KLEMM@hud.gov","612-370-3053","mn.incoming@hud.gov",{"$f":"HYPERLINK(\"mailto:\",Table_Front_desk_report.accdb[[#This Row],[inbox]])","v":"mn.incoming@hud.gov"}]
[800239004,"LAKE CREST APARTMENTS                             ","Milwaukee                   ","WI","53202","GRACIA M SHIFFRIN                                  ","gracia.m.shiffrin@hud.gov","312-913-8141","chi.incoming@hud.gov",{"$f":"HYPERLINK(\"mailto:\",Table_Front_desk_report.accdb[[#This Row],[inbox]])","v":"chi.incoming@hud.gov"}]
[800011038,"LAKE CRYSTAL TOWERS                               ","LAKE CRYSTAL                ","MN","56055","TERRI A MUNSON                                     ","Terri.A.Munson@hud.gov","612-370-3086","mn.incoming@hud.gov",{"$f":"HYPERLINK(\"mailto:\",Table_Front_desk_report.accdb[[#This Row],[inbox]])","v":"mn.incoming@hud.gov"}]
[800023121,"LAKE FOREST APTS I                                ","OAK CREEK                   ","WI","53154","JAYSEN ALEXANDER                                   ","Jaysen.P.Alexander@hud.gov","312-913-8711","chi.incoming@hud.gov",{"$f":"HYPERLINK(\"mailto:\",Table_Front_desk_report.accdb[[#This Row],[inbox]])","v":"chi.incoming@hud.gov"}]
[800023122,"LAKE FOREST APTS II                               ","OAK CREEK                   ","WI","53154","JAYSEN ALEXANDER                                   ","Jaysen.P.Alexander@hud.gov","312-913-8711","chi.incoming@hud.gov",{"$f":"HYPERLINK(\"mailto:\",Table_Front_desk_report.accdb[[#This Row],[inbox]])","v":"chi.incoming@hud.gov"}]
[800238113,"Lake Pepin Plaza                                  ","Lake City                   ","MN","55041","SHERRY K NORTON                                    ","Sherry.K.Norton@hud.gov","612-370-3087","mn.incoming@hud.gov",{"$f":"HYPERLINK(\"mailto:\",Table_Front_desk_report.accdb[[#This Row],[inbox]])","v":"mn.incoming@hud.gov"}]
[800236996,"LAKE POINT TERRACE                                ","Madison                     ","WI","53713","MARLENE X TRIMUEL                                  ","Marlene.Trimuel@hud.gov","312-913-8369","chi.incoming@hud.gov",{"$f":"HYPERLINK(\"mailto:\",Table_Front_desk_report.accdb[[#This Row],[inbox]])","v":"chi.incoming@hud.gov"}]
[800233509,"LAKEFRONT MANOR AND VILLAS                        ","Oshkosh                     ","WI","54901","PAUL A DUHR                                        ","paul.a.duhr@hud.gov","414-935-6681","mn.incoming@hud.gov",{"$f":"HYPERLINK(\"mailto:\",Table_Front_desk_report.accdb[[#This Row],[inbox]])","v":"mn.incoming@hud.gov"}]
[800023123,"LAKELAND APARTMENTS                               ","DELAVAN                     ","WI","53115","LADRENNA A FIGUEROA                                ","ladrenna.a.figueroa@hud.gov","312-913-8290","chi.incoming@hud.gov",{"$f":"HYPERLINK(\"mailto:\",Table_Front_desk_report.accdb[[#This Row],[inbox]])","v":"chi.incoming@hud.gov"}]
[800023435,"LAKELAND MANOR                                    ","TURTLE LAKE                 ","WI","54889","JOEL R KLEMM                                       ","JOEL.R.KLEMM@hud.gov","612-370-3053","mn.incoming@hud.gov",{"$f":"HYPERLINK(\"mailto:\",Table_Front_desk_report.accdb[[#This Row],[inbox]])","v":"mn.incoming@hud.gov"}]
[800011040,"LAKELAND SHORES APARTMENTS                        ","DULUTH                      ","MN","55804","GREGORY T MERZ                                     ","GREGORY.T.MERZ@hud.gov","612-370-3077","mn.incoming@hud.gov",{"$f":"HYPERLINK(\"mailto:\",Table_Front_desk_report.accdb[[#This Row],[inbox]])","v":"mn.incoming@hud.gov"}]
[800011041,"Lakes Homes & Prog. Develp. Inc.                  ","DETROIT LAKES               ","MN","56501","GREGORY T MERZ                                     ","GREGORY.T.MERZ@hud.gov","612-370-3077","mn.incoming@hud.gov",{"$f":"HYPERLINK(\"mailto:\",Table_Front_desk_report.accdb[[#This Row],[inbox]])","v":"mn.incoming@hud.gov"}]
[800238786,"Lakeshore Oaks Apartments                         ","Shoreview                   ","MN","55126","TERESA C PARKER                                    ","TERESA.C.PARKER@hud.gov","612-370-3092","mn.incoming@hud.gov",{"$f":"HYPERLINK(\"mailto:\",Table_Front_desk_report.accdb[[#This Row],[inbox]])","v":"mn.incoming@hud.gov"}]
[800022966,"LAKESIDE GARDENS                                  ","FOND DU LAC                 ","WI","54935","CATHERINE A TEMPLE                                 ","Catherine.A.Temple@hud.gov","414-935-6695","mn.incoming@hud.gov",{"$f":"HYPERLINK(\"mailto:\",Table_Front_desk_report.accdb[[#This Row],[inbox]])","v":"mn.incoming@hud.gov"}]
[800011042,"LAKESIDE MANOR                                    ","CHISHOLM                    ","MN","55719","CAROL DIXON                                        ","Carol.A.Dixon@hud.gov","612-370-3015","mn.incoming@hud.gov",{"$f":"HYPERLINK(\"mailto:\",Table_Front_desk_report.accdb[[#This Row],[inbox]])","v":"mn.incoming@hud.gov"}]
[800023124,"LAKESIDE TOWER                                    ","KENOSHA                     ","WI","53140","TANIKA MATHIS-EARSERY                              ","tanika.mathis-earsery@hud.gov","312-913-8433","chi.incoming@hud.gov",{"$f":"HYPERLINK(\"mailto:\",Table_Front_desk_report.accdb[[#This Row],[inbox]])","v":"chi.incoming@hud.gov"}]
[800011043,"LAKESIDE VILLA  APARTMENTS                        ","COLOGNE                     ","MN","55322","MITCHELL S HILLMAN                                 ","MITCHELL.S.HILLMAN@hud.gov","612-370-3036","mn.incoming@hud.gov",{"$f":"HYPERLINK(\"mailto:\",Table_Front_desk_report.accdb[[#This Row],[inbox]])","v":"mn.incoming@hud.gov"}]
[800023125,"LAKEVIEW VILLAGE/MAPLE TERRACE                    ","MOUNT HOREB                 ","WI","53572","ARUNA SHAH                                         ","aruna.shah@hud.gov","312-913-8588","chi.incoming@hud.gov",{"$f":"HYPERLINK(\"mailto:\",Table_Front_desk_report.accdb[[#This Row],[inbox]])","v":"chi.incoming@hud.gov"}]
[800234732,"Lakeville Court                                   ","Lakeville                   ","MN","55044","DARIAN JANE ZIEGLER                                ","Darian.Ziegler@hud.gov","612-370-3270","mn.incoming@hud.gov",{"$f":"HYPERLINK(\"mailto:\",Table_Front_desk_report.accdb[[#This Row],[inbox]])","v":"mn.incoming@hud.gov"}]
[800233303,"Lakeville Woods Apartments                        ","Lakeville                   ","MN","55044","JOEL R KLEMM                                       ","JOEL.R.KLEMM@hud.gov","612-370-3053","mn.incoming@hud.gov",{"$f":"HYPERLINK(\"mailto:\",Table_Front_desk_report.accdb[[#This Row],[inbox]])","v":"mn.incoming@hud.gov"}]
[800011045,"LAKEWOOD APARTMENTS                               ","CHATFIELD                   ","MN","55923","MARCIA A KOLB                                      ","MARCIA.A.KOLB@hud.gov","612-370-3055","mn.incoming@hud.gov",{"$f":"HYPERLINK(\"mailto:\",Table_Front_desk_report.accdb[[#This Row],[inbox]])","v":"mn.incoming@hud.gov"}]
[800238546,"Lakewood Isles                                    ","Minneapolis                 ","MN","55416","TEENA M GEE                                        ","Teena.M.Gee@hud.gov","612-843-6414","mn.incoming@hud.gov",{"$f":"HYPERLINK(\"mailto:\",Table_Front_desk_report.accdb[[#This Row],[inbox]])","v":"mn.incoming@hud.gov"}]
[800217499,"Lakewood Place Apt's                              ","White Bear Lake             ","MN","55110","LAWRANCE C MUNDT                                   ","LAWRENCE.C.MUNDT@hud.gov","612-370-3082","mn.incoming@hud.gov",{"$f":"HYPERLINK(\"mailto:\",Table_Front_desk_report.accdb[[#This Row],[inbox]])","v":"mn.incoming@hud.gov"}]
[800225452,"LAMPLIGHT APARTMENTS                              ","Kaukauna                    ","WI","54130","MARCIA A KOLB                                      ","MARCIA.A.KOLB@hud.gov","612-370-3055","mn.incoming@hud.gov",{"$f":"HYPERLINK(\"mailto:\",Table_Front_desk_report.accdb[[#This Row],[inbox]])","v":"mn.incoming@hud.gov"}]
[800011046,"LAMPLIGHTER MANOR                                 ","DETROIT LAKES               ","MN","56501","MITCHELL S HILLMAN                                 ","MITCHELL.S.HILLMAN@hud.gov","612-370-3036","mn.incoming@hud.gov",{"$f":"HYPERLINK(\"mailto:\",Table_Front_desk_report.accdb[[#This Row],[inbox]])","v":"mn.incoming@hud.gov"}]
[800011048,"LANCASTER HOMES II                                ","Lancaster                   ","MN","56735","TERESA C PARKER                                    ","TERESA.C.PARKER@hud.gov","612-370-3092","mn.incoming@hud.gov",{"$f":"HYPERLINK(\"mailto:\",Table_Front_desk_report.accdb[[#This Row],[inbox]])","v":"mn.incoming@hud.gov"}]
[800011047,"LANCASTER HOMES, INC.                             ","LANCASTER                   ","MN","56735","TERESA C PARKER                                    ","TERESA.C.PARKER@hud.gov","612-370-3092","mn.incoming@hud.gov",{"$f":"HYPERLINK(\"mailto:\",Table_Front_desk_report.accdb[[#This Row],[inbox]])","v":"mn.incoming@hud.gov"}]
[800243628,"Lancer Village Apartments                         ","La Crescent                 ","MN","55947","SHERRY K NORTON                                    ","Sherry.K.Norton@hud.gov","612-370-3087","mn.incoming@hud.gov",{"$f":"HYPERLINK(\"mailto:\",Table_Front_desk_report.accdb[[#This Row],[inbox]])","v":"mn.incoming@hud.gov"}]
[800238317,"LANDMARK OF WEST ALLIS                            ","West Allis                  ","WI","53214","DORTHY L HOPKINS                                   ","dorthy.l.hopkins@hud.gov","312-913-8172","chi.incoming@hud.gov",{"$f":"HYPERLINK(\"mailto:\",Table_Front_desk_report.accdb[[#This Row],[inbox]])","v":"chi.incoming@hud.gov"}]
[800011049,"LANESBORO HEIGHTS                                 ","ELK RIVER                   ","MN","55330","JOEL R KLEMM                                       ","JOEL.R.KLEMM@hud.gov","612-370-3053","mn.incoming@hud.gov",{"$f":"HYPERLINK(\"mailto:\",Table_Front_desk_report.accdb[[#This Row],[inbox]])","v":"mn.incoming@hud.gov"}]
[800023126,"LAONA MANOR                                       ","LAONA                       ","WI","54541","PAUL A DUHR                                        ","paul.a.duhr@hud.gov","414-935-6681","mn.incoming@hud.gov",{"$f":"HYPERLINK(\"mailto:\",Table_Front_desk_report.accdb[[#This Row],[inbox]])","v":"mn.incoming@hud.gov"}]
[800011051,"LARSON COMMONS  aka Larson Tower                  ","CLOQUET                     ","MN","55720","DARIAN JANE ZIEGLER                                ","Darian.Ziegler@hud.gov","612-370-3270","mn.incoming@hud.gov",{"$f":"HYPERLINK(\"mailto:\",Table_Front_desk_report.accdb[[#This Row],[inbox]])","v":"mn.incoming@hud.gov"}]
[800023127,"LAUREL GARDENS APARTMENTS                         ","MARSHFIELD                  ","WI","54449","ANDREA L CARSON                                    ","andrea.carson@hud.gov","414-935-6679","mn.incoming@hud.gov",{"$f":"HYPERLINK(\"mailto:\",Table_Front_desk_report.accdb[[#This Row],[inbox]])","v":"mn.incoming@hud.gov"}]
[800023128,"LAYTON GARDENS APTS PHASE I, II, III              ","MILWAUKEE                   ","WI","53221","ARUNA SHAH                                         ","aruna.shah@hud.gov","312-913-8588","chi.incoming@hud.gov",{"$f":"HYPERLINK(\"mailto:\",Table_Front_desk_report.accdb[[#This Row],[inbox]])","v":"chi.incoming@hud.gov"}]
[800072706,"Leah's Apartments                                 ","BURNSVILLE                  ","MN","55337","SHERRY K NORTON                                    ","Sherry.K.Norton@hud.gov","612-370-3087","mn.incoming@hud.gov",{"$f":"HYPERLINK(\"mailto:\",Table_Front_desk_report.accdb[[#This Row],[inbox]])","v":"mn.incoming@hud.gov"}]
[800011032,"LEE CENTER                                        ","HIBBING                     ","MN","55746","BEN OSBORN                                         ","Benjamin.M.Osborn@hud.gov","612-370-3091","mn.incoming@hud.gov",{"$f":"HYPERLINK(\"mailto:\",Table_Front_desk_report.accdb[[#This Row],[inbox]])","v":"mn.incoming@hud.gov"}]
[800023132,"LENA PLAZA                                        ","LENA                        ","WI","54139","CATHERINE A TEMPLE                                 ","Catherine.A.Temple@hud.gov","414-935-6695","mn.incoming@hud.gov",{"$f":"HYPERLINK(\"mailto:\",Table_Front_desk_report.accdb[[#This Row],[inbox]])","v":"mn.incoming@hud.gov"}]
[800011052,"LENOX PLACE                                       ","DULUTH                      ","MN","55802","GREGORY T MERZ                                     ","GREGORY.T.MERZ@hud.gov","612-370-3077","mn.incoming@hud.gov",{"$f":"HYPERLINK(\"mailto:\",Table_Front_desk_report.accdb[[#This Row],[inbox]])","v":"mn.incoming@hud.gov"}]
[800022950,"LEO FISHMAN MANOR & AL BALDUS MANOR               ","ONALASKA                    ","WI","54650","CATHERINE A TEMPLE                                 ","Catherine.A.Temple@hud.gov","414-935-6695","mn.incoming@hud.gov",{"$f":"HYPERLINK(\"mailto:\",Table_Front_desk_report.accdb[[#This Row],[inbox]])","v":"mn.incoming@hud.gov"}]
[800234618,"LEOPOLD PLACE APARTMENTS                          ","Sun Prairie                 ","WI","53590","DONNA M SHEEHAN                                    ","Donna.Sheehan@hud.gov"," 312-957-4781 ","chi.incoming@hud.gov",{"$f":"HYPERLINK(\"mailto:\",Table_Front_desk_report.accdb[[#This Row],[inbox]])","v":"chi.incoming@hud.gov"}]
[800023133,"LEVI-BARNES MANOR                                 ","WATERFORD                   ","WI","53185","DORTHY L HOPKINS                                   ","dorthy.l.hopkins@hud.gov","312-913-8172","chi.incoming@hud.gov",{"$f":"HYPERLINK(\"mailto:\",Table_Front_desk_report.accdb[[#This Row],[inbox]])","v":"chi.incoming@hud.gov"}]
[800011054,"LEWIS PARK                                        ","SAINT PAUL                  ","MN","55117","SUSAN K ROSKOS                                     ","Susan.K.Roskos@hud.gov","612-370-3110","mn.incoming@hud.gov",{"$f":"HYPERLINK(\"mailto:\",Table_Front_desk_report.accdb[[#This Row],[inbox]])","v":"mn.incoming@hud.gov"}]
[800023134,"LEXINGTON COURT TOWNHOMES                         ","JANESVILLE                  ","WI","53545","RAYNARD L OWENS                                    ","Raynard.Owens@hud.gov","312-913-8788","chi.incoming@hud.gov",{"$f":"HYPERLINK(\"mailto:\",Table_Front_desk_report.accdb[[#This Row],[inbox]])","v":"chi.incoming@hud.gov"}]
[800044448,"LIBERTY PLAZA                                     ","SAINT PAUL                  ","MN","55102","DARIAN JANE ZIEGLER                                ","Darian.Ziegler@hud.gov","612-370-3270","mn.incoming@hud.gov",{"$f":"HYPERLINK(\"mailto:\",Table_Front_desk_report.accdb[[#This Row],[inbox]])","v":"mn.incoming@hud.gov"}]
[800240672,"LIBRARY HILL APARTMENTS                           ","Milwaukee                   ","WI","53233","MICHAEL D FURNNER                                  ","MICHAEL.D.FURNNER@hud.gov","414-935-6682","mn.incoming@hud.gov",{"$f":"HYPERLINK(\"mailto:\",Table_Front_desk_report.accdb[[#This Row],[inbox]])","v":"mn.incoming@hud.gov"}]
[800220042,"LIGHTHOUSE POINT APARTMENTS                       ","Racine                      ","WI","53402","DORTHY L HOPKINS                                   ","dorthy.l.hopkins@hud.gov","312-913-8172","chi.incoming@hud.gov",{"$f":"HYPERLINK(\"mailto:\",Table_Front_desk_report.accdb[[#This Row],[inbox]])","v":"chi.incoming@hud.gov"}]
[800223873,"LILAC GROVE APARTMENTS                            ","Siren                       ","WI","54872","ANDREA L CARSON                                    ","andrea.carson@hud.gov","414-935-6679","mn.incoming@hud.gov",{"$f":"HYPERLINK(\"mailto:\",Table_Front_desk_report.accdb[[#This Row],[inbox]])","v":"mn.incoming@hud.gov"}]
[800011057,"LILAC PARKWAY APTS                                ","ROBBINSDALE                 ","MN","55422","CAROL DIXON                                        ","Carol.A.Dixon@hud.gov","612-370-3015","mn.incoming@hud.gov",{"$f":"HYPERLINK(\"mailto:\",Table_Front_desk_report.accdb[[#This Row],[inbox]])","v":"mn.incoming@hud.gov"}]
[800011058,"LINCOLN CENTER                                    ","CHISHOLM                    ","MN","55719","NATASHA D GUENOVA                                  ","NATASHA.D.GUENOVA@hud.gov","612-370-3035","mn.incoming@hud.gov",{"$f":"HYPERLINK(\"mailto:\",Table_Front_desk_report.accdb[[#This Row],[inbox]])","v":"mn.incoming@hud.gov"}]
[800022836,"LINCOLN GROUP HOME                                ","STOUGHTON                   ","WI","53589","DORTHY L HOPKINS                                   ","dorthy.l.hopkins@hud.gov","312-913-8172","chi.incoming@hud.gov",{"$f":"HYPERLINK(\"mailto:\",Table_Front_desk_report.accdb[[#This Row],[inbox]])","v":"chi.incoming@hud.gov"}]
[800023135,"LINCOLN HEIGHTS                                   ","MERRILL                     ","WI","54452","CATHERINE A TEMPLE                                 ","Catherine.A.Temple@hud.gov","414-935-6695","mn.incoming@hud.gov",{"$f":"HYPERLINK(\"mailto:\",Table_Front_desk_report.accdb[[#This Row],[inbox]])","v":"mn.incoming@hud.gov"}]
[800023136,"LINCOLN MANOR OF RACINE                           ","RACINE                      ","WI","53406","TERESA C PARKER                                    ","TERESA.C.PARKER@hud.gov","612-370-3092","mn.incoming@hud.gov",{"$f":"HYPERLINK(\"mailto:\",Table_Front_desk_report.accdb[[#This Row],[inbox]])","v":"mn.incoming@hud.gov"}]
[800213722,"LINCOLN PARC APARTMENTS                           ","EDEN PRAIRIE                ","MN","55344","MARCIA A KOLB                                      ","MARCIA.A.KOLB@hud.gov","612-370-3055","mn.incoming@hud.gov",{"$f":"HYPERLINK(\"mailto:\",Table_Front_desk_report.accdb[[#This Row],[inbox]])","v":"mn.incoming@hud.gov"}]
[800010871,"Lincoln Place aka Diamond Estates                 ","MAHTOMEDI                   ","MN","55115","DARIAN JANE ZIEGLER                                ","Darian.Ziegler@hud.gov","612-370-3270","mn.incoming@hud.gov",{"$f":"HYPERLINK(\"mailto:\",Table_Front_desk_report.accdb[[#This Row],[inbox]])","v":"mn.incoming@hud.gov"}]
[800011059,"LINCOLN SQUARE                                    ","OWATONNA                    ","MN","55060","DARIAN JANE ZIEGLER                                ","Darian.Ziegler@hud.gov","612-370-3270","mn.incoming@hud.gov",{"$f":"HYPERLINK(\"mailto:\",Table_Front_desk_report.accdb[[#This Row],[inbox]])","v":"mn.incoming@hud.gov"}]
[800023138,"LINCOLN VILLAS NORTH                              ","RACINE                      ","WI","53402","TERESA C PARKER                                    ","TERESA.C.PARKER@hud.gov","612-370-3092","mn.incoming@hud.gov",{"$f":"HYPERLINK(\"mailto:\",Table_Front_desk_report.accdb[[#This Row],[inbox]])","v":"mn.incoming@hud.gov"}]
[800023137,"LINCOLN VILLAS REDEVELOPMENT LLC                  ","RACINE                      ","WI","53406","TERESA C PARKER                                    ","TERESA.C.PARKER@hud.gov","612-370-3092","mn.incoming@hud.gov",{"$f":"HYPERLINK(\"mailto:\",Table_Front_desk_report.accdb[[#This Row],[inbox]])","v":"mn.incoming@hud.gov"}]
[800244299,"Linden Grove Veteran Apartments                   ","St Cloud                    ","MN","56303","TERRI A MUNSON                                     ","Terri.A.Munson@hud.gov","612-370-3086","mn.incoming@hud.gov",{"$f":"HYPERLINK(\"mailto:\",Table_Front_desk_report.accdb[[#This Row],[inbox]])","v":"mn.incoming@hud.gov"}]
[800011281,"LINDEN WOOD APARTMENTS                            ","WINSTED                     ","MN","55395","SHERRY K NORTON                                    ","Sherry.K.Norton@hud.gov","612-370-3087","mn.incoming@hud.gov",{"$f":"HYPERLINK(\"mailto:\",Table_Front_desk_report.accdb[[#This Row],[inbox]])","v":"mn.incoming@hud.gov"}]
[800011060,"LINDERHOF PARK APARTMENTS                         ","NEW ULM                     ","MN","56073","JOEL R KLEMM                                       ","JOEL.R.KLEMM@hud.gov","612-370-3053","mn.incoming@hud.gov",{"$f":"HYPERLINK(\"mailto:\",Table_Front_desk_report.accdb[[#This Row],[inbox]])","v":"mn.incoming@hud.gov"}]
[800023139,"LINDSAY COMMONS                                   ","MILWAUKEE                   ","WI","53205","YOLANDA S MILLER                                   ","yolanda.s.miller@hud.gov","312-913-8580","chi.incoming@hud.gov",{"$f":"HYPERLINK(\"mailto:\",Table_Front_desk_report.accdb[[#This Row],[inbox]])","v":"chi.incoming@hud.gov"}]
[800023968,"Little Earth of United Tribes                     ","MINNEAPOLIS                 ","MN","55404","TERRI A MUNSON                                     ","Terri.A.Munson@hud.gov","612-370-3086","mn.incoming@hud.gov",{"$f":"HYPERLINK(\"mailto:\",Table_Front_desk_report.accdb[[#This Row],[inbox]])","v":"mn.incoming@hud.gov"}]
[800010835,"LivingLinks                                       ","NORTH MANKATO               ","MN","56003","TERRI A MUNSON                                     ","Terri.A.Munson@hud.gov","612-370-3086","mn.incoming@hud.gov",{"$f":"HYPERLINK(\"mailto:\",Table_Front_desk_report.accdb[[#This Row],[inbox]])","v":"mn.incoming@hud.gov"}]
[800023430,"LONGFELLOW & WHITTIER APTS                        ","TOMAHAWK                    ","WI","54487","SUSAN K ROSKOS                                     ","Susan.K.Roskos@hud.gov","612-370-3110","mn.incoming@hud.gov",{"$f":"HYPERLINK(\"mailto:\",Table_Front_desk_report.accdb[[#This Row],[inbox]])","v":"mn.incoming@hud.gov"}]
[800011065,"LONNIE ADKINS COURT                               ","SAINT PAUL                  ","MN","55103","CAROL DIXON                                        ","Carol.A.Dixon@hud.gov","612-370-3015","mn.incoming@hud.gov",{"$f":"HYPERLINK(\"mailto:\",Table_Front_desk_report.accdb[[#This Row],[inbox]])","v":"mn.incoming@hud.gov"}]
[800011067,"LORING 100 APARTMENTS                             ","MINNEAPOLIS                 ","MN","55403","MICHAEL P MORAN                                    ","MICHAEL.P.MORAN@HUD.GOV","612-370-3081","mn.incoming@hud.gov",{"$f":"HYPERLINK(\"mailto:\",Table_Front_desk_report.accdb[[#This Row],[inbox]])","v":"mn.incoming@hud.gov"}]
[800011066,"LORING TOWERS APARTMENTS                          ","MINNEAPOLIS                 ","MN","55403","DARIAN JANE ZIEGLER                                ","Darian.Ziegler@hud.gov","612-370-3270","mn.incoming@hud.gov",{"$f":"HYPERLINK(\"mailto:\",Table_Front_desk_report.accdb[[#This Row],[inbox]])","v":"mn.incoming@hud.gov"}]
[800225985,"LORRAINE GLASSING VILLA                           ","Spooner                     ","WI","54801","PAUL A DUHR                                        ","paul.a.duhr@hud.gov","414-935-6681","mn.incoming@hud.gov",{"$f":"HYPERLINK(\"mailto:\",Table_Front_desk_report.accdb[[#This Row],[inbox]])","v":"mn.incoming@hud.gov"}]
[800011068,"LOU PARK APARTMENTS                               ","SAINT LOUIS PARK            ","MN","55426","MITCHELL S HILLMAN                                 ","MITCHELL.S.HILLMAN@hud.gov","612-370-3036","mn.incoming@hud.gov",{"$f":"HYPERLINK(\"mailto:\",Table_Front_desk_report.accdb[[#This Row],[inbox]])","v":"mn.incoming@hud.gov"}]
[800237697,"Lowertown Commons                                 ","Saint Paul                  ","MN","55101","TERESA C PARKER                                    ","TERESA.C.PARKER@hud.gov","612-370-3092","mn.incoming@hud.gov",{"$f":"HYPERLINK(\"mailto:\",Table_Front_desk_report.accdb[[#This Row],[inbox]])","v":"mn.incoming@hud.gov"}]
[800234090,"Lowertown Lofts Apt's                             ","Saint Paul                  ","MN","55101","LAWRANCE C MUNDT                                   ","LAWRENCE.C.MUNDT@hud.gov","612-370-3082","mn.incoming@hud.gov",{"$f":"HYPERLINK(\"mailto:\",Table_Front_desk_report.accdb[[#This Row],[inbox]])","v":"mn.incoming@hud.gov"}]
[800227500,"Lowertown Lofts Cooperative                       ","Saint Paul                  ","MN","55101","DARIAN JANE ZIEGLER                                ","Darian.Ziegler@hud.gov","612-370-3270","mn.incoming@hud.gov",{"$f":"HYPERLINK(\"mailto:\",Table_Front_desk_report.accdb[[#This Row],[inbox]])","v":"mn.incoming@hud.gov"}]
[800235755,"LSS HICKORY HILL II                               ","Waukesha                    ","WI","53188","ARNOLD PEOPLES                                     ","arnold.peoples@hud.gov","312-913-8103","chi.incoming@hud.gov",{"$f":"HYPERLINK(\"mailto:\",Table_Front_desk_report.accdb[[#This Row],[inbox]])","v":"chi.incoming@hud.gov"}]
[800023030,"LSS HOUSING, GERMANTOWN                           ","GERMANTOWN                  ","WI","53022","CATHERINE A TEMPLE                                 ","Catherine.A.Temple@hud.gov","414-935-6695","mn.incoming@hud.gov",{"$f":"HYPERLINK(\"mailto:\",Table_Front_desk_report.accdb[[#This Row],[inbox]])","v":"mn.incoming@hud.gov"}]
[800023348,"LSS OF WISCONSIN 9 SCATTERED SITES                ","Milwaukee                   ","WI","53216","ARNITA X SCOTT                                     ","arnita.scott@hud.gov","312-913-8574","chi.incoming@hud.gov",{"$f":"HYPERLINK(\"mailto:\",Table_Front_desk_report.accdb[[#This Row],[inbox]])","v":"chi.incoming@hud.gov"}]
[800023148,"LUTHER LAKESIDE APTS                              ","EAU CLAIRE                  ","WI","54703","ANDREA L CARSON                                    ","andrea.carson@hud.gov","414-935-6679","mn.incoming@hud.gov",{"$f":"HYPERLINK(\"mailto:\",Table_Front_desk_report.accdb[[#This Row],[inbox]])","v":"mn.incoming@hud.gov"}]
[800211022,"Lyndale Avenue Townhomes                          ","BLOOMINGTON                 ","MN","55420","MITCHELL S HILLMAN                                 ","MITCHELL.S.HILLMAN@hud.gov","612-370-3036","mn.incoming@hud.gov",{"$f":"HYPERLINK(\"mailto:\",Table_Front_desk_report.accdb[[#This Row],[inbox]])","v":"mn.incoming@hud.gov"}]
[800233952,"Lyndale Green                                     ","Minneapolis                 ","MN","55408","DARIAN JANE ZIEGLER                                ","Darian.Ziegler@hud.gov","612-370-3270","mn.incoming@hud.gov",{"$f":"HYPERLINK(\"mailto:\",Table_Front_desk_report.accdb[[#This Row],[inbox]])","v":"mn.incoming@hud.gov"}]
[800239628,"Lyndale Plaza Apartments                          ","Richfield                   ","MN","55423","SHERRY K NORTON                                    ","Sherry.K.Norton@hud.gov","612-370-3087","mn.incoming@hud.gov",{"$f":"HYPERLINK(\"mailto:\",Table_Front_desk_report.accdb[[#This Row],[inbox]])","v":"mn.incoming@hud.gov"}]
[800011071,"LYNGBLOMSTEN APARTMENTS                           ","SAINT PAUL                  ","MN","55108","TERESA C PARKER                                    ","TERESA.C.PARKER@hud.gov","612-370-3092","mn.incoming@hud.gov",{"$f":"HYPERLINK(\"mailto:\",Table_Front_desk_report.accdb[[#This Row],[inbox]])","v":"mn.incoming@hud.gov"}]
[800238115,"Lynwood Commons                                   ","Richfield                   ","MN","55432","CAROL DIXON                                        ","Carol.A.Dixon@hud.gov","612-370-3015","mn.incoming@hud.gov",{"$f":"HYPERLINK(\"mailto:\",Table_Front_desk_report.accdb[[#This Row],[inbox]])","v":"mn.incoming@hud.gov"}]
[800011072,"LYON COUNTY RETIREMENT HOME                       ","MARSHALL                    ","MN","56258","JOEL R KLEMM                                       ","JOEL.R.KLEMM@hud.gov","612-370-3053","mn.incoming@hud.gov",{"$f":"HYPERLINK(\"mailto:\",Table_Front_desk_report.accdb[[#This Row],[inbox]])","v":"mn.incoming@hud.gov"}]
[800220105,"Lyons Court Independent Living Facility           ","Saint Paul                  ","MN","55101","TERESA C PARKER                                    ","TERESA.C.PARKER@hud.gov","612-370-3092","mn.incoming@hud.gov",{"$f":"HYPERLINK(\"mailto:\",Table_Front_desk_report.accdb[[#This Row],[inbox]])","v":"mn.incoming@hud.gov"}]
[null,"M"]
[800023150,"MABESS MANOR                                      ","CAMPBELLSPORT               ","WI","53010","CATHERINE A TEMPLE                                 ","Catherine.A.Temple@hud.gov","414-935-6695","mn.incoming@hud.gov",{"$f":"HYPERLINK(\"mailto:\",Table_Front_desk_report.accdb[[#This Row],[inbox]])","v":"mn.incoming@hud.gov"}]
[800011075,"MADISON APARTMENTS                                ","MINNEAPOLIS                 ","MN","55404","JULIE A LASOTA                                     ","Julie.A.Lasota@hud.gov","612-370-3066","mn.incoming@hud.gov",{"$f":"HYPERLINK(\"mailto:\",Table_Front_desk_report.accdb[[#This Row],[inbox]])","v":"mn.incoming@hud.gov"}]
[800069654,"MAIN CREEK VILLA                                  ","Conrath                     ","WI","54731","JOEL R KLEMM                                       ","JOEL.R.KLEMM@hud.gov","612-370-3053","mn.incoming@hud.gov",{"$f":"HYPERLINK(\"mailto:\",Table_Front_desk_report.accdb[[#This Row],[inbox]])","v":"mn.incoming@hud.gov"}]
[800023151,"MAIN STREET GARDENS                               ","MILWAUKEE                   ","WI","53214","LADRENNA A FIGUEROA                                ","ladrenna.a.figueroa@hud.gov","312-913-8290","chi.incoming@hud.gov",{"$f":"HYPERLINK(\"mailto:\",Table_Front_desk_report.accdb[[#This Row],[inbox]])","v":"chi.incoming@hud.gov"}]
[800043888,"MAJESTIC PINES                                    ","WHITE BEAR LAKE             ","MN","55110","GREGORY T MERZ                                     ","GREGORY.T.MERZ@hud.gov","612-370-3077","mn.incoming@hud.gov",{"$f":"HYPERLINK(\"mailto:\",Table_Front_desk_report.accdb[[#This Row],[inbox]])","v":"mn.incoming@hud.gov"}]
[800238713,"Mallard Creek Apartments                          ","Golden Valley               ","MN","55427","MARCIA A KOLB                                      ","MARCIA.A.KOLB@hud.gov","612-370-3055","mn.incoming@hud.gov",{"$f":"HYPERLINK(\"mailto:\",Table_Front_desk_report.accdb[[#This Row],[inbox]])","v":"mn.incoming@hud.gov"}]
[800233123,"Mallard Ridge Apartments                          ","Maple Grove                 ","MN","55369","CAROL DIXON                                        ","Carol.A.Dixon@hud.gov","612-370-3015","mn.incoming@hud.gov",{"$f":"HYPERLINK(\"mailto:\",Table_Front_desk_report.accdb[[#This Row],[inbox]])","v":"mn.incoming@hud.gov"}]
[800079173,"MANCHESTER HEIGHTS                                ","Grafton                     ","WI","53024","PAUL A DUHR                                        ","paul.a.duhr@hud.gov","414-935-6681","mn.incoming@hud.gov",{"$f":"HYPERLINK(\"mailto:\",Table_Front_desk_report.accdb[[#This Row],[inbox]])","v":"mn.incoming@hud.gov"}]
[800235179,"MANCHESTER OAKS APARTMENTS                        ","Franklin                    ","WI","53132","CINDY BEHNKE                                       ","cynthia.behnke@hud.gov","612-370-3278","mn.incoming@hud.gov",{"$f":"HYPERLINK(\"mailto:\",Table_Front_desk_report.accdb[[#This Row],[inbox]])","v":"mn.incoming@hud.gov"}]
[800023153,"MANITOWOC SHORES                                  ","MANITOWOC                   ","WI","54220","CATHERINE A TEMPLE                                 ","Catherine.A.Temple@hud.gov","414-935-6695","mn.incoming@hud.gov",{"$f":"HYPERLINK(\"mailto:\",Table_Front_desk_report.accdb[[#This Row],[inbox]])","v":"mn.incoming@hud.gov"}]
[800243678,"Manor Royal                                       ","Plymouth                    ","MN","55441","GREGORY T MERZ                                     ","GREGORY.T.MERZ@hud.gov","612-370-3077","mn.incoming@hud.gov",{"$f":"HYPERLINK(\"mailto:\",Table_Front_desk_report.accdb[[#This Row],[inbox]])","v":"mn.incoming@hud.gov"}]
[800244004,"Manseau Flats                                     ","Ashwaubenon                 ","WI","54304","MICHAEL D FURNNER                                  ","MICHAEL.D.FURNNER@hud.gov","414-935-6682","mn.incoming@hud.gov",{"$f":"HYPERLINK(\"mailto:\",Table_Front_desk_report.accdb[[#This Row],[inbox]])","v":"mn.incoming@hud.gov"}]
[800011077,"MAPLE DELL APTS.                                  ","BUFFALO                     ","MN","55313","MICHAEL P MORAN                                    ","MICHAEL.P.MORAN@HUD.GOV","612-370-3081","mn.incoming@hud.gov",{"$f":"HYPERLINK(\"mailto:\",Table_Front_desk_report.accdb[[#This Row],[inbox]])","v":"mn.incoming@hud.gov"}]
[800011078,"MAPLE GROVE ESTATES                               ","HERMANTOWN                  ","MN","55811","THOMAS G DURSCHER                                  ","Thomas.G.Durscher@hud.gov","612-370-3018","mn.incoming@hud.gov",{"$f":"HYPERLINK(\"mailto:\",Table_Front_desk_report.accdb[[#This Row],[inbox]])","v":"mn.incoming@hud.gov"}]
[800011079,"MAPLE HILLS APARTMENTS                            ","RED WING                    ","MN","55066","JOEL R KLEMM                                       ","JOEL.R.KLEMM@hud.gov","612-370-3053","mn.incoming@hud.gov",{"$f":"HYPERLINK(\"mailto:\",Table_Front_desk_report.accdb[[#This Row],[inbox]])","v":"mn.incoming@hud.gov"}]
[800011080,"MAPLE KNOLL                                       ","SAINT PAUL                  ","MN","55109","CAROL DIXON                                        ","Carol.A.Dixon@hud.gov","612-370-3015","mn.incoming@hud.gov",{"$f":"HYPERLINK(\"mailto:\",Table_Front_desk_report.accdb[[#This Row],[inbox]])","v":"mn.incoming@hud.gov"}]
[800237767,"MAPLE LAWN APARTMENTS                             ","Fitchburg                   ","WI","53713","ARNOLD PEOPLES                                     ","arnold.peoples@hud.gov","312-913-8103","chi.incoming@hud.gov",{"$f":"HYPERLINK(\"mailto:\",Table_Front_desk_report.accdb[[#This Row],[inbox]])","v":"chi.incoming@hud.gov"}]
[800022967,"MAPLE LEAF TOWNHOUSES                             ","GREEN BAY                   ","WI","54303","MICHAEL D FURNNER                                  ","MICHAEL.D.FURNNER@hud.gov","414-935-6682","mn.incoming@hud.gov",{"$f":"HYPERLINK(\"mailto:\",Table_Front_desk_report.accdb[[#This Row],[inbox]])","v":"mn.incoming@hud.gov"}]
[800011081,"MAPLE RIDGE MANOR                                 ","ALEXANDRIA                  ","MN","56308","JOEL R KLEMM                                       ","JOEL.R.KLEMM@hud.gov","612-370-3053","mn.incoming@hud.gov",{"$f":"HYPERLINK(\"mailto:\",Table_Front_desk_report.accdb[[#This Row],[inbox]])","v":"mn.incoming@hud.gov"}]
[800011082,"Maple Terrace                                     ","MAPLE PLAIN                 ","MN","55359","LAWRANCE C MUNDT                                   ","LAWRENCE.C.MUNDT@hud.gov","612-370-3082","mn.incoming@hud.gov",{"$f":"HYPERLINK(\"mailto:\",Table_Front_desk_report.accdb[[#This Row],[inbox]])","v":"mn.incoming@hud.gov"}]
[800233019,"Maple Trails                                      ","Northfield                  ","MN","55057","BEN OSBORN                                         ","Benjamin.M.Osborn@hud.gov","612-370-3091","mn.incoming@hud.gov",{"$f":"HYPERLINK(\"mailto:\",Table_Front_desk_report.accdb[[#This Row],[inbox]])","v":"mn.incoming@hud.gov"}]
[800236597,"Maple Village II                                  ","Maple GRove                 ","MN","55311","DARIAN JANE ZIEGLER                                ","Darian.Ziegler@hud.gov","612-370-3270","mn.incoming@hud.gov",{"$f":"HYPERLINK(\"mailto:\",Table_Front_desk_report.accdb[[#This Row],[inbox]])","v":"mn.incoming@hud.gov"}]
[800011388,"Maplewood Apartments                              ","WILLMAR                     ","MN","56201","SHERRY K NORTON                                    ","Sherry.K.Norton@hud.gov","612-370-3087","mn.incoming@hud.gov",{"$f":"HYPERLINK(\"mailto:\",Table_Front_desk_report.accdb[[#This Row],[inbox]])","v":"mn.incoming@hud.gov"}]
[800022923,"MAPLEWOOD COMMONS                                 ","FOND DU LAC                 ","WI","54935","ANDREA L CARSON                                    ","andrea.carson@hud.gov","414-935-6679","mn.incoming@hud.gov",{"$f":"HYPERLINK(\"mailto:\",Table_Front_desk_report.accdb[[#This Row],[inbox]])","v":"mn.incoming@hud.gov"}]
[800011083,"MAPLEWOOD GARDENS                                 ","MAPLEWOOD                   ","MN","55119","BEN OSBORN                                         ","Benjamin.M.Osborn@hud.gov","612-370-3091","mn.incoming@hud.gov",{"$f":"HYPERLINK(\"mailto:\",Table_Front_desk_report.accdb[[#This Row],[inbox]])","v":"mn.incoming@hud.gov"}]
[800011084,"MAR BEL HOMES                                     ","GRYGLA                      ","MN","56727","THOMAS G DURSCHER                                  ","Thomas.G.Durscher@hud.gov","612-370-3018","mn.incoming@hud.gov",{"$f":"HYPERLINK(\"mailto:\",Table_Front_desk_report.accdb[[#This Row],[inbox]])","v":"mn.incoming@hud.gov"}]
[800023341,"MARATHON COUNTY HOUSING-SCATTERED SITES           ","Schofield                   ","WI","54476","LAWRANCE C MUNDT                                   ","LAWRENCE.C.MUNDT@hud.gov","612-370-3082","mn.incoming@hud.gov",{"$f":"HYPERLINK(\"mailto:\",Table_Front_desk_report.accdb[[#This Row],[inbox]])","v":"mn.incoming@hud.gov"}]
[800011085,"MARBLE HOUSING COMPANY                            ","MARBLE                      ","MN","55764","THOMAS G DURSCHER                                  ","Thomas.G.Durscher@hud.gov","612-370-3018","mn.incoming@hud.gov",{"$f":"HYPERLINK(\"mailto:\",Table_Front_desk_report.accdb[[#This Row],[inbox]])","v":"mn.incoming@hud.gov"}]
[800023155,"MARIAN HOUSING CENTER                             ","RACINE                      ","WI","53405","YOLANDA S MILLER                                   ","yolanda.s.miller@hud.gov","312-913-8580","chi.incoming@hud.gov",{"$f":"HYPERLINK(\"mailto:\",Table_Front_desk_report.accdb[[#This Row],[inbox]])","v":"chi.incoming@hud.gov"}]
[800023158,"MARIAN MANOR                                      ","OSHKOSH                     ","WI","54901","PAUL A DUHR                                        ","paul.a.duhr@hud.gov","414-935-6681","mn.incoming@hud.gov",{"$f":"HYPERLINK(\"mailto:\",Table_Front_desk_report.accdb[[#This Row],[inbox]])","v":"mn.incoming@hud.gov"}]
[800023294,"MARICOPA HOUSE                                    ","NEENAH                      ","WI","54956","MICHAEL D FURNNER                                  ","MICHAEL.D.FURNNER@hud.gov","414-935-6682","mn.incoming@hud.gov",{"$f":"HYPERLINK(\"mailto:\",Table_Front_desk_report.accdb[[#This Row],[inbox]])","v":"mn.incoming@hud.gov"}]
[800023156,"MARINETTE APARTMENTS II                           ","MARINETTE                   ","WI","54143","LAWRANCE C MUNDT                                   ","LAWRENCE.C.MUNDT@hud.gov","612-370-3082","mn.incoming@hud.gov",{"$f":"HYPERLINK(\"mailto:\",Table_Front_desk_report.accdb[[#This Row],[inbox]])","v":"mn.incoming@hud.gov"}]
[800023157,"MARINETTE WOODS APARTMENTS                        ","MARINETTE                   ","WI","54143","MICHAEL D FURNNER                                  ","MICHAEL.D.FURNNER@hud.gov","414-935-6682","mn.incoming@hud.gov",{"$f":"HYPERLINK(\"mailto:\",Table_Front_desk_report.accdb[[#This Row],[inbox]])","v":"mn.incoming@hud.gov"}]
[800227685,"Marketplace and Main                              ","Hopkins                     ","MN","55343","MARCIA A KOLB                                      ","MARCIA.A.KOLB@hud.gov","612-370-3055","mn.incoming@hud.gov",{"$f":"HYPERLINK(\"mailto:\",Table_Front_desk_report.accdb[[#This Row],[inbox]])","v":"mn.incoming@hud.gov"}]
[800234193,"MARQUETTE MANOR SENIOR APARTMENTS                 ","South Milwaukee             ","WI","53172","DONNA M SHEEHAN                                    ","Donna.Sheehan@hud.gov"," 312-957-4781 ","chi.incoming@hud.gov",{"$f":"HYPERLINK(\"mailto:\",Table_Front_desk_report.accdb[[#This Row],[inbox]])","v":"chi.incoming@hud.gov"}]
[800237442,"Marquette Place Apartments                        ","Minneapolis                 ","MN","55403","CINDY BEHNKE                                       ","cynthia.behnke@hud.gov","612-370-3278","mn.incoming@hud.gov",{"$f":"HYPERLINK(\"mailto:\",Table_Front_desk_report.accdb[[#This Row],[inbox]])","v":"mn.incoming@hud.gov"}]
[800011087,"MARSHALL SQUARE APARTMENTS                        ","MARSHALL                    ","MN","56258","DARIAN JANE ZIEGLER                                ","Darian.Ziegler@hud.gov","612-370-3270","mn.incoming@hud.gov",{"$f":"HYPERLINK(\"mailto:\",Table_Front_desk_report.accdb[[#This Row],[inbox]])","v":"mn.incoming@hud.gov"}]
[800023160,"MARY JOHN VANDERLOOP VILLA                        ","MINOCQUA                    ","WI","54548","CATHERINE A TEMPLE                                 ","Catherine.A.Temple@hud.gov","414-935-6695","mn.incoming@hud.gov",{"$f":"HYPERLINK(\"mailto:\",Table_Front_desk_report.accdb[[#This Row],[inbox]])","v":"mn.incoming@hud.gov"}]
[800011089,"MARYLAND PARK APTS                                ","SAINT PAUL                  ","MN","55106","THOMAS G DURSCHER                                  ","Thomas.G.Durscher@hud.gov","612-370-3018","mn.incoming@hud.gov",{"$f":"HYPERLINK(\"mailto:\",Table_Front_desk_report.accdb[[#This Row],[inbox]])","v":"mn.incoming@hud.gov"}]
[800011090,"MATTHEWS PARK COOPERATIVE                         ","MINNEAPOLIS                 ","MN","55406","MICHAEL P MORAN                                    ","MICHAEL.P.MORAN@HUD.GOV","612-370-3081","mn.incoming@hud.gov",{"$f":"HYPERLINK(\"mailto:\",Table_Front_desk_report.accdb[[#This Row],[inbox]])","v":"mn.incoming@hud.gov"}]
[800236103,"MAYFAIR APARTMENTS                                ","Milwaukee                   ","WI","53225","DORTHY L HOPKINS                                   ","dorthy.l.hopkins@hud.gov","312-913-8172","chi.incoming@hud.gov",{"$f":"HYPERLINK(\"mailto:\",Table_Front_desk_report.accdb[[#This Row],[inbox]])","v":"chi.incoming@hud.gov"}]
[800023163,"MCKEE PARK APARTMENTS                             ","Fitchburg                   ","WI","53711","DEBORAH E MONROE                                   ","deborah.e.monroe@hud.gov","312-913-8210","chi.incoming@hud.gov",{"$f":"HYPERLINK(\"mailto:\",Table_Front_desk_report.accdb[[#This Row],[inbox]])","v":"chi.incoming@hud.gov"}]
[800023164,"MCKINLEY GARDENS                                  ","MILWAUKEE                   ","WI","53205","LADRENNA A FIGUEROA                                ","ladrenna.a.figueroa@hud.gov","312-913-8290","chi.incoming@hud.gov",{"$f":"HYPERLINK(\"mailto:\",Table_Front_desk_report.accdb[[#This Row],[inbox]])","v":"chi.incoming@hud.gov"}]
[800011091,"MCKNIGHT TERRACE APTS aka Manitou Ridge           ","WHITE BEAR LAKE             ","MN","55110","DARIAN JANE ZIEGLER                                ","Darian.Ziegler@hud.gov","612-370-3270","mn.incoming@hud.gov",{"$f":"HYPERLINK(\"mailto:\",Table_Front_desk_report.accdb[[#This Row],[inbox]])","v":"mn.incoming@hud.gov"}]
[800023165,"MCMYNN TOWER                                      ","RACINE                      ","WI","53403","DORTHY L HOPKINS                                   ","dorthy.l.hopkins@hud.gov","312-913-8172","chi.incoming@hud.gov",{"$f":"HYPERLINK(\"mailto:\",Table_Front_desk_report.accdb[[#This Row],[inbox]])","v":"chi.incoming@hud.gov"}]
[800023166,"MEADOW BROOK MANOR II                             ","WEST BEND                   ","WI","53095","CATHERINE A TEMPLE                                 ","Catherine.A.Temple@hud.gov","414-935-6695","mn.incoming@hud.gov",{"$f":"HYPERLINK(\"mailto:\",Table_Front_desk_report.accdb[[#This Row],[inbox]])","v":"mn.incoming@hud.gov"}]
[800023167,"MEADOW CREEK                                      ","KEWASKUM                    ","WI","53040","PAUL A DUHR                                        ","paul.a.duhr@hud.gov","414-935-6681","mn.incoming@hud.gov",{"$f":"HYPERLINK(\"mailto:\",Table_Front_desk_report.accdb[[#This Row],[inbox]])","v":"mn.incoming@hud.gov"}]
[800023168,"MEADOW PARK APARTMENTS                            ","CLINTON                     ","WI","53525","BRUCE X NASH                                       ","bruce.nash@hud.gov","312-913-8357","chi.incoming@hud.gov",{"$f":"HYPERLINK(\"mailto:\",Table_Front_desk_report.accdb[[#This Row],[inbox]])","v":"chi.incoming@hud.gov"}]
[800023169,"MEADOW PARK TOWN HOMES                            ","MADISON                     ","WI","53714","ARNITA X SCOTT                                     ","arnita.scott@hud.gov","312-913-8574","chi.incoming@hud.gov",{"$f":"HYPERLINK(\"mailto:\",Table_Front_desk_report.accdb[[#This Row],[inbox]])","v":"chi.incoming@hud.gov"}]
[800222528,"Meadow Trails Apts aka Rogers Supportive Hsing    ","Rogers                      ","MN","55374","THOMAS G DURSCHER                                  ","Thomas.G.Durscher@hud.gov","612-370-3018","mn.incoming@hud.gov",{"$f":"HYPERLINK(\"mailto:\",Table_Front_desk_report.accdb[[#This Row],[inbox]])","v":"mn.incoming@hud.gov"}]
[800223799,"Meadow View Apartments aka Fairview Seniors       ","Wyoming                     ","MN","55092","THOMAS G DURSCHER                                  ","Thomas.G.Durscher@hud.gov","612-370-3018","mn.incoming@hud.gov",{"$f":"HYPERLINK(\"mailto:\",Table_Front_desk_report.accdb[[#This Row],[inbox]])","v":"mn.incoming@hud.gov"}]
[800023170,"MEADOW VILLAGE                                    ","MILWAUKEE                   ","WI","53205","DORTHY L HOPKINS                                   ","dorthy.l.hopkins@hud.gov","312-913-8172","chi.incoming@hud.gov",{"$f":"HYPERLINK(\"mailto:\",Table_Front_desk_report.accdb[[#This Row],[inbox]])","v":"chi.incoming@hud.gov"}]
[800244427,"Meadowbrook Manor I                               ","West Bend                   ","WI","53090","CATHERINE A TEMPLE                                 ","Catherine.A.Temple@hud.gov","414-935-6695","mn.incoming@hud.gov",{"$f":"HYPERLINK(\"mailto:\",Table_Front_desk_report.accdb[[#This Row],[inbox]])","v":"mn.incoming@hud.gov"}]
[800211042,"Meadowood Shores                                  ","NEW BRIGHTON                ","MN","55112","LAWRANCE C MUNDT                                   ","LAWRENCE.C.MUNDT@hud.gov","612-370-3082","mn.incoming@hud.gov",{"$f":"HYPERLINK(\"mailto:\",Table_Front_desk_report.accdb[[#This Row],[inbox]])","v":"mn.incoming@hud.gov"}]
[800023171,"MEADOWS                                           ","MILWAUKEE                   ","WI","53225","JULIE M WHITEFEATHER                               ","julie.m.whitefeather@hud.gov","312-913-8117","chi.incoming@hud.gov",{"$f":"HYPERLINK(\"mailto:\",Table_Front_desk_report.accdb[[#This Row],[inbox]])","v":"chi.incoming@hud.gov"}]
[800023172,"MEADOWS NORTH                                     ","GREEN BAY                   ","WI","54302","PAUL A DUHR                                        ","paul.a.duhr@hud.gov","414-935-6681","mn.incoming@hud.gov",{"$f":"HYPERLINK(\"mailto:\",Table_Front_desk_report.accdb[[#This Row],[inbox]])","v":"mn.incoming@hud.gov"}]
[800232542,"Meadowview Apartments                             ","Anoka                       ","MN","55303","MITCHELL S HILLMAN                                 ","MITCHELL.S.HILLMAN@hud.gov","612-370-3036","mn.incoming@hud.gov",{"$f":"HYPERLINK(\"mailto:\",Table_Front_desk_report.accdb[[#This Row],[inbox]])","v":"mn.incoming@hud.gov"}]
[800023174,"MEADOWVIEW VILLAGE                                ","TWIN LAKES                  ","WI","53181","DEBORAH E MONROE                                   ","deborah.e.monroe@hud.gov","312-913-8210","chi.incoming@hud.gov",{"$f":"HYPERLINK(\"mailto:\",Table_Front_desk_report.accdb[[#This Row],[inbox]])","v":"chi.incoming@hud.gov"}]
[800011093,"MEARS PARK PLACE                                  ","SAINT PAUL                  ","MN","55101","NATASHA D GUENOVA                                  ","NATASHA.D.GUENOVA@hud.gov","612-370-3035","mn.incoming@hud.gov",{"$f":"HYPERLINK(\"mailto:\",Table_Front_desk_report.accdb[[#This Row],[inbox]])","v":"mn.incoming@hud.gov"}]
[800011094,"MEDFORD MANOR                                     ","MEDFORD                     ","MN","55049","MICHAEL P MORAN                                    ","MICHAEL.P.MORAN@HUD.GOV","612-370-3081","mn.incoming@hud.gov",{"$f":"HYPERLINK(\"mailto:\",Table_Front_desk_report.accdb[[#This Row],[inbox]])","v":"mn.incoming@hud.gov"}]
[800240075,"Medina Townhomes                                  ","Medina                      ","MN","55340","DARIAN JANE ZIEGLER                                ","Darian.Ziegler@hud.gov","612-370-3270","mn.incoming@hud.gov",{"$f":"HYPERLINK(\"mailto:\",Table_Front_desk_report.accdb[[#This Row],[inbox]])","v":"mn.incoming@hud.gov"}]
[800011095,"MEDLEY PARK                                       ","GOLDEN VALLEY               ","MN","55427","MICHAEL P MORAN                                    ","MICHAEL.P.MORAN@HUD.GOV","612-370-3081","mn.incoming@hud.gov",{"$f":"HYPERLINK(\"mailto:\",Table_Front_desk_report.accdb[[#This Row],[inbox]])","v":"mn.incoming@hud.gov"}]
[800023175,"MELLEN HOUSING                                    ","MELLEN                      ","WI","54546","JULIE A LASOTA                                     ","Julie.A.Lasota@hud.gov","612-370-3066","mn.incoming@hud.gov",{"$f":"HYPERLINK(\"mailto:\",Table_Front_desk_report.accdb[[#This Row],[inbox]])","v":"mn.incoming@hud.gov"}]
[800022901,"MELVIN J BATTLE APTS                              ","MILWAUKEE                   ","WI","53212","NINA M SMITH                                       ","nina.m.smith@hud.gov","312-913-8212","chi.incoming@hud.gov",{"$f":"HYPERLINK(\"mailto:\",Table_Front_desk_report.accdb[[#This Row],[inbox]])","v":"chi.incoming@hud.gov"}]
[800023176,"Menasha Woods                                     ","MENASHA                     ","WI","54952","MICHAEL D FURNNER                                  ","MICHAEL.D.FURNNER@hud.gov","414-935-6682","mn.incoming@hud.gov",{"$f":"HYPERLINK(\"mailto:\",Table_Front_desk_report.accdb[[#This Row],[inbox]])","v":"mn.incoming@hud.gov"}]
[800023177,"MENOMINEE RESERVATION                             ","Keshena                     ","WI","54135","ANDREA L CARSON                                    ","andrea.carson@hud.gov","414-935-6679","mn.incoming@hud.gov",{"$f":"HYPERLINK(\"mailto:\",Table_Front_desk_report.accdb[[#This Row],[inbox]])","v":"mn.incoming@hud.gov"}]
[800011096,"MENORAH PLAZA                                     ","SAINT LOUIS PARK            ","MN","55416","TERRI A MUNSON                                     ","Terri.A.Munson@hud.gov","612-370-3086","mn.incoming@hud.gov",{"$f":"HYPERLINK(\"mailto:\",Table_Front_desk_report.accdb[[#This Row],[inbox]])","v":"mn.incoming@hud.gov"}]
[800011097,"MENORAH WEST APARTMENTS                           ","SAINT LOUIS PARK            ","MN","55426","TERRI A MUNSON                                     ","Terri.A.Munson@hud.gov","612-370-3086","mn.incoming@hud.gov",{"$f":"HYPERLINK(\"mailto:\",Table_Front_desk_report.accdb[[#This Row],[inbox]])","v":"mn.incoming@hud.gov"}]
[800011073,"MERCY MANOR                                       ","ALBANY                      ","MN","56307","MICHAEL P MORAN                                    ","MICHAEL.P.MORAN@HUD.GOV","612-370-3081","mn.incoming@hud.gov",{"$f":"HYPERLINK(\"mailto:\",Table_Front_desk_report.accdb[[#This Row],[inbox]])","v":"mn.incoming@hud.gov"}]
[800221540,"Mercy Manor II                                    ","Albany                      ","MN","56307","MICHAEL P MORAN                                    ","MICHAEL.P.MORAN@HUD.GOV","612-370-3081","mn.incoming@hud.gov",{"$f":"HYPERLINK(\"mailto:\",Table_Front_desk_report.accdb[[#This Row],[inbox]])","v":"mn.incoming@hud.gov"}]
[800023180,"MESSNER MANOR APARTMENTS                          ","MENOMONEE FALLS             ","WI","53051","DONNA M SHEEHAN                                    ","Donna.Sheehan@hud.gov"," 312-957-4781 ","chi.incoming@hud.gov",{"$f":"HYPERLINK(\"mailto:\",Table_Front_desk_report.accdb[[#This Row],[inbox]])","v":"chi.incoming@hud.gov"}]
[800011100,"METRO APARTMENTS                                  ","BLOOMINGTON                 ","MN","55420","MICHAEL P MORAN                                    ","MICHAEL.P.MORAN@HUD.GOV","612-370-3081","mn.incoming@hud.gov",{"$f":"HYPERLINK(\"mailto:\",Table_Front_desk_report.accdb[[#This Row],[inbox]])","v":"mn.incoming@hud.gov"}]
[800243510,"Midtown Exchange Apartments                       ","Minneapolis                 ","MN","55407","CINDY BEHNKE                                       ","cynthia.behnke@hud.gov","612-370-3278","mn.incoming@hud.gov",{"$f":"HYPERLINK(\"mailto:\",Table_Front_desk_report.accdb[[#This Row],[inbox]])","v":"mn.incoming@hud.gov"}]
[800236603,"MIDVALE HEIGHTS APARTMENTS                        ","Madison                     ","WI","53711","MARLENE X TRIMUEL                                  ","Marlene.Trimuel@hud.gov","312-913-8369","chi.incoming@hud.gov",{"$f":"HYPERLINK(\"mailto:\",Table_Front_desk_report.accdb[[#This Row],[inbox]])","v":"chi.incoming@hud.gov"}]
[800235353,"Midway Pointe                                     ","Saint Paul                  ","MN","55104","JOEL R KLEMM                                       ","JOEL.R.KLEMM@hud.gov","612-370-3053","mn.incoming@hud.gov",{"$f":"HYPERLINK(\"mailto:\",Table_Front_desk_report.accdb[[#This Row],[inbox]])","v":"mn.incoming@hud.gov"}]
[800023184,"MID-WISCONSIN HOUSING                             ","MARKESAN                    ","WI","53946","PAUL A DUHR                                        ","paul.a.duhr@hud.gov","414-935-6681","mn.incoming@hud.gov",{"$f":"HYPERLINK(\"mailto:\",Table_Front_desk_report.accdb[[#This Row],[inbox]])","v":"mn.incoming@hud.gov"}]
[800011101,"MIGHTY FORTRESS MANOR                             ","HINCKLEY                    ","MN","55037","MARCIA A KOLB                                      ","MARCIA.A.KOLB@hud.gov","612-370-3055","mn.incoming@hud.gov",{"$f":"HYPERLINK(\"mailto:\",Table_Front_desk_report.accdb[[#This Row],[inbox]])","v":"mn.incoming@hud.gov"}]
[800011102,"MILACA PARK APARTMENTS                            ","MILACA                      ","MN","56353","CAROL DIXON                                        ","Carol.A.Dixon@hud.gov","612-370-3015","mn.incoming@hud.gov",{"$f":"HYPERLINK(\"mailto:\",Table_Front_desk_report.accdb[[#This Row],[inbox]])","v":"mn.incoming@hud.gov"}]
[800211254,"Milaca VOA Living Center                          ","MILACA                      ","MN","56353","THOMAS G DURSCHER                                  ","Thomas.G.Durscher@hud.gov","612-370-3018","mn.incoming@hud.gov",{"$f":"HYPERLINK(\"mailto:\",Table_Front_desk_report.accdb[[#This Row],[inbox]])","v":"mn.incoming@hud.gov"}]
[800011103,"MILL POND VIEW APARTMENTS                         ","PELICAN RAPIDS              ","MN","56572","SUSAN K ROSKOS                                     ","Susan.K.Roskos@hud.gov","612-370-3110","mn.incoming@hud.gov",{"$f":"HYPERLINK(\"mailto:\",Table_Front_desk_report.accdb[[#This Row],[inbox]])","v":"mn.incoming@hud.gov"}]
[800023185,"MILL ROAD APARTMENTS                              ","Milwaukee                   ","WI","53225","ARNITA X SCOTT                                     ","arnita.scott@hud.gov","312-913-8574","chi.incoming@hud.gov",{"$f":"HYPERLINK(\"mailto:\",Table_Front_desk_report.accdb[[#This Row],[inbox]])","v":"chi.incoming@hud.gov"}]
[800011104,"MILLIE BENEKE MANOR / Glencoe Eld Hsing           ","GLENCOE                     ","MN","55336","SUSAN K ROSKOS                                     ","Susan.K.Roskos@hud.gov","612-370-3110","mn.incoming@hud.gov",{"$f":"HYPERLINK(\"mailto:\",Table_Front_desk_report.accdb[[#This Row],[inbox]])","v":"mn.incoming@hud.gov"}]
[800011105,"MILLPOND APARTMENTS                               ","NEW PRAGUE                  ","MN","56071","NATASHA D GUENOVA                                  ","NATASHA.D.GUENOVA@hud.gov","612-370-3035","mn.incoming@hud.gov",{"$f":"HYPERLINK(\"mailto:\",Table_Front_desk_report.accdb[[#This Row],[inbox]])","v":"mn.incoming@hud.gov"}]
[800023186,"MILLSTREAM II                                     ","CHIPPEWA FALLS              ","WI","54729","CATHERINE A TEMPLE                                 ","Catherine.A.Temple@hud.gov","414-935-6695","mn.incoming@hud.gov",{"$f":"HYPERLINK(\"mailto:\",Table_Front_desk_report.accdb[[#This Row],[inbox]])","v":"mn.incoming@hud.gov"}]
[800011106,"Milwaukee Townhouses                              ","MINNEAPOLIS                 ","MN","55404","CAROL DIXON                                        ","Carol.A.Dixon@hud.gov","612-370-3015","mn.incoming@hud.gov",{"$f":"HYPERLINK(\"mailto:\",Table_Front_desk_report.accdb[[#This Row],[inbox]])","v":"mn.incoming@hud.gov"}]
[800010757,"MINNETONKA HEIGHTS                                ","MINNETONKA                  ","MN","55345","SHERRY K NORTON                                    ","Sherry.K.Norton@hud.gov","612-370-3087","mn.incoming@hud.gov",{"$f":"HYPERLINK(\"mailto:\",Table_Front_desk_report.accdb[[#This Row],[inbox]])","v":"mn.incoming@hud.gov"}]
[800044204,"Minnetonka Mills Townhomes                        ","MINNETONKA                  ","MN","55345","SHERRY K NORTON                                    ","Sherry.K.Norton@hud.gov","612-370-3087","mn.incoming@hud.gov",{"$f":"HYPERLINK(\"mailto:\",Table_Front_desk_report.accdb[[#This Row],[inbox]])","v":"mn.incoming@hud.gov"}]
[800010898,"MINNETONKA TH's  aka  Elmbrooke                   ","MINNETONKA                  ","MN","55343","JOEL R KLEMM                                       ","JOEL.R.KLEMM@hud.gov","612-370-3053","mn.incoming@hud.gov",{"$f":"HYPERLINK(\"mailto:\",Table_Front_desk_report.accdb[[#This Row],[inbox]])","v":"mn.incoming@hud.gov"}]
[800023189,"MIRMAR APARTMENTS                                 ","GREEN BAY                   ","WI","54302","TERESA C PARKER                                    ","TERESA.C.PARKER@hud.gov","612-370-3092","mn.incoming@hud.gov",{"$f":"HYPERLINK(\"mailto:\",Table_Front_desk_report.accdb[[#This Row],[inbox]])","v":"mn.incoming@hud.gov"}]
[800011107,"MISSION OAKS                                      ","Plymouth                    ","MN","55441","MICHAEL P MORAN                                    ","MICHAEL.P.MORAN@HUD.GOV","612-370-3081","mn.incoming@hud.gov",{"$f":"HYPERLINK(\"mailto:\",Table_Front_desk_report.accdb[[#This Row],[inbox]])","v":"mn.incoming@hud.gov"}]
[800011108,"MISSISSIPPI TERRACE APTS                          ","BRAINERD                    ","MN","56401","CAROL DIXON                                        ","Carol.A.Dixon@hud.gov","612-370-3015","mn.incoming@hud.gov",{"$f":"HYPERLINK(\"mailto:\",Table_Front_desk_report.accdb[[#This Row],[inbox]])","v":"mn.incoming@hud.gov"}]
[800011109,"MISSISSIPPI VIEW APARTMENTS                       ","COON RAPIDS                 ","MN","55433","JULIE A LASOTA                                     ","Julie.A.Lasota@hud.gov","612-370-3066","mn.incoming@hud.gov",{"$f":"HYPERLINK(\"mailto:\",Table_Front_desk_report.accdb[[#This Row],[inbox]])","v":"mn.incoming@hud.gov"}]
[800213981,"MISTWOOD APARTMENTS                               ","Madison                     ","WI","53713","MARY E WATKINS                                     ","mary.e.watkins@hud.gov","312-913-8552","chi.incoming@hud.gov",{"$f":"HYPERLINK(\"mailto:\",Table_Front_desk_report.accdb[[#This Row],[inbox]])","v":"chi.incoming@hud.gov"}]
[800236169,"MITCHELL WAGON FACTORY LOFTS                      ","Racine                      ","WI","53403","DORTHY L HOPKINS                                   ","dorthy.l.hopkins@hud.gov","312-913-8172","chi.incoming@hud.gov",{"$f":"HYPERLINK(\"mailto:\",Table_Front_desk_report.accdb[[#This Row],[inbox]])","v":"chi.incoming@hud.gov"}]
[800000050,"MJF HOUSING II                                    ","MILWAUKEE                   ","WI","53211","VERONICA S SIMS                                    ","veronica.s.sims@hud.gov","312-913-8066","chi.incoming@hud.gov",{"$f":"HYPERLINK(\"mailto:\",Table_Front_desk_report.accdb[[#This Row],[inbox]])","v":"chi.incoming@hud.gov"}]
[800023191,"MONONA HILLS                                      ","MONONA                      ","WI","53716","ARUNA SHAH                                         ","aruna.shah@hud.gov","312-913-8588","chi.incoming@hud.gov",{"$f":"HYPERLINK(\"mailto:\",Table_Front_desk_report.accdb[[#This Row],[inbox]])","v":"chi.incoming@hud.gov"}]
[800023192,"MONONA MEADOWS                                    ","MONONA                      ","WI","53716","GLORY J MCDONALD                                   ","glory.j.mcdonald@hud.gov","312-913-8126","chi.incoming@hud.gov",{"$f":"HYPERLINK(\"mailto:\",Table_Front_desk_report.accdb[[#This Row],[inbox]])","v":"chi.incoming@hud.gov"}]
[800023526,"MONROE PLAZA APARTMENTS                           ","GREEN BAY                   ","WI","54301","PAUL A DUHR                                        ","paul.a.duhr@hud.gov","414-935-6681","mn.incoming@hud.gov",{"$f":"HYPERLINK(\"mailto:\",Table_Front_desk_report.accdb[[#This Row],[inbox]])","v":"mn.incoming@hud.gov"}]
[800219724,"MONROE SENIOR HOUSING  aka  1900 Central Ave      ","Minneapolis                 ","MN","55418","SUSAN K ROSKOS                                     ","Susan.K.Roskos@hud.gov","612-370-3110","mn.incoming@hud.gov",{"$f":"HYPERLINK(\"mailto:\",Table_Front_desk_report.accdb[[#This Row],[inbox]])","v":"mn.incoming@hud.gov"}]
[800234737,"Montcalm Estates                                  ","Saint Paul                  ","MN","55116","NATASHA D GUENOVA                                  ","NATASHA.D.GUENOVA@hud.gov","612-370-3035","mn.incoming@hud.gov",{"$f":"HYPERLINK(\"mailto:\",Table_Front_desk_report.accdb[[#This Row],[inbox]])","v":"mn.incoming@hud.gov"}]
[800212174,"Moorhead Townhomes                                ","MOORHEAD                    ","MN","56560","DARIAN JANE ZIEGLER                                ","Darian.Ziegler@hud.gov","612-370-3270","mn.incoming@hud.gov",{"$f":"HYPERLINK(\"mailto:\",Table_Front_desk_report.accdb[[#This Row],[inbox]])","v":"mn.incoming@hud.gov"}]
[800072438,"Morehouse Place                                   ","OWATONNA                    ","MN","55060","BEN OSBORN                                         ","Benjamin.M.Osborn@hud.gov","612-370-3091","mn.incoming@hud.gov",{"$f":"HYPERLINK(\"mailto:\",Table_Front_desk_report.accdb[[#This Row],[inbox]])","v":"mn.incoming@hud.gov"}]
[800011111,"MORGAN PARK TOWNHOUSES                            ","DULUTH                      ","MN","55808","MICHAEL P MORAN                                    ","MICHAEL.P.MORAN@HUD.GOV","612-370-3081","mn.incoming@hud.gov",{"$f":"HYPERLINK(\"mailto:\",Table_Front_desk_report.accdb[[#This Row],[inbox]])","v":"mn.incoming@hud.gov"}]
[800011074,"MORNING SUN APARTMENTS                            ","TYLER                       ","MN","56178","CINDY BEHNKE                                       ","cynthia.behnke@hud.gov","612-370-3278","mn.incoming@hud.gov",{"$f":"HYPERLINK(\"mailto:\",Table_Front_desk_report.accdb[[#This Row],[inbox]])","v":"mn.incoming@hud.gov"}]
[800011398,"Morningside Terrace / Bluff View Flats            ","WINONA                      ","MN","55987","THOMAS G DURSCHER                                  ","Thomas.G.Durscher@hud.gov","612-370-3018","mn.incoming@hud.gov",{"$f":"HYPERLINK(\"mailto:\",Table_Front_desk_report.accdb[[#This Row],[inbox]])","v":"mn.incoming@hud.gov"}]
[800215024,"Mounds View Supportive Housing Inc                ","MOUNDS VIEW                 ","MN","55112","JOEL R KLEMM                                       ","JOEL.R.KLEMM@hud.gov","612-370-3053","mn.incoming@hud.gov",{"$f":"HYPERLINK(\"mailto:\",Table_Front_desk_report.accdb[[#This Row],[inbox]])","v":"mn.incoming@hud.gov"}]
[800011115,"MOUNT CARMEL MANOR HOUSING CORP.                  ","West Saint Paul             ","MN","55118","NATASHA D GUENOVA                                  ","NATASHA.D.GUENOVA@hud.gov","612-370-3035","mn.incoming@hud.gov",{"$f":"HYPERLINK(\"mailto:\",Table_Front_desk_report.accdb[[#This Row],[inbox]])","v":"mn.incoming@hud.gov"}]
[800023196,"MOUNT PLEASANT MANOR                              ","RACINE                      ","WI","53404","DONNA M SHEEHAN                                    ","Donna.Sheehan@hud.gov"," 312-957-4781 ","chi.incoming@hud.gov",{"$f":"HYPERLINK(\"mailto:\",Table_Front_desk_report.accdb[[#This Row],[inbox]])","v":"chi.incoming@hud.gov"}]
[800079722,"MOWER CO HRA (Lyle/Rose Creek/Brownsdale)         ","BROWNSDALE                  ","MN","55918","CAROL DIXON                                        ","Carol.A.Dixon@hud.gov","612-370-3015","mn.incoming@hud.gov",{"$f":"HYPERLINK(\"mailto:\",Table_Front_desk_report.accdb[[#This Row],[inbox]])","v":"mn.incoming@hud.gov"}]
[800011088,"MP3 - Aeon MP3 Preservation L.P.                  ","MINNEAPOLIS                 ","MN","55403","TERESA C PARKER                                    ","TERESA.C.PARKER@hud.gov","612-370-3092","mn.incoming@hud.gov",{"$f":"HYPERLINK(\"mailto:\",Table_Front_desk_report.accdb[[#This Row],[inbox]])","v":"mn.incoming@hud.gov"}]
[800023199,"MUELLER APARTMENTS                                ","WATERTOWN                   ","WI","53098","SYLVIA HYDE                                        ","sylvia.hyde@hud.gov","312-913-8573","chi.incoming@hud.gov",{"$f":"HYPERLINK(\"mailto:\",Table_Front_desk_report.accdb[[#This Row],[inbox]])","v":"chi.incoming@hud.gov"}]
[800023200,"MUELLER MANOR                                     ","TWO RIVERS                  ","WI","54241","TERRI A MUNSON                                     ","Terri.A.Munson@hud.gov","612-370-3086","mn.incoming@hud.gov",{"$f":"HYPERLINK(\"mailto:\",Table_Front_desk_report.accdb[[#This Row],[inbox]])","v":"mn.incoming@hud.gov"}]
[800011116,"MUNGER TERRACE / Town View Apts.                  ","DULUTH                      ","MN","55805","GREGORY T MERZ                                     ","GREGORY.T.MERZ@hud.gov","612-370-3077","mn.incoming@hud.gov",{"$f":"HYPERLINK(\"mailto:\",Table_Front_desk_report.accdb[[#This Row],[inbox]])","v":"mn.incoming@hud.gov"}]
[800023201,"MUSCODA HOUSING                                   ","MUSCODA                     ","WI","53573","SYLVIA HYDE                                        ","sylvia.hyde@hud.gov","312-913-8573","chi.incoming@hud.gov",{"$f":"HYPERLINK(\"mailto:\",Table_Front_desk_report.accdb[[#This Row],[inbox]])","v":"chi.incoming@hud.gov"}]
[800212985,"MYRTLE DAVIS SENIOR COMPLEX                       ","MILWAUKEE                   ","WI","53218","LADRENNA A FIGUEROA                                ","ladrenna.a.figueroa@hud.gov","312-913-8290","chi.incoming@hud.gov",{"$f":"HYPERLINK(\"mailto:\",Table_Front_desk_report.accdb[[#This Row],[inbox]])","v":"chi.incoming@hud.gov"}]
[null,"N"]
[800239036,"NAKOMA HEIGHTS APARTMENTS                         ","Fitchburg                   ","WI","53577","CLAUDIA CAHUE                                      ","claudia.cahue@hud.gov","312-913-8196","chi.incoming@hud.gov",{"$f":"HYPERLINK(\"mailto:\",Table_Front_desk_report.accdb[[#This Row],[inbox]])","v":"chi.incoming@hud.gov"}]
[800224993,"NANCY NYE VILLA                                   ","Pittsville                  ","WI","54466","LAWRANCE C MUNDT                                   ","LAWRENCE.C.MUNDT@hud.gov","612-370-3082","mn.incoming@hud.gov",{"$f":"HYPERLINK(\"mailto:\",Table_Front_desk_report.accdb[[#This Row],[inbox]])","v":"mn.incoming@hud.gov"}]
[800235973,"NEENAH COURT/JANESVILLE COMMONS                   ","Neenah                      ","WI","54946","MICHAEL D FURNNER                                  ","MICHAEL.D.FURNNER@hud.gov","414-935-6682","mn.incoming@hud.gov",{"$f":"HYPERLINK(\"mailto:\",Table_Front_desk_report.accdb[[#This Row],[inbox]])","v":"mn.incoming@hud.gov"}]
[800023204,"NEILLSVILLE MANOR                                 ","NEILLSVILLE                 ","WI","54456","CATHERINE A TEMPLE                                 ","Catherine.A.Temple@hud.gov","414-935-6695","mn.incoming@hud.gov",{"$f":"HYPERLINK(\"mailto:\",Table_Front_desk_report.accdb[[#This Row],[inbox]])","v":"mn.incoming@hud.gov"}]
[800011117,"NEVADA SQUARE TOWNHOUSES                          ","BENSON                      ","MN","56215","GREGORY T MERZ                                     ","GREGORY.T.MERZ@hud.gov","612-370-3077","mn.incoming@hud.gov",{"$f":"HYPERLINK(\"mailto:\",Table_Front_desk_report.accdb[[#This Row],[inbox]])","v":"mn.incoming@hud.gov"}]
[800023206,"NEW HAMPTON GARDENS                               ","MILWAUKEE                   ","WI","53209","CINDY BEHNKE                                       ","cynthia.behnke@hud.gov","612-370-3278","mn.incoming@hud.gov",{"$f":"HYPERLINK(\"mailto:\",Table_Front_desk_report.accdb[[#This Row],[inbox]])","v":"mn.incoming@hud.gov"}]
[800011118,"NEW LIFE MANOR                                    ","BLUE EARTH                  ","MN","56013","MICHAEL P MORAN                                    ","MICHAEL.P.MORAN@HUD.GOV","612-370-3081","mn.incoming@hud.gov",{"$f":"HYPERLINK(\"mailto:\",Table_Front_desk_report.accdb[[#This Row],[inbox]])","v":"mn.incoming@hud.gov"}]
[800023463,"NEW WAICO APARTMENTS                              ","MILWAUKEE                   ","WI","53205","TANIKA MATHIS-EARSERY                              ","tanika.mathis-earsery@hud.gov","312-913-8433","chi.incoming@hud.gov",{"$f":"HYPERLINK(\"mailto:\",Table_Front_desk_report.accdb[[#This Row],[inbox]])","v":"chi.incoming@hud.gov"}]
[800023464,"NEW WAICO APARTMENTS II                           ","MILWAUKEE                   ","WI","53205","DORTHY L HOPKINS                                   ","dorthy.l.hopkins@hud.gov","312-913-8172","chi.incoming@hud.gov",{"$f":"HYPERLINK(\"mailto:\",Table_Front_desk_report.accdb[[#This Row],[inbox]])","v":"chi.incoming@hud.gov"}]
[800011119,"NEWBRIDGE APARTMENTS                              ","ROCHESTER                   ","MN","55902","CAROL DIXON                                        ","Carol.A.Dixon@hud.gov","612-370-3015","mn.incoming@hud.gov",{"$f":"HYPERLINK(\"mailto:\",Table_Front_desk_report.accdb[[#This Row],[inbox]])","v":"mn.incoming@hud.gov"}]
[800010930,"NEWTON MANOR                                      ","BLOOMINGTON                 ","MN","55431","MITCHELL S HILLMAN                                 ","MITCHELL.S.HILLMAN@hud.gov","612-370-3036","mn.incoming@hud.gov",{"$f":"HYPERLINK(\"mailto:\",Table_Front_desk_report.accdb[[#This Row],[inbox]])","v":"mn.incoming@hud.gov"}]
[800011282,"NHHI-St. Paul Barrier Free Hsg aka LaFayette Plaza","Saint Paul                  ","MN","55130","JOEL R KLEMM                                       ","JOEL.R.KLEMM@hud.gov","612-370-3053","mn.incoming@hud.gov",{"$f":"HYPERLINK(\"mailto:\",Table_Front_desk_report.accdb[[#This Row],[inbox]])","v":"mn.incoming@hud.gov"}]
[800023208,"NIAGARA HEIGHTS                                   ","SHEBOYGAN                   ","WI","53081","MICHAEL D FURNNER                                  ","MICHAEL.D.FURNNER@hud.gov","414-935-6682","mn.incoming@hud.gov",{"$f":"HYPERLINK(\"mailto:\",Table_Front_desk_report.accdb[[#This Row],[inbox]])","v":"mn.incoming@hud.gov"}]
[800239957,"NICHOLS STATION                                   ","Madison                     ","WI","53703","LATOYA A WASHINGTON                                ","latoya.a.washington@hud.gov","312-913-8271","chi.incoming@hud.gov",{"$f":"HYPERLINK(\"mailto:\",Table_Front_desk_report.accdb[[#This Row],[inbox]])","v":"chi.incoming@hud.gov"}]
[800212992,"NICHOLSON SQUARE APTS.                            ","Cudahy                      ","WI","53110","LATOYA A WASHINGTON                                ","latoya.a.washington@hud.gov","312-913-8271","chi.incoming@hud.gov",{"$f":"HYPERLINK(\"mailto:\",Table_Front_desk_report.accdb[[#This Row],[inbox]])","v":"chi.incoming@hud.gov"}]
[800011120,"NICOLLET TOWERS                                   ","MINNEAPOLIS                 ","MN","55403","DARIAN JANE ZIEGLER                                ","Darian.Ziegler@hud.gov","612-370-3270","mn.incoming@hud.gov",{"$f":"HYPERLINK(\"mailto:\",Table_Front_desk_report.accdb[[#This Row],[inbox]])","v":"mn.incoming@hud.gov"}]
[800237158,"NOB HILL APARTMENTS                               ","Madison                     ","WI","53713","DORTHY L HOPKINS                                   ","dorthy.l.hopkins@hud.gov","312-913-8172","chi.incoming@hud.gov",{"$f":"HYPERLINK(\"mailto:\",Table_Front_desk_report.accdb[[#This Row],[inbox]])","v":"chi.incoming@hud.gov"}]
[800240098,"Nokomis Square Cooperative                        ","Minneapolis                 ","MN","55417","BEN OSBORN                                         ","Benjamin.M.Osborn@hud.gov","612-370-3091","mn.incoming@hud.gov",{"$f":"HYPERLINK(\"mailto:\",Table_Front_desk_report.accdb[[#This Row],[inbox]])","v":"mn.incoming@hud.gov"}]
[800023210,"NORMAN KAHL APARTMENTS                            ","LADYSMITH                   ","WI","54848","MARCIA A KOLB                                      ","MARCIA.A.KOLB@hud.gov","612-370-3055","mn.incoming@hud.gov",{"$f":"HYPERLINK(\"mailto:\",Table_Front_desk_report.accdb[[#This Row],[inbox]])","v":"mn.incoming@hud.gov"}]
[800227755,"Normandale Lake Estates                           ","Bloomington                 ","MN","55437","TEENA M GEE                                        ","Teena.M.Gee@hud.gov","612-843-6414","mn.incoming@hud.gov",{"$f":"HYPERLINK(\"mailto:\",Table_Front_desk_report.accdb[[#This Row],[inbox]])","v":"mn.incoming@hud.gov"}]
[800011121,"NORPLAIN APARTMENTS                               ","PLAINVIEW                   ","MN","55964","MITCHELL S HILLMAN                                 ","MITCHELL.S.HILLMAN@hud.gov","612-370-3036","mn.incoming@hud.gov",{"$f":"HYPERLINK(\"mailto:\",Table_Front_desk_report.accdb[[#This Row],[inbox]])","v":"mn.incoming@hud.gov"}]
[800023236,"NORPORT GROUP HOME                                ","PORT WASHINGTON             ","WI","53074","CATHERINE A TEMPLE                                 ","Catherine.A.Temple@hud.gov","414-935-6695","mn.incoming@hud.gov",{"$f":"HYPERLINK(\"mailto:\",Table_Front_desk_report.accdb[[#This Row],[inbox]])","v":"mn.incoming@hud.gov"}]
[800023212,"NORRIS MANOR                                      ","MARSHFIELD                  ","WI","54449","MICHAEL D FURNNER                                  ","MICHAEL.D.FURNNER@hud.gov","414-935-6682","mn.incoming@hud.gov",{"$f":"HYPERLINK(\"mailto:\",Table_Front_desk_report.accdb[[#This Row],[inbox]])","v":"mn.incoming@hud.gov"}]
[800011122,"NORSTONE APARTMENTS                               ","ROLLINGSTONE                ","MN","55969","MICHAEL P MORAN                                    ","MICHAEL.P.MORAN@HUD.GOV","612-370-3081","mn.incoming@hud.gov",{"$f":"HYPERLINK(\"mailto:\",Table_Front_desk_report.accdb[[#This Row],[inbox]])","v":"mn.incoming@hud.gov"}]
[800011123,"North Court Apartments                            ","SANDSTONE                   ","MN","55072","CINDY BEHNKE                                       ","cynthia.behnke@hud.gov","612-370-3278","mn.incoming@hud.gov",{"$f":"HYPERLINK(\"mailto:\",Table_Front_desk_report.accdb[[#This Row],[inbox]])","v":"mn.incoming@hud.gov"}]
[800112189,"NORTH GABLES                                      ","BLAINE                      ","MN","55434","GREGORY T MERZ                                     ","GREGORY.T.MERZ@hud.gov","612-370-3077","mn.incoming@hud.gov",{"$f":"HYPERLINK(\"mailto:\",Table_Front_desk_report.accdb[[#This Row],[inbox]])","v":"mn.incoming@hud.gov"}]
[800011124,"NORTH MEADOWS APTS -- Sauk Rapids                 ","SAUK RAPIDS                 ","MN","56379","MICHAEL P MORAN                                    ","MICHAEL.P.MORAN@HUD.GOV","612-370-3081","mn.incoming@hud.gov",{"$f":"HYPERLINK(\"mailto:\",Table_Front_desk_report.accdb[[#This Row],[inbox]])","v":"mn.incoming@hud.gov"}]
[800011125,"NORTH MORA ESTATES                                ","MORA                        ","MN","55051","CAROL DIXON                                        ","Carol.A.Dixon@hud.gov","612-370-3015","mn.incoming@hud.gov",{"$f":"HYPERLINK(\"mailto:\",Table_Front_desk_report.accdb[[#This Row],[inbox]])","v":"mn.incoming@hud.gov"}]
[800011126,"NORTH PARK PLAZA                                  ","NEW HOPE                    ","MN","55428","MICHAEL P MORAN                                    ","MICHAEL.P.MORAN@HUD.GOV","612-370-3081","mn.incoming@hud.gov",{"$f":"HYPERLINK(\"mailto:\",Table_Front_desk_report.accdb[[#This Row],[inbox]])","v":"mn.incoming@hud.gov"}]
[800232457,"NORTH PORT MOVIN' OUT 811 PROJECT                 ","Glendale                    ","WI","53217","DONNA M SHEEHAN                                    ","Donna.Sheehan@hud.gov"," 312-957-4781 ","chi.incoming@hud.gov",{"$f":"HYPERLINK(\"mailto:\",Table_Front_desk_report.accdb[[#This Row],[inbox]])","v":"chi.incoming@hud.gov"}]
[800011127,"NORTH STAR APARTMENTS, A MN L.P.                  ","ROSEAU                      ","MN","56751","GREGORY T MERZ                                     ","GREGORY.T.MERZ@hud.gov","612-370-3077","mn.incoming@hud.gov",{"$f":"HYPERLINK(\"mailto:\",Table_Front_desk_report.accdb[[#This Row],[inbox]])","v":"mn.incoming@hud.gov"}]
[800023216,"NORTH WILLOW APARTMENTS                           ","MILWAUKEE                   ","WI","53224","ARNITA X SCOTT                                     ","arnita.scott@hud.gov","312-913-8574","chi.incoming@hud.gov",{"$f":"HYPERLINK(\"mailto:\",Table_Front_desk_report.accdb[[#This Row],[inbox]])","v":"chi.incoming@hud.gov"}]
[800023217,"NORTHERN HOTEL APARTMENTS                         ","CHIPPEWA FALLS              ","WI","54729","PAUL A DUHR                                        ","paul.a.duhr@hud.gov","414-935-6681","mn.incoming@hud.gov",{"$f":"HYPERLINK(\"mailto:\",Table_Front_desk_report.accdb[[#This Row],[inbox]])","v":"mn.incoming@hud.gov"}]
[800011128,"NORTHERN LIGHTS APARTMENTS                        ","BRAINERD                    ","MN","56401","GREGORY T MERZ                                     ","GREGORY.T.MERZ@hud.gov","612-370-3077","mn.incoming@hud.gov",{"$f":"HYPERLINK(\"mailto:\",Table_Front_desk_report.accdb[[#This Row],[inbox]])","v":"mn.incoming@hud.gov"}]
[800011129,"NORTHFIELD APARTMENTS                             ","DULUTH                      ","MN","55806","TERESA C PARKER                                    ","TERESA.C.PARKER@hud.gov","612-370-3092","mn.incoming@hud.gov",{"$f":"HYPERLINK(\"mailto:\",Table_Front_desk_report.accdb[[#This Row],[inbox]])","v":"mn.incoming@hud.gov"}]
[800011130,"NORTHFIELD MANOR                                  ","NORTHFIELD                  ","MN","55057","MICHAEL P MORAN                                    ","MICHAEL.P.MORAN@HUD.GOV","612-370-3081","mn.incoming@hud.gov",{"$f":"HYPERLINK(\"mailto:\",Table_Front_desk_report.accdb[[#This Row],[inbox]])","v":"mn.incoming@hud.gov"}]
[800011409,"NORTHGATE COMMUNITY HOUSING                       ","ROCHESTER                   ","MN","55901","CAROL DIXON                                        ","Carol.A.Dixon@hud.gov","612-370-3015","mn.incoming@hud.gov",{"$f":"HYPERLINK(\"mailto:\",Table_Front_desk_report.accdb[[#This Row],[inbox]])","v":"mn.incoming@hud.gov"}]
[800011131,"NORTHGATE PLAZA                                   ","ROCHESTER                   ","MN","55901","JOEL R KLEMM                                       ","JOEL.R.KLEMM@hud.gov","612-370-3053","mn.incoming@hud.gov",{"$f":"HYPERLINK(\"mailto:\",Table_Front_desk_report.accdb[[#This Row],[inbox]])","v":"mn.incoming@hud.gov"}]
[800011132,"NORTHGATE WOODS                                   ","BLAINE                      ","MN","55449","DARIAN JANE ZIEGLER                                ","Darian.Ziegler@hud.gov","612-370-3270","mn.incoming@hud.gov",{"$f":"HYPERLINK(\"mailto:\",Table_Front_desk_report.accdb[[#This Row],[inbox]])","v":"mn.incoming@hud.gov"}]
[800011133,"NORTHLAND APARTMENTS                              ","REMER                       ","MN","56678","TERESA C PARKER                                    ","TERESA.C.PARKER@hud.gov","612-370-3092","mn.incoming@hud.gov",{"$f":"HYPERLINK(\"mailto:\",Table_Front_desk_report.accdb[[#This Row],[inbox]])","v":"mn.incoming@hud.gov"}]
[800023218,"NORTHLAND VILLAGE                                 ","MARINETTE                   ","WI","54143","CATHERINE A TEMPLE                                 ","Catherine.A.Temple@hud.gov","414-935-6695","mn.incoming@hud.gov",{"$f":"HYPERLINK(\"mailto:\",Table_Front_desk_report.accdb[[#This Row],[inbox]])","v":"mn.incoming@hud.gov"}]
[800022876,"NORTHPOINT CROSSINGS                              ","Kenosha                     ","WI","53140","RAYNARD L OWENS                                    ","Raynard.Owens@hud.gov","312-913-8788","chi.incoming@hud.gov",{"$f":"HYPERLINK(\"mailto:\",Table_Front_desk_report.accdb[[#This Row],[inbox]])","v":"chi.incoming@hud.gov"}]
[800011213,"NORTHPOINT TOWNHOMES pka Ripple River             ","AITKIN                      ","MN","56431","NATASHA D GUENOVA                                  ","NATASHA.D.GUENOVA@hud.gov","612-370-3035","mn.incoming@hud.gov",{"$f":"HYPERLINK(\"mailto:\",Table_Front_desk_report.accdb[[#This Row],[inbox]])","v":"mn.incoming@hud.gov"}]
[800023220,"NORTHPORT APTS                                    ","MADISON                     ","WI","53704","DONALD R COLE                                      ","donald.r.cole@hud.gov","312-913-8790","chi.incoming@hud.gov",{"$f":"HYPERLINK(\"mailto:\",Table_Front_desk_report.accdb[[#This Row],[inbox]])","v":"chi.incoming@hud.gov"}]
[800023221,"NORTHPORT GROUP HOME                              ","MADISON                     ","WI","53704","DONALD R COLE                                      ","donald.r.cole@hud.gov","312-913-8790","chi.incoming@hud.gov",{"$f":"HYPERLINK(\"mailto:\",Table_Front_desk_report.accdb[[#This Row],[inbox]])","v":"chi.incoming@hud.gov"}]
[800011136,"NORTHRIDGE PLAZA                                  ","WASECA                      ","MN","56093","CINDY BEHNKE                                       ","cynthia.behnke@hud.gov","612-370-3278","mn.incoming@hud.gov",{"$f":"HYPERLINK(\"mailto:\",Table_Front_desk_report.accdb[[#This Row],[inbox]])","v":"mn.incoming@hud.gov"}]
[800023222,"NORTHSIDE APARTMENTS                              ","ANTIGO                      ","WI","54409","ANDREA L CARSON                                    ","andrea.carson@hud.gov","414-935-6679","mn.incoming@hud.gov",{"$f":"HYPERLINK(\"mailto:\",Table_Front_desk_report.accdb[[#This Row],[inbox]])","v":"mn.incoming@hud.gov"}]
[800011137,"NORTHSIDE TERRACE  aka  Hawley Apts               ","HAWLEY                      ","MN","56549","CINDY BEHNKE                                       ","cynthia.behnke@hud.gov","612-370-3278","mn.incoming@hud.gov",{"$f":"HYPERLINK(\"mailto:\",Table_Front_desk_report.accdb[[#This Row],[inbox]])","v":"mn.incoming@hud.gov"}]
[800218732,"NORTHSTAR RIDGE APARTMENTS                        ","COON RAPIDS                 ","MN","55433","DARIAN JANE ZIEGLER                                ","Darian.Ziegler@hud.gov","612-370-3270","mn.incoming@hud.gov",{"$f":"HYPERLINK(\"mailto:\",Table_Front_desk_report.accdb[[#This Row],[inbox]])","v":"mn.incoming@hud.gov"}]
[800241563,"Northtown Village Apartments                      ","Minneapolis                 ","MN","55432","ANDREA L CARSON                                    ","andrea.carson@hud.gov","414-935-6679","mn.incoming@hud.gov",{"$f":"HYPERLINK(\"mailto:\",Table_Front_desk_report.accdb[[#This Row],[inbox]])","v":"mn.incoming@hud.gov"}]
[800011138,"NORTHWAY A & B                                    ","SAINT CLOUD                 ","MN","56303","MITCHELL S HILLMAN                                 ","MITCHELL.S.HILLMAN@hud.gov","612-370-3036","mn.incoming@hud.gov",{"$f":"HYPERLINK(\"mailto:\",Table_Front_desk_report.accdb[[#This Row],[inbox]])","v":"mn.incoming@hud.gov"}]
[800011139,"Northwest Apartments                              ","FERTILE                     ","MN","56540","CINDY BEHNKE                                       ","cynthia.behnke@hud.gov","612-370-3278","mn.incoming@hud.gov",{"$f":"HYPERLINK(\"mailto:\",Table_Front_desk_report.accdb[[#This Row],[inbox]])","v":"mn.incoming@hud.gov"}]
[800011140,"NORTHWESTERN APARTMENTS                           ","CROOKSTON                   ","MN","56716","LAWRANCE C MUNDT                                   ","LAWRENCE.C.MUNDT@hud.gov","612-370-3082","mn.incoming@hud.gov",{"$f":"HYPERLINK(\"mailto:\",Table_Front_desk_report.accdb[[#This Row],[inbox]])","v":"mn.incoming@hud.gov"}]
[800023223,"NORTHWINDS APARTMENTS                             ","MANITOWOC                   ","WI","54220","ANDREA L CARSON                                    ","andrea.carson@hud.gov","414-935-6679","mn.incoming@hud.gov",{"$f":"HYPERLINK(\"mailto:\",Table_Front_desk_report.accdb[[#This Row],[inbox]])","v":"mn.incoming@hud.gov"}]
[800023202,"NORTHWOOD  APARTMENTS                             ","MILWAUKEE                   ","WI","53212","ARNOLD PEOPLES                                     ","arnold.peoples@hud.gov","312-913-8103","chi.incoming@hud.gov",{"$f":"HYPERLINK(\"mailto:\",Table_Front_desk_report.accdb[[#This Row],[inbox]])","v":"chi.incoming@hud.gov"}]
[800011141,"NORTHWOOD APTS fka 092002NI Northwood             ","GLENCOE                     ","MN","55336","JULIE A LASOTA                                     ","Julie.A.Lasota@hud.gov","612-370-3066","mn.incoming@hud.gov",{"$f":"HYPERLINK(\"mailto:\",Table_Front_desk_report.accdb[[#This Row],[inbox]])","v":"mn.incoming@hud.gov"}]
[800011142,"NORTHWOOD COMMONS                                 ","BAUDETTE                    ","MN","56623","PAUL A DUHR                                        ","paul.a.duhr@hud.gov","414-935-6681","mn.incoming@hud.gov",{"$f":"HYPERLINK(\"mailto:\",Table_Front_desk_report.accdb[[#This Row],[inbox]])","v":"mn.incoming@hud.gov"}]
[800023224,"NORTHWOODS VILLAGE                                ","PHELPS                      ","WI","54554","MICHAEL D FURNNER                                  ","MICHAEL.D.FURNNER@hud.gov","414-935-6682","mn.incoming@hud.gov",{"$f":"HYPERLINK(\"mailto:\",Table_Front_desk_report.accdb[[#This Row],[inbox]])","v":"mn.incoming@hud.gov"}]
[800011143,"NORWOOD SQUARE                                    ","FRIDLEY                     ","MN","55432","THOMAS G DURSCHER                                  ","Thomas.G.Durscher@hud.gov","612-370-3018","mn.incoming@hud.gov",{"$f":"HYPERLINK(\"mailto:\",Table_Front_desk_report.accdb[[#This Row],[inbox]])","v":"mn.incoming@hud.gov"}]
[null,"O"]
[800079638,"OAK CREEK COURTS                                  ","OAK CREEK                   ","WI","53154","ELLIE L CHICOSKI                                   ","ellie.l.chicoski@hud.gov","312-913-8385","chi.incoming@hud.gov",{"$f":"HYPERLINK(\"mailto:\",Table_Front_desk_report.accdb[[#This Row],[inbox]])","v":"chi.incoming@hud.gov"}]
[800011146,"OAK PARK VILLAGE                                  ","SAINT LOUIS PARK            ","MN","55426","MITCHELL S HILLMAN                                 ","MITCHELL.S.HILLMAN@hud.gov","612-370-3036","mn.incoming@hud.gov",{"$f":"HYPERLINK(\"mailto:\",Table_Front_desk_report.accdb[[#This Row],[inbox]])","v":"mn.incoming@hud.gov"}]
[800221838,"OAK POINTE APARTMENTS                             ","Bloomington                 ","MN","55438","JOEL R KLEMM                                       ","JOEL.R.KLEMM@hud.gov","612-370-3053","mn.incoming@hud.gov",{"$f":"HYPERLINK(\"mailto:\",Table_Front_desk_report.accdb[[#This Row],[inbox]])","v":"mn.incoming@hud.gov"}]
[800011147,"OAK RIDGE MANOR                                   ","HASTINGS                    ","MN","55033","NATASHA D GUENOVA                                  ","NATASHA.D.GUENOVA@hud.gov","612-370-3035","mn.incoming@hud.gov",{"$f":"HYPERLINK(\"mailto:\",Table_Front_desk_report.accdb[[#This Row],[inbox]])","v":"mn.incoming@hud.gov"}]
[800209560,"OAK RIDGE MANOR -- MELROSE                        ","MELROSE                     ","MN","56352","JOEL R KLEMM                                       ","JOEL.R.KLEMM@hud.gov","612-370-3053","mn.incoming@hud.gov",{"$f":"HYPERLINK(\"mailto:\",Table_Front_desk_report.accdb[[#This Row],[inbox]])","v":"mn.incoming@hud.gov"}]
[800011149,"OAK TERRACE                                       ","OAKDALE                     ","MN","55128","JOEL R KLEMM                                       ","JOEL.R.KLEMM@hud.gov","612-370-3053","mn.incoming@hud.gov",{"$f":"HYPERLINK(\"mailto:\",Table_Front_desk_report.accdb[[#This Row],[inbox]])","v":"mn.incoming@hud.gov"}]
[800238435,"Oak Terrace West                                  ","North Mankato               ","MN","56003","JOEL R KLEMM                                       ","JOEL.R.KLEMM@hud.gov","612-370-3053","mn.incoming@hud.gov",{"$f":"HYPERLINK(\"mailto:\",Table_Front_desk_report.accdb[[#This Row],[inbox]])","v":"mn.incoming@hud.gov"}]
[800213263,"OAK VIEW APARTMENTS                               ","NEW ULM                     ","MN","56073","SHERRY K NORTON                                    ","Sherry.K.Norton@hud.gov","612-370-3087","mn.incoming@hud.gov",{"$f":"HYPERLINK(\"mailto:\",Table_Front_desk_report.accdb[[#This Row],[inbox]])","v":"mn.incoming@hud.gov"}]
[800023225,"OAK WEST APARTMENTS                               ","WEST ALLIS                  ","WI","53227","LADRENNA A FIGUEROA                                ","ladrenna.a.figueroa@hud.gov","312-913-8290","chi.incoming@hud.gov",{"$f":"HYPERLINK(\"mailto:\",Table_Front_desk_report.accdb[[#This Row],[inbox]])","v":"chi.incoming@hud.gov"}]
[800011150,"OAKHAVEN TOWNHOUSES                               ","MINNEAPOLIS                 ","MN","55404","MICHAEL P MORAN                                    ","MICHAEL.P.MORAN@HUD.GOV","612-370-3081","mn.incoming@hud.gov",{"$f":"HYPERLINK(\"mailto:\",Table_Front_desk_report.accdb[[#This Row],[inbox]])","v":"mn.incoming@hud.gov"}]
[800011151,"OAKLAND SQUARE                                    ","MINNEAPOLIS                 ","MN","55407","JOEL R KLEMM                                       ","JOEL.R.KLEMM@hud.gov","612-370-3053","mn.incoming@hud.gov",{"$f":"HYPERLINK(\"mailto:\",Table_Front_desk_report.accdb[[#This Row],[inbox]])","v":"mn.incoming@hud.gov"}]
[800079911,"OAKRIDGE  APARTMENTS                              ","ROCHESTER                   ","MN","55906","MICHAEL P MORAN                                    ","MICHAEL.P.MORAN@HUD.GOV","612-370-3081","mn.incoming@hud.gov",{"$f":"HYPERLINK(\"mailto:\",Table_Front_desk_report.accdb[[#This Row],[inbox]])","v":"mn.incoming@hud.gov"}]
[800023226,"OAKVIEW MANOR                                     ","RACINE                      ","WI","53406","RAYNARD L OWENS                                    ","Raynard.Owens@hud.gov","312-913-8788","chi.incoming@hud.gov",{"$f":"HYPERLINK(\"mailto:\",Table_Front_desk_report.accdb[[#This Row],[inbox]])","v":"chi.incoming@hud.gov"}]
[800023227,"OAKWOOD APARTMENTS                                ","SUPERIOR                    ","WI","54880","ANDREA L CARSON                                    ","andrea.carson@hud.gov","414-935-6679","mn.incoming@hud.gov",{"$f":"HYPERLINK(\"mailto:\",Table_Front_desk_report.accdb[[#This Row],[inbox]])","v":"mn.incoming@hud.gov"}]
[800023228,"OAKWOOD APARTMENTS                                ","MEQUON                      ","WI","53092","MICHAEL D FURNNER                                  ","MICHAEL.D.FURNNER@hud.gov","414-935-6682","mn.incoming@hud.gov",{"$f":"HYPERLINK(\"mailto:\",Table_Front_desk_report.accdb[[#This Row],[inbox]])","v":"mn.incoming@hud.gov"}]
[800079724,"OAKWOOD APARTMENTS -- (ELLSWORTH)                 ","ELLSWORTH                   ","MN","56129","TERRI A MUNSON                                     ","Terri.A.Munson@hud.gov","612-370-3086","mn.incoming@hud.gov",{"$f":"HYPERLINK(\"mailto:\",Table_Front_desk_report.accdb[[#This Row],[inbox]])","v":"mn.incoming@hud.gov"}]
[800011153,"OAKWOOD APARTMENTS -- (ONAMIA)                    ","Onamia                      ","MN","56359","SHERRY K NORTON                                    ","Sherry.K.Norton@hud.gov","612-370-3087","mn.incoming@hud.gov",{"$f":"HYPERLINK(\"mailto:\",Table_Front_desk_report.accdb[[#This Row],[inbox]])","v":"mn.incoming@hud.gov"}]
[800011154,"OAKWOOD HOMES, A MN LMTD PTNRSHP                  ","KARLSTAD                    ","MN","56732","BEN OSBORN                                         ","Benjamin.M.Osborn@hud.gov","612-370-3091","mn.incoming@hud.gov",{"$f":"HYPERLINK(\"mailto:\",Table_Front_desk_report.accdb[[#This Row],[inbox]])","v":"mn.incoming@hud.gov"}]
[800023229,"OAKWOOD VILLAGE                                   ","MADISON                     ","WI","53705","DORTHY L HOPKINS                                   ","dorthy.l.hopkins@hud.gov","312-913-8172","chi.incoming@hud.gov",{"$f":"HYPERLINK(\"mailto:\",Table_Front_desk_report.accdb[[#This Row],[inbox]])","v":"chi.incoming@hud.gov"}]
[800011155,"OKABENA TOWER                                     ","WORTHINGTON                 ","MN","56187","CINDY BEHNKE                                       ","cynthia.behnke@hud.gov","612-370-3278","mn.incoming@hud.gov",{"$f":"HYPERLINK(\"mailto:\",Table_Front_desk_report.accdb[[#This Row],[inbox]])","v":"mn.incoming@hud.gov"}]
[800221429,"OLD MIDDLETON ROAD APARTMENTS                     ","Madison                     ","WI","53705","CINDY BEHNKE                                       ","cynthia.behnke@hud.gov","612-370-3278","mn.incoming@hud.gov",{"$f":"HYPERLINK(\"mailto:\",Table_Front_desk_report.accdb[[#This Row],[inbox]])","v":"mn.incoming@hud.gov"}]
[800210505,"Old Town in Town Coop                             ","MINNEAPOLIS                 ","MN","55404","MICHAEL P MORAN                                    ","MICHAEL.P.MORAN@HUD.GOV","612-370-3081","mn.incoming@hud.gov",{"$f":"HYPERLINK(\"mailto:\",Table_Front_desk_report.accdb[[#This Row],[inbox]])","v":"mn.incoming@hud.gov"}]
[800011157,"OLSON TOWNHOMES                                   ","MINNEAPOLIS                 ","MN","55405","CINDY BEHNKE                                       ","cynthia.behnke@hud.gov","612-370-3278","mn.incoming@hud.gov",{"$f":"HYPERLINK(\"mailto:\",Table_Front_desk_report.accdb[[#This Row],[inbox]])","v":"mn.incoming@hud.gov"}]
[800212995,"OLYMPIAN VILLAGE II                               ","BELOIT                      ","WI","53511","BEN OSBORN                                         ","Benjamin.M.Osborn@hud.gov","612-370-3091","mn.incoming@hud.gov",{"$f":"HYPERLINK(\"mailto:\",Table_Front_desk_report.accdb[[#This Row],[inbox]])","v":"mn.incoming@hud.gov"}]
[800043915,"OLYMPIC RIDGE                                     ","EDEN PRAIRIE                ","MN","55347","LAWRANCE C MUNDT                                   ","LAWRENCE.C.MUNDT@hud.gov","612-370-3082","mn.incoming@hud.gov",{"$f":"HYPERLINK(\"mailto:\",Table_Front_desk_report.accdb[[#This Row],[inbox]])","v":"mn.incoming@hud.gov"}]
[800023231,"ORCHARD COURT APARTMENTS                          ","WEST ALLIS                  ","WI","53214","MARLENE X TRIMUEL                                  ","Marlene.Trimuel@hud.gov","312-913-8369","chi.incoming@hud.gov",{"$f":"HYPERLINK(\"mailto:\",Table_Front_desk_report.accdb[[#This Row],[inbox]])","v":"chi.incoming@hud.gov"}]
[800022844,"ORCHARD RIDGE                                     ","ASHWAUBENON                 ","WI","54304","PAUL A DUHR                                        ","paul.a.duhr@hud.gov","414-935-6681","mn.incoming@hud.gov",{"$f":"HYPERLINK(\"mailto:\",Table_Front_desk_report.accdb[[#This Row],[inbox]])","v":"mn.incoming@hud.gov"}]
[800023232,"ORCHARD VALLEY                                    ","STURGEON BAY                ","WI","54235","PAUL A DUHR                                        ","paul.a.duhr@hud.gov","414-935-6681","mn.incoming@hud.gov",{"$f":"HYPERLINK(\"mailto:\",Table_Front_desk_report.accdb[[#This Row],[inbox]])","v":"mn.incoming@hud.gov"}]
[800011159,"OSBORNE APARTMENTS, INC.                          ","SPRING LAKE PARK            ","MN","55432","CAROL DIXON                                        ","Carol.A.Dixon@hud.gov","612-370-3015","mn.incoming@hud.gov",{"$f":"HYPERLINK(\"mailto:\",Table_Front_desk_report.accdb[[#This Row],[inbox]])","v":"mn.incoming@hud.gov"}]
[800011160,"OTTERKILL GARDENS                                 ","BAGLEY                      ","MN","56621","MITCHELL S HILLMAN                                 ","MITCHELL.S.HILLMAN@hud.gov","612-370-3036","mn.incoming@hud.gov",{"$f":"HYPERLINK(\"mailto:\",Table_Front_desk_report.accdb[[#This Row],[inbox]])","v":"mn.incoming@hud.gov"}]
[800023233,"OUTAGAMIE COUNTY HOUSING                          ","APPLETON                    ","WI","54911","PAUL A DUHR                                        ","paul.a.duhr@hud.gov","414-935-6681","mn.incoming@hud.gov",{"$f":"HYPERLINK(\"mailto:\",Table_Front_desk_report.accdb[[#This Row],[inbox]])","v":"mn.incoming@hud.gov"}]
[800218135,"Owatonna Gateway Apartments                       ","OWATONNA                    ","MN","55060","NATASHA D GUENOVA                                  ","NATASHA.D.GUENOVA@hud.gov","612-370-3035","mn.incoming@hud.gov",{"$f":"HYPERLINK(\"mailto:\",Table_Front_desk_report.accdb[[#This Row],[inbox]])","v":"mn.incoming@hud.gov"}]
[800219419,"Owatonna Senior Housing, Inc. aka Maple Trail     ","Owatonna                    ","MN","55060","SHERRY K NORTON                                    ","Sherry.K.Norton@hud.gov","612-370-3087","mn.incoming@hud.gov",{"$f":"HYPERLINK(\"mailto:\",Table_Front_desk_report.accdb[[#This Row],[inbox]])","v":"mn.incoming@hud.gov"}]
[800023234,"OWEN HEIGHTS APTS                                 ","OWEN                        ","WI","54460","MARCIA A KOLB                                      ","MARCIA.A.KOLB@hud.gov","612-370-3055","mn.incoming@hud.gov",{"$f":"HYPERLINK(\"mailto:\",Table_Front_desk_report.accdb[[#This Row],[inbox]])","v":"mn.incoming@hud.gov"}]
[800023235,"OWEN RUST MEMORIAL APARTMENTS                     ","EAU CLAIRE                  ","WI","54703","SUSAN K ROSKOS                                     ","Susan.K.Roskos@hud.gov","612-370-3110","mn.incoming@hud.gov",{"$f":"HYPERLINK(\"mailto:\",Table_Front_desk_report.accdb[[#This Row],[inbox]])","v":"mn.incoming@hud.gov"}]
[800236852,"OXBOW VILLAS                                      ","Eau Claire                  ","WI","54703","TERESA C PARKER                                    ","TERESA.C.PARKER@hud.gov","612-370-3092","mn.incoming@hud.gov",{"$f":"HYPERLINK(\"mailto:\",Table_Front_desk_report.accdb[[#This Row],[inbox]])","v":"mn.incoming@hud.gov"}]
[800011161,"OXBOWL BEND aka VOA Elderly Hsng                  ","COON RAPIDS                 ","MN","55433","CAROL DIXON                                        ","Carol.A.Dixon@hud.gov","612-370-3015","mn.incoming@hud.gov",{"$f":"HYPERLINK(\"mailto:\",Table_Front_desk_report.accdb[[#This Row],[inbox]])","v":"mn.incoming@hud.gov"}]
[null,"P"]
[800023237,"PACKER APTS                                       ","MADISON                     ","WI","53704","DONALD R COLE                                      ","donald.r.cole@hud.gov","312-913-8790","chi.incoming@hud.gov",{"$f":"HYPERLINK(\"mailto:\",Table_Front_desk_report.accdb[[#This Row],[inbox]])","v":"chi.incoming@hud.gov"}]
[800023302,"PARC WEST                                         ","MILWAUKEE                   ","WI","53210","LADRENNA A FIGUEROA                                ","ladrenna.a.figueroa@hud.gov","312-913-8290","chi.incoming@hud.gov",{"$f":"HYPERLINK(\"mailto:\",Table_Front_desk_report.accdb[[#This Row],[inbox]])","v":"chi.incoming@hud.gov"}]
[800023238,"PARK APARTMENTS                                   ","BENTON                      ","WI","53803","DEBORAH E MONROE                                   ","deborah.e.monroe@hud.gov","312-913-8210","chi.incoming@hud.gov",{"$f":"HYPERLINK(\"mailto:\",Table_Front_desk_report.accdb[[#This Row],[inbox]])","v":"chi.incoming@hud.gov"}]
[800112371,"PARK AVENUE LIVING                                ","BERLIN                      ","WI","54923","MICHAEL D FURNNER                                  ","MICHAEL.D.FURNNER@hud.gov","414-935-6682","mn.incoming@hud.gov",{"$f":"HYPERLINK(\"mailto:\",Table_Front_desk_report.accdb[[#This Row],[inbox]])","v":"mn.incoming@hud.gov"}]
[800023239,"PARK BLUFF APTS                                   ","MILWAUKEE                   ","WI","53215","DORTHY L HOPKINS                                   ","dorthy.l.hopkins@hud.gov","312-913-8172","chi.incoming@hud.gov",{"$f":"HYPERLINK(\"mailto:\",Table_Front_desk_report.accdb[[#This Row],[inbox]])","v":"chi.incoming@hud.gov"}]
[800023240,"PARK CLUB APTS                                    ","MILWAUKEE                   ","WI","53224","ALETHA BREWER                                      ","aletha.brewer@hud.gov ","312-913-8110","chi.incoming@hud.gov",{"$f":"HYPERLINK(\"mailto:\",Table_Front_desk_report.accdb[[#This Row],[inbox]])","v":"chi.incoming@hud.gov"}]
[800023241,"PARK ESTATES                                      ","REEDSVILLE                  ","WI","54230","CATHERINE A TEMPLE                                 ","Catherine.A.Temple@hud.gov","414-935-6695","mn.incoming@hud.gov",{"$f":"HYPERLINK(\"mailto:\",Table_Front_desk_report.accdb[[#This Row],[inbox]])","v":"mn.incoming@hud.gov"}]
[800010812,"Park Haven                                        ","BROOKLYN PARK               ","MN","55428","TEENA M GEE                                        ","Teena.M.Gee@hud.gov","612-843-6414","mn.incoming@hud.gov",{"$f":"HYPERLINK(\"mailto:\",Table_Front_desk_report.accdb[[#This Row],[inbox]])","v":"mn.incoming@hud.gov"}]
[800011163,"PARK HEIGHTS TOWERS                               ","ROCHESTER                   ","MN","55906","THOMAS G DURSCHER                                  ","Thomas.G.Durscher@hud.gov","612-370-3018","mn.incoming@hud.gov",{"$f":"HYPERLINK(\"mailto:\",Table_Front_desk_report.accdb[[#This Row],[inbox]])","v":"mn.incoming@hud.gov"}]
[800022907,"PARK HILL SENIOR APARTMENTS                       ","MILWAUKEE                   ","WI","53212","JAYSEN ALEXANDER                                   ","Jaysen.P.Alexander@hud.gov","312-913-8711","chi.incoming@hud.gov",{"$f":"HYPERLINK(\"mailto:\",Table_Front_desk_report.accdb[[#This Row],[inbox]])","v":"chi.incoming@hud.gov"}]
[800011164,"PARK LANE APARTMENTS                              ","BUFFALO                     ","MN","55313","NATASHA D GUENOVA                                  ","NATASHA.D.GUENOVA@hud.gov","612-370-3035","mn.incoming@hud.gov",{"$f":"HYPERLINK(\"mailto:\",Table_Front_desk_report.accdb[[#This Row],[inbox]])","v":"mn.incoming@hud.gov"}]
[800023242,"PARK MANOR                                        ","PESHTIGO                    ","WI","54157","ANDREA L CARSON                                    ","andrea.carson@hud.gov","414-935-6679","mn.incoming@hud.gov",{"$f":"HYPERLINK(\"mailto:\",Table_Front_desk_report.accdb[[#This Row],[inbox]])","v":"mn.incoming@hud.gov"}]
[800011165,"PARK MANOR ESTATES                                ","DETROIT LAKES               ","MN","56502","DARIAN JANE ZIEGLER                                ","Darian.Ziegler@hud.gov","612-370-3270","mn.incoming@hud.gov",{"$f":"HYPERLINK(\"mailto:\",Table_Front_desk_report.accdb[[#This Row],[inbox]])","v":"mn.incoming@hud.gov"}]
[800011166,"PARK PLACE APARTMENTS                             ","HIBBING                     ","MN","55746","THOMAS G DURSCHER                                  ","Thomas.G.Durscher@hud.gov","612-370-3018","mn.incoming@hud.gov",{"$f":"HYPERLINK(\"mailto:\",Table_Front_desk_report.accdb[[#This Row],[inbox]])","v":"mn.incoming@hud.gov"}]
[800214343,"Park Plaza Apartments                             ","MINNEAPOLIS                 ","MN","55405","DARIAN JANE ZIEGLER                                ","Darian.Ziegler@hud.gov","612-370-3270","mn.incoming@hud.gov",{"$f":"HYPERLINK(\"mailto:\",Table_Front_desk_report.accdb[[#This Row],[inbox]])","v":"mn.incoming@hud.gov"}]
[800011167,"PARK RAPIDS APARTMENTS                            ","PARK RAPIDS                 ","MN","56470","DARIAN JANE ZIEGLER                                ","Darian.Ziegler@hud.gov","612-370-3270","mn.incoming@hud.gov",{"$f":"HYPERLINK(\"mailto:\",Table_Front_desk_report.accdb[[#This Row],[inbox]])","v":"mn.incoming@hud.gov"}]
[800072520,"Park Ridge Apts                                   ","Northfield                  ","MN","55057","JULIE A LASOTA                                     ","Julie.A.Lasota@hud.gov","612-370-3066","mn.incoming@hud.gov",{"$f":"HYPERLINK(\"mailto:\",Table_Front_desk_report.accdb[[#This Row],[inbox]])","v":"mn.incoming@hud.gov"}]
[800011168,"PARK STREET APARTMENTS                            ","CANNON FALLS                ","MN","55009","SUSAN K ROSKOS                                     ","Susan.K.Roskos@hud.gov","612-370-3110","mn.incoming@hud.gov",{"$f":"HYPERLINK(\"mailto:\",Table_Front_desk_report.accdb[[#This Row],[inbox]])","v":"mn.incoming@hud.gov"}]
[800235185,"PARK TOWER APARTMENTS                             ","Madison                     ","WI","53705","JULIE M WHITEFEATHER                               ","julie.m.whitefeather@hud.gov","312-913-8117","chi.incoming@hud.gov",{"$f":"HYPERLINK(\"mailto:\",Table_Front_desk_report.accdb[[#This Row],[inbox]])","v":"chi.incoming@hud.gov"}]
[800023245,"PARK TOWERS APARTMENTS                            ","EAU CLAIRE                  ","WI","54701","SUSAN K ROSKOS                                     ","Susan.K.Roskos@hud.gov","612-370-3110","mn.incoming@hud.gov",{"$f":"HYPERLINK(\"mailto:\",Table_Front_desk_report.accdb[[#This Row],[inbox]])","v":"mn.incoming@hud.gov"}]
[800240647,"PARK VIEW APARTMENTS                              ","Antigo                      ","WI","54409","CATHERINE A TEMPLE                                 ","Catherine.A.Temple@hud.gov","414-935-6695","mn.incoming@hud.gov",{"$f":"HYPERLINK(\"mailto:\",Table_Front_desk_report.accdb[[#This Row],[inbox]])","v":"mn.incoming@hud.gov"}]
[800011169,"PARK VIEW TERRACE APARTMENTS                      ","MOORHEAD                    ","MN","56560","MITCHELL S HILLMAN                                 ","MITCHELL.S.HILLMAN@hud.gov","612-370-3036","mn.incoming@hud.gov",{"$f":"HYPERLINK(\"mailto:\",Table_Front_desk_report.accdb[[#This Row],[inbox]])","v":"mn.incoming@hud.gov"}]
[800112284,"Park Villa                                        ","PARK RAPIDS                 ","MN","56470","NATASHA D GUENOVA                                  ","NATASHA.D.GUENOVA@hud.gov","612-370-3035","mn.incoming@hud.gov",{"$f":"HYPERLINK(\"mailto:\",Table_Front_desk_report.accdb[[#This Row],[inbox]])","v":"mn.incoming@hud.gov"}]
[800044122,"PARK VILLA APTS                                   ","MOUNTAIN IRON               ","MN","55768","GREGORY T MERZ                                     ","GREGORY.T.MERZ@hud.gov","612-370-3077","mn.incoming@hud.gov",{"$f":"HYPERLINK(\"mailto:\",Table_Front_desk_report.accdb[[#This Row],[inbox]])","v":"mn.incoming@hud.gov"}]
[800241400,"PARKDALE APARTMENTS                               ","Stevens Point               ","WI","54481","PAUL A DUHR                                        ","paul.a.duhr@hud.gov","414-935-6681","mn.incoming@hud.gov",{"$f":"HYPERLINK(\"mailto:\",Table_Front_desk_report.accdb[[#This Row],[inbox]])","v":"mn.incoming@hud.gov"}]
[800238728,"PARKSIDE APARTMENTS                               ","Madison                     ","WI","53713","ARUNA SHAH                                         ","aruna.shah@hud.gov","312-913-8588","chi.incoming@hud.gov",{"$f":"HYPERLINK(\"mailto:\",Table_Front_desk_report.accdb[[#This Row],[inbox]])","v":"chi.incoming@hud.gov"}]
[800023248,"PARKSIDE APARTMENTS                               ","MADISON                     ","WI","53715","RAYMOND GUNTER                                     ","raymond.p.gunter@hud.gov","312-913-8309","chi.incoming@hud.gov",{"$f":"HYPERLINK(\"mailto:\",Table_Front_desk_report.accdb[[#This Row],[inbox]])","v":"chi.incoming@hud.gov"}]
[800237794,"Parkside Apartments                               ","Saint Paul                  ","MN","55101","TERESA C PARKER                                    ","TERESA.C.PARKER@hud.gov","612-370-3092","mn.incoming@hud.gov",{"$f":"HYPERLINK(\"mailto:\",Table_Front_desk_report.accdb[[#This Row],[inbox]])","v":"mn.incoming@hud.gov"}]
[800023416,"PARKSIDE COMMUNITY APARTMENTS A/K/A THE COVEY     ","NEKOOSA                     ","WI","54457","TERESA C PARKER                                    ","TERESA.C.PARKER@hud.gov","612-370-3092","mn.incoming@hud.gov",{"$f":"HYPERLINK(\"mailto:\",Table_Front_desk_report.accdb[[#This Row],[inbox]])","v":"mn.incoming@hud.gov"}]
[800023044,"PARKVIEW APARTMENTS                               ","BELOIT                      ","WI","53511","DORTHY L HOPKINS                                   ","dorthy.l.hopkins@hud.gov","312-913-8172","chi.incoming@hud.gov",{"$f":"HYPERLINK(\"mailto:\",Table_Front_desk_report.accdb[[#This Row],[inbox]])","v":"chi.incoming@hud.gov"}]
[800023484,"PARKVIEW APARTMENTS                               ","WEST ALLIS                  ","WI","53214","DORTHY L HOPKINS                                   ","dorthy.l.hopkins@hud.gov","312-913-8172","chi.incoming@hud.gov",{"$f":"HYPERLINK(\"mailto:\",Table_Front_desk_report.accdb[[#This Row],[inbox]])","v":"chi.incoming@hud.gov"}]
[800023249,"PARKVIEW APARTMENTS                               ","KELLNERSVILLE               ","WI","54215","PAUL A DUHR                                        ","paul.a.duhr@hud.gov","414-935-6681","mn.incoming@hud.gov",{"$f":"HYPERLINK(\"mailto:\",Table_Front_desk_report.accdb[[#This Row],[inbox]])","v":"mn.incoming@hud.gov"}]
[800079699,"PARKVIEW APARTMENTS                               ","ALMENA                      ","WI","54805","CATHERINE A TEMPLE                                 ","Catherine.A.Temple@hud.gov","414-935-6695","mn.incoming@hud.gov",{"$f":"HYPERLINK(\"mailto:\",Table_Front_desk_report.accdb[[#This Row],[inbox]])","v":"mn.incoming@hud.gov"}]
[800010740,"PARKVIEW APARTMENTS -- Winger                     ","WINGER                      ","MN","56592","JULIE A LASOTA                                     ","Julie.A.Lasota@hud.gov","612-370-3066","mn.incoming@hud.gov",{"$f":"HYPERLINK(\"mailto:\",Table_Front_desk_report.accdb[[#This Row],[inbox]])","v":"mn.incoming@hud.gov"}]
[800011171,"PARKVIEW APTS -- (Mpls) aka Bethune Pk            ","MINNEAPOLIS                 ","MN","55411","GREGORY T MERZ                                     ","GREGORY.T.MERZ@hud.gov","612-370-3077","mn.incoming@hud.gov",{"$f":"HYPERLINK(\"mailto:\",Table_Front_desk_report.accdb[[#This Row],[inbox]])","v":"mn.incoming@hud.gov"}]
[800023329,"PARKVIEW APTS AND ROCKLAND COURT                  ","FORT ATKINSON               ","WI","53538","ARUNA SHAH                                         ","aruna.shah@hud.gov","312-913-8588","chi.incoming@hud.gov",{"$f":"HYPERLINK(\"mailto:\",Table_Front_desk_report.accdb[[#This Row],[inbox]])","v":"chi.incoming@hud.gov"}]
[800023246,"PARKVIEW HAVEN                                    ","MANITOWOC                   ","WI","54220","CATHERINE A TEMPLE                                 ","Catherine.A.Temple@hud.gov","414-935-6695","mn.incoming@hud.gov",{"$f":"HYPERLINK(\"mailto:\",Table_Front_desk_report.accdb[[#This Row],[inbox]])","v":"mn.incoming@hud.gov"}]
[800011172,"PARKVIEW HEIGHTS TOWNHOUSES                       ","OWATONNA                    ","MN","55060","BEN OSBORN                                         ","Benjamin.M.Osborn@hud.gov","612-370-3091","mn.incoming@hud.gov",{"$f":"HYPERLINK(\"mailto:\",Table_Front_desk_report.accdb[[#This Row],[inbox]])","v":"mn.incoming@hud.gov"}]
[800011173,"PARKVIEW I & II                                   ","PEQUOT LAKES                ","MN","56472","MITCHELL S HILLMAN                                 ","MITCHELL.S.HILLMAN@hud.gov","612-370-3036","mn.incoming@hud.gov",{"$f":"HYPERLINK(\"mailto:\",Table_Front_desk_report.accdb[[#This Row],[inbox]])","v":"mn.incoming@hud.gov"}]
[800023251,"PARKVIEW I APARTMENTS                             ","OCONTO FALLS                ","WI","54154","LAWRANCE C MUNDT                                   ","LAWRENCE.C.MUNDT@hud.gov","612-370-3082","mn.incoming@hud.gov",{"$f":"HYPERLINK(\"mailto:\",Table_Front_desk_report.accdb[[#This Row],[inbox]])","v":"mn.incoming@hud.gov"}]
[800023252,"PARKVIEW II APARTMENTS                            ","OCONTO FALLS                ","WI","54154","LAWRANCE C MUNDT                                   ","LAWRENCE.C.MUNDT@hud.gov","612-370-3082","mn.incoming@hud.gov",{"$f":"HYPERLINK(\"mailto:\",Table_Front_desk_report.accdb[[#This Row],[inbox]])","v":"mn.incoming@hud.gov"}]
[800241918,"Parkview III Apartments                           ","Caledonia                   ","WI","53402","SYLVIA HYDE                                        ","sylvia.hyde@hud.gov","312-913-8573","chi.incoming@hud.gov",{"$f":"HYPERLINK(\"mailto:\",Table_Front_desk_report.accdb[[#This Row],[inbox]])","v":"chi.incoming@hud.gov"}]
[800223307,"PARKVIEW TERRACE APARTMENTS                       ","Milton                      ","WI","53563","DORTHY L HOPKINS                                   ","dorthy.l.hopkins@hud.gov","312-913-8172","chi.incoming@hud.gov",{"$f":"HYPERLINK(\"mailto:\",Table_Front_desk_report.accdb[[#This Row],[inbox]])","v":"chi.incoming@hud.gov"}]
[800011174,"PARKVIEW TERRACE APARTMENTS                       ","SAINT CLOUD                 ","MN","56301","TEENA M GEE                                        ","Teena.M.Gee@hud.gov","612-843-6414","mn.incoming@hud.gov",{"$f":"HYPERLINK(\"mailto:\",Table_Front_desk_report.accdb[[#This Row],[inbox]])","v":"mn.incoming@hud.gov"}]
[800241639,"Parkview Villa                                    ","Columbia Heights            ","MN","55421","DARIAN JANE ZIEGLER                                ","Darian.Ziegler@hud.gov","612-370-3270","mn.incoming@hud.gov",{"$f":"HYPERLINK(\"mailto:\",Table_Front_desk_report.accdb[[#This Row],[inbox]])","v":"mn.incoming@hud.gov"}]
[800023256,"PARKVIEW VILLAGE                                  ","APPLETON                    ","WI","54915","CATHERINE A TEMPLE                                 ","Catherine.A.Temple@hud.gov","414-935-6695","mn.incoming@hud.gov",{"$f":"HYPERLINK(\"mailto:\",Table_Front_desk_report.accdb[[#This Row],[inbox]])","v":"mn.incoming@hud.gov"}]
[800023261,"PARKVIEW, EASTVIEW, NORTHVIEW HOUSING             ","Junction City               ","WI","54443","CATHERINE A TEMPLE                                 ","Catherine.A.Temple@hud.gov","414-935-6695","mn.incoming@hud.gov",{"$f":"HYPERLINK(\"mailto:\",Table_Front_desk_report.accdb[[#This Row],[inbox]])","v":"mn.incoming@hud.gov"}]
[800243715,"Parkway 25 Apartments                             ","St. Louis Park              ","MN","55416","TEENA M GEE                                        ","Teena.M.Gee@hud.gov","612-843-6414","mn.incoming@hud.gov",{"$f":"HYPERLINK(\"mailto:\",Table_Front_desk_report.accdb[[#This Row],[inbox]])","v":"mn.incoming@hud.gov"}]
[800044210,"PARKWAY COOP OF BURNSVILLE                        ","BURNSVILLE                  ","MN","55337","MICHAEL P MORAN                                    ","MICHAEL.P.MORAN@HUD.GOV","612-370-3081","mn.incoming@hud.gov",{"$f":"HYPERLINK(\"mailto:\",Table_Front_desk_report.accdb[[#This Row],[inbox]])","v":"mn.incoming@hud.gov"}]
[800023257,"PARKWOOD VILLAGE                                  ","SHEBOYGAN                   ","WI","53081","ANDREA L CARSON                                    ","andrea.carson@hud.gov","414-935-6679","mn.incoming@hud.gov",{"$f":"HYPERLINK(\"mailto:\",Table_Front_desk_report.accdb[[#This Row],[inbox]])","v":"mn.incoming@hud.gov"}]
[800011175,"PARMLY LAKEVIEW APARTMENTS                        ","CHISAGO CITY                ","MN","55013","TERRI A MUNSON                                     ","Terri.A.Munson@hud.gov","612-370-3086","mn.incoming@hud.gov",{"$f":"HYPERLINK(\"mailto:\",Table_Front_desk_report.accdb[[#This Row],[inbox]])","v":"mn.incoming@hud.gov"}]
[800023259,"PAT SMITH / ELDER LOCKE MANOR                     ","PORTAGE                     ","WI","53901","CATHERINE A TEMPLE                                 ","Catherine.A.Temple@hud.gov","414-935-6695","mn.incoming@hud.gov",{"$f":"HYPERLINK(\"mailto:\",Table_Front_desk_report.accdb[[#This Row],[inbox]])","v":"mn.incoming@hud.gov"}]
[800023260,"PATTEE MEADOW APARTMENTS                          ","WAUPUN                      ","WI","53963","MARCIA A KOLB                                      ","MARCIA.A.KOLB@hud.gov","612-370-3055","mn.incoming@hud.gov",{"$f":"HYPERLINK(\"mailto:\",Table_Front_desk_report.accdb[[#This Row],[inbox]])","v":"mn.incoming@hud.gov"}]
[800241805,"Pelican River Estates                             ","Rhinelander                 ","WI","54501","CATHERINE A TEMPLE                                 ","Catherine.A.Temple@hud.gov","414-935-6695","mn.incoming@hud.gov",{"$f":"HYPERLINK(\"mailto:\",Table_Front_desk_report.accdb[[#This Row],[inbox]])","v":"mn.incoming@hud.gov"}]
[800224789,"Penelope 35-2 Apartments                          ","Bloomington                 ","MN","55431","SHERRY K NORTON                                    ","Sherry.K.Norton@hud.gov","612-370-3087","mn.incoming@hud.gov",{"$f":"HYPERLINK(\"mailto:\",Table_Front_desk_report.accdb[[#This Row],[inbox]])","v":"mn.incoming@hud.gov"}]
[800011176,"PENNEL PARK COMMONS                               ","DULUTH                      ","MN","55811","DARIAN JANE ZIEGLER                                ","Darian.Ziegler@hud.gov","612-370-3270","mn.incoming@hud.gov",{"$f":"HYPERLINK(\"mailto:\",Table_Front_desk_report.accdb[[#This Row],[inbox]])","v":"mn.incoming@hud.gov"}]
[800011177,"PEPIN APARTMENTS                                  ","LAKE CITY                   ","MN","55041","SHERRY K NORTON                                    ","Sherry.K.Norton@hud.gov","612-370-3087","mn.incoming@hud.gov",{"$f":"HYPERLINK(\"mailto:\",Table_Front_desk_report.accdb[[#This Row],[inbox]])","v":"mn.incoming@hud.gov"}]
[800011178,"PESCH PLACE                                       ","GOLDEN VALLEY               ","MN","55422","CINDY BEHNKE                                       ","cynthia.behnke@hud.gov","612-370-3278","mn.incoming@hud.gov",{"$f":"HYPERLINK(\"mailto:\",Table_Front_desk_report.accdb[[#This Row],[inbox]])","v":"mn.incoming@hud.gov"}]
[800221201,"Phalen Senior Lofts                               ","Saint Paul                  ","MN","55130","TERESA C PARKER                                    ","TERESA.C.PARKER@hud.gov","612-370-3092","mn.incoming@hud.gov",{"$f":"HYPERLINK(\"mailto:\",Table_Front_desk_report.accdb[[#This Row],[inbox]])","v":"mn.incoming@hud.gov"}]
[800241995,"Pheasant Crest Townhomes                          ","Sartell                     ","MN","56377","GREGORY T MERZ                                     ","GREGORY.T.MERZ@hud.gov","612-370-3077","mn.incoming@hud.gov",{"$f":"HYPERLINK(\"mailto:\",Table_Front_desk_report.accdb[[#This Row],[inbox]])","v":"mn.incoming@hud.gov"}]
[800238849,"Pheasant Run Apartments                           ","Alexandria                  ","MN","56308","BEN OSBORN                                         ","Benjamin.M.Osborn@hud.gov","612-370-3091","mn.incoming@hud.gov",{"$f":"HYPERLINK(\"mailto:\",Table_Front_desk_report.accdb[[#This Row],[inbox]])","v":"mn.incoming@hud.gov"}]
[800240736,"PHEASANT RUN/JUNCTION RIDGE                       ","Village of Lake Delton      ","WI","53913","LAWRANCE C MUNDT                                   ","LAWRENCE.C.MUNDT@hud.gov","612-370-3082","mn.incoming@hud.gov",{"$f":"HYPERLINK(\"mailto:\",Table_Front_desk_report.accdb[[#This Row],[inbox]])","v":"mn.incoming@hud.gov"}]
[800011180,"PHILLIPS TOWERS APARTMENTS                        ","MINNEAPOLIS                 ","MN","55404","GREGORY T MERZ                                     ","GREGORY.T.MERZ@hud.gov","612-370-3077","mn.incoming@hud.gov",{"$f":"HYPERLINK(\"mailto:\",Table_Front_desk_report.accdb[[#This Row],[inbox]])","v":"mn.incoming@hud.gov"}]
[800023265,"PHOENIX VILLA APTS                                ","Superior                    ","WI","54880","JOEL R KLEMM                                       ","JOEL.R.KLEMM@hud.gov","612-370-3053","mn.incoming@hud.gov",{"$f":"HYPERLINK(\"mailto:\",Table_Front_desk_report.accdb[[#This Row],[inbox]])","v":"mn.incoming@hud.gov"}]
[800023269,"PIERCE COUNTY ELDERLY                             ","ELSWORTH                    ","WI","54011","JOEL R KLEMM                                       ","JOEL.R.KLEMM@hud.gov","612-370-3053","mn.incoming@hud.gov",{"$f":"HYPERLINK(\"mailto:\",Table_Front_desk_report.accdb[[#This Row],[inbox]])","v":"mn.incoming@hud.gov"}]
[800011181,"PINE AVENUE TOWNHOUSES                            ","STAPLES                     ","MN","56479","SUSAN K ROSKOS                                     ","Susan.K.Roskos@hud.gov","612-370-3110","mn.incoming@hud.gov",{"$f":"HYPERLINK(\"mailto:\",Table_Front_desk_report.accdb[[#This Row],[inbox]])","v":"mn.incoming@hud.gov"}]
[800072525,"Pine Cone Manor                                   ","ZIMMERMAN                   ","MN","55398","THOMAS G DURSCHER                                  ","Thomas.G.Durscher@hud.gov","612-370-3018","mn.incoming@hud.gov",{"$f":"HYPERLINK(\"mailto:\",Table_Front_desk_report.accdb[[#This Row],[inbox]])","v":"mn.incoming@hud.gov"}]
[800010996,"PINE COUNTY HOUSING                               ","SANDSTONE                   ","MN","55072","SUSAN K ROSKOS                                     ","Susan.K.Roskos@hud.gov","612-370-3110","mn.incoming@hud.gov",{"$f":"HYPERLINK(\"mailto:\",Table_Front_desk_report.accdb[[#This Row],[inbox]])","v":"mn.incoming@hud.gov"}]
[800023271,"PINE CREEK II                                     ","WISCONSIN RAPIDS            ","WI","54494","LAWRANCE C MUNDT                                   ","LAWRENCE.C.MUNDT@hud.gov","612-370-3082","mn.incoming@hud.gov",{"$f":"HYPERLINK(\"mailto:\",Table_Front_desk_report.accdb[[#This Row],[inbox]])","v":"mn.incoming@hud.gov"}]
[800010761,"PINE GROVE APARTMENTS/aka ASI Duluth              ","DULUTH                      ","MN","55811","MITCHELL S HILLMAN                                 ","MITCHELL.S.HILLMAN@hud.gov","612-370-3036","mn.incoming@hud.gov",{"$f":"HYPERLINK(\"mailto:\",Table_Front_desk_report.accdb[[#This Row],[inbox]])","v":"mn.incoming@hud.gov"}]
[800011182,"PINE MANOR                                        ","ELY                         ","MN","55731","NATASHA D GUENOVA                                  ","NATASHA.D.GUENOVA@hud.gov","612-370-3035","mn.incoming@hud.gov",{"$f":"HYPERLINK(\"mailto:\",Table_Front_desk_report.accdb[[#This Row],[inbox]])","v":"mn.incoming@hud.gov"}]
[800011183,"PINE RIDGE APARTMENTS                             ","GRAND RAPIDS                ","MN","55744","TEENA M GEE                                        ","Teena.M.Gee@hud.gov","612-843-6414","mn.incoming@hud.gov",{"$f":"HYPERLINK(\"mailto:\",Table_Front_desk_report.accdb[[#This Row],[inbox]])","v":"mn.incoming@hud.gov"}]
[800011184,"PINE TREE ESTATES                                 ","BEMIDJI                     ","MN","56601","THOMAS G DURSCHER                                  ","Thomas.G.Durscher@hud.gov","612-370-3018","mn.incoming@hud.gov",{"$f":"HYPERLINK(\"mailto:\",Table_Front_desk_report.accdb[[#This Row],[inbox]])","v":"mn.incoming@hud.gov"}]
[800011185,"PINE VILLA APARTMENTS                             ","MENAGHA                     ","MN","56464","TERRI A MUNSON                                     ","Terri.A.Munson@hud.gov","612-370-3086","mn.incoming@hud.gov",{"$f":"HYPERLINK(\"mailto:\",Table_Front_desk_report.accdb[[#This Row],[inbox]])","v":"mn.incoming@hud.gov"}]
[800234547,"Pinehurst Apartments                              ","White Bear Lake             ","MN","55110","BEN OSBORN                                         ","Benjamin.M.Osborn@hud.gov","612-370-3091","mn.incoming@hud.gov",{"$f":"HYPERLINK(\"mailto:\",Table_Front_desk_report.accdb[[#This Row],[inbox]])","v":"mn.incoming@hud.gov"}]
[800010961,"PINEWOOD APARTMENTS                               ","HARRIS                      ","MN","55032","MITCHELL S HILLMAN                                 ","MITCHELL.S.HILLMAN@hud.gov","612-370-3036","mn.incoming@hud.gov",{"$f":"HYPERLINK(\"mailto:\",Table_Front_desk_report.accdb[[#This Row],[inbox]])","v":"mn.incoming@hud.gov"}]
[800023274,"PINEWOOD APARTMENTS                               ","AMERY                       ","WI","54001","JOEL R KLEMM                                       ","JOEL.R.KLEMM@hud.gov","612-370-3053","mn.incoming@hud.gov",{"$f":"HYPERLINK(\"mailto:\",Table_Front_desk_report.accdb[[#This Row],[inbox]])","v":"mn.incoming@hud.gov"}]
[800011039,"PINEWOOD APTS aka Lakefield Apts                  ","LAKEFIELD                   ","MN","56150","THOMAS G DURSCHER                                  ","Thomas.G.Durscher@hud.gov","612-370-3018","mn.incoming@hud.gov",{"$f":"HYPERLINK(\"mailto:\",Table_Front_desk_report.accdb[[#This Row],[inbox]])","v":"mn.incoming@hud.gov"}]
[800023275,"PING MANOR                                        ","LA CROSSE                   ","WI","54601","PAUL A DUHR                                        ","paul.a.duhr@hud.gov","414-935-6681","mn.incoming@hud.gov",{"$f":"HYPERLINK(\"mailto:\",Table_Front_desk_report.accdb[[#This Row],[inbox]])","v":"mn.incoming@hud.gov"}]
[800242151,"Pinnacle at Brookfield Hills                      ","Brookfield                  ","WI","53005","LADRENNA A FIGUEROA                                ","ladrenna.a.figueroa@hud.gov","312-913-8290","chi.incoming@hud.gov",{"$f":"HYPERLINK(\"mailto:\",Table_Front_desk_report.accdb[[#This Row],[inbox]])","v":"chi.incoming@hud.gov"}]
[800023438,"PIONEER APARTMENTS                                ","LUCK                        ","WI","54853","MARCIA A KOLB                                      ","MARCIA.A.KOLB@hud.gov","612-370-3055","mn.incoming@hud.gov",{"$f":"HYPERLINK(\"mailto:\",Table_Front_desk_report.accdb[[#This Row],[inbox]])","v":"mn.incoming@hud.gov"}]
[800023277,"PIONEER PLACE I & II                              ","Poynette                    ","WI","53955","LAWRANCE C MUNDT                                   ","LAWRENCE.C.MUNDT@hud.gov","612-370-3082","mn.incoming@hud.gov",{"$f":"HYPERLINK(\"mailto:\",Table_Front_desk_report.accdb[[#This Row],[inbox]])","v":"mn.incoming@hud.gov"}]
[800023279,"PIONEER PLACE III                                 ","POYNETTE                    ","WI","53955","LAWRANCE C MUNDT                                   ","LAWRENCE.C.MUNDT@hud.gov","612-370-3082","mn.incoming@hud.gov",{"$f":"HYPERLINK(\"mailto:\",Table_Front_desk_report.accdb[[#This Row],[inbox]])","v":"mn.incoming@hud.gov"}]
[800023280,"PIONEER PLACE IV                                  ","POYNETTE                    ","WI","53955","LAWRANCE C MUNDT                                   ","LAWRENCE.C.MUNDT@hud.gov","612-370-3082","mn.incoming@hud.gov",{"$f":"HYPERLINK(\"mailto:\",Table_Front_desk_report.accdb[[#This Row],[inbox]])","v":"mn.incoming@hud.gov"}]
[800023281,"PIONEER VILLA                                     ","SURING                      ","WI","54174","MICHAEL D FURNNER                                  ","MICHAEL.D.FURNNER@hud.gov","414-935-6682","mn.incoming@hud.gov",{"$f":"HYPERLINK(\"mailto:\",Table_Front_desk_report.accdb[[#This Row],[inbox]])","v":"mn.incoming@hud.gov"}]
[800011187,"PLAINVIEW SENIORS HOUSING                         ","PLAINVIEW                   ","MN","55964","SHERRY K NORTON                                    ","Sherry.K.Norton@hud.gov","612-370-3087","mn.incoming@hud.gov",{"$f":"HYPERLINK(\"mailto:\",Table_Front_desk_report.accdb[[#This Row],[inbox]])","v":"mn.incoming@hud.gov"}]
[800011188,"PLEASANT PLACE APARTMENTS                         ","ROGERS                      ","MN","55374","JOEL R KLEMM                                       ","JOEL.R.KLEMM@hud.gov","612-370-3053","mn.incoming@hud.gov",{"$f":"HYPERLINK(\"mailto:\",Table_Front_desk_report.accdb[[#This Row],[inbox]])","v":"mn.incoming@hud.gov"}]
[800023283,"PLEASANT TERRACE APARTMENTS                       ","MILWAUKEE                   ","WI","53202","DORTHY L HOPKINS                                   ","dorthy.l.hopkins@hud.gov","312-913-8172","chi.incoming@hud.gov",{"$f":"HYPERLINK(\"mailto:\",Table_Front_desk_report.accdb[[#This Row],[inbox]])","v":"chi.incoming@hud.gov"}]
[800011189,"PLYMOUTH AVENUE TOWNHOUSES                        ","Minneapolis                 ","MN","55411","SHERRY K NORTON                                    ","Sherry.K.Norton@hud.gov","612-370-3087","mn.incoming@hud.gov",{"$f":"HYPERLINK(\"mailto:\",Table_Front_desk_report.accdb[[#This Row],[inbox]])","v":"mn.incoming@hud.gov"}]
[800023284,"PLYMOUTH HILL                                     ","MILWAUKEE                   ","WI","53205","ARNOLD PEOPLES                                     ","arnold.peoples@hud.gov","312-913-8103","chi.incoming@hud.gov",{"$f":"HYPERLINK(\"mailto:\",Table_Front_desk_report.accdb[[#This Row],[inbox]])","v":"chi.incoming@hud.gov"}]
[800242776,"Plymouth Stevens House                            ","Minneapolis                 ","MN","55105","SHERRY K NORTON                                    ","Sherry.K.Norton@hud.gov","612-370-3087","mn.incoming@hud.gov",{"$f":"HYPERLINK(\"mailto:\",Table_Front_desk_report.accdb[[#This Row],[inbox]])","v":"mn.incoming@hud.gov"}]
[800235242,"Pointe at River Crossing                          ","Saint Paul                  ","MN","55116","MARCIA A KOLB                                      ","MARCIA.A.KOLB@hud.gov","612-370-3055","mn.incoming@hud.gov",{"$f":"HYPERLINK(\"mailto:\",Table_Front_desk_report.accdb[[#This Row],[inbox]])","v":"mn.incoming@hud.gov"}]
[800011190,"POKEGAMA HOTEL                                    ","GRAND RAPIDS                ","MN","55744","CINDY BEHNKE                                       ","cynthia.behnke@hud.gov","612-370-3278","mn.incoming@hud.gov",{"$f":"HYPERLINK(\"mailto:\",Table_Front_desk_report.accdb[[#This Row],[inbox]])","v":"mn.incoming@hud.gov"}]
[800218200,"PONDVIEW TOWNHOMES                                ","WOODBURY                    ","MN","55125","CAROL DIXON                                        ","Carol.A.Dixon@hud.gov","612-370-3015","mn.incoming@hud.gov",{"$f":"HYPERLINK(\"mailto:\",Table_Front_desk_report.accdb[[#This Row],[inbox]])","v":"mn.incoming@hud.gov"}]
[800023287,"PORTLAND SQUARE/OAKWOOD                           ","FOND DU LAC                 ","WI","54935","CATHERINE A TEMPLE                                 ","Catherine.A.Temple@hud.gov","414-935-6695","mn.incoming@hud.gov",{"$f":"HYPERLINK(\"mailto:\",Table_Front_desk_report.accdb[[#This Row],[inbox]])","v":"mn.incoming@hud.gov"}]
[800023288,"PRAIRIE APARTMENTS II                             ","POYNETTE                    ","WI","53955","PAUL A DUHR                                        ","paul.a.duhr@hud.gov","414-935-6681","mn.incoming@hud.gov",{"$f":"HYPERLINK(\"mailto:\",Table_Front_desk_report.accdb[[#This Row],[inbox]])","v":"mn.incoming@hud.gov"}]
[800011191,"PRAIRIE ESTATES                                   ","INVER GROVE HEIGHTS         ","MN","55076","BEN OSBORN                                         ","Benjamin.M.Osborn@hud.gov","612-370-3091","mn.incoming@hud.gov",{"$f":"HYPERLINK(\"mailto:\",Table_Front_desk_report.accdb[[#This Row],[inbox]])","v":"mn.incoming@hud.gov"}]
[800011393,"PRAIRIE MEADOW  aka  Windslope Apts               ","EDEN PRAIRIE                ","MN","55344","MITCHELL S HILLMAN                                 ","MITCHELL.S.HILLMAN@hud.gov","612-370-3036","mn.incoming@hud.gov",{"$f":"HYPERLINK(\"mailto:\",Table_Front_desk_report.accdb[[#This Row],[inbox]])","v":"mn.incoming@hud.gov"}]
[800011192,"PRAIRIE SKY                                       ","AUSTIN                      ","MN","55912","MITCHELL S HILLMAN                                 ","MITCHELL.S.HILLMAN@hud.gov","612-370-3036","mn.incoming@hud.gov",{"$f":"HYPERLINK(\"mailto:\",Table_Front_desk_report.accdb[[#This Row],[inbox]])","v":"mn.incoming@hud.gov"}]
[800011194,"Prairie View 400                                  ","LONG PRAIRIE                ","MN","56347","MITCHELL S HILLMAN                                 ","MITCHELL.S.HILLMAN@hud.gov","612-370-3036","mn.incoming@hud.gov",{"$f":"HYPERLINK(\"mailto:\",Table_Front_desk_report.accdb[[#This Row],[inbox]])","v":"mn.incoming@hud.gov"}]
[800011193,"PRAIRIE VIEW APTS aka Ivanhoe Apts                ","IVANHOE                     ","MN","56142","JULIE A LASOTA                                     ","Julie.A.Lasota@hud.gov","612-370-3066","mn.incoming@hud.gov",{"$f":"HYPERLINK(\"mailto:\",Table_Front_desk_report.accdb[[#This Row],[inbox]])","v":"mn.incoming@hud.gov"}]
[800221637,"PRAIRIE VIEW HEIGHTS  aka  Good Samaritan IGH     ","Inver Grove Heights         ","MN","55076","MITCHELL S HILLMAN                                 ","MITCHELL.S.HILLMAN@hud.gov","612-370-3036","mn.incoming@hud.gov",{"$f":"HYPERLINK(\"mailto:\",Table_Front_desk_report.accdb[[#This Row],[inbox]])","v":"mn.incoming@hud.gov"}]
[800011195,"PRAIRIE VILLA I APARTMENTS                        ","BLOOMING PRAIRIE            ","MN","55917","TEENA M GEE                                        ","Teena.M.Gee@hud.gov","612-843-6414","mn.incoming@hud.gov",{"$f":"HYPERLINK(\"mailto:\",Table_Front_desk_report.accdb[[#This Row],[inbox]])","v":"mn.incoming@hud.gov"}]
[800023289,"PRAIRIE VILLAGE                                   ","STETSONVILLE                ","WI","54480","ANDREA L CARSON                                    ","andrea.carson@hud.gov","414-935-6679","mn.incoming@hud.gov",{"$f":"HYPERLINK(\"mailto:\",Table_Front_desk_report.accdb[[#This Row],[inbox]])","v":"mn.incoming@hud.gov"}]
[800231473,"Prairie Village Townhomes                         ","Becker                      ","MN","55308","MICHAEL P MORAN                                    ","MICHAEL.P.MORAN@HUD.GOV","612-370-3081","mn.incoming@hud.gov",{"$f":"HYPERLINK(\"mailto:\",Table_Front_desk_report.accdb[[#This Row],[inbox]])","v":"mn.incoming@hud.gov"}]
[800023290,"PRAIRIEVIEW APARTMENTS                            ","SAUKVILLE                   ","WI","53080","PAUL A DUHR                                        ","paul.a.duhr@hud.gov","414-935-6681","mn.incoming@hud.gov",{"$f":"HYPERLINK(\"mailto:\",Table_Front_desk_report.accdb[[#This Row],[inbox]])","v":"mn.incoming@hud.gov"}]
[800023291,"PRICE COUNTY HOUSING                              ","PARK FALLS                  ","WI","54552","SUSAN K ROSKOS                                     ","Susan.K.Roskos@hud.gov","612-370-3110","mn.incoming@hud.gov",{"$f":"HYPERLINK(\"mailto:\",Table_Front_desk_report.accdb[[#This Row],[inbox]])","v":"mn.incoming@hud.gov"}]
[800023292,"PRIMROSE APTS                                     ","NEENAH                      ","WI","54956","CATHERINE A TEMPLE                                 ","Catherine.A.Temple@hud.gov","414-935-6695","mn.incoming@hud.gov",{"$f":"HYPERLINK(\"mailto:\",Table_Front_desk_report.accdb[[#This Row],[inbox]])","v":"mn.incoming@hud.gov"}]
[800011196,"PRINCETON APARTMENTS                              ","PRINCETON                   ","MN","55371","DARIAN JANE ZIEGLER                                ","Darian.Ziegler@hud.gov","612-370-3270","mn.incoming@hud.gov",{"$f":"HYPERLINK(\"mailto:\",Table_Front_desk_report.accdb[[#This Row],[inbox]])","v":"mn.incoming@hud.gov"}]
[800219342,"Pullman Place Cooperative                         ","Elk River                   ","MN","55330","GREGORY T MERZ                                     ","GREGORY.T.MERZ@hud.gov","612-370-3077","mn.incoming@hud.gov",{"$f":"HYPERLINK(\"mailto:\",Table_Front_desk_report.accdb[[#This Row],[inbox]])","v":"mn.incoming@hud.gov"}]
[800072451,"Purgatory Creek Townhomes                         ","EDEN PRAIRIE                ","MN","55344","LAWRANCE C MUNDT                                   ","LAWRENCE.C.MUNDT@hud.gov","612-370-3082","mn.incoming@hud.gov",{"$f":"HYPERLINK(\"mailto:\",Table_Front_desk_report.accdb[[#This Row],[inbox]])","v":"mn.incoming@hud.gov"}]
[null,"Q"]
[800023359,"QUAIL RUN/FAIRVIEW FAMILY                         ","EAST TROY                   ","WI","53120","ARNITA X SCOTT                                     ","arnita.scott@hud.gov","312-913-8574","chi.incoming@hud.gov",{"$f":"HYPERLINK(\"mailto:\",Table_Front_desk_report.accdb[[#This Row],[inbox]])","v":"chi.incoming@hud.gov"}]
[800023011,"QUAKER HOUSING                                    ","MADISON                     ","WI","53713","ARNITA X SCOTT                                     ","arnita.scott@hud.gov","312-913-8574","chi.incoming@hud.gov",{"$f":"HYPERLINK(\"mailto:\",Table_Front_desk_report.accdb[[#This Row],[inbox]])","v":"chi.incoming@hud.gov"}]
[800011197,"QUARRY HEIGHTS                                    ","SAINT CLOUD                 ","MN","56301","GREGORY T MERZ                                     ","GREGORY.T.MERZ@hud.gov","612-370-3077","mn.incoming@hud.gov",{"$f":"HYPERLINK(\"mailto:\",Table_Front_desk_report.accdb[[#This Row],[inbox]])","v":"mn.incoming@hud.gov"}]
[800239746,"QUISLING TERRACE                                  ","Madison                     ","WI","53703","DORTHY L HOPKINS                                   ","dorthy.l.hopkins@hud.gov","312-913-8172","chi.incoming@hud.gov",{"$f":"HYPERLINK(\"mailto:\",Table_Front_desk_report.accdb[[#This Row],[inbox]])","v":"chi.incoming@hud.gov"}]
[null,"R"]
[800011199,"RAILVIEW APARTMENTS                               ","PROCTOR                     ","MN","55810","BEN OSBORN                                         ","Benjamin.M.Osborn@hud.gov","612-370-3091","mn.incoming@hud.gov",{"$f":"HYPERLINK(\"mailto:\",Table_Front_desk_report.accdb[[#This Row],[inbox]])","v":"mn.incoming@hud.gov"}]
[800011200,"RAINTREE WEST APARTMENTS                          ","MOUNTAIN IRON               ","MN","55768","TEENA M GEE                                        ","Teena.M.Gee@hud.gov","612-843-6414","mn.incoming@hud.gov",{"$f":"HYPERLINK(\"mailto:\",Table_Front_desk_report.accdb[[#This Row],[inbox]])","v":"mn.incoming@hud.gov"}]
[800011201,"RAMSEY COMMONS                                    ","SAINT PAUL                  ","MN","55104","JOEL R KLEMM                                       ","JOEL.R.KLEMM@hud.gov","612-370-3053","mn.incoming@hud.gov",{"$f":"HYPERLINK(\"mailto:\",Table_Front_desk_report.accdb[[#This Row],[inbox]])","v":"mn.incoming@hud.gov"}]
[800023295,"RANDALL COURT                                     ","APPLETON                    ","WI","54911","PAUL A DUHR                                        ","paul.a.duhr@hud.gov","414-935-6681","mn.incoming@hud.gov",{"$f":"HYPERLINK(\"mailto:\",Table_Front_desk_report.accdb[[#This Row],[inbox]])","v":"mn.incoming@hud.gov"}]
[800011202,"RAYMIE JOHNSON ESTATES                            ","OAK PARK HEIGHTS            ","MN","55082","JOEL R KLEMM                                       ","JOEL.R.KLEMM@hud.gov","612-370-3053","mn.incoming@hud.gov",{"$f":"HYPERLINK(\"mailto:\",Table_Front_desk_report.accdb[[#This Row],[inbox]])","v":"mn.incoming@hud.gov"}]
[800072460,"Realife Coop of Bloomington                       ","BLOOMINGTON                 ","MN","55420","JOEL R KLEMM                                       ","JOEL.R.KLEMM@hud.gov","612-370-3053","mn.incoming@hud.gov",{"$f":"HYPERLINK(\"mailto:\",Table_Front_desk_report.accdb[[#This Row],[inbox]])","v":"mn.incoming@hud.gov"}]
[800072449,"Realife Coop of Brooklyn Park                     ","BROOKLYN PARK               ","MN","55443","MICHAEL P MORAN                                    ","MICHAEL.P.MORAN@HUD.GOV","612-370-3081","mn.incoming@hud.gov",{"$f":"HYPERLINK(\"mailto:\",Table_Front_desk_report.accdb[[#This Row],[inbox]])","v":"mn.incoming@hud.gov"}]
[800044195,"Realife Co-op of Faribault                        ","FARIBAULT                   ","MN","55021","DARIAN JANE ZIEGLER                                ","Darian.Ziegler@hud.gov","612-370-3270","mn.incoming@hud.gov",{"$f":"HYPERLINK(\"mailto:\",Table_Front_desk_report.accdb[[#This Row],[inbox]])","v":"mn.incoming@hud.gov"}]
[800224298,"Realife Coop Waseca                               ","Waseca                      ","MN","56093","MICHAEL P MORAN                                    ","MICHAEL.P.MORAN@HUD.GOV","612-370-3081","mn.incoming@hud.gov",{"$f":"HYPERLINK(\"mailto:\",Table_Front_desk_report.accdb[[#This Row],[inbox]])","v":"mn.incoming@hud.gov"}]
[800079152,"REALIFE COOP. OF NEW ULM                          ","NEW ULM                     ","MN","56073","MICHAEL P MORAN                                    ","MICHAEL.P.MORAN@HUD.GOV","612-370-3081","mn.incoming@hud.gov",{"$f":"HYPERLINK(\"mailto:\",Table_Front_desk_report.accdb[[#This Row],[inbox]])","v":"mn.incoming@hud.gov"}]
[800221149,"Realife Cooperative at Mueller Gardens            ","Saint Cloud                 ","MN","56303","DARIAN JANE ZIEGLER                                ","Darian.Ziegler@hud.gov","612-370-3270","mn.incoming@hud.gov",{"$f":"HYPERLINK(\"mailto:\",Table_Front_desk_report.accdb[[#This Row],[inbox]])","v":"mn.incoming@hud.gov"}]
[800219172,"Realife Cooperative of Bloomington                ","Bloomington                 ","MN","55420","MICHAEL P MORAN                                    ","MICHAEL.P.MORAN@HUD.GOV","612-370-3081","mn.incoming@hud.gov",{"$f":"HYPERLINK(\"mailto:\",Table_Front_desk_report.accdb[[#This Row],[inbox]])","v":"mn.incoming@hud.gov"}]
[800044198,"REALIFE COOPERATIVE OF BURNSVILLE                 ","BURNSVILLE                  ","MN","55337","GREGORY T MERZ                                     ","GREGORY.T.MERZ@hud.gov","612-370-3077","mn.incoming@hud.gov",{"$f":"HYPERLINK(\"mailto:\",Table_Front_desk_report.accdb[[#This Row],[inbox]])","v":"mn.incoming@hud.gov"}]
[800227448,"Realife Cooperative of Duluth                     ","Duluth                      ","MN","55811","MICHAEL P MORAN                                    ","MICHAEL.P.MORAN@HUD.GOV","612-370-3081","mn.incoming@hud.gov",{"$f":"HYPERLINK(\"mailto:\",Table_Front_desk_report.accdb[[#This Row],[inbox]])","v":"mn.incoming@hud.gov"}]
[800212202,"REALIFE COOPERATIVE of EAU CLAIRE                 ","EAU CLAIRE                  ","WI","54703","CATHERINE A TEMPLE                                 ","Catherine.A.Temple@hud.gov","414-935-6695","mn.incoming@hud.gov",{"$f":"HYPERLINK(\"mailto:\",Table_Front_desk_report.accdb[[#This Row],[inbox]])","v":"mn.incoming@hud.gov"}]
[800220096,"REALIFE COOPERATIVE OF HIBBING                    ","Hibbing                     ","MN","55746","SHERRY K NORTON                                    ","Sherry.K.Norton@hud.gov","612-370-3087","mn.incoming@hud.gov",{"$f":"HYPERLINK(\"mailto:\",Table_Front_desk_report.accdb[[#This Row],[inbox]])","v":"mn.incoming@hud.gov"}]
[800234300,"Realife Cooperative of Hibbing South              ","Hibbing                     ","MN","55746","SHERRY K NORTON                                    ","Sherry.K.Norton@hud.gov","612-370-3087","mn.incoming@hud.gov",{"$f":"HYPERLINK(\"mailto:\",Table_Front_desk_report.accdb[[#This Row],[inbox]])","v":"mn.incoming@hud.gov"}]
[800224227,"Realife Cooperative of Mankato                    ","Mankato                     ","MN","56001","MICHAEL P MORAN                                    ","MICHAEL.P.MORAN@HUD.GOV","612-370-3081","mn.incoming@hud.gov",{"$f":"HYPERLINK(\"mailto:\",Table_Front_desk_report.accdb[[#This Row],[inbox]])","v":"mn.incoming@hud.gov"}]
[800210981,"Realife Cooperative of Mounds View                ","MOUNDS VIEW                 ","MN","55112","LAWRANCE C MUNDT                                   ","LAWRENCE.C.MUNDT@hud.gov","612-370-3082","mn.incoming@hud.gov",{"$f":"HYPERLINK(\"mailto:\",Table_Front_desk_report.accdb[[#This Row],[inbox]])","v":"mn.incoming@hud.gov"}]
[800217142,"Realife Cooperative of Osseo                      ","Osseo                       ","MN","55369","LAWRANCE C MUNDT                                   ","LAWRENCE.C.MUNDT@hud.gov","612-370-3082","mn.incoming@hud.gov",{"$f":"HYPERLINK(\"mailto:\",Table_Front_desk_report.accdb[[#This Row],[inbox]])","v":"mn.incoming@hud.gov"}]
[800079665,"REALIFE COOPERATIVE OF OWATONNA                   ","OWATONNA                    ","MN","55060","LAWRANCE C MUNDT                                   ","LAWRENCE.C.MUNDT@hud.gov","612-370-3082","mn.incoming@hud.gov",{"$f":"HYPERLINK(\"mailto:\",Table_Front_desk_report.accdb[[#This Row],[inbox]])","v":"mn.incoming@hud.gov"}]
[800217143,"Realife Cooperative of Phalen Village             ","Saint Paul                  ","MN","55106","GREGORY T MERZ                                     ","GREGORY.T.MERZ@hud.gov","612-370-3077","mn.incoming@hud.gov",{"$f":"HYPERLINK(\"mailto:\",Table_Front_desk_report.accdb[[#This Row],[inbox]])","v":"mn.incoming@hud.gov"}]
[800044187,"REALIFE COOPERATIVE OF ROCHESTER                  ","ROCHESTER                   ","MN","55901","CINDY BEHNKE                                       ","cynthia.behnke@hud.gov","612-370-3278","mn.incoming@hud.gov",{"$f":"HYPERLINK(\"mailto:\",Table_Front_desk_report.accdb[[#This Row],[inbox]])","v":"mn.incoming@hud.gov"}]
[800079639,"REALIFE COOPERATIVE OF ST PETER                   ","SAINT PETER                 ","MN","56082","BEN OSBORN                                         ","Benjamin.M.Osborn@hud.gov","612-370-3091","mn.incoming@hud.gov",{"$f":"HYPERLINK(\"mailto:\",Table_Front_desk_report.accdb[[#This Row],[inbox]])","v":"mn.incoming@hud.gov"}]
[800212663,"Realife Cooperative of West St Paul               ","Saint Paul                  ","MN","55118","MICHAEL P MORAN                                    ","MICHAEL.P.MORAN@HUD.GOV","612-370-3081","mn.incoming@hud.gov",{"$f":"HYPERLINK(\"mailto:\",Table_Front_desk_report.accdb[[#This Row],[inbox]])","v":"mn.incoming@hud.gov"}]
[800215711,"REALIFE OF COON RAPIDS                            ","Minneapolis                 ","MN","55448","TEENA M GEE                                        ","Teena.M.Gee@hud.gov","612-843-6414","mn.incoming@hud.gov",{"$f":"HYPERLINK(\"mailto:\",Table_Front_desk_report.accdb[[#This Row],[inbox]])","v":"mn.incoming@hud.gov"}]
[800023298,"RED CEDAR VILLAGE                                 ","RICE LAKE                   ","WI","54868","ANDREA L CARSON                                    ","andrea.carson@hud.gov","414-935-6679","mn.incoming@hud.gov",{"$f":"HYPERLINK(\"mailto:\",Table_Front_desk_report.accdb[[#This Row],[inbox]])","v":"mn.incoming@hud.gov"}]
[800011204,"RED LAKE FALLS APARTMENTS                         ","RED LAKE FALLS              ","MN","56750","MARCIA A KOLB                                      ","MARCIA.A.KOLB@hud.gov","612-370-3055","mn.incoming@hud.gov",{"$f":"HYPERLINK(\"mailto:\",Table_Front_desk_report.accdb[[#This Row],[inbox]])","v":"mn.incoming@hud.gov"}]
[800223798,"Red Lake Supportive Housing I                     ","Red Lake                    ","MN","56671","BEN OSBORN                                         ","Benjamin.M.Osborn@hud.gov","612-370-3091","mn.incoming@hud.gov",{"$f":"HYPERLINK(\"mailto:\",Table_Front_desk_report.accdb[[#This Row],[inbox]])","v":"mn.incoming@hud.gov"}]
[800011205,"RED PINE ESTATES, A LMTD PTNRSHP                  ","BEMIDJI                     ","MN","56601","CAROL DIXON                                        ","Carol.A.Dixon@hud.gov","612-370-3015","mn.incoming@hud.gov",{"$f":"HYPERLINK(\"mailto:\",Table_Front_desk_report.accdb[[#This Row],[inbox]])","v":"mn.incoming@hud.gov"}]
[800011206,"RED ROCK MANOR                                    ","NEWPORT                     ","MN","55055","TEENA M GEE                                        ","Teena.M.Gee@hud.gov","612-843-6414","mn.incoming@hud.gov",{"$f":"HYPERLINK(\"mailto:\",Table_Front_desk_report.accdb[[#This Row],[inbox]])","v":"mn.incoming@hud.gov"}]
[800011208,"Redeemers Arms                                    ","SAINT PAUL                  ","MN","55103","SHERRY K NORTON                                    ","Sherry.K.Norton@hud.gov","612-370-3087","mn.incoming@hud.gov",{"$f":"HYPERLINK(\"mailto:\",Table_Front_desk_report.accdb[[#This Row],[inbox]])","v":"mn.incoming@hud.gov"}]
[800011325,"REDRUTH VALLEY APARTMENTS                         ","DULUTH                      ","MN","55808","THOMAS G DURSCHER                                  ","Thomas.G.Durscher@hud.gov","612-370-3018","mn.incoming@hud.gov",{"$f":"HYPERLINK(\"mailto:\",Table_Front_desk_report.accdb[[#This Row],[inbox]])","v":"mn.incoming@hud.gov"}]
[800023299,"REDWOOD TERRACE APARTMENTS                        ","ONALASKA                    ","WI","54650","ANDREA L CARSON                                    ","andrea.carson@hud.gov","414-935-6679","mn.incoming@hud.gov",{"$f":"HYPERLINK(\"mailto:\",Table_Front_desk_report.accdb[[#This Row],[inbox]])","v":"mn.incoming@hud.gov"}]
[800023300,"REFRESHING SPRINGS APARTMENTS                     ","MILWAUKEE                   ","WI","53225","ARUNA SHAH                                         ","aruna.shah@hud.gov","312-913-8588","chi.incoming@hud.gov",{"$f":"HYPERLINK(\"mailto:\",Table_Front_desk_report.accdb[[#This Row],[inbox]])","v":"chi.incoming@hud.gov"}]
[800235654,"Regency Park                                      ","North Saint Paul            ","MN","55109","CAROL DIXON                                        ","Carol.A.Dixon@hud.gov","612-370-3015","mn.incoming@hud.gov",{"$f":"HYPERLINK(\"mailto:\",Table_Front_desk_report.accdb[[#This Row],[inbox]])","v":"mn.incoming@hud.gov"}]
[800236632,"Regency Woods                                     ","Minnetonka                  ","MN","55305","THOMAS G DURSCHER                                  ","Thomas.G.Durscher@hud.gov","612-370-3018","mn.incoming@hud.gov",{"$f":"HYPERLINK(\"mailto:\",Table_Front_desk_report.accdb[[#This Row],[inbox]])","v":"mn.incoming@hud.gov"}]
[800241249,"REGINA HILL                                       ","Superior                    ","WI","54880","MICHAEL D FURNNER                                  ","MICHAEL.D.FURNNER@hud.gov","414-935-6682","mn.incoming@hud.gov",{"$f":"HYPERLINK(\"mailto:\",Table_Front_desk_report.accdb[[#This Row],[inbox]])","v":"mn.incoming@hud.gov"}]
[800226679,"Renaissance Box                                   ","Saint Paul                  ","MN","55101","DARIAN JANE ZIEGLER                                ","Darian.Ziegler@hud.gov","612-370-3270","mn.incoming@hud.gov",{"$f":"HYPERLINK(\"mailto:\",Table_Front_desk_report.accdb[[#This Row],[inbox]])","v":"mn.incoming@hud.gov"}]
[800079232,"RESIDENCES OF OLD CITY HALL                       ","ROCHESTER                   ","MN","55904","LAWRANCE C MUNDT                                   ","LAWRENCE.C.MUNDT@hud.gov","612-370-3082","mn.incoming@hud.gov",{"$f":"HYPERLINK(\"mailto:\",Table_Front_desk_report.accdb[[#This Row],[inbox]])","v":"mn.incoming@hud.gov"}]
[800023113,"REV. DAVILA VILLAGE                               ","MILWAUKEE                   ","WI","53204","YOLANDA S MILLER                                   ","yolanda.s.miller@hud.gov","312-913-8580","chi.incoming@hud.gov",{"$f":"HYPERLINK(\"mailto:\",Table_Front_desk_report.accdb[[#This Row],[inbox]])","v":"chi.incoming@hud.gov"}]
[800023304,"RHINE HAUS HIGHLAND ESTATES                       ","RHINELANDER                 ","WI","54501","MICHAEL D FURNNER                                  ","MICHAEL.D.FURNNER@hud.gov","414-935-6682","mn.incoming@hud.gov",{"$f":"HYPERLINK(\"mailto:\",Table_Front_desk_report.accdb[[#This Row],[inbox]])","v":"mn.incoming@hud.gov"}]
[800225988,"RICHARD BRUESEHOFF VILLA                          ","Black River Falls           ","WI","54615","CATHERINE A TEMPLE                                 ","Catherine.A.Temple@hud.gov","414-935-6695","mn.incoming@hud.gov",{"$f":"HYPERLINK(\"mailto:\",Table_Front_desk_report.accdb[[#This Row],[inbox]])","v":"mn.incoming@hud.gov"}]
[800223162,"RICHARD GURNOE VILLA                              ","Bayfield                    ","WI","54814","SUSAN K ROSKOS                                     ","Susan.K.Roskos@hud.gov","612-370-3110","mn.incoming@hud.gov",{"$f":"HYPERLINK(\"mailto:\",Table_Front_desk_report.accdb[[#This Row],[inbox]])","v":"mn.incoming@hud.gov"}]
[800023305,"RICHARDSON MANOR                                  ","MILWAUKEE                   ","WI","53205","GLORY J MCDONALD                                   ","glory.j.mcdonald@hud.gov","312-913-8126","chi.incoming@hud.gov",{"$f":"HYPERLINK(\"mailto:\",Table_Front_desk_report.accdb[[#This Row],[inbox]])","v":"chi.incoming@hud.gov"}]
[800011211,"RICHFIELD TOWERS                                  ","RICHFIELD                   ","MN","55423","BEN OSBORN                                         ","Benjamin.M.Osborn@hud.gov","612-370-3091","mn.incoming@hud.gov",{"$f":"HYPERLINK(\"mailto:\",Table_Front_desk_report.accdb[[#This Row],[inbox]])","v":"mn.incoming@hud.gov"}]
[800023306,"RICHLAND COUNTY GROUP HOME                        ","RICHLAND CENTER             ","WI","53581","CATHERINE A TEMPLE                                 ","Catherine.A.Temple@hud.gov","414-935-6695","mn.incoming@hud.gov",{"$f":"HYPERLINK(\"mailto:\",Table_Front_desk_report.accdb[[#This Row],[inbox]])","v":"mn.incoming@hud.gov"}]
[800023307,"RICHLAND COUNTY HOUSING                           ","RICHLAND CENTER             ","WI","53581","PAUL A DUHR                                        ","paul.a.duhr@hud.gov","414-935-6681","mn.incoming@hud.gov",{"$f":"HYPERLINK(\"mailto:\",Table_Front_desk_report.accdb[[#This Row],[inbox]])","v":"mn.incoming@hud.gov"}]
[800022985,"RIDGE COURT APARTMENTS                            ","SHEBOYGAN                   ","WI","53083","MICHAEL D FURNNER                                  ","MICHAEL.D.FURNNER@hud.gov","414-935-6682","mn.incoming@hud.gov",{"$f":"HYPERLINK(\"mailto:\",Table_Front_desk_report.accdb[[#This Row],[inbox]])","v":"mn.incoming@hud.gov"}]
[800023308,"RIDGEDALE APARTMENTS                              ","GREENDALE                   ","WI","53129","MARLENE X TRIMUEL                                  ","Marlene.Trimuel@hud.gov","312-913-8369","chi.incoming@hud.gov",{"$f":"HYPERLINK(\"mailto:\",Table_Front_desk_report.accdb[[#This Row],[inbox]])","v":"chi.incoming@hud.gov"}]
[800023309,"RIDGEDALE II                                      ","GREENDALE                   ","WI","53129","MARLENE X TRIMUEL                                  ","Marlene.Trimuel@hud.gov","312-913-8369","chi.incoming@hud.gov",{"$f":"HYPERLINK(\"mailto:\",Table_Front_desk_report.accdb[[#This Row],[inbox]])","v":"chi.incoming@hud.gov"}]
[800079909,"Ridgely Park Apartments                           ","KASOTA                      ","MN","56050","CAROL DIXON                                        ","Carol.A.Dixon@hud.gov","612-370-3015","mn.incoming@hud.gov",{"$f":"HYPERLINK(\"mailto:\",Table_Front_desk_report.accdb[[#This Row],[inbox]])","v":"mn.incoming@hud.gov"}]
[800079966,"RIDGEPOINTE aka Marion Hsing II                   ","MINNETONKA                  ","MN","55305","THOMAS G DURSCHER                                  ","Thomas.G.Durscher@hud.gov","612-370-3018","mn.incoming@hud.gov",{"$f":"HYPERLINK(\"mailto:\",Table_Front_desk_report.accdb[[#This Row],[inbox]])","v":"mn.incoming@hud.gov"}]
[800022942,"RIDGEVIEW APARTMENTS                              ","OCONTO FALLS                ","WI","54154","MICHAEL D FURNNER                                  ","MICHAEL.D.FURNNER@hud.gov","414-935-6682","mn.incoming@hud.gov",{"$f":"HYPERLINK(\"mailto:\",Table_Front_desk_report.accdb[[#This Row],[inbox]])","v":"mn.incoming@hud.gov"}]
[800237635,"RIDGEVIEW HEIGHTS                                 ","Madison                     ","WI","53704","VERONICA S SIMS                                    ","veronica.s.sims@hud.gov","312-913-8066","chi.incoming@hud.gov",{"$f":"HYPERLINK(\"mailto:\",Table_Front_desk_report.accdb[[#This Row],[inbox]])","v":"chi.incoming@hud.gov"}]
[800011304,"RIDGEVIEW TERR aka Tarnside/Gideon Pnd            ","BLOOMINGTON                 ","MN","55437","SUSAN K ROSKOS                                     ","Susan.K.Roskos@hud.gov","612-370-3110","mn.incoming@hud.gov",{"$f":"HYPERLINK(\"mailto:\",Table_Front_desk_report.accdb[[#This Row],[inbox]])","v":"mn.incoming@hud.gov"}]
[800011212,"RIDGEWOOD                                         ","WORTHINGTON                 ","MN","56187","TEENA M GEE                                        ","Teena.M.Gee@hud.gov","612-843-6414","mn.incoming@hud.gov",{"$f":"HYPERLINK(\"mailto:\",Table_Front_desk_report.accdb[[#This Row],[inbox]])","v":"mn.incoming@hud.gov"}]
[800023311,"RIDGEWOOD APARTMENTS                              ","MILWAUKEE                   ","WI","53223","NINA M SMITH                                       ","nina.m.smith@hud.gov","312-913-8212","chi.incoming@hud.gov",{"$f":"HYPERLINK(\"mailto:\",Table_Front_desk_report.accdb[[#This Row],[inbox]])","v":"chi.incoming@hud.gov"}]
[800222242,"Ripley Gardens                                    ","Minneapolis                 ","MN","55405","CINDY BEHNKE                                       ","cynthia.behnke@hud.gov","612-370-3278","mn.incoming@hud.gov",{"$f":"HYPERLINK(\"mailto:\",Table_Front_desk_report.accdb[[#This Row],[inbox]])","v":"mn.incoming@hud.gov"}]
[800011214,"RIVER BEND APARTMENTS                             ","FERGUS FALLS                ","MN","56537","NATASHA D GUENOVA                                  ","NATASHA.D.GUENOVA@hud.gov","612-370-3035","mn.incoming@hud.gov",{"$f":"HYPERLINK(\"mailto:\",Table_Front_desk_report.accdb[[#This Row],[inbox]])","v":"mn.incoming@hud.gov"}]
[800219424,"RIVER BLUFF APARTMENTS/Shakopee-ASI Sup.Hsg       ","Shakopee                    ","MN","55379","SHERRY K NORTON                                    ","Sherry.K.Norton@hud.gov","612-370-3087","mn.incoming@hud.gov",{"$f":"HYPERLINK(\"mailto:\",Table_Front_desk_report.accdb[[#This Row],[inbox]])","v":"mn.incoming@hud.gov"}]
[800023312,"RIVER COVE APARTMENTS                             ","STEVENS POINT               ","WI","54481","MICHAEL D FURNNER                                  ","MICHAEL.D.FURNNER@hud.gov","414-935-6682","mn.incoming@hud.gov",{"$f":"HYPERLINK(\"mailto:\",Table_Front_desk_report.accdb[[#This Row],[inbox]])","v":"mn.incoming@hud.gov"}]
[800237365,"River Crossing                                    ","Saint Paul                  ","MN","55116","MITCHELL S HILLMAN                                 ","MITCHELL.S.HILLMAN@hud.gov","612-370-3036","mn.incoming@hud.gov",{"$f":"HYPERLINK(\"mailto:\",Table_Front_desk_report.accdb[[#This Row],[inbox]])","v":"mn.incoming@hud.gov"}]
[800023313,"RIVER FALLS TERRACE                               ","RIVER FALLS                 ","WI","54022","CATHERINE A TEMPLE                                 ","Catherine.A.Temple@hud.gov","414-935-6695","mn.incoming@hud.gov",{"$f":"HYPERLINK(\"mailto:\",Table_Front_desk_report.accdb[[#This Row],[inbox]])","v":"mn.incoming@hud.gov"}]
[800238711,"River Gates Apartments                            ","Minneapolis                 ","MN","55406","CAROL DIXON                                        ","Carol.A.Dixon@hud.gov","612-370-3015","mn.incoming@hud.gov",{"$f":"HYPERLINK(\"mailto:\",Table_Front_desk_report.accdb[[#This Row],[inbox]])","v":"mn.incoming@hud.gov"}]
[800023314,"RIVER HILL APARTMENTS                             ","MANITOWOC                   ","WI","54220","MICHAEL D FURNNER                                  ","MICHAEL.D.FURNNER@hud.gov","414-935-6682","mn.incoming@hud.gov",{"$f":"HYPERLINK(\"mailto:\",Table_Front_desk_report.accdb[[#This Row],[inbox]])","v":"mn.incoming@hud.gov"}]
[800023316,"RIVER OAKS                                        ","LA CROSSE                   ","WI","54601","ANDREA L CARSON                                    ","andrea.carson@hud.gov","414-935-6679","mn.incoming@hud.gov",{"$f":"HYPERLINK(\"mailto:\",Table_Front_desk_report.accdb[[#This Row],[inbox]])","v":"mn.incoming@hud.gov"}]
[800023317,"RIVER PARK APARTMENTS I                           ","SHOREWOOD                   ","WI","53211","DONNA M SHEEHAN                                    ","Donna.Sheehan@hud.gov"," 312-957-4781 ","chi.incoming@hud.gov",{"$f":"HYPERLINK(\"mailto:\",Table_Front_desk_report.accdb[[#This Row],[inbox]])","v":"chi.incoming@hud.gov"}]
[800079658,"RIVER PARK APARTMENTS II                          ","SHOREWOOD                   ","WI","53211","DONNA M SHEEHAN                                    ","Donna.Sheehan@hud.gov"," 312-957-4781 ","chi.incoming@hud.gov",{"$f":"HYPERLINK(\"mailto:\",Table_Front_desk_report.accdb[[#This Row],[inbox]])","v":"chi.incoming@hud.gov"}]
[800238258,"River Pointe Townhomes                            ","Thief River Falls           ","MN","56701","DARIAN JANE ZIEGLER                                ","Darian.Ziegler@hud.gov","612-370-3270","mn.incoming@hud.gov",{"$f":"HYPERLINK(\"mailto:\",Table_Front_desk_report.accdb[[#This Row],[inbox]])","v":"mn.incoming@hud.gov"}]
[800239943,"River Run Apartments                              ","Minneapolis                 ","MN","55413","THOMAS G DURSCHER                                  ","Thomas.G.Durscher@hud.gov","612-370-3018","mn.incoming@hud.gov",{"$f":"HYPERLINK(\"mailto:\",Table_Front_desk_report.accdb[[#This Row],[inbox]])","v":"mn.incoming@hud.gov"}]
[800011215,"RIVER SOUTH APARTMENTS                            ","GRAND RAPIDS                ","MN","55744","LAWRANCE C MUNDT                                   ","LAWRENCE.C.MUNDT@hud.gov","612-370-3082","mn.incoming@hud.gov",{"$f":"HYPERLINK(\"mailto:\",Table_Front_desk_report.accdb[[#This Row],[inbox]])","v":"mn.incoming@hud.gov"}]
[800023318,"RIVER TOWN HEIGHTS                                ","SAINT CROIX FALLS           ","WI","54024","SUSAN K ROSKOS                                     ","Susan.K.Roskos@hud.gov","612-370-3110","mn.incoming@hud.gov",{"$f":"HYPERLINK(\"mailto:\",Table_Front_desk_report.accdb[[#This Row],[inbox]])","v":"mn.incoming@hud.gov"}]
[800010762,"RIVER WINDS aka ASI-Marshall                      ","MARSHALL                    ","MN","56258","JULIE A LASOTA                                     ","Julie.A.Lasota@hud.gov","612-370-3066","mn.incoming@hud.gov",{"$f":"HYPERLINK(\"mailto:\",Table_Front_desk_report.accdb[[#This Row],[inbox]])","v":"mn.incoming@hud.gov"}]
[800011216,"RIVERBLUFF                                        ","MINNEAPOLIS                 ","MN","55454","CINDY BEHNKE                                       ","cynthia.behnke@hud.gov","612-370-3278","mn.incoming@hud.gov",{"$f":"HYPERLINK(\"mailto:\",Table_Front_desk_report.accdb[[#This Row],[inbox]])","v":"mn.incoming@hud.gov"}]
[800023319,"RIVERCREST VILLAGES                               ","PRAIRIE DU CHIEN            ","WI","53821","JOEL R KLEMM                                       ","JOEL.R.KLEMM@hud.gov","612-370-3053","mn.incoming@hud.gov",{"$f":"HYPERLINK(\"mailto:\",Table_Front_desk_report.accdb[[#This Row],[inbox]])","v":"mn.incoming@hud.gov"}]
[800041606,"RIVERPLACE ONE                                    ","LA CROSSE                   ","WI","54601","SUSAN K ROSKOS                                     ","Susan.K.Roskos@hud.gov","612-370-3110","mn.incoming@hud.gov",{"$f":"HYPERLINK(\"mailto:\",Table_Front_desk_report.accdb[[#This Row],[inbox]])","v":"mn.incoming@hud.gov"}]
[800222421,"Riverside Apartments                              ","Saint Cloud                 ","MN","56304","TERESA C PARKER                                    ","TERESA.C.PARKER@hud.gov","612-370-3092","mn.incoming@hud.gov",{"$f":"HYPERLINK(\"mailto:\",Table_Front_desk_report.accdb[[#This Row],[inbox]])","v":"mn.incoming@hud.gov"}]
[800023320,"RIVERSIDE APARTMENTS                              ","WINNECONNE                  ","WI","54986","PAUL A DUHR                                        ","paul.a.duhr@hud.gov","414-935-6681","mn.incoming@hud.gov",{"$f":"HYPERLINK(\"mailto:\",Table_Front_desk_report.accdb[[#This Row],[inbox]])","v":"mn.incoming@hud.gov"}]
[800011218,"RIVERSIDE MANOR                                   ","DAWSON                      ","MN","56232","GREGORY T MERZ                                     ","GREGORY.T.MERZ@hud.gov","612-370-3077","mn.incoming@hud.gov",{"$f":"HYPERLINK(\"mailto:\",Table_Front_desk_report.accdb[[#This Row],[inbox]])","v":"mn.incoming@hud.gov"}]
[800011219,"RIVERSIDE PLAZA                                   ","MINNEAPOLIS                 ","MN","55454","THOMAS G DURSCHER                                  ","Thomas.G.Durscher@hud.gov","612-370-3018","mn.incoming@hud.gov",{"$f":"HYPERLINK(\"mailto:\",Table_Front_desk_report.accdb[[#This Row],[inbox]])","v":"mn.incoming@hud.gov"}]
[800011220,"RIVERSIDE TERRACE                                 ","THIEF RIVER FALLS           ","MN","56701","DARIAN JANE ZIEGLER                                ","Darian.Ziegler@hud.gov","612-370-3270","mn.incoming@hud.gov",{"$f":"HYPERLINK(\"mailto:\",Table_Front_desk_report.accdb[[#This Row],[inbox]])","v":"mn.incoming@hud.gov"}]
[800011221,"RIVERTOWN COMMONS                                 ","STILLWATER                  ","MN","55082","DARIAN JANE ZIEGLER                                ","Darian.Ziegler@hud.gov","612-370-3270","mn.incoming@hud.gov",{"$f":"HYPERLINK(\"mailto:\",Table_Front_desk_report.accdb[[#This Row],[inbox]])","v":"mn.incoming@hud.gov"}]
[800011210,"Rivertown Commons Apartments                      ","SAINT PAUL                  ","MN","55103","NATASHA D GUENOVA                                  ","NATASHA.D.GUENOVA@hud.gov","612-370-3035","mn.incoming@hud.gov",{"$f":"HYPERLINK(\"mailto:\",Table_Front_desk_report.accdb[[#This Row],[inbox]])","v":"mn.incoming@hud.gov"}]
[800011222,"RIVERVIEW APARTMENTS  - Granite Falls             ","GRANITE FALLS               ","MN","56241","TERESA C PARKER                                    ","TERESA.C.PARKER@hud.gov","612-370-3092","mn.incoming@hud.gov",{"$f":"HYPERLINK(\"mailto:\",Table_Front_desk_report.accdb[[#This Row],[inbox]])","v":"mn.incoming@hud.gov"}]
[800011224,"RIVERVIEW APARTMENTS (APPLETON)                   ","APPLETON                    ","MN","56208","SUSAN K ROSKOS                                     ","Susan.K.Roskos@hud.gov","612-370-3110","mn.incoming@hud.gov",{"$f":"HYPERLINK(\"mailto:\",Table_Front_desk_report.accdb[[#This Row],[inbox]])","v":"mn.incoming@hud.gov"}]
[800232061,"Riverview Apartments Senior Housing               ","Minneapolis                 ","MN","55417","THOMAS G DURSCHER                                  ","Thomas.G.Durscher@hud.gov","612-370-3018","mn.incoming@hud.gov",{"$f":"HYPERLINK(\"mailto:\",Table_Front_desk_report.accdb[[#This Row],[inbox]])","v":"mn.incoming@hud.gov"}]
[800023321,"RIVERVIEW APTS                                    ","SHEBOYGAN                   ","WI","53081","MICHAEL D FURNNER                                  ","MICHAEL.D.FURNNER@hud.gov","414-935-6682","mn.incoming@hud.gov",{"$f":"HYPERLINK(\"mailto:\",Table_Front_desk_report.accdb[[#This Row],[inbox]])","v":"mn.incoming@hud.gov"}]
[800023322,"RIVERVIEW APTS                                    ","FOND DU LAC                 ","WI","54935","MICHAEL D FURNNER                                  ","MICHAEL.D.FURNNER@hud.gov","414-935-6682","mn.incoming@hud.gov",{"$f":"HYPERLINK(\"mailto:\",Table_Front_desk_report.accdb[[#This Row],[inbox]])","v":"mn.incoming@hud.gov"}]
[800023323,"RIVERVIEW COMMONS                                 ","WATERTOWN                   ","WI","53094","NINA M SMITH                                       ","nina.m.smith@hud.gov","312-913-8212","chi.incoming@hud.gov",{"$f":"HYPERLINK(\"mailto:\",Table_Front_desk_report.accdb[[#This Row],[inbox]])","v":"chi.incoming@hud.gov"}]
[800023324,"RIVERVIEW HEIGHTS                                 ","JANESVILLE                  ","WI","53545","YOLANDA S MILLER                                   ","yolanda.s.miller@hud.gov","312-913-8580","chi.incoming@hud.gov",{"$f":"HYPERLINK(\"mailto:\",Table_Front_desk_report.accdb[[#This Row],[inbox]])","v":"chi.incoming@hud.gov"}]
[800023325,"RIVERVIEW MANOR                                   ","FORT ATKINSON               ","WI","53538","ARNITA X SCOTT                                     ","arnita.scott@hud.gov","312-913-8574","chi.incoming@hud.gov",{"$f":"HYPERLINK(\"mailto:\",Table_Front_desk_report.accdb[[#This Row],[inbox]])","v":"chi.incoming@hud.gov"}]
[800011225,"RIVERVIEW MANOR aka Floodwood Apts                ","FLOODWOOD                   ","MN","55736","BEN OSBORN                                         ","Benjamin.M.Osborn@hud.gov","612-370-3091","mn.incoming@hud.gov",{"$f":"HYPERLINK(\"mailto:\",Table_Front_desk_report.accdb[[#This Row],[inbox]])","v":"mn.incoming@hud.gov"}]
[800244576,"RIVERWALK APARTMENTS                              ","Rochester                   ","MN","55904","JOEL R KLEMM                                       ","JOEL.R.KLEMM@hud.gov","612-370-3053","mn.incoming@hud.gov",{"$f":"HYPERLINK(\"mailto:\",Table_Front_desk_report.accdb[[#This Row],[inbox]])","v":"mn.incoming@hud.gov"}]
[800023448,"RIVERWALK PLACE                                   ","Appleton                    ","WI","54915","CATHERINE A TEMPLE                                 ","Catherine.A.Temple@hud.gov","414-935-6695","mn.incoming@hud.gov",{"$f":"HYPERLINK(\"mailto:\",Table_Front_desk_report.accdb[[#This Row],[inbox]])","v":"mn.incoming@hud.gov"}]
[800079656,"RIVERWOOD APARTMENTS                              ","PORTAGE                     ","WI","53901","LAWRANCE C MUNDT                                   ","LAWRENCE.C.MUNDT@hud.gov","612-370-3082","mn.incoming@hud.gov",{"$f":"HYPERLINK(\"mailto:\",Table_Front_desk_report.accdb[[#This Row],[inbox]])","v":"mn.incoming@hud.gov"}]
[800241649,"Riverwood Estates Apartments                      ","Oak Creek                   ","WI","53154","JULIE M WHITEFEATHER                               ","julie.m.whitefeather@hud.gov","312-913-8117","chi.incoming@hud.gov",{"$f":"HYPERLINK(\"mailto:\",Table_Front_desk_report.accdb[[#This Row],[inbox]])","v":"chi.incoming@hud.gov"}]
[800011226,"ROBBINS LANDING                                   ","ROBBINSDALE                 ","MN","55422","MITCHELL S HILLMAN                                 ","MITCHELL.S.HILLMAN@hud.gov","612-370-3036","mn.incoming@hud.gov",{"$f":"HYPERLINK(\"mailto:\",Table_Front_desk_report.accdb[[#This Row],[inbox]])","v":"mn.incoming@hud.gov"}]
[800224808,"Robbins Way Senior Housing                        ","Robbinsdale                 ","MN","55422","JOEL R KLEMM                                       ","JOEL.R.KLEMM@hud.gov","612-370-3053","mn.incoming@hud.gov",{"$f":"HYPERLINK(\"mailto:\",Table_Front_desk_report.accdb[[#This Row],[inbox]])","v":"mn.incoming@hud.gov"}]
[800011227,"ROBERT WILL COMMUNITY HOUSING                     ","RICHFIELD                   ","MN","55423","JOEL R KLEMM                                       ","JOEL.R.KLEMM@hud.gov","612-370-3053","mn.incoming@hud.gov",{"$f":"HYPERLINK(\"mailto:\",Table_Front_desk_report.accdb[[#This Row],[inbox]])","v":"mn.incoming@hud.gov"}]
[800011228,"ROBINWOOD MANOR                                   ","FARIBAULT                   ","MN","55021","BEN OSBORN                                         ","Benjamin.M.Osborn@hud.gov","612-370-3091","mn.incoming@hud.gov",{"$f":"HYPERLINK(\"mailto:\",Table_Front_desk_report.accdb[[#This Row],[inbox]])","v":"mn.incoming@hud.gov"}]
[800224788,"Rochester Senior Housing                          ","Rochester                   ","MN","55901","NATASHA D GUENOVA                                  ","NATASHA.D.GUENOVA@hud.gov","612-370-3035","mn.incoming@hud.gov",{"$f":"HYPERLINK(\"mailto:\",Table_Front_desk_report.accdb[[#This Row],[inbox]])","v":"mn.incoming@hud.gov"}]
[800023327,"ROCHESTER SPRINGS                                 ","SHEBOYGAN FALLS             ","WI","53085","JULIE A LASOTA                                     ","Julie.A.Lasota@hud.gov","612-370-3066","mn.incoming@hud.gov",{"$f":"HYPERLINK(\"mailto:\",Table_Front_desk_report.accdb[[#This Row],[inbox]])","v":"mn.incoming@hud.gov"}]
[800023328,"ROCK VIEW APARTMENTS                              ","JEFFERSON                   ","WI","53549","DONNA M SHEEHAN                                    ","Donna.Sheehan@hud.gov"," 312-957-4781 ","chi.incoming@hud.gov",{"$f":"HYPERLINK(\"mailto:\",Table_Front_desk_report.accdb[[#This Row],[inbox]])","v":"chi.incoming@hud.gov"}]
[800023330,"ROCKWELL COURT APTS                               ","FORT ATKINSON               ","WI","53538","LADRENNA A FIGUEROA                                ","ladrenna.a.figueroa@hud.gov","312-913-8290","chi.incoming@hud.gov",{"$f":"HYPERLINK(\"mailto:\",Table_Front_desk_report.accdb[[#This Row],[inbox]])","v":"chi.incoming@hud.gov"}]
[800011232,"ROCKWOOD PLACE APARTMENTS                         ","SAINT PAUL                  ","MN","55116","NATASHA D GUENOVA                                  ","NATASHA.D.GUENOVA@hud.gov","612-370-3035","mn.incoming@hud.gov",{"$f":"HYPERLINK(\"mailto:\",Table_Front_desk_report.accdb[[#This Row],[inbox]])","v":"mn.incoming@hud.gov"}]
[800219689,"ROD BECKER VILLA                                  ","Rib Lake                    ","WI","54470","ANDREA L CARSON                                    ","andrea.carson@hud.gov","414-935-6679","mn.incoming@hud.gov",{"$f":"HYPERLINK(\"mailto:\",Table_Front_desk_report.accdb[[#This Row],[inbox]])","v":"mn.incoming@hud.gov"}]
[800011234,"ROLLING MEADOWS II DBA ROLLING MEADOWS I AND II   ","INVER GROVE HEIGHTS         ","MN","55076","TERRI A MUNSON                                     ","Terri.A.Munson@hud.gov","612-370-3086","mn.incoming@hud.gov",{"$f":"HYPERLINK(\"mailto:\",Table_Front_desk_report.accdb[[#This Row],[inbox]])","v":"mn.incoming@hud.gov"}]
[800220364,"ROLLING RIDGE TOWNHOMES OF ROCHESTER              ","ROCHESTER                   ","MN","55904","DARIAN JANE ZIEGLER                                ","Darian.Ziegler@hud.gov","612-370-3270","mn.incoming@hud.gov",{"$f":"HYPERLINK(\"mailto:\",Table_Front_desk_report.accdb[[#This Row],[inbox]])","v":"mn.incoming@hud.gov"}]
[800022928,"ROMEIS MILLSTREAM APARTMENTS 1                    ","CHIPPEWA FALLS              ","WI","54729","SUSAN K ROSKOS                                     ","Susan.K.Roskos@hud.gov","612-370-3110","mn.incoming@hud.gov",{"$f":"HYPERLINK(\"mailto:\",Table_Front_desk_report.accdb[[#This Row],[inbox]])","v":"mn.incoming@hud.gov"}]
[800011235,"ROSE COURT                                        ","PIERZ                       ","MN","56364","NATASHA D GUENOVA                                  ","NATASHA.D.GUENOVA@hud.gov","612-370-3035","mn.incoming@hud.gov",{"$f":"HYPERLINK(\"mailto:\",Table_Front_desk_report.accdb[[#This Row],[inbox]])","v":"mn.incoming@hud.gov"}]
[800213253,"ROSELAWN VILLAGE APTS                             ","ROSEVILLE                   ","MN","55113","LAWRANCE C MUNDT                                   ","LAWRENCE.C.MUNDT@hud.gov","612-370-3082","mn.incoming@hud.gov",{"$f":"HYPERLINK(\"mailto:\",Table_Front_desk_report.accdb[[#This Row],[inbox]])","v":"mn.incoming@hud.gov"}]
[800011237,"ROSEMOUNT PLAZA                                   ","ROSEMOUNT                   ","MN","55068","MICHAEL P MORAN                                    ","MICHAEL.P.MORAN@HUD.GOV","612-370-3081","mn.incoming@hud.gov",{"$f":"HYPERLINK(\"mailto:\",Table_Front_desk_report.accdb[[#This Row],[inbox]])","v":"mn.incoming@hud.gov"}]
[800011236,"ROSEMOUNT TOWNHOUSES                              ","ROSEMOUNT                   ","MN","55068","SUSAN K ROSKOS                                     ","Susan.K.Roskos@hud.gov","612-370-3110","mn.incoming@hud.gov",{"$f":"HYPERLINK(\"mailto:\",Table_Front_desk_report.accdb[[#This Row],[inbox]])","v":"mn.incoming@hud.gov"}]
[800011238,"ROSEVILLE SENIORS                                 ","ROSEVILLE                   ","MN","55113","TERESA C PARKER                                    ","TERESA.C.PARKER@hud.gov","612-370-3092","mn.incoming@hud.gov",{"$f":"HYPERLINK(\"mailto:\",Table_Front_desk_report.accdb[[#This Row],[inbox]])","v":"mn.incoming@hud.gov"}]
[800237912,"Rosewood Terrace                                  ","Saint Cloud                 ","MN","56304","THOMAS G DURSCHER                                  ","Thomas.G.Durscher@hud.gov","612-370-3018","mn.incoming@hud.gov",{"$f":"HYPERLINK(\"mailto:\",Table_Front_desk_report.accdb[[#This Row],[inbox]])","v":"mn.incoming@hud.gov"}]
[800023332,"ROUND HOUSE MANOR                                 ","KAUKAUNA                    ","WI","54130","ANDREA L CARSON                                    ","andrea.carson@hud.gov","414-935-6679","mn.incoming@hud.gov",{"$f":"HYPERLINK(\"mailto:\",Table_Front_desk_report.accdb[[#This Row],[inbox]])","v":"mn.incoming@hud.gov"}]
[800023334,"ROYALTON MANOR                                    ","SUPERIOR                    ","WI","54880","SUSAN K ROSKOS                                     ","Susan.K.Roskos@hud.gov","612-370-3110","mn.incoming@hud.gov",{"$f":"HYPERLINK(\"mailto:\",Table_Front_desk_report.accdb[[#This Row],[inbox]])","v":"mn.incoming@hud.gov"}]
[800023423,"RSH                                               ","MADISON                     ","WI","53704","JULIE M WHITEFEATHER                               ","julie.m.whitefeather@hud.gov","312-913-8117","chi.incoming@hud.gov",{"$f":"HYPERLINK(\"mailto:\",Table_Front_desk_report.accdb[[#This Row],[inbox]])","v":"chi.incoming@hud.gov"}]
[800011240,"RUSH RIVERVIEW                                    ","RUSH CITY                   ","MN","55069","MICHAEL P MORAN                                    ","MICHAEL.P.MORAN@HUD.GOV","612-370-3081","mn.incoming@hud.gov",{"$f":"HYPERLINK(\"mailto:\",Table_Front_desk_report.accdb[[#This Row],[inbox]])","v":"mn.incoming@hud.gov"}]
[800011241,"Russell Arms/ Benton Heights                      ","SAUK RAPIDS                 ","MN","56379","DARIAN JANE ZIEGLER                                ","Darian.Ziegler@hud.gov","612-370-3270","mn.incoming@hud.gov",{"$f":"HYPERLINK(\"mailto:\",Table_Front_desk_report.accdb[[#This Row],[inbox]])","v":"mn.incoming@hud.gov"}]
[800023336,"RUSSELL MANOR INC                                 ","RIPON                       ","WI","54971","MITCHELL S HILLMAN                                 ","MITCHELL.S.HILLMAN@hud.gov","612-370-3036","mn.incoming@hud.gov",{"$f":"HYPERLINK(\"mailto:\",Table_Front_desk_report.accdb[[#This Row],[inbox]])","v":"mn.incoming@hud.gov"}]
[800011242,"RUSTIC CREEK TOWNHOMES                            ","TWO HARBORS                 ","MN","55616","NATASHA D GUENOVA                                  ","NATASHA.D.GUENOVA@hud.gov","612-370-3035","mn.incoming@hud.gov",{"$f":"HYPERLINK(\"mailto:\",Table_Front_desk_report.accdb[[#This Row],[inbox]])","v":"mn.incoming@hud.gov"}]
[800112374,"RUTH GULLERUD VILLA                               ","EAU CLAIRE                  ","WI","54701","CATHERINE A TEMPLE                                 ","Catherine.A.Temple@hud.gov","414-935-6695","mn.incoming@hud.gov",{"$f":"HYPERLINK(\"mailto:\",Table_Front_desk_report.accdb[[#This Row],[inbox]])","v":"mn.incoming@hud.gov"}]
[null,"S"]
[800011374,"S.E. HALL-WHITNEY YOUNG PLAZA                     ","SAINT PAUL                  ","MN","55102","SHERRY K NORTON                                    ","Sherry.K.Norton@hud.gov","612-370-3087","mn.incoming@hud.gov",{"$f":"HYPERLINK(\"mailto:\",Table_Front_desk_report.accdb[[#This Row],[inbox]])","v":"mn.incoming@hud.gov"}]
[800221851,"Saddlewood Park Apartments                        ","MINNETONKA                  ","MN","55435","MARCIA A KOLB                                      ","MARCIA.A.KOLB@hud.gov","612-370-3055","mn.incoming@hud.gov",{"$f":"HYPERLINK(\"mailto:\",Table_Front_desk_report.accdb[[#This Row],[inbox]])","v":"mn.incoming@hud.gov"}]
[800011244,"SAHLMAN EAST                                      ","CLOQUET                     ","MN","55720","NATASHA D GUENOVA                                  ","NATASHA.D.GUENOVA@hud.gov","612-370-3035","mn.incoming@hud.gov",{"$f":"HYPERLINK(\"mailto:\",Table_Front_desk_report.accdb[[#This Row],[inbox]])","v":"mn.incoming@hud.gov"}]
[800232356,"SANDRA HALL APARTMENTS                            ","Madison                     ","WI","53704","YOLANDA S MILLER                                   ","yolanda.s.miller@hud.gov","312-913-8580","chi.incoming@hud.gov",{"$f":"HYPERLINK(\"mailto:\",Table_Front_desk_report.accdb[[#This Row],[inbox]])","v":"chi.incoming@hud.gov"}]
[800011246,"SANDY PINES APARTMENTS                            ","SANDSTONE                   ","MN","55072","TEENA M GEE                                        ","Teena.M.Gee@hud.gov","612-843-6414","mn.incoming@hud.gov",{"$f":"HYPERLINK(\"mailto:\",Table_Front_desk_report.accdb[[#This Row],[inbox]])","v":"mn.incoming@hud.gov"}]
[800222947,"Sartell Senior Housing, Inc.                      ","Sartell                     ","MN","56377","SUSAN K ROSKOS                                     ","Susan.K.Roskos@hud.gov","612-370-3110","mn.incoming@hud.gov",{"$f":"HYPERLINK(\"mailto:\",Table_Front_desk_report.accdb[[#This Row],[inbox]])","v":"mn.incoming@hud.gov"}]
[800223797,"Sartell Supportive Housing, Inc.                  ","Sartell                     ","MN","56377","GREGORY T MERZ                                     ","GREGORY.T.MERZ@hud.gov","612-370-3077","mn.incoming@hud.gov",{"$f":"HYPERLINK(\"mailto:\",Table_Front_desk_report.accdb[[#This Row],[inbox]])","v":"mn.incoming@hud.gov"}]
[800236014,"SAUK CREEK APARTMENTS                             ","Madison                     ","WI","53717","CINDY BEHNKE                                       ","cynthia.behnke@hud.gov","612-370-3278","mn.incoming@hud.gov",{"$f":"HYPERLINK(\"mailto:\",Table_Front_desk_report.accdb[[#This Row],[inbox]])","v":"mn.incoming@hud.gov"}]
[800010943,"SAWTOOTH RIDGES                                   ","GRAND MARAIS                ","MN","55604","THOMAS G DURSCHER                                  ","Thomas.G.Durscher@hud.gov","612-370-3018","mn.incoming@hud.gov",{"$f":"HYPERLINK(\"mailto:\",Table_Front_desk_report.accdb[[#This Row],[inbox]])","v":"mn.incoming@hud.gov"}]
[800023338,"SAWYER COUNTY HOUSING                             ","HAYWARD                     ","WI","54843","JOEL R KLEMM                                       ","JOEL.R.KLEMM@hud.gov","612-370-3053","mn.incoming@hud.gov",{"$f":"HYPERLINK(\"mailto:\",Table_Front_desk_report.accdb[[#This Row],[inbox]])","v":"mn.incoming@hud.gov"}]
[800023339,"SAXONY MANOR                                      ","KENOSHA                     ","WI","53140","GLORY J MCDONALD                                   ","glory.j.mcdonald@hud.gov","312-913-8126","chi.incoming@hud.gov",{"$f":"HYPERLINK(\"mailto:\",Table_Front_desk_report.accdb[[#This Row],[inbox]])","v":"chi.incoming@hud.gov"}]
[800023340,"SCENIC VIEW VILLA                                 ","SAINT NAZIANZ               ","WI","54232","ANDREA L CARSON                                    ","andrea.carson@hud.gov","414-935-6679","mn.incoming@hud.gov",{"$f":"HYPERLINK(\"mailto:\",Table_Front_desk_report.accdb[[#This Row],[inbox]])","v":"mn.incoming@hud.gov"}]
[800011247,"SCHULE HAUS                                       ","JORDAN                      ","MN","55352","CINDY BEHNKE                                       ","cynthia.behnke@hud.gov","612-370-3278","mn.incoming@hud.gov",{"$f":"HYPERLINK(\"mailto:\",Table_Front_desk_report.accdb[[#This Row],[inbox]])","v":"mn.incoming@hud.gov"}]
[800023342,"SCHUMANN APARTMENTS                               ","LA CROSSE                   ","WI","54601","JULIE A LASOTA                                     ","Julie.A.Lasota@hud.gov","612-370-3066","mn.incoming@hud.gov",{"$f":"HYPERLINK(\"mailto:\",Table_Front_desk_report.accdb[[#This Row],[inbox]])","v":"mn.incoming@hud.gov"}]
[800238504,"SCHUSTER'S LOFTS                                  ","Milwaukee                   ","WI","53204","DONNA M SHEEHAN                                    ","Donna.Sheehan@hud.gov"," 312-957-4781 ","chi.incoming@hud.gov",{"$f":"HYPERLINK(\"mailto:\",Table_Front_desk_report.accdb[[#This Row],[inbox]])","v":"chi.incoming@hud.gov"}]
[800023343,"SCOTT TERRACE                                     ","Prairie Farm                ","WI","54762","PAUL A DUHR                                        ","paul.a.duhr@hud.gov","414-935-6681","mn.incoming@hud.gov",{"$f":"HYPERLINK(\"mailto:\",Table_Front_desk_report.accdb[[#This Row],[inbox]])","v":"mn.incoming@hud.gov"}]
[800023344,"SCOVILLE CENTER                                   ","BELOIT                      ","WI","53511","ARNITA X SCOTT                                     ","arnita.scott@hud.gov","312-913-8574","chi.incoming@hud.gov",{"$f":"HYPERLINK(\"mailto:\",Table_Front_desk_report.accdb[[#This Row],[inbox]])","v":"chi.incoming@hud.gov"}]
[800213265,"SEABURY                                           ","SAINT PAUL                  ","MN","55104","THOMAS G DURSCHER                                  ","Thomas.G.Durscher@hud.gov","612-370-3018","mn.incoming@hud.gov",{"$f":"HYPERLINK(\"mailto:\",Table_Front_desk_report.accdb[[#This Row],[inbox]])","v":"mn.incoming@hud.gov"}]
[800023345,"SEAGULL APARTMENTS                                ","ALGOMA                      ","WI","54201","CATHERINE A TEMPLE                                 ","Catherine.A.Temple@hud.gov","414-935-6695","mn.incoming@hud.gov",{"$f":"HYPERLINK(\"mailto:\",Table_Front_desk_report.accdb[[#This Row],[inbox]])","v":"mn.incoming@hud.gov"}]
[800023346,"SEGOE TERRACE                                     ","MADISON                     ","WI","53705","ARNITA X SCOTT                                     ","arnita.scott@hud.gov","312-913-8574","chi.incoming@hud.gov",{"$f":"HYPERLINK(\"mailto:\",Table_Front_desk_report.accdb[[#This Row],[inbox]])","v":"chi.incoming@hud.gov"}]
[800218530,"Selby Grotto Apartments                           ","SAINT PAUL                  ","MN","55104","MARCIA A KOLB                                      ","MARCIA.A.KOLB@hud.gov","612-370-3055","mn.incoming@hud.gov",{"$f":"HYPERLINK(\"mailto:\",Table_Front_desk_report.accdb[[#This Row],[inbox]])","v":"mn.incoming@hud.gov"}]
[800011250,"Senior Court-Senior Tower                         ","ALBERT LEA                  ","MN","56007","SHERRY K NORTON                                    ","Sherry.K.Norton@hud.gov","612-370-3087","mn.incoming@hud.gov",{"$f":"HYPERLINK(\"mailto:\",Table_Front_desk_report.accdb[[#This Row],[inbox]])","v":"mn.incoming@hud.gov"}]
[800023347,"SENIOR HOUSE                                      ","WAUKESHA                    ","WI","53186","JULIE M WHITEFEATHER                               ","julie.m.whitefeather@hud.gov","312-913-8117","chi.incoming@hud.gov",{"$f":"HYPERLINK(\"mailto:\",Table_Front_desk_report.accdb[[#This Row],[inbox]])","v":"chi.incoming@hud.gov"}]
[800239766,"Seven Pines                                       ","Forest Lake                 ","MN","55025","BEN OSBORN                                         ","Benjamin.M.Osborn@hud.gov","612-370-3091","mn.incoming@hud.gov",{"$f":"HYPERLINK(\"mailto:\",Table_Front_desk_report.accdb[[#This Row],[inbox]])","v":"mn.incoming@hud.gov"}]
[800043972,"SEVENTY FIVE HUNDRED YORK COOP                    ","EDINA                       ","MN","55435","DARIAN JANE ZIEGLER                                ","Darian.Ziegler@hud.gov","612-370-3270","mn.incoming@hud.gov",{"$f":"HYPERLINK(\"mailto:\",Table_Front_desk_report.accdb[[#This Row],[inbox]])","v":"mn.incoming@hud.gov"}]
[800011252,"SEWARD SQUARE                                     ","MINNEAPOLIS                 ","MN","55404","GREGORY T MERZ                                     ","GREGORY.T.MERZ@hud.gov","612-370-3077","mn.incoming@hud.gov",{"$f":"HYPERLINK(\"mailto:\",Table_Front_desk_report.accdb[[#This Row],[inbox]])","v":"mn.incoming@hud.gov"}]
[800011254,"SEWARD TOWER WEST                                 ","MINNEAPOLIS                 ","MN","55406","SHERRY K NORTON                                    ","Sherry.K.Norton@hud.gov","612-370-3087","mn.incoming@hud.gov",{"$f":"HYPERLINK(\"mailto:\",Table_Front_desk_report.accdb[[#This Row],[inbox]])","v":"mn.incoming@hud.gov"}]
[800011253,"SEWARD TOWERS EAST                                ","MINNEAPOLIS                 ","MN","55406","SHERRY K NORTON                                    ","Sherry.K.Norton@hud.gov","612-370-3087","mn.incoming@hud.gov",{"$f":"HYPERLINK(\"mailto:\",Table_Front_desk_report.accdb[[#This Row],[inbox]])","v":"mn.incoming@hud.gov"}]
[800234548,"Shadow Green                                      ","Eden Prairie                ","MN","55433","TEENA M GEE                                        ","Teena.M.Gee@hud.gov","612-843-6414","mn.incoming@hud.gov",{"$f":"HYPERLINK(\"mailto:\",Table_Front_desk_report.accdb[[#This Row],[inbox]])","v":"mn.incoming@hud.gov"}]
[800072459,"Shenandoah Woods                                  ","MINNEAPOLIS                 ","MN","55447","GREGORY T MERZ                                     ","GREGORY.T.MERZ@hud.gov","612-370-3077","mn.incoming@hud.gov",{"$f":"HYPERLINK(\"mailto:\",Table_Front_desk_report.accdb[[#This Row],[inbox]])","v":"mn.incoming@hud.gov"}]
[800011256,"SHEPHERD OAK APARTMENTS                           ","SAUK RAPIDS                 ","MN","56379","LAWRANCE C MUNDT                                   ","LAWRENCE.C.MUNDT@hud.gov","612-370-3082","mn.incoming@hud.gov",{"$f":"HYPERLINK(\"mailto:\",Table_Front_desk_report.accdb[[#This Row],[inbox]])","v":"mn.incoming@hud.gov"}]
[800072526,"SHEPHERD OAK WEST /Good Shepherd Luth Hm          ","SAUK RAPIDS                 ","MN","55379","LAWRANCE C MUNDT                                   ","LAWRENCE.C.MUNDT@hud.gov","612-370-3082","mn.incoming@hud.gov",{"$f":"HYPERLINK(\"mailto:\",Table_Front_desk_report.accdb[[#This Row],[inbox]])","v":"mn.incoming@hud.gov"}]
[800011257,"SHERIDAN COURT                                    ","RICHFIELD                   ","MN","55423","SHERRY K NORTON                                    ","Sherry.K.Norton@hud.gov","612-370-3087","mn.incoming@hud.gov",{"$f":"HYPERLINK(\"mailto:\",Table_Front_desk_report.accdb[[#This Row],[inbox]])","v":"mn.incoming@hud.gov"}]
[800023349,"SHERIDAN MEADOWS/LINCOLN PARK                     ","Kenosha                     ","WI","53143","LATOYA A WASHINGTON                                ","latoya.a.washington@hud.gov","312-913-8271","chi.incoming@hud.gov",{"$f":"HYPERLINK(\"mailto:\",Table_Front_desk_report.accdb[[#This Row],[inbox]])","v":"chi.incoming@hud.gov"}]
[800011258,"SHERMAN-FORBES HOUSING                            ","SAINT PAUL                  ","MN","55102","SHERRY K NORTON                                    ","Sherry.K.Norton@hud.gov","612-370-3087","mn.incoming@hud.gov",{"$f":"HYPERLINK(\"mailto:\",Table_Front_desk_report.accdb[[#This Row],[inbox]])","v":"mn.incoming@hud.gov"}]
[800011259,"SHIELDS PLAZA                                     ","NORTH BRANCH                ","MN","55056","JOEL R KLEMM                                       ","JOEL.R.KLEMM@hud.gov","612-370-3053","mn.incoming@hud.gov",{"$f":"HYPERLINK(\"mailto:\",Table_Front_desk_report.accdb[[#This Row],[inbox]])","v":"mn.incoming@hud.gov"}]
[800214100,"SHINGLE CREEK COMMONS                             ","MINNEAPOLIS                 ","MN","55412","SUSAN K ROSKOS                                     ","Susan.K.Roskos@hud.gov","612-370-3110","mn.incoming@hud.gov",{"$f":"HYPERLINK(\"mailto:\",Table_Front_desk_report.accdb[[#This Row],[inbox]])","v":"mn.incoming@hud.gov"}]
[800215933,"Sibley Court Apartments                           ","SAINT PAUL                  ","MN","55101","CINDY BEHNKE                                       ","cynthia.behnke@hud.gov","612-370-3278","mn.incoming@hud.gov",{"$f":"HYPERLINK(\"mailto:\",Table_Front_desk_report.accdb[[#This Row],[inbox]])","v":"mn.incoming@hud.gov"}]
[800011262,"SIBLEY ESTATES                                    ","WINTHROP                    ","MN","55396","JOEL R KLEMM                                       ","JOEL.R.KLEMM@hud.gov","612-370-3053","mn.incoming@hud.gov",{"$f":"HYPERLINK(\"mailto:\",Table_Front_desk_report.accdb[[#This Row],[inbox]])","v":"mn.incoming@hud.gov"}]
[800213910,"Sibley Park Apartments                            ","SAINT PAUL                  ","MN","55101","MARCIA A KOLB                                      ","MARCIA.A.KOLB@hud.gov","612-370-3055","mn.incoming@hud.gov",{"$f":"HYPERLINK(\"mailto:\",Table_Front_desk_report.accdb[[#This Row],[inbox]])","v":"mn.incoming@hud.gov"}]
[800226645,"Sienna Green Apartments  aka  Har Mar Apts        ","Roseville                   ","MN","55113","DARIAN JANE ZIEGLER                                ","Darian.Ziegler@hud.gov","612-370-3270","mn.incoming@hud.gov",{"$f":"HYPERLINK(\"mailto:\",Table_Front_desk_report.accdb[[#This Row],[inbox]])","v":"mn.incoming@hud.gov"}]
[800234460,"Sienna Green II                                   ","Roseville                   ","MN","55113","DARIAN JANE ZIEGLER                                ","Darian.Ziegler@hud.gov","612-370-3270","mn.incoming@hud.gov",{"$f":"HYPERLINK(\"mailto:\",Table_Front_desk_report.accdb[[#This Row],[inbox]])","v":"mn.incoming@hud.gov"}]
[800241607,"Silas Pointe Apartments                           ","North St. Paul              ","MN","55109","CINDY BEHNKE                                       ","cynthia.behnke@hud.gov","612-370-3278","mn.incoming@hud.gov",{"$f":"HYPERLINK(\"mailto:\",Table_Front_desk_report.accdb[[#This Row],[inbox]])","v":"mn.incoming@hud.gov"}]
[800010760,"SILVER LAKE HOUSE /ASI-Henn Co Supprtv            ","SAINT ANTHONY               ","MN","55418","CAROL DIXON                                        ","Carol.A.Dixon@hud.gov","612-370-3015","mn.incoming@hud.gov",{"$f":"HYPERLINK(\"mailto:\",Table_Front_desk_report.accdb[[#This Row],[inbox]])","v":"mn.incoming@hud.gov"}]
[800023351,"SILVER LANE APARTMENTS                            ","SHULLSBURG                  ","WI","53586","DORTHY L HOPKINS                                   ","dorthy.l.hopkins@hud.gov","312-913-8172","chi.incoming@hud.gov",{"$f":"HYPERLINK(\"mailto:\",Table_Front_desk_report.accdb[[#This Row],[inbox]])","v":"chi.incoming@hud.gov"}]
[800023352,"SILVER SPRING SQUARE                              ","MILWAUKEE                   ","WI","53209","MARCIA A KOLB                                      ","MARCIA.A.KOLB@hud.gov","612-370-3055","mn.incoming@hud.gov",{"$f":"HYPERLINK(\"mailto:\",Table_Front_desk_report.accdb[[#This Row],[inbox]])","v":"mn.incoming@hud.gov"}]
[800022964,"SILVER TRAIL  APARTMENTS                          ","MILWAUKEE                   ","WI","53225","GRACIA M SHIFFRIN                                  ","gracia.m.shiffrin@hud.gov","312-913-8141","chi.incoming@hud.gov",{"$f":"HYPERLINK(\"mailto:\",Table_Front_desk_report.accdb[[#This Row],[inbox]])","v":"chi.incoming@hud.gov"}]
[800023353,"SILVERCREST APARTMENTS                            ","SALEM                       ","WI","53168","ARNOLD PEOPLES                                     ","arnold.peoples@hud.gov","312-913-8103","chi.incoming@hud.gov",{"$f":"HYPERLINK(\"mailto:\",Table_Front_desk_report.accdb[[#This Row],[inbox]])","v":"chi.incoming@hud.gov"}]
[800023354,"SIMEANNA APARTMENTS                               ","OSHKOSH                     ","WI","54901","MICHAEL D FURNNER                                  ","MICHAEL.D.FURNNER@hud.gov","414-935-6682","mn.incoming@hud.gov",{"$f":"HYPERLINK(\"mailto:\",Table_Front_desk_report.accdb[[#This Row],[inbox]])","v":"mn.incoming@hud.gov"}]
[800023355,"SIMEANNA III                                      ","OSHKOSH                     ","WI","54901","MICHAEL D FURNNER                                  ","MICHAEL.D.FURNNER@hud.gov","414-935-6682","mn.incoming@hud.gov",{"$f":"HYPERLINK(\"mailto:\",Table_Front_desk_report.accdb[[#This Row],[inbox]])","v":"mn.incoming@hud.gov"}]
[800023356,"SIMEANNA SOUTH                                    ","OSHKOSH                     ","WI","54901","MICHAEL D FURNNER                                  ","MICHAEL.D.FURNNER@hud.gov","414-935-6682","mn.incoming@hud.gov",{"$f":"HYPERLINK(\"mailto:\",Table_Front_desk_report.accdb[[#This Row],[inbox]])","v":"mn.incoming@hud.gov"}]
[800011264,"SKYLINE TOWERS                                    ","SAINT PAUL                  ","MN","55104","MICHAEL P MORAN                                    ","MICHAEL.P.MORAN@HUD.GOV","612-370-3081","mn.incoming@hud.gov",{"$f":"HYPERLINK(\"mailto:\",Table_Front_desk_report.accdb[[#This Row],[inbox]])","v":"mn.incoming@hud.gov"}]
[800235360,"Snelling Avenue Apartments                        ","Minneapolis                 ","MN","55404","TERESA C PARKER                                    ","TERESA.C.PARKER@hud.gov","612-370-3092","mn.incoming@hud.gov",{"$f":"HYPERLINK(\"mailto:\",Table_Front_desk_report.accdb[[#This Row],[inbox]])","v":"mn.incoming@hud.gov"}]
[800011265,"SONOMA APARTMENTS                                 ","HOPKINS                     ","MN","55343","NATASHA D GUENOVA                                  ","NATASHA.D.GUENOVA@hud.gov","612-370-3035","mn.incoming@hud.gov",{"$f":"HYPERLINK(\"mailto:\",Table_Front_desk_report.accdb[[#This Row],[inbox]])","v":"mn.incoming@hud.gov"}]
[800011266,"SOUTH FALLS APARTMENTS                            ","INTERNATIONAL FALLS         ","MN","56649","THOMAS G DURSCHER                                  ","Thomas.G.Durscher@hud.gov","612-370-3018","mn.incoming@hud.gov",{"$f":"HYPERLINK(\"mailto:\",Table_Front_desk_report.accdb[[#This Row],[inbox]])","v":"mn.incoming@hud.gov"}]
[800011267,"SOUTH HAVEN                                       ","EDINA                       ","MN","55435","LAWRANCE C MUNDT                                   ","LAWRENCE.C.MUNDT@hud.gov","612-370-3082","mn.incoming@hud.gov",{"$f":"HYPERLINK(\"mailto:\",Table_Front_desk_report.accdb[[#This Row],[inbox]])","v":"mn.incoming@hud.gov"}]
[800023357,"SOUTH MEADOWS APARTMENTS                          ","EVANSVILLE                  ","WI","53536","DEBORAH E MONROE                                   ","deborah.e.monroe@hud.gov","312-913-8210","chi.incoming@hud.gov",{"$f":"HYPERLINK(\"mailto:\",Table_Front_desk_report.accdb[[#This Row],[inbox]])","v":"chi.incoming@hud.gov"}]
[800240523,"South Quarter                                     ","Minneapolis                 ","MN","55404","DARIAN JANE ZIEGLER                                ","Darian.Ziegler@hud.gov","612-370-3270","mn.incoming@hud.gov",{"$f":"HYPERLINK(\"mailto:\",Table_Front_desk_report.accdb[[#This Row],[inbox]])","v":"mn.incoming@hud.gov"}]
[800011270,"SOUTH SHORE PARK                                  ","EXCELSIOR                   ","MN","55331","TEENA M GEE                                        ","Teena.M.Gee@hud.gov","612-843-6414","mn.incoming@hud.gov",{"$f":"HYPERLINK(\"mailto:\",Table_Front_desk_report.accdb[[#This Row],[inbox]])","v":"mn.incoming@hud.gov"}]
[800023358,"SOUTH WILLOW APARTMENTS                           ","RACINE                      ","WI","53406","ARNITA X SCOTT                                     ","arnita.scott@hud.gov","312-913-8574","chi.incoming@hud.gov",{"$f":"HYPERLINK(\"mailto:\",Table_Front_desk_report.accdb[[#This Row],[inbox]])","v":"chi.incoming@hud.gov"}]
[800242795,"Southfield I & II                                 ","Oak Creek                   ","WI","53154","MARLENE X TRIMUEL                                  ","Marlene.Trimuel@hud.gov","312-913-8369","chi.incoming@hud.gov",{"$f":"HYPERLINK(\"mailto:\",Table_Front_desk_report.accdb[[#This Row],[inbox]])","v":"chi.incoming@hud.gov"}]
[800023360,"SOUTHFIELD TOWNHOUSES                             ","MANITOWOC                   ","WI","54220","MICHAEL D FURNNER                                  ","MICHAEL.D.FURNNER@hud.gov","414-935-6682","mn.incoming@hud.gov",{"$f":"HYPERLINK(\"mailto:\",Table_Front_desk_report.accdb[[#This Row],[inbox]])","v":"mn.incoming@hud.gov"}]
[800240096,"Southfork Village Townhomes                       ","Lakeville                   ","MN","55044","BEN OSBORN                                         ","Benjamin.M.Osborn@hud.gov","612-370-3091","mn.incoming@hud.gov",{"$f":"HYPERLINK(\"mailto:\",Table_Front_desk_report.accdb[[#This Row],[inbox]])","v":"mn.incoming@hud.gov"}]
[800011271,"SOUTHGATE APARTMENTS                              ","SLAYTON                     ","MN","56172","CINDY BEHNKE                                       ","cynthia.behnke@hud.gov","612-370-3278","mn.incoming@hud.gov",{"$f":"HYPERLINK(\"mailto:\",Table_Front_desk_report.accdb[[#This Row],[inbox]])","v":"mn.incoming@hud.gov"}]
[800011272,"SOUTHGATE APARTMENTS II                           ","SLAYTON                     ","MN","56172","CINDY BEHNKE                                       ","cynthia.behnke@hud.gov","612-370-3278","mn.incoming@hud.gov",{"$f":"HYPERLINK(\"mailto:\",Table_Front_desk_report.accdb[[#This Row],[inbox]])","v":"mn.incoming@hud.gov"}]
[800079686,"SOUTHGATE SQUARE I                                ","MILWAUKEE                   ","WI","53221","DEBORAH E MONROE                                   ","deborah.e.monroe@hud.gov","312-913-8210","chi.incoming@hud.gov",{"$f":"HYPERLINK(\"mailto:\",Table_Front_desk_report.accdb[[#This Row],[inbox]])","v":"chi.incoming@hud.gov"}]
[800023361,"SOUTHGATE SQUARE II                               ","MILWAUKEE                   ","WI","53221","VERONICA S SIMS                                    ","veronica.s.sims@hud.gov","312-913-8066","chi.incoming@hud.gov",{"$f":"HYPERLINK(\"mailto:\",Table_Front_desk_report.accdb[[#This Row],[inbox]])","v":"chi.incoming@hud.gov"}]
[800238552,"SOUTHRIDGE EAST APARTMENTS                        ","Eau Claire                  ","WI","54701","ANDREA L CARSON                                    ","andrea.carson@hud.gov","414-935-6679","mn.incoming@hud.gov",{"$f":"HYPERLINK(\"mailto:\",Table_Front_desk_report.accdb[[#This Row],[inbox]])","v":"mn.incoming@hud.gov"}]
[800023363,"SOUTHRIDGE VILLAGE                                ","MADISON                     ","WI","53713","ARNITA X SCOTT                                     ","arnita.scott@hud.gov","312-913-8574","chi.incoming@hud.gov",{"$f":"HYPERLINK(\"mailto:\",Table_Front_desk_report.accdb[[#This Row],[inbox]])","v":"chi.incoming@hud.gov"}]
[800233880,"SOUTHVIEW PARK APARTMENTS                         ","Neenah                      ","WI","54956","PAUL A DUHR                                        ","paul.a.duhr@hud.gov","414-935-6681","mn.incoming@hud.gov",{"$f":"HYPERLINK(\"mailto:\",Table_Front_desk_report.accdb[[#This Row],[inbox]])","v":"mn.incoming@hud.gov"}]
[800011273,"SOUTHVIEW TERRACE APTS                            ","HIBBING                     ","MN","55746","MITCHELL S HILLMAN                                 ","MITCHELL.S.HILLMAN@hud.gov","612-370-3036","mn.incoming@hud.gov",{"$f":"HYPERLINK(\"mailto:\",Table_Front_desk_report.accdb[[#This Row],[inbox]])","v":"mn.incoming@hud.gov"}]
[800239614,"SPAULDING PLACE COOPERATIVE                       ","Black River Falls           ","WI","54615","JOEL R KLEMM                                       ","JOEL.R.KLEMM@hud.gov","612-370-3053","mn.incoming@hud.gov",{"$f":"HYPERLINK(\"mailto:\",Table_Front_desk_report.accdb[[#This Row],[inbox]])","v":"mn.incoming@hud.gov"}]
[800011274,"SPIRIT LAKE MANOR                                 ","DULUTH                      ","MN","55808","BEN OSBORN                                         ","Benjamin.M.Osborn@hud.gov","612-370-3091","mn.incoming@hud.gov",{"$f":"HYPERLINK(\"mailto:\",Table_Front_desk_report.accdb[[#This Row],[inbox]])","v":"mn.incoming@hud.gov"}]
[800236599,"Spirit on Lake                                    ","Minneapolis                 ","MN","55407","TERRI A MUNSON                                     ","Terri.A.Munson@hud.gov","612-370-3086","mn.incoming@hud.gov",{"$f":"HYPERLINK(\"mailto:\",Table_Front_desk_report.accdb[[#This Row],[inbox]])","v":"mn.incoming@hud.gov"}]
[800023364,"SPRING GLEN APTS                                  ","MAYVILLE                    ","WI","53050","CATHERINE A TEMPLE                                 ","Catherine.A.Temple@hud.gov","414-935-6695","mn.incoming@hud.gov",{"$f":"HYPERLINK(\"mailto:\",Table_Front_desk_report.accdb[[#This Row],[inbox]])","v":"mn.incoming@hud.gov"}]
[800011275,"SPRING GROVE MANOR                                ","SPRING GROVE                ","MN","55974","NATASHA D GUENOVA                                  ","NATASHA.D.GUENOVA@hud.gov","612-370-3035","mn.incoming@hud.gov",{"$f":"HYPERLINK(\"mailto:\",Table_Front_desk_report.accdb[[#This Row],[inbox]])","v":"mn.incoming@hud.gov"}]
[800023366,"SPRUCE APARTMENTS                                 ","CLEAR LAKE                  ","WI","54005","ANDREA L CARSON                                    ","andrea.carson@hud.gov","414-935-6679","mn.incoming@hud.gov",{"$f":"HYPERLINK(\"mailto:\",Table_Front_desk_report.accdb[[#This Row],[inbox]])","v":"mn.incoming@hud.gov"}]
[800011276,"SPRUCE PLACE                                      ","FARMINGTON                  ","MN","55024","MITCHELL S HILLMAN                                 ","MITCHELL.S.HILLMAN@hud.gov","612-370-3036","mn.incoming@hud.gov",{"$f":"HYPERLINK(\"mailto:\",Table_Front_desk_report.accdb[[#This Row],[inbox]])","v":"mn.incoming@hud.gov"}]
[800022949,"SQUIRE DRIVE APARTMENTS                           ","CORNELL                     ","WI","54732","LAWRANCE C MUNDT                                   ","LAWRENCE.C.MUNDT@hud.gov","612-370-3082","mn.incoming@hud.gov",{"$f":"HYPERLINK(\"mailto:\",Table_Front_desk_report.accdb[[#This Row],[inbox]])","v":"mn.incoming@hud.gov"}]
[800011248,"ST ALBANS PARK                                    ","SAINT PAUL                  ","MN","55104","MICHAEL P MORAN                                    ","MICHAEL.P.MORAN@HUD.GOV","612-370-3081","mn.incoming@hud.gov",{"$f":"HYPERLINK(\"mailto:\",Table_Front_desk_report.accdb[[#This Row],[inbox]])","v":"mn.incoming@hud.gov"}]
[800041528,"ST FRANCIS HOME SOUTH                             ","SUPERIOR                    ","WI","54880","CATHERINE A TEMPLE                                 ","Catherine.A.Temple@hud.gov","414-935-6695","mn.incoming@hud.gov",{"$f":"HYPERLINK(\"mailto:\",Table_Front_desk_report.accdb[[#This Row],[inbox]])","v":"mn.incoming@hud.gov"}]
[800011277,"ST JAMES MANOR                                    ","PERHAM                      ","MN","56573","THOMAS G DURSCHER                                  ","Thomas.G.Durscher@hud.gov","612-370-3018","mn.incoming@hud.gov",{"$f":"HYPERLINK(\"mailto:\",Table_Front_desk_report.accdb[[#This Row],[inbox]])","v":"mn.incoming@hud.gov"}]
[800023368,"ST JOHN'S SOUTH APTS                              ","EAU CLAIRE                  ","WI","54701","MICHAEL D FURNNER                                  ","MICHAEL.D.FURNNER@hud.gov","414-935-6682","mn.incoming@hud.gov",{"$f":"HYPERLINK(\"mailto:\",Table_Front_desk_report.accdb[[#This Row],[inbox]])","v":"mn.incoming@hud.gov"}]
[800023369,"ST MARK PLACE                                     ","MILWAUKEE                   ","WI","53205","NINA M SMITH                                       ","nina.m.smith@hud.gov","312-913-8212","chi.incoming@hud.gov",{"$f":"HYPERLINK(\"mailto:\",Table_Front_desk_report.accdb[[#This Row],[inbox]])","v":"chi.incoming@hud.gov"}]
[800011280,"ST MARKS APARTMENTS                               ","AUSTIN                      ","MN","55912","SUSAN K ROSKOS                                     ","Susan.K.Roskos@hud.gov","612-370-3110","mn.incoming@hud.gov",{"$f":"HYPERLINK(\"mailto:\",Table_Front_desk_report.accdb[[#This Row],[inbox]])","v":"mn.incoming@hud.gov"}]
[800023373,"ST PETER APTS I, II, & III                        ","MILWAUKEE                   ","WI","53223","ARUNA SHAH                                         ","aruna.shah@hud.gov","312-913-8588","chi.incoming@hud.gov",{"$f":"HYPERLINK(\"mailto:\",Table_Front_desk_report.accdb[[#This Row],[inbox]])","v":"chi.incoming@hud.gov"}]
[800023374,"ST VALLERIE APTS.                                 ","LA CROSSE                   ","WI","54601","SUSAN K ROSKOS                                     ","Susan.K.Roskos@hud.gov","612-370-3110","mn.incoming@hud.gov",{"$f":"HYPERLINK(\"mailto:\",Table_Front_desk_report.accdb[[#This Row],[inbox]])","v":"mn.incoming@hud.gov"}]
[800011283,"ST. ANN'S HOME                                    ","DULUTH                      ","MN","55805","MITCHELL S HILLMAN                                 ","MITCHELL.S.HILLMAN@hud.gov","612-370-3036","mn.incoming@hud.gov",{"$f":"HYPERLINK(\"mailto:\",Table_Front_desk_report.accdb[[#This Row],[inbox]])","v":"mn.incoming@hud.gov"}]
[800222151,"St. Anthony Mills Apartments                      ","Minneapolis                 ","MN","55415","NATASHA D GUENOVA                                  ","NATASHA.D.GUENOVA@hud.gov","612-370-3035","mn.incoming@hud.gov",{"$f":"HYPERLINK(\"mailto:\",Table_Front_desk_report.accdb[[#This Row],[inbox]])","v":"mn.incoming@hud.gov"}]
[800219319,"ST. CATHERINE COMMONS                             ","Kenosha                     ","WI","53140","DORTHY L HOPKINS                                   ","dorthy.l.hopkins@hud.gov","312-913-8172","chi.incoming@hud.gov",{"$f":"HYPERLINK(\"mailto:\",Table_Front_desk_report.accdb[[#This Row],[inbox]])","v":"chi.incoming@hud.gov"}]
[800023375,"ST. CROIX COUNTY HOUSING                          ","HUDSON                      ","WI","54016","MICHAEL D FURNNER                                  ","MICHAEL.D.FURNNER@hud.gov","414-935-6682","mn.incoming@hud.gov",{"$f":"HYPERLINK(\"mailto:\",Table_Front_desk_report.accdb[[#This Row],[inbox]])","v":"mn.incoming@hud.gov"}]
[800079650,"ST. CROIX MANOR                                   ","PRESCOTT                    ","WI","54021","SUSAN K ROSKOS                                     ","Susan.K.Roskos@hud.gov","612-370-3110","mn.incoming@hud.gov",{"$f":"HYPERLINK(\"mailto:\",Table_Front_desk_report.accdb[[#This Row],[inbox]])","v":"mn.incoming@hud.gov"}]
[800231532,"ST. CROIX VILLAGE                                 ","Hudson                      ","WI","54016","JOEL R KLEMM                                       ","JOEL.R.KLEMM@hud.gov","612-370-3053","mn.incoming@hud.gov",{"$f":"HYPERLINK(\"mailto:\",Table_Front_desk_report.accdb[[#This Row],[inbox]])","v":"mn.incoming@hud.gov"}]
[800023376,"ST. JOHNS HOUSING                                 ","EAU CLAIRE                  ","WI","54701","JOEL R KLEMM                                       ","JOEL.R.KLEMM@hud.gov","612-370-3053","mn.incoming@hud.gov",{"$f":"HYPERLINK(\"mailto:\",Table_Front_desk_report.accdb[[#This Row],[inbox]])","v":"mn.incoming@hud.gov"}]
[800011279,"ST. LUCAS RIVERSIDE APARTMENTS, INC               ","FARIBAULT                   ","MN","55021","SHERRY K NORTON                                    ","Sherry.K.Norton@hud.gov","612-370-3087","mn.incoming@hud.gov",{"$f":"HYPERLINK(\"mailto:\",Table_Front_desk_report.accdb[[#This Row],[inbox]])","v":"mn.incoming@hud.gov"}]
[800011284,"ST. MICHAEL'S APARTMENTS                          ","NEW ULM                     ","MN","56073","MITCHELL S HILLMAN                                 ","MITCHELL.S.HILLMAN@hud.gov","612-370-3036","mn.incoming@hud.gov",{"$f":"HYPERLINK(\"mailto:\",Table_Front_desk_report.accdb[[#This Row],[inbox]])","v":"mn.incoming@hud.gov"}]
[800023377,"ST. NICHOLAS                                      ","SHEBOYGAN                   ","WI","53081","LAWRANCE C MUNDT                                   ","LAWRENCE.C.MUNDT@hud.gov","612-370-3082","mn.incoming@hud.gov",{"$f":"HYPERLINK(\"mailto:\",Table_Front_desk_report.accdb[[#This Row],[inbox]])","v":"mn.incoming@hud.gov"}]
[800023370,"ST. PAUL GARDENS APARTMENTS                       ","RACINE                      ","WI","53403","DORTHY L HOPKINS                                   ","dorthy.l.hopkins@hud.gov","312-913-8172","chi.incoming@hud.gov",{"$f":"HYPERLINK(\"mailto:\",Table_Front_desk_report.accdb[[#This Row],[inbox]])","v":"chi.incoming@hud.gov"}]
[800011285,"ST. PAUL'S HOME                                   ","MINNEAPOLIS                 ","MN","55407","CAROL DIXON                                        ","Carol.A.Dixon@hud.gov","612-370-3015","mn.incoming@hud.gov",{"$f":"HYPERLINK(\"mailto:\",Table_Front_desk_report.accdb[[#This Row],[inbox]])","v":"mn.incoming@hud.gov"}]
[800011286,"ST. PHILIPS GARDENS                               ","SAINT PAUL                  ","MN","55104","MICHAEL P MORAN                                    ","MICHAEL.P.MORAN@HUD.GOV","612-370-3081","mn.incoming@hud.gov",{"$f":"HYPERLINK(\"mailto:\",Table_Front_desk_report.accdb[[#This Row],[inbox]])","v":"mn.incoming@hud.gov"}]
[800023378,"STATE STREET APTS                                 ","MILWAUKEE                   ","WI","53233","ELLIE L CHICOSKI                                   ","ellie.l.chicoski@hud.gov","312-913-8385","chi.incoming@hud.gov",{"$f":"HYPERLINK(\"mailto:\",Table_Front_desk_report.accdb[[#This Row],[inbox]])","v":"chi.incoming@hud.gov"}]
[800010802,"STATE STREET APTS.aka BUHL                        ","BUHL                        ","MN","55713","CAROL DIXON                                        ","Carol.A.Dixon@hud.gov","612-370-3015","mn.incoming@hud.gov",{"$f":"HYPERLINK(\"mailto:\",Table_Front_desk_report.accdb[[#This Row],[inbox]])","v":"mn.incoming@hud.gov"}]
[800023380,"STATEWIDE SCATTERED                               ","MONROE                      ","WI","53566","ARUNA SHAH                                         ","aruna.shah@hud.gov","312-913-8588","chi.incoming@hud.gov",{"$f":"HYPERLINK(\"mailto:\",Table_Front_desk_report.accdb[[#This Row],[inbox]])","v":"chi.incoming@hud.gov"}]
[800232691,"STATIONSIDE VILLAGE APARTMENTS                    ","Kenosha                     ","WI","53140","DORTHY L HOPKINS                                   ","dorthy.l.hopkins@hud.gov","312-913-8172","chi.incoming@hud.gov",{"$f":"HYPERLINK(\"mailto:\",Table_Front_desk_report.accdb[[#This Row],[inbox]])","v":"chi.incoming@hud.gov"}]
[800023381,"STEIN APARTMENTS                                  ","MADISON                     ","WI","53704","YOLANDA S MILLER                                   ","yolanda.s.miller@hud.gov","312-913-8580","chi.incoming@hud.gov",{"$f":"HYPERLINK(\"mailto:\",Table_Front_desk_report.accdb[[#This Row],[inbox]])","v":"chi.incoming@hud.gov"}]
[800011288,"STEVENS COMMUNITY                                 ","Minneapolis                 ","MN","55404","LAWRANCE C MUNDT                                   ","LAWRENCE.C.MUNDT@hud.gov","612-370-3082","mn.incoming@hud.gov",{"$f":"HYPERLINK(\"mailto:\",Table_Front_desk_report.accdb[[#This Row],[inbox]])","v":"mn.incoming@hud.gov"}]
[800011413,"Stevens Court  AKA  Abbott View                   ","MINNEAPOLIS                 ","MN","55404","SUSAN K ROSKOS                                     ","Susan.K.Roskos@hud.gov","612-370-3110","mn.incoming@hud.gov",{"$f":"HYPERLINK(\"mailto:\",Table_Front_desk_report.accdb[[#This Row],[inbox]])","v":"mn.incoming@hud.gov"}]
[800011289,"STEVENS HOUSE APARTMENTS                          ","MINNEAPOLIS                 ","MN","55408","SHERRY K NORTON                                    ","Sherry.K.Norton@hud.gov","612-370-3087","mn.incoming@hud.gov",{"$f":"HYPERLINK(\"mailto:\",Table_Front_desk_report.accdb[[#This Row],[inbox]])","v":"mn.incoming@hud.gov"}]
[800011231,"Stone Creek Townhomes                             ","LUVERNE                     ","MN","56156","MICHAEL P MORAN                                    ","MICHAEL.P.MORAN@HUD.GOV","612-370-3081","mn.incoming@hud.gov",{"$f":"HYPERLINK(\"mailto:\",Table_Front_desk_report.accdb[[#This Row],[inbox]])","v":"mn.incoming@hud.gov"}]
[800225965,"STONEBRIDGE MOVIN' OUT                            ","Madison                     ","WI","53704","DONNA M SHEEHAN                                    ","Donna.Sheehan@hud.gov"," 312-957-4781 ","chi.incoming@hud.gov",{"$f":"HYPERLINK(\"mailto:\",Table_Front_desk_report.accdb[[#This Row],[inbox]])","v":"chi.incoming@hud.gov"}]
[800236413,"STONEGATE APARTMENTS                              ","Kenosha                     ","WI","53142","DORTHY L HOPKINS                                   ","dorthy.l.hopkins@hud.gov","312-913-8172","chi.incoming@hud.gov",{"$f":"HYPERLINK(\"mailto:\",Table_Front_desk_report.accdb[[#This Row],[inbox]])","v":"chi.incoming@hud.gov"}]
[800011291,"STONEHOUSE SQUARE APARTMENTS                      ","MINNEAPOLIS                 ","MN","55413","GREGORY T MERZ                                     ","GREGORY.T.MERZ@hud.gov","612-370-3077","mn.incoming@hud.gov",{"$f":"HYPERLINK(\"mailto:\",Table_Front_desk_report.accdb[[#This Row],[inbox]])","v":"mn.incoming@hud.gov"}]
[800011292,"STORYBROOK APARTMENTS                             ","PIPESTONE                   ","MN","56164","LAWRANCE C MUNDT                                   ","LAWRENCE.C.MUNDT@hud.gov","612-370-3082","mn.incoming@hud.gov",{"$f":"HYPERLINK(\"mailto:\",Table_Front_desk_report.accdb[[#This Row],[inbox]])","v":"mn.incoming@hud.gov"}]
[800010999,"STRATFORD WOOD II aka Hunters Ridge               ","MINNETONKA                  ","MN","55345","CAROL DIXON                                        ","Carol.A.Dixon@hud.gov","612-370-3015","mn.incoming@hud.gov",{"$f":"HYPERLINK(\"mailto:\",Table_Front_desk_report.accdb[[#This Row],[inbox]])","v":"mn.incoming@hud.gov"}]
[800023482,"STURGEON BLUFF APARTMENTS                         ","WAUSAU                      ","WI","54401","LAWRANCE C MUNDT                                   ","LAWRENCE.C.MUNDT@hud.gov","612-370-3082","mn.incoming@hud.gov",{"$f":"HYPERLINK(\"mailto:\",Table_Front_desk_report.accdb[[#This Row],[inbox]])","v":"mn.incoming@hud.gov"}]
[800069930,"SUMAC TRAIL APARTMENTS                            ","RHINELANDER                 ","WI","54501","MICHAEL D FURNNER                                  ","MICHAEL.D.FURNNER@hud.gov","414-935-6682","mn.incoming@hud.gov",{"$f":"HYPERLINK(\"mailto:\",Table_Front_desk_report.accdb[[#This Row],[inbox]])","v":"mn.incoming@hud.gov"}]
[800239014,"Summerfield Apt's                                 ","Northfield                  ","MN","55057","NATASHA D GUENOVA                                  ","NATASHA.D.GUENOVA@hud.gov","612-370-3035","mn.incoming@hud.gov",{"$f":"HYPERLINK(\"mailto:\",Table_Front_desk_report.accdb[[#This Row],[inbox]])","v":"mn.incoming@hud.gov"}]
[800214013,"SUMMERHILL COOP. OF BLOOMINGTON                   ","BLOOMINGTON                 ","MN","55437","NATASHA D GUENOVA                                  ","NATASHA.D.GUENOVA@hud.gov","612-370-3035","mn.incoming@hud.gov",{"$f":"HYPERLINK(\"mailto:\",Table_Front_desk_report.accdb[[#This Row],[inbox]])","v":"mn.incoming@hud.gov"}]
[800213928,"SUMMERHILL COOP. OF EDEN PRAIRIE                  ","EDEN PRAIRIE                ","MN","55344","NATASHA D GUENOVA                                  ","NATASHA.D.GUENOVA@hud.gov","612-370-3035","mn.incoming@hud.gov",{"$f":"HYPERLINK(\"mailto:\",Table_Front_desk_report.accdb[[#This Row],[inbox]])","v":"mn.incoming@hud.gov"}]
[800218527,"Summerhill Cooperative of Apple Valley            ","Apple Valley                ","MN","55124","MICHAEL P MORAN                                    ","MICHAEL.P.MORAN@HUD.GOV","612-370-3081","mn.incoming@hud.gov",{"$f":"HYPERLINK(\"mailto:\",Table_Front_desk_report.accdb[[#This Row],[inbox]])","v":"mn.incoming@hud.gov"}]
[800222451,"Summerhill Cooperative of Maplewood               ","Maplewood                   ","MN","55119","LAWRANCE C MUNDT                                   ","LAWRENCE.C.MUNDT@hud.gov","612-370-3082","mn.incoming@hud.gov",{"$f":"HYPERLINK(\"mailto:\",Table_Front_desk_report.accdb[[#This Row],[inbox]])","v":"mn.incoming@hud.gov"}]
[800011352,"Summit on Second                                  ","WASECA                      ","MN","56093","LAWRANCE C MUNDT                                   ","LAWRENCE.C.MUNDT@hud.gov","612-370-3082","mn.incoming@hud.gov",{"$f":"HYPERLINK(\"mailto:\",Table_Front_desk_report.accdb[[#This Row],[inbox]])","v":"mn.incoming@hud.gov"}]
[800216550,"Summit Place Senior Housing                       ","EDEN PRAIRIE                ","MN","55344","JULIE A LASOTA                                     ","Julie.A.Lasota@hud.gov","612-370-3066","mn.incoming@hud.gov",{"$f":"HYPERLINK(\"mailto:\",Table_Front_desk_report.accdb[[#This Row],[inbox]])","v":"mn.incoming@hud.gov"}]
[800233271,"Summit Ridge                                      ","Duluth                      ","MN","55811","LAWRANCE C MUNDT                                   ","LAWRENCE.C.MUNDT@hud.gov","612-370-3082","mn.incoming@hud.gov",{"$f":"HYPERLINK(\"mailto:\",Table_Front_desk_report.accdb[[#This Row],[inbox]])","v":"mn.incoming@hud.gov"}]
[800236541,"Summit Ridge II                                   ","Duluth                      ","MN","55558","TEENA M GEE                                        ","Teena.M.Gee@hud.gov","612-843-6414","mn.incoming@hud.gov",{"$f":"HYPERLINK(\"mailto:\",Table_Front_desk_report.accdb[[#This Row],[inbox]])","v":"mn.incoming@hud.gov"}]
[800238810,"Summit Townhomes                                  ","Burnsville                  ","MN","55337","MARCIA A KOLB                                      ","MARCIA.A.KOLB@hud.gov","612-370-3055","mn.incoming@hud.gov",{"$f":"HYPERLINK(\"mailto:\",Table_Front_desk_report.accdb[[#This Row],[inbox]])","v":"mn.incoming@hud.gov"}]
[800023387,"SUN VALLEY APARTMENTS                             ","DICKEYVILLE                 ","WI","53808","SYLVIA HYDE                                        ","sylvia.hyde@hud.gov","312-913-8573","chi.incoming@hud.gov",{"$f":"HYPERLINK(\"mailto:\",Table_Front_desk_report.accdb[[#This Row],[inbox]])","v":"chi.incoming@hud.gov"}]
[800023388,"SUNFISH COURT APTS                                ","MADISON                     ","WI","53713","YOLANDA S MILLER                                   ","yolanda.s.miller@hud.gov","312-913-8580","chi.incoming@hud.gov",{"$f":"HYPERLINK(\"mailto:\",Table_Front_desk_report.accdb[[#This Row],[inbox]])","v":"chi.incoming@hud.gov"}]
[800011293,"SUNNY ACRES                                       ","ANOKA                       ","MN","55303","MICHAEL P MORAN                                    ","MICHAEL.P.MORAN@HUD.GOV","612-370-3081","mn.incoming@hud.gov",{"$f":"HYPERLINK(\"mailto:\",Table_Front_desk_report.accdb[[#This Row],[inbox]])","v":"mn.incoming@hud.gov"}]
[800023389,"SUNNY HILL                                        ","SUN PRAIRIE                 ","WI","53590","JULIE M WHITEFEATHER                               ","julie.m.whitefeather@hud.gov","312-913-8117","chi.incoming@hud.gov",{"$f":"HYPERLINK(\"mailto:\",Table_Front_desk_report.accdb[[#This Row],[inbox]])","v":"chi.incoming@hud.gov"}]
[800011294,"SUNNY PINES APARTMENTS                            ","MOTLEY                      ","MN","56466","NATASHA D GUENOVA                                  ","NATASHA.D.GUENOVA@hud.gov","612-370-3035","mn.incoming@hud.gov",{"$f":"HYPERLINK(\"mailto:\",Table_Front_desk_report.accdb[[#This Row],[inbox]])","v":"mn.incoming@hud.gov"}]
[800023392,"SUNRISE APARTMENTS                                ","WEST ALLIS                  ","WI","53227","RAYNARD L OWENS                                    ","Raynard.Owens@hud.gov","312-913-8788","chi.incoming@hud.gov",{"$f":"HYPERLINK(\"mailto:\",Table_Front_desk_report.accdb[[#This Row],[inbox]])","v":"chi.incoming@hud.gov"}]
[800023391,"SUNRISE APARTMENTS                                ","WONEWOC                     ","WI","53968","PAUL A DUHR                                        ","paul.a.duhr@hud.gov","414-935-6681","mn.incoming@hud.gov",{"$f":"HYPERLINK(\"mailto:\",Table_Front_desk_report.accdb[[#This Row],[inbox]])","v":"mn.incoming@hud.gov"}]
[800079651,"SUNRISE APARTMENTS                                ","HILBERT                     ","WI","54129","CATHERINE A TEMPLE                                 ","Catherine.A.Temple@hud.gov","414-935-6695","mn.incoming@hud.gov",{"$f":"HYPERLINK(\"mailto:\",Table_Front_desk_report.accdb[[#This Row],[inbox]])","v":"mn.incoming@hud.gov"}]
[800011296,"SUNRISE ESTATES aka Jackson TH's                  ","JACKSON                     ","MN","56143","CAROL DIXON                                        ","Carol.A.Dixon@hud.gov","612-370-3015","mn.incoming@hud.gov",{"$f":"HYPERLINK(\"mailto:\",Table_Front_desk_report.accdb[[#This Row],[inbox]])","v":"mn.incoming@hud.gov"}]
[800011297,"SUNRISE MANOR                                     ","SLEEPY EYE                  ","MN","56085","MICHAEL P MORAN                                    ","MICHAEL.P.MORAN@HUD.GOV","612-370-3081","mn.incoming@hud.gov",{"$f":"HYPERLINK(\"mailto:\",Table_Front_desk_report.accdb[[#This Row],[inbox]])","v":"mn.incoming@hud.gov"}]
[800023393,"SUNRISE MANOR                                     ","ARCADIA                     ","WI","54612","CATHERINE A TEMPLE                                 ","Catherine.A.Temple@hud.gov","414-935-6695","mn.incoming@hud.gov",{"$f":"HYPERLINK(\"mailto:\",Table_Front_desk_report.accdb[[#This Row],[inbox]])","v":"mn.incoming@hud.gov"}]
[800011298,"SUNRISE MEADOW                                    ","SAINT PETER                 ","MN","56082","LAWRANCE C MUNDT                                   ","LAWRENCE.C.MUNDT@hud.gov","612-370-3082","mn.incoming@hud.gov",{"$f":"HYPERLINK(\"mailto:\",Table_Front_desk_report.accdb[[#This Row],[inbox]])","v":"mn.incoming@hud.gov"}]
[800011299,"SUNRISE PLAZA                                     ","LE SUEUR                    ","MN","56058","MITCHELL S HILLMAN                                 ","MITCHELL.S.HILLMAN@hud.gov","612-370-3036","mn.incoming@hud.gov",{"$f":"HYPERLINK(\"mailto:\",Table_Front_desk_report.accdb[[#This Row],[inbox]])","v":"mn.incoming@hud.gov"}]
[800023394,"SUNRISE VALLEY                                    ","LANCASTER                   ","WI","53813","JULIE M WHITEFEATHER                               ","julie.m.whitefeather@hud.gov","312-913-8117","chi.incoming@hud.gov",{"$f":"HYPERLINK(\"mailto:\",Table_Front_desk_report.accdb[[#This Row],[inbox]])","v":"chi.incoming@hud.gov"}]
[800023205,"SUNRISE VILLAGE                                   ","NEW AUBURN                  ","WI","54757","SUSAN K ROSKOS                                     ","Susan.K.Roskos@hud.gov","612-370-3110","mn.incoming@hud.gov",{"$f":"HYPERLINK(\"mailto:\",Table_Front_desk_report.accdb[[#This Row],[inbox]])","v":"mn.incoming@hud.gov"}]
[800023395,"SUNSET APARTMENTS                                 ","WAUKESHA                    ","WI","53186","ARUNA SHAH                                         ","aruna.shah@hud.gov","312-913-8588","chi.incoming@hud.gov",{"$f":"HYPERLINK(\"mailto:\",Table_Front_desk_report.accdb[[#This Row],[inbox]])","v":"chi.incoming@hud.gov"}]
[800011300,"SUNSET COURT                                      ","RED LAKE FALLS              ","MN","56750","SUSAN K ROSKOS                                     ","Susan.K.Roskos@hud.gov","612-370-3110","mn.incoming@hud.gov",{"$f":"HYPERLINK(\"mailto:\",Table_Front_desk_report.accdb[[#This Row],[inbox]])","v":"mn.incoming@hud.gov"}]
[800069641,"SUNSET FIELDS APARTMENTS                          ","FENNIMORE                   ","WI","53809","LATOYA A WASHINGTON                                ","latoya.a.washington@hud.gov","312-913-8271","chi.incoming@hud.gov",{"$f":"HYPERLINK(\"mailto:\",Table_Front_desk_report.accdb[[#This Row],[inbox]])","v":"chi.incoming@hud.gov"}]
[800023396,"SUNSET HEIGHTS                                    ","WAUKESHA                    ","WI","53186","LADRENNA A FIGUEROA                                ","ladrenna.a.figueroa@hud.gov","312-913-8290","chi.incoming@hud.gov",{"$f":"HYPERLINK(\"mailto:\",Table_Front_desk_report.accdb[[#This Row],[inbox]])","v":"chi.incoming@hud.gov"}]
[800236602,"Sunset Hill Apartments                            ","Minnetonka                  ","MN","55305","ANDREA L CARSON                                    ","andrea.carson@hud.gov","414-935-6679","mn.incoming@hud.gov",{"$f":"HYPERLINK(\"mailto:\",Table_Front_desk_report.accdb[[#This Row],[inbox]])","v":"mn.incoming@hud.gov"}]
[800023401,"SUNSET TERRACE                                    ","PLOVER                      ","WI","54467","PAUL A DUHR                                        ","paul.a.duhr@hud.gov","414-935-6681","mn.incoming@hud.gov",{"$f":"HYPERLINK(\"mailto:\",Table_Front_desk_report.accdb[[#This Row],[inbox]])","v":"mn.incoming@hud.gov"}]
[800023402,"SUNSET TERRACE APTS                               ","RACINE                      ","WI","53406","ARUNA SHAH                                         ","aruna.shah@hud.gov","312-913-8588","chi.incoming@hud.gov",{"$f":"HYPERLINK(\"mailto:\",Table_Front_desk_report.accdb[[#This Row],[inbox]])","v":"chi.incoming@hud.gov"}]
[800023403,"SUNSET VIEW                                       ","STURGEON BAY                ","WI","54235","ANDREA L CARSON                                    ","andrea.carson@hud.gov","414-935-6679","mn.incoming@hud.gov",{"$f":"HYPERLINK(\"mailto:\",Table_Front_desk_report.accdb[[#This Row],[inbox]])","v":"mn.incoming@hud.gov"}]
[800023404,"SUNSET/HILLSIDE/MILLADORE MANOR                   ","MILLADORE                   ","WI","54454","MICHAEL D FURNNER                                  ","MICHAEL.D.FURNNER@hud.gov","414-935-6682","mn.incoming@hud.gov",{"$f":"HYPERLINK(\"mailto:\",Table_Front_desk_report.accdb[[#This Row],[inbox]])","v":"mn.incoming@hud.gov"}]
[800236719,"SUNSHINE CIRCLE APARTMENTS                        ","Chippewa Falls              ","WI","54729","CINDY BEHNKE                                       ","cynthia.behnke@hud.gov","612-370-3278","mn.incoming@hud.gov",{"$f":"HYPERLINK(\"mailto:\",Table_Front_desk_report.accdb[[#This Row],[inbox]])","v":"mn.incoming@hud.gov"}]
[800241184,"Sunwood Village                                   ","Ramsey                      ","MN","55303","DARIAN JANE ZIEGLER                                ","Darian.Ziegler@hud.gov","612-370-3270","mn.incoming@hud.gov",{"$f":"HYPERLINK(\"mailto:\",Table_Front_desk_report.accdb[[#This Row],[inbox]])","v":"mn.incoming@hud.gov"}]
[800023405,"SUPERIOR GOLDEN APARTMENTS                        ","SUPERIOR                    ","WI","54880","SUSAN K ROSKOS                                     ","Susan.K.Roskos@hud.gov","612-370-3110","mn.incoming@hud.gov",{"$f":"HYPERLINK(\"mailto:\",Table_Front_desk_report.accdb[[#This Row],[inbox]])","v":"mn.incoming@hud.gov"}]
[800023406,"SUPERIOR TOWNHOMES                                ","SUPERIOR                    ","WI","54880","ANDREA L CARSON                                    ","andrea.carson@hud.gov","414-935-6679","mn.incoming@hud.gov",{"$f":"HYPERLINK(\"mailto:\",Table_Front_desk_report.accdb[[#This Row],[inbox]])","v":"mn.incoming@hud.gov"}]
[800011301,"SUPERIOR VIEW APTS aka Twin Ports 4 sites         ","DULUTH                      ","MN","55812","THOMAS G DURSCHER                                  ","Thomas.G.Durscher@hud.gov","612-370-3018","mn.incoming@hud.gov",{"$f":"HYPERLINK(\"mailto:\",Table_Front_desk_report.accdb[[#This Row],[inbox]])","v":"mn.incoming@hud.gov"}]
[800023190,"SURLOW SENIOR RESIDENTS                           ","MILWAUKEE                   ","WI","53211","VERONICA S SIMS                                    ","veronica.s.sims@hud.gov","312-913-8066","chi.incoming@hud.gov",{"$f":"HYPERLINK(\"mailto:\",Table_Front_desk_report.accdb[[#This Row],[inbox]])","v":"chi.incoming@hud.gov"}]
[800239530,"Surrey Gardens                                    ","Eagan                       ","MN","55122","LAWRANCE C MUNDT                                   ","LAWRENCE.C.MUNDT@hud.gov","612-370-3082","mn.incoming@hud.gov",{"$f":"HYPERLINK(\"mailto:\",Table_Front_desk_report.accdb[[#This Row],[inbox]])","v":"mn.incoming@hud.gov"}]
[800011302,"SYLVAN MANOR                                      ","LANESBORO                   ","MN","55949","NATASHA D GUENOVA                                  ","NATASHA.D.GUENOVA@hud.gov","612-370-3035","mn.incoming@hud.gov",{"$f":"HYPERLINK(\"mailto:\",Table_Front_desk_report.accdb[[#This Row],[inbox]])","v":"mn.incoming@hud.gov"}]
[null,"T"]
[800022899,"TAFT TERRACE APARTMENTS                           ","NEW HOLSTEIN                ","WI","53061","PAUL A DUHR                                        ","paul.a.duhr@hud.gov","414-935-6681","mn.incoming@hud.gov",{"$f":"HYPERLINK(\"mailto:\",Table_Front_desk_report.accdb[[#This Row],[inbox]])","v":"mn.incoming@hud.gov"}]
[800011303,"TALMAGE GREEN                                     ","MINNEAPOLIS                 ","MN","55414","MICHAEL P MORAN                                    ","MICHAEL.P.MORAN@HUD.GOV","612-370-3081","mn.incoming@hud.gov",{"$f":"HYPERLINK(\"mailto:\",Table_Front_desk_report.accdb[[#This Row],[inbox]])","v":"mn.incoming@hud.gov"}]
[800023407,"TAMARACK TERRACE APARTMENTS                       ","HAWKINS                     ","WI","54530","MARCIA A KOLB                                      ","MARCIA.A.KOLB@hud.gov","612-370-3055","mn.incoming@hud.gov",{"$f":"HYPERLINK(\"mailto:\",Table_Front_desk_report.accdb[[#This Row],[inbox]])","v":"mn.incoming@hud.gov"}]
[800023408,"TANGLEWOOD APTS                                   ","KENOSHA                     ","WI","53142","SYLVIA HYDE                                        ","sylvia.hyde@hud.gov","312-913-8573","chi.incoming@hud.gov",{"$f":"HYPERLINK(\"mailto:\",Table_Front_desk_report.accdb[[#This Row],[inbox]])","v":"chi.incoming@hud.gov"}]
[800239810,"Tarnhill Apartments                               ","Bloomington                 ","MN","55437","THOMAS G DURSCHER                                  ","Thomas.G.Durscher@hud.gov","612-370-3018","mn.incoming@hud.gov",{"$f":"HYPERLINK(\"mailto:\",Table_Front_desk_report.accdb[[#This Row],[inbox]])","v":"mn.incoming@hud.gov"}]
[800217899,"TAU CROSSING I                                    ","Jefferson                   ","WI","53549","LADRENNA A FIGUEROA                                ","ladrenna.a.figueroa@hud.gov","312-913-8290","chi.incoming@hud.gov",{"$f":"HYPERLINK(\"mailto:\",Table_Front_desk_report.accdb[[#This Row],[inbox]])","v":"chi.incoming@hud.gov"}]
[800219641,"TAU CROSSING II                                   ","Jefferson                   ","WI","53549","LADRENNA A FIGUEROA                                ","ladrenna.a.figueroa@hud.gov","312-913-8290","chi.incoming@hud.gov",{"$f":"HYPERLINK(\"mailto:\",Table_Front_desk_report.accdb[[#This Row],[inbox]])","v":"chi.incoming@hud.gov"}]
[800011305,"TEAMSTER MANOR                                    ","MINNEAPOLIS                 ","MN","55413","CAROL DIXON                                        ","Carol.A.Dixon@hud.gov","612-370-3015","mn.incoming@hud.gov",{"$f":"HYPERLINK(\"mailto:\",Table_Front_desk_report.accdb[[#This Row],[inbox]])","v":"mn.incoming@hud.gov"}]
[800023411,"TERRACE EAST/WEST & LLORI                         ","MADISON                     ","WI","53711","ARNITA X SCOTT                                     ","arnita.scott@hud.gov","312-913-8574","chi.incoming@hud.gov",{"$f":"HYPERLINK(\"mailto:\",Table_Front_desk_report.accdb[[#This Row],[inbox]])","v":"chi.incoming@hud.gov"}]
[800023412,"TERRACE HEIGHTS APARTMENTS                        ","WAUSAU                      ","WI","54403","LAWRANCE C MUNDT                                   ","LAWRENCE.C.MUNDT@hud.gov","612-370-3082","mn.incoming@hud.gov",{"$f":"HYPERLINK(\"mailto:\",Table_Front_desk_report.accdb[[#This Row],[inbox]])","v":"mn.incoming@hud.gov"}]
[800236202,"Terrace Hill Apartments                           ","Ramsey                      ","MN","55303","JOEL R KLEMM                                       ","JOEL.R.KLEMM@hud.gov","612-370-3053","mn.incoming@hud.gov",{"$f":"HYPERLINK(\"mailto:\",Table_Front_desk_report.accdb[[#This Row],[inbox]])","v":"mn.incoming@hud.gov"}]
[800023413,"TEUTONIA APTS                                     ","MILWAUKEE                   ","WI","53209","ARNOLD PEOPLES                                     ","arnold.peoples@hud.gov","312-913-8103","chi.incoming@hud.gov",{"$f":"HYPERLINK(\"mailto:\",Table_Front_desk_report.accdb[[#This Row],[inbox]])","v":"chi.incoming@hud.gov"}]
[800242416,"The 2100                                          ","Wauwatosa                   ","WI","53226","RAYNARD L OWENS                                    ","Raynard.Owens@hud.gov","312-913-8788","chi.incoming@hud.gov",{"$f":"HYPERLINK(\"mailto:\",Table_Front_desk_report.accdb[[#This Row],[inbox]])","v":"chi.incoming@hud.gov"}]
[800241637,"The Arbors                                        ","Oak Creek                   ","WI","53154","LATOYA A WASHINGTON                                ","latoya.a.washington@hud.gov","312-913-8271","chi.incoming@hud.gov",{"$f":"HYPERLINK(\"mailto:\",Table_Front_desk_report.accdb[[#This Row],[inbox]])","v":"chi.incoming@hud.gov"}]
[800011306,"The Bell                                          ","BELGRADE                    ","MN","56312","TERRI A MUNSON                                     ","Terri.A.Munson@hud.gov","612-370-3086","mn.incoming@hud.gov",{"$f":"HYPERLINK(\"mailto:\",Table_Front_desk_report.accdb[[#This Row],[inbox]])","v":"mn.incoming@hud.gov"}]
[800212896,"The Birchwood Apartments                          ","MAPLE GROVE                 ","MN","55311","SUSAN K ROSKOS                                     ","Susan.K.Roskos@hud.gov","612-370-3110","mn.incoming@hud.gov",{"$f":"HYPERLINK(\"mailto:\",Table_Front_desk_report.accdb[[#This Row],[inbox]])","v":"mn.incoming@hud.gov"}]
[800237002,"The Bluffs at Nine Mile Creek                     ","Eden Prairie                ","MN","55344","TERRI A MUNSON                                     ","Terri.A.Munson@hud.gov","612-370-3086","mn.incoming@hud.gov",{"$f":"HYPERLINK(\"mailto:\",Table_Front_desk_report.accdb[[#This Row],[inbox]])","v":"mn.incoming@hud.gov"}]
[800220437,"The Boulevard                                     ","Minneapolis                 ","MN","55419","JOEL R KLEMM                                       ","JOEL.R.KLEMM@hud.gov","612-370-3053","mn.incoming@hud.gov",{"$f":"HYPERLINK(\"mailto:\",Table_Front_desk_report.accdb[[#This Row],[inbox]])","v":"mn.incoming@hud.gov"}]
[800212492,"The Brittany's                                    ","ROCHESTER                   ","MN","55902","SUSAN K ROSKOS                                     ","Susan.K.Roskos@hud.gov","612-370-3110","mn.incoming@hud.gov",{"$f":"HYPERLINK(\"mailto:\",Table_Front_desk_report.accdb[[#This Row],[inbox]])","v":"mn.incoming@hud.gov"}]
[800241473,"The Cambric                                       ","Saint Paul                  ","MN","55106","CAROL DIXON                                        ","Carol.A.Dixon@hud.gov","612-370-3015","mn.incoming@hud.gov",{"$f":"HYPERLINK(\"mailto:\",Table_Front_desk_report.accdb[[#This Row],[inbox]])","v":"mn.incoming@hud.gov"}]
[800023365,"THE CHALET                                        ","SPRING VALLEY               ","WI","54767","CATHERINE A TEMPLE                                 ","Catherine.A.Temple@hud.gov","414-935-6695","mn.incoming@hud.gov",{"$f":"HYPERLINK(\"mailto:\",Table_Front_desk_report.accdb[[#This Row],[inbox]])","v":"mn.incoming@hud.gov"}]
[800240892,"THE CLUB AT BROOKFIELD HILLS LOFTS                ","Brookfield                  ","WI","53005","MARY E WATKINS                                     ","mary.e.watkins@hud.gov","312-913-8552","chi.incoming@hud.gov",{"$f":"HYPERLINK(\"mailto:\",Table_Front_desk_report.accdb[[#This Row],[inbox]])","v":"chi.incoming@hud.gov"}]
[800216110,"THE CLUB TERRACES AT BROOKFIELD HILLS             ","BROOKFIELD                  ","WI","53005","MARY E WATKINS                                     ","mary.e.watkins@hud.gov","312-913-8552","chi.incoming@hud.gov",{"$f":"HYPERLINK(\"mailto:\",Table_Front_desk_report.accdb[[#This Row],[inbox]])","v":"chi.incoming@hud.gov"}]
[800237326,"THE COTTAGES                                      ","McFarland                   ","WI","53558","JULIE A LASOTA                                     ","Julie.A.Lasota@hud.gov","612-370-3066","mn.incoming@hud.gov",{"$f":"HYPERLINK(\"mailto:\",Table_Front_desk_report.accdb[[#This Row],[inbox]])","v":"mn.incoming@hud.gov"}]
[800023415,"THE COURTYARD                                     ","WAUWATOSA                   ","WI","53222","VERONICA S SIMS                                    ","veronica.s.sims@hud.gov","312-913-8066","chi.incoming@hud.gov",{"$f":"HYPERLINK(\"mailto:\",Table_Front_desk_report.accdb[[#This Row],[inbox]])","v":"chi.incoming@hud.gov"}]
[800079614,"THE COURTYARD APARTMENTS                          ","SHEBOYGAN                   ","WI","53083","PAUL A DUHR                                        ","paul.a.duhr@hud.gov","414-935-6681","mn.incoming@hud.gov",{"$f":"HYPERLINK(\"mailto:\",Table_Front_desk_report.accdb[[#This Row],[inbox]])","v":"mn.incoming@hud.gov"}]
[800023088,"THE COURTYARD AT WILLOW WOODS                     ","TOMAH                       ","WI","54660","JOEL R KLEMM                                       ","JOEL.R.KLEMM@hud.gov","612-370-3053","mn.incoming@hud.gov",{"$f":"HYPERLINK(\"mailto:\",Table_Front_desk_report.accdb[[#This Row],[inbox]])","v":"mn.incoming@hud.gov"}]
[800011260,"The Crest Apartments                              ","BROOKLYN CENTER             ","MN","55430","TERRI A MUNSON                                     ","Terri.A.Munson@hud.gov","612-370-3086","mn.incoming@hud.gov",{"$f":"HYPERLINK(\"mailto:\",Table_Front_desk_report.accdb[[#This Row],[inbox]])","v":"mn.incoming@hud.gov"}]
[800235016,"The Crest at Lakeshore                            ","Duluth                      ","MN","55804","NATASHA D GUENOVA                                  ","NATASHA.D.GUENOVA@hud.gov","612-370-3035","mn.incoming@hud.gov",{"$f":"HYPERLINK(\"mailto:\",Table_Front_desk_report.accdb[[#This Row],[inbox]])","v":"mn.incoming@hud.gov"}]
[800011269,"The Crossroads aka South Park Manor               ","DODGE CENTER                ","MN","55927","NATASHA D GUENOVA                                  ","NATASHA.D.GUENOVA@hud.gov","612-370-3035","mn.incoming@hud.gov",{"$f":"HYPERLINK(\"mailto:\",Table_Front_desk_report.accdb[[#This Row],[inbox]])","v":"mn.incoming@hud.gov"}]
[800011307,"THE CUNNINGHAM                                    ","ROBBINSDALE                 ","MN","55422","SUSAN K ROSKOS                                     ","Susan.K.Roskos@hud.gov","612-370-3110","mn.incoming@hud.gov",{"$f":"HYPERLINK(\"mailto:\",Table_Front_desk_report.accdb[[#This Row],[inbox]])","v":"mn.incoming@hud.gov"}]
[800011308,"THE DURHAM APARTMENTS                             ","MANKATO                     ","MN","56001","THOMAS G DURSCHER                                  ","Thomas.G.Durscher@hud.gov","612-370-3018","mn.incoming@hud.gov",{"$f":"HYPERLINK(\"mailto:\",Table_Front_desk_report.accdb[[#This Row],[inbox]])","v":"mn.incoming@hud.gov"}]
[800023417,"THE EDGEWATER                                     ","BERLIN                      ","WI","54923","PAUL A DUHR                                        ","paul.a.duhr@hud.gov","414-935-6681","mn.incoming@hud.gov",{"$f":"HYPERLINK(\"mailto:\",Table_Front_desk_report.accdb[[#This Row],[inbox]])","v":"mn.incoming@hud.gov"}]
[800232523,"THE ENCLAVE WAUWATOSA APARTMENTS                  ","Wauwatosa                   ","WI","53213","DONNA M SHEEHAN                                    ","Donna.Sheehan@hud.gov"," 312-957-4781 ","chi.incoming@hud.gov",{"$f":"HYPERLINK(\"mailto:\",Table_Front_desk_report.accdb[[#This Row],[inbox]])","v":"chi.incoming@hud.gov"}]
[800041556,"THE FOUNTAINS OF WAUWATOSA                        ","Wauwatosa                   ","WI","53225","DORTHY L HOPKINS                                   ","dorthy.l.hopkins@hud.gov","312-913-8172","chi.incoming@hud.gov",{"$f":"HYPERLINK(\"mailto:\",Table_Front_desk_report.accdb[[#This Row],[inbox]])","v":"chi.incoming@hud.gov"}]
[800023418,"THE FOUNTAINS OF WEST ALLIS                       ","WEST ALLIS                  ","WI","53214","NINA M SMITH                                       ","nina.m.smith@hud.gov","312-913-8212","chi.incoming@hud.gov",{"$f":"HYPERLINK(\"mailto:\",Table_Front_desk_report.accdb[[#This Row],[inbox]])","v":"chi.incoming@hud.gov"}]
[800079208,"THE GARDENS                                       ","MILWAUKEE                   ","WI","53216","ELLIE L CHICOSKI                                   ","ellie.l.chicoski@hud.gov","312-913-8385","chi.incoming@hud.gov",{"$f":"HYPERLINK(\"mailto:\",Table_Front_desk_report.accdb[[#This Row],[inbox]])","v":"chi.incoming@hud.gov"}]
[800227711,"The Highlands                                     ","Saint Cloud                 ","MN","56304","MICHAEL P MORAN                                    ","MICHAEL.P.MORAN@HUD.GOV","612-370-3081","mn.incoming@hud.gov",{"$f":"HYPERLINK(\"mailto:\",Table_Front_desk_report.accdb[[#This Row],[inbox]])","v":"mn.incoming@hud.gov"}]
[800044211,"THE HILLS OF EDEN PRAIRIE                         ","EDEN PRAIRIE                ","MN","55344","LAWRANCE C MUNDT                                   ","LAWRENCE.C.MUNDT@hud.gov","612-370-3082","mn.incoming@hud.gov",{"$f":"HYPERLINK(\"mailto:\",Table_Front_desk_report.accdb[[#This Row],[inbox]])","v":"mn.incoming@hud.gov"}]
[800023420,"THE HOME COMPANY                                  ","RACINE                      ","WI","53403","DORTHY L HOPKINS                                   ","dorthy.l.hopkins@hud.gov","312-913-8172","chi.incoming@hud.gov",{"$f":"HYPERLINK(\"mailto:\",Table_Front_desk_report.accdb[[#This Row],[inbox]])","v":"chi.incoming@hud.gov"}]
[800023421,"THE HOMESTEAD                                     ","MC FARLAND                  ","WI","53558","ARNITA X SCOTT                                     ","arnita.scott@hud.gov","312-913-8574","chi.incoming@hud.gov",{"$f":"HYPERLINK(\"mailto:\",Table_Front_desk_report.accdb[[#This Row],[inbox]])","v":"chi.incoming@hud.gov"}]
[800011309,"THE HYLANDS                                       ","Rochester                   ","MN","55901","GREGORY T MERZ                                     ","GREGORY.T.MERZ@hud.gov","612-370-3077","mn.incoming@hud.gov",{"$f":"HYPERLINK(\"mailto:\",Table_Front_desk_report.accdb[[#This Row],[inbox]])","v":"mn.incoming@hud.gov"}]
[800222276,"The Jourdain                                      ","Minneapolis                 ","MN","55404","MICHAEL P MORAN                                    ","MICHAEL.P.MORAN@HUD.GOV","612-370-3081","mn.incoming@hud.gov",{"$f":"HYPERLINK(\"mailto:\",Table_Front_desk_report.accdb[[#This Row],[inbox]])","v":"mn.incoming@hud.gov"}]
[800237513,"The Kendrick                                      ","Saint Paul                  ","MN","55108","BEN OSBORN                                         ","Benjamin.M.Osborn@hud.gov","612-370-3091","mn.incoming@hud.gov",{"$f":"HYPERLINK(\"mailto:\",Table_Front_desk_report.accdb[[#This Row],[inbox]])","v":"mn.incoming@hud.gov"}]
[800235357,"The Landings                                      ","Chaska                      ","MN","55318","MARCIA A KOLB                                      ","MARCIA.A.KOLB@hud.gov","612-370-3055","mn.incoming@hud.gov",{"$f":"HYPERLINK(\"mailto:\",Table_Front_desk_report.accdb[[#This Row],[inbox]])","v":"mn.incoming@hud.gov"}]
[800234630,"The Landings at Silver Lake Village               ","Saint Anthony               ","MN","55421","SUSAN K ROSKOS                                     ","Susan.K.Roskos@hud.gov","612-370-3110","mn.incoming@hud.gov",{"$f":"HYPERLINK(\"mailto:\",Table_Front_desk_report.accdb[[#This Row],[inbox]])","v":"mn.incoming@hud.gov"}]
[800218454,"The Lodge at Little Canada                        ","LITTLE CANADA               ","MN","55113","SUSAN K ROSKOS                                     ","Susan.K.Roskos@hud.gov","612-370-3110","mn.incoming@hud.gov",{"$f":"HYPERLINK(\"mailto:\",Table_Front_desk_report.accdb[[#This Row],[inbox]])","v":"mn.incoming@hud.gov"}]
[800023422,"THE LUTHERAN HOME                                 ","BARABOO                     ","WI","53913","TERRI A MUNSON                                     ","Terri.A.Munson@hud.gov","612-370-3086","mn.incoming@hud.gov",{"$f":"HYPERLINK(\"mailto:\",Table_Front_desk_report.accdb[[#This Row],[inbox]])","v":"mn.incoming@hud.gov"}]
[800011092,"THE MEADOWLANDS                                   ","SHOREVIEW                   ","MN","55126","SHERRY K NORTON                                    ","Sherry.K.Norton@hud.gov","612-370-3087","mn.incoming@hud.gov",{"$f":"HYPERLINK(\"mailto:\",Table_Front_desk_report.accdb[[#This Row],[inbox]])","v":"mn.incoming@hud.gov"}]
[800221538,"The Meadows of Oxboro                             ","BLOOMINGTON                 ","MN","55420","JOEL R KLEMM                                       ","JOEL.R.KLEMM@hud.gov","612-370-3053","mn.incoming@hud.gov",{"$f":"HYPERLINK(\"mailto:\",Table_Front_desk_report.accdb[[#This Row],[inbox]])","v":"mn.incoming@hud.gov"}]
[800227675,"THE MODERNE                                       ","Milwaukee                   ","WI","53203","MICHAEL D FURNNER                                  ","MICHAEL.D.FURNNER@hud.gov","414-935-6682","mn.incoming@hud.gov",{"$f":"HYPERLINK(\"mailto:\",Table_Front_desk_report.accdb[[#This Row],[inbox]])","v":"mn.incoming@hud.gov"}]
[800234201,"The Penfield                                      ","Saint Paul                  ","MN","55101","SUSAN K ROSKOS                                     ","Susan.K.Roskos@hud.gov","612-370-3110","mn.incoming@hud.gov",{"$f":"HYPERLINK(\"mailto:\",Table_Front_desk_report.accdb[[#This Row],[inbox]])","v":"mn.incoming@hud.gov"}]
[800238112,"THE PINES APARTMENTS                              ","Fitchburg                   ","WI","53713","JAYSEN ALEXANDER                                   ","Jaysen.P.Alexander@hud.gov","312-913-8711","chi.incoming@hud.gov",{"$f":"HYPERLINK(\"mailto:\",Table_Front_desk_report.accdb[[#This Row],[inbox]])","v":"chi.incoming@hud.gov"}]
[800011312,"THE RENAISSANCE aka Raspberry Ridge               ","HOPKINS                     ","MN","55343","CINDY BEHNKE                                       ","cynthia.behnke@hud.gov","612-370-3278","mn.incoming@hud.gov",{"$f":"HYPERLINK(\"mailto:\",Table_Front_desk_report.accdb[[#This Row],[inbox]])","v":"mn.incoming@hud.gov"}]
[800240755,"THE SANCTUARY                                     ","New Berlin                  ","WI","53151","ALETHA BREWER                                      ","aletha.brewer@hud.gov ","312-913-8110","chi.incoming@hud.gov",{"$f":"HYPERLINK(\"mailto:\",Table_Front_desk_report.accdb[[#This Row],[inbox]])","v":"chi.incoming@hud.gov"}]
[800216160,"THE SHORES                                        ","SHOREVIEW                   ","MN","55126","SUSAN K ROSKOS                                     ","Susan.K.Roskos@hud.gov","612-370-3110","mn.incoming@hud.gov",{"$f":"HYPERLINK(\"mailto:\",Table_Front_desk_report.accdb[[#This Row],[inbox]])","v":"mn.incoming@hud.gov"}]
[800011230,"The Square on 31st  (pka)  Rochester Square       ","ROCHESTER                   ","MN","55901","SUSAN K ROSKOS                                     ","Susan.K.Roskos@hud.gov","612-370-3110","mn.incoming@hud.gov",{"$f":"HYPERLINK(\"mailto:\",Table_Front_desk_report.accdb[[#This Row],[inbox]])","v":"mn.incoming@hud.gov"}]
[800218596,"The Straus Building                               ","SAINT PAUL                  ","MN","55101","TERESA C PARKER                                    ","TERESA.C.PARKER@hud.gov","612-370-3092","mn.incoming@hud.gov",{"$f":"HYPERLINK(\"mailto:\",Table_Front_desk_report.accdb[[#This Row],[inbox]])","v":"mn.incoming@hud.gov"}]
[800072214,"The Towers                                        ","HOPKINS                     ","MN","55343","CAROL DIXON                                        ","Carol.A.Dixon@hud.gov","612-370-3015","mn.incoming@hud.gov",{"$f":"HYPERLINK(\"mailto:\",Table_Front_desk_report.accdb[[#This Row],[inbox]])","v":"mn.incoming@hud.gov"}]
[800023500,"THE VILLAGE AT LAKESIDE PHASE I                   ","MILWAUKEE                   ","WI","53223","DORTHY L HOPKINS                                   ","dorthy.l.hopkins@hud.gov","312-913-8172","chi.incoming@hud.gov",{"$f":"HYPERLINK(\"mailto:\",Table_Front_desk_report.accdb[[#This Row],[inbox]])","v":"chi.incoming@hud.gov"}]
[800023501,"THE VILLAGE AT LAKESIDE PHASE II                  ","MILWAUKEE                   ","WI","53223","DORTHY L HOPKINS                                   ","dorthy.l.hopkins@hud.gov","312-913-8172","chi.incoming@hud.gov",{"$f":"HYPERLINK(\"mailto:\",Table_Front_desk_report.accdb[[#This Row],[inbox]])","v":"chi.incoming@hud.gov"}]
[800023456,"THE VILLAGES                                      ","REEDSBURG                   ","WI","53959","LAWRANCE C MUNDT                                   ","LAWRENCE.C.MUNDT@hud.gov","612-370-3082","mn.incoming@hud.gov",{"$f":"HYPERLINK(\"mailto:\",Table_Front_desk_report.accdb[[#This Row],[inbox]])","v":"mn.incoming@hud.gov"}]
[800236820,"THE VILLAS AT PAPERJACK CREEK                     ","New Richmond                ","WI","54017","PAUL A DUHR                                        ","paul.a.duhr@hud.gov","414-935-6681","mn.incoming@hud.gov",{"$f":"HYPERLINK(\"mailto:\",Table_Front_desk_report.accdb[[#This Row],[inbox]])","v":"mn.incoming@hud.gov"}]
[800236031,"The Walkway Apartments                            ","MInneapolis                 ","MN","55408","TERRI A MUNSON                                     ","Terri.A.Munson@hud.gov","612-370-3086","mn.incoming@hud.gov",{"$f":"HYPERLINK(\"mailto:\",Table_Front_desk_report.accdb[[#This Row],[inbox]])","v":"mn.incoming@hud.gov"}]
[800225158,"The Wellstone                                     ","Minneapolis                 ","MN","55404","CINDY BEHNKE                                       ","cynthia.behnke@hud.gov","612-370-3278","mn.incoming@hud.gov",{"$f":"HYPERLINK(\"mailto:\",Table_Front_desk_report.accdb[[#This Row],[inbox]])","v":"mn.incoming@hud.gov"}]
[800023424,"THE WILLOWS                                       ","MILWAUKEE                   ","WI","53202","GRACIA M SHIFFRIN                                  ","gracia.m.shiffrin@hud.gov","312-913-8141","chi.incoming@hud.gov",{"$f":"HYPERLINK(\"mailto:\",Table_Front_desk_report.accdb[[#This Row],[inbox]])","v":"chi.incoming@hud.gov"}]
[800023425,"THE WOODS OF CEDAR VILLAGE                        ","FRANKLIN                    ","WI","53221","RAYMOND GUNTER                                     ","raymond.p.gunter@hud.gov","312-913-8309","chi.incoming@hud.gov",{"$f":"HYPERLINK(\"mailto:\",Table_Front_desk_report.accdb[[#This Row],[inbox]])","v":"chi.incoming@hud.gov"}]
[800211406,"THELMA WOODLAND VILLA                             ","RHINELANDER                 ","WI","54501","SUSAN K ROSKOS                                     ","Susan.K.Roskos@hud.gov","612-370-3110","mn.incoming@hud.gov",{"$f":"HYPERLINK(\"mailto:\",Table_Front_desk_report.accdb[[#This Row],[inbox]])","v":"mn.incoming@hud.gov"}]
[800231513,"Third North Apartments                            ","Minneapolis                 ","MN","55401","LAWRANCE C MUNDT                                   ","LAWRENCE.C.MUNDT@hud.gov","612-370-3082","mn.incoming@hud.gov",{"$f":"HYPERLINK(\"mailto:\",Table_Front_desk_report.accdb[[#This Row],[inbox]])","v":"mn.incoming@hud.gov"}]
[800023426,"THIRD STREET APARTMENTS                           ","BLACK RIVER FALLS           ","WI","54615","BEN OSBORN                                         ","Benjamin.M.Osborn@hud.gov","612-370-3091","mn.incoming@hud.gov",{"$f":"HYPERLINK(\"mailto:\",Table_Front_desk_report.accdb[[#This Row],[inbox]])","v":"mn.incoming@hud.gov"}]
[800023427,"THOMAS APARTMENTS                                 ","LOYAL                       ","WI","54446","ANDREA L CARSON                                    ","andrea.carson@hud.gov","414-935-6679","mn.incoming@hud.gov",{"$f":"HYPERLINK(\"mailto:\",Table_Front_desk_report.accdb[[#This Row],[inbox]])","v":"mn.incoming@hud.gov"}]
[800011314,"THORNDALE PLAZA                                   ","NEW BRIGHTON                ","MN","55112","CINDY BEHNKE                                       ","cynthia.behnke@hud.gov","612-370-3278","mn.incoming@hud.gov",{"$f":"HYPERLINK(\"mailto:\",Table_Front_desk_report.accdb[[#This Row],[inbox]])","v":"mn.incoming@hud.gov"}]
[800011315,"Three Links Apartments                            ","NORTHFIELD                  ","MN","55057","JULIE A LASOTA                                     ","Julie.A.Lasota@hud.gov","612-370-3066","mn.incoming@hud.gov",{"$f":"HYPERLINK(\"mailto:\",Table_Front_desk_report.accdb[[#This Row],[inbox]])","v":"mn.incoming@hud.gov"}]
[800212115,"THREE OAKS CIRCLE                                 ","MILWAUKEE                   ","WI","53220","LADRENNA A FIGUEROA                                ","ladrenna.a.figueroa@hud.gov","312-913-8290","chi.incoming@hud.gov",{"$f":"HYPERLINK(\"mailto:\",Table_Front_desk_report.accdb[[#This Row],[inbox]])","v":"chi.incoming@hud.gov"}]
[800238472,"TIMBER CREEK I & II APARTMENTS                    ","Mosinee                     ","WI","54455","PAUL A DUHR                                        ","paul.a.duhr@hud.gov","414-935-6681","mn.incoming@hud.gov",{"$f":"HYPERLINK(\"mailto:\",Table_Front_desk_report.accdb[[#This Row],[inbox]])","v":"mn.incoming@hud.gov"}]
[800241650,"Timber Ridge Apartments                           ","Oak Creek                   ","WI","53154","JULIE M WHITEFEATHER                               ","julie.m.whitefeather@hud.gov","312-913-8117","chi.incoming@hud.gov",{"$f":"HYPERLINK(\"mailto:\",Table_Front_desk_report.accdb[[#This Row],[inbox]])","v":"chi.incoming@hud.gov"}]
[800023428,"TIMBER RIDGE APARTMENTS                           ","HARTFORD                    ","WI","53027","ANDREA L CARSON                                    ","andrea.carson@hud.gov","414-935-6679","mn.incoming@hud.gov",{"$f":"HYPERLINK(\"mailto:\",Table_Front_desk_report.accdb[[#This Row],[inbox]])","v":"mn.incoming@hud.gov"}]
[800011317,"TODD 27                                           ","LONG PRAIRIE                ","MN","56347","CAROL DIXON                                        ","Carol.A.Dixon@hud.gov","612-370-3015","mn.incoming@hud.gov",{"$f":"HYPERLINK(\"mailto:\",Table_Front_desk_report.accdb[[#This Row],[inbox]])","v":"mn.incoming@hud.gov"}]
[800219723,"TOM WOODMAN VILLA                                 ","Richland Center             ","WI","53581","CINDY BEHNKE                                       ","cynthia.behnke@hud.gov","612-370-3278","mn.incoming@hud.gov",{"$f":"HYPERLINK(\"mailto:\",Table_Front_desk_report.accdb[[#This Row],[inbox]])","v":"mn.incoming@hud.gov"}]
[800011318,"TORRE DE SAN MIGUEL HOMES                         ","SAINT PAUL                  ","MN","55107","TERESA C PARKER                                    ","TERESA.C.PARKER@hud.gov","612-370-3092","mn.incoming@hud.gov",{"$f":"HYPERLINK(\"mailto:\",Table_Front_desk_report.accdb[[#This Row],[inbox]])","v":"mn.incoming@hud.gov"}]
[800023431,"TOSA GLEN                                         ","WAUWATOSA                   ","WI","53213","DORTHY L HOPKINS                                   ","dorthy.l.hopkins@hud.gov","312-913-8172","chi.incoming@hud.gov",{"$f":"HYPERLINK(\"mailto:\",Table_Front_desk_report.accdb[[#This Row],[inbox]])","v":"chi.incoming@hud.gov"}]
[800011319,"TOWN SQUARE                                       ","EAST GRAND FORKS            ","MN","56721","GREGORY T MERZ                                     ","GREGORY.T.MERZ@hud.gov","612-370-3077","mn.incoming@hud.gov",{"$f":"HYPERLINK(\"mailto:\",Table_Front_desk_report.accdb[[#This Row],[inbox]])","v":"mn.incoming@hud.gov"}]
[800011321,"TOWN'S EDGE APARTMENTS                            ","FARIBAULT                   ","MN","55021","DARIAN JANE ZIEGLER                                ","Darian.Ziegler@hud.gov","612-370-3270","mn.incoming@hud.gov",{"$f":"HYPERLINK(\"mailto:\",Table_Front_desk_report.accdb[[#This Row],[inbox]])","v":"mn.incoming@hud.gov"}]
[800225359,"Trails Edge Townhomes                             ","Maplewood                   ","MN","55109","DARIAN JANE ZIEGLER                                ","Darian.Ziegler@hud.gov","612-370-3270","mn.incoming@hud.gov",{"$f":"HYPERLINK(\"mailto:\",Table_Front_desk_report.accdb[[#This Row],[inbox]])","v":"mn.incoming@hud.gov"}]
[800010828,"TRAILSIDE APARTMENTS aka Channel View             ","ALBERT LEA                  ","MN","56007","MITCHELL S HILLMAN                                 ","MITCHELL.S.HILLMAN@hud.gov","612-370-3036","mn.incoming@hud.gov",{"$f":"HYPERLINK(\"mailto:\",Table_Front_desk_report.accdb[[#This Row],[inbox]])","v":"mn.incoming@hud.gov"}]
[800023432,"TRI CITY HOUSING                                  ","MENOMONIE                   ","WI","54751","SUSAN K ROSKOS                                     ","Susan.K.Roskos@hud.gov","612-370-3110","mn.incoming@hud.gov",{"$f":"HYPERLINK(\"mailto:\",Table_Front_desk_report.accdb[[#This Row],[inbox]])","v":"mn.incoming@hud.gov"}]
[800225961,"TRIBUTE COMMONS                                   ","Hudson                      ","WI","54016","LAWRANCE C MUNDT                                   ","LAWRENCE.C.MUNDT@hud.gov","612-370-3082","mn.incoming@hud.gov",{"$f":"HYPERLINK(\"mailto:\",Table_Front_desk_report.accdb[[#This Row],[inbox]])","v":"mn.incoming@hud.gov"}]
[800011322,"TRINITY APTS                                      ","MINNEAPOLIS                 ","MN","55406","LAWRANCE C MUNDT                                   ","LAWRENCE.C.MUNDT@hud.gov","612-370-3082","mn.incoming@hud.gov",{"$f":"HYPERLINK(\"mailto:\",Table_Front_desk_report.accdb[[#This Row],[inbox]])","v":"mn.incoming@hud.gov"}]
[800023433,"TRINITY MANOR APARTMENTS                          ","MILWAUKEE                   ","WI","53223","DONNA M SHEEHAN                                    ","Donna.Sheehan@hud.gov"," 312-957-4781 ","chi.incoming@hud.gov",{"$f":"HYPERLINK(\"mailto:\",Table_Front_desk_report.accdb[[#This Row],[inbox]])","v":"chi.incoming@hud.gov"}]
[800220361,"Trinity on Lake Apartments                        ","Minneapolis                 ","MN","55406","DARIAN JANE ZIEGLER                                ","Darian.Ziegler@hud.gov","612-370-3270","mn.incoming@hud.gov",{"$f":"HYPERLINK(\"mailto:\",Table_Front_desk_report.accdb[[#This Row],[inbox]])","v":"mn.incoming@hud.gov"}]
[800023434,"TRINITY TERRACE                                   ","RACINE                      ","WI","53403","TERESA C PARKER                                    ","TERESA.C.PARKER@hud.gov","612-370-3092","mn.incoming@hud.gov",{"$f":"HYPERLINK(\"mailto:\",Table_Front_desk_report.accdb[[#This Row],[inbox]])","v":"mn.incoming@hud.gov"}]
[800023436,"TUSCAN VILLAS                                     ","KENOSHA                     ","WI","53143","DORTHY L HOPKINS                                   ","dorthy.l.hopkins@hud.gov","312-913-8172","chi.incoming@hud.gov",{"$f":"HYPERLINK(\"mailto:\",Table_Front_desk_report.accdb[[#This Row],[inbox]])","v":"chi.incoming@hud.gov"}]
[800224452,"TWV/Scattered Sites                               ","Saint Paul                  ","MN","55107","TERESA C PARKER                                    ","TERESA.C.PARKER@hud.gov","612-370-3092","mn.incoming@hud.gov",{"$f":"HYPERLINK(\"mailto:\",Table_Front_desk_report.accdb[[#This Row],[inbox]])","v":"mn.incoming@hud.gov"}]
[null,"U"]
[800112186,"UCC VILLAGE                                       ","MILWAUKEE                   ","WI","53204","YOLANDA S MILLER                                   ","yolanda.s.miller@hud.gov","312-913-8580","chi.incoming@hud.gov",{"$f":"HYPERLINK(\"mailto:\",Table_Front_desk_report.accdb[[#This Row],[inbox]])","v":"chi.incoming@hud.gov"}]
[800023437,"UNION STREET APARTMENTS                           ","BLOOMINGTON                 ","WI","53804","SYLVIA HYDE                                        ","sylvia.hyde@hud.gov","312-913-8573","chi.incoming@hud.gov",{"$f":"HYPERLINK(\"mailto:\",Table_Front_desk_report.accdb[[#This Row],[inbox]])","v":"chi.incoming@hud.gov"}]
[800011311,"UNITY PLACE aka The Ponds                         ","BROOKLYN CENTER             ","MN","55429","GREGORY T MERZ                                     ","GREGORY.T.MERZ@hud.gov","612-370-3077","mn.incoming@hud.gov",{"$f":"HYPERLINK(\"mailto:\",Table_Front_desk_report.accdb[[#This Row],[inbox]])","v":"mn.incoming@hud.gov"}]
[800221051,"University and Dale Apartments                    ","Saint Paul                  ","MN","55104","JULIE A LASOTA                                     ","Julie.A.Lasota@hud.gov","612-370-3066","mn.incoming@hud.gov",{"$f":"HYPERLINK(\"mailto:\",Table_Front_desk_report.accdb[[#This Row],[inbox]])","v":"mn.incoming@hud.gov"}]
[800023440,"UNIVERSITY GARDENS                                ","WHITEWATER                  ","WI","53190","RAYMOND GUNTER                                     ","raymond.p.gunter@hud.gov","312-913-8309","chi.incoming@hud.gov",{"$f":"HYPERLINK(\"mailto:\",Table_Front_desk_report.accdb[[#This Row],[inbox]])","v":"chi.incoming@hud.gov"}]
[800023441,"UNIVERSITY HEIGHTS                                ","SHEBOYGAN FALLS             ","WI","53085","CATHERINE A TEMPLE                                 ","Catherine.A.Temple@hud.gov","414-935-6695","mn.incoming@hud.gov",{"$f":"HYPERLINK(\"mailto:\",Table_Front_desk_report.accdb[[#This Row],[inbox]])","v":"mn.incoming@hud.gov"}]
[800023442,"UNIVERSITY VILLAGE                                ","MENOMONIE                   ","WI","54751","PAUL A DUHR                                        ","paul.a.duhr@hud.gov","414-935-6681","mn.incoming@hud.gov",{"$f":"HYPERLINK(\"mailto:\",Table_Front_desk_report.accdb[[#This Row],[inbox]])","v":"mn.incoming@hud.gov"}]
[800023443,"UNIVERSITY VILLAGE EAU CLAIRE                     ","EAU CLAIRE                  ","WI","54701","PAUL A DUHR                                        ","paul.a.duhr@hud.gov","414-935-6681","mn.incoming@hud.gov",{"$f":"HYPERLINK(\"mailto:\",Table_Front_desk_report.accdb[[#This Row],[inbox]])","v":"mn.incoming@hud.gov"}]
[800023445,"UPHAM VILLAGE & TOWNHOUSES                        ","MARSHFIELD                  ","WI","54449","LAWRANCE C MUNDT                                   ","LAWRENCE.C.MUNDT@hud.gov","612-370-3082","mn.incoming@hud.gov",{"$f":"HYPERLINK(\"mailto:\",Table_Front_desk_report.accdb[[#This Row],[inbox]])","v":"mn.incoming@hud.gov"}]
[800227475,"Uptown at City Walk                               ","Woodbury                    ","MN","55129","MARCIA A KOLB                                      ","MARCIA.A.KOLB@hud.gov","612-370-3055","mn.incoming@hud.gov",{"$f":"HYPERLINK(\"mailto:\",Table_Front_desk_report.accdb[[#This Row],[inbox]])","v":"mn.incoming@hud.gov"}]
[800023382,"URBAN WORKS TOO!                                  ","MILWAUKEE                   ","WI","53212","LATOYA A WASHINGTON                                ","latoya.a.washington@hud.gov","312-913-8271","chi.incoming@hud.gov",{"$f":"HYPERLINK(\"mailto:\",Table_Front_desk_report.accdb[[#This Row],[inbox]])","v":"chi.incoming@hud.gov"}]
[null,"V"]
[800011326,"VADNAIS HIGHLANDS                                 ","MAPLEWOOD                   ","MN","55109","DARIAN JANE ZIEGLER                                ","Darian.Ziegler@hud.gov","612-370-3270","mn.incoming@hud.gov",{"$f":"HYPERLINK(\"mailto:\",Table_Front_desk_report.accdb[[#This Row],[inbox]])","v":"mn.incoming@hud.gov"}]
[800112187,"VALENTINO SQUARE APARTMENTS                       ","WEST ALLIS                  ","WI","53214","LADRENNA A FIGUEROA                                ","ladrenna.a.figueroa@hud.gov","312-913-8290","chi.incoming@hud.gov",{"$f":"HYPERLINK(\"mailto:\",Table_Front_desk_report.accdb[[#This Row],[inbox]])","v":"chi.incoming@hud.gov"}]
[800023446,"VALLEY APARTMENTS                                 ","STODDARD                    ","WI","54658","BEN OSBORN                                         ","Benjamin.M.Osborn@hud.gov","612-370-3091","mn.incoming@hud.gov",{"$f":"HYPERLINK(\"mailto:\",Table_Front_desk_report.accdb[[#This Row],[inbox]])","v":"mn.incoming@hud.gov"}]
[800023447,"VALLEY CREST APARTMENTS                           ","ABBOTSFORD                  ","WI","54405","PAUL A DUHR                                        ","paul.a.duhr@hud.gov","414-935-6681","mn.incoming@hud.gov",{"$f":"HYPERLINK(\"mailto:\",Table_Front_desk_report.accdb[[#This Row],[inbox]])","v":"mn.incoming@hud.gov"}]
[800011328,"VALLEY PINES                                      ","TWIN VALLEY                 ","MN","56584","TERRI A MUNSON                                     ","Terri.A.Munson@hud.gov","612-370-3086","mn.incoming@hud.gov",{"$f":"HYPERLINK(\"mailto:\",Table_Front_desk_report.accdb[[#This Row],[inbox]])","v":"mn.incoming@hud.gov"}]
[800079654,"VALLEY VIEW APARTMENTS                            ","CROSS PLAINS                ","WI","53528","JULIE M WHITEFEATHER                               ","julie.m.whitefeather@hud.gov","312-913-8117","chi.incoming@hud.gov",{"$f":"HYPERLINK(\"mailto:\",Table_Front_desk_report.accdb[[#This Row],[inbox]])","v":"chi.incoming@hud.gov"}]
[800023449,"VALLEY VIEW APARTMENTS                            ","MANITOWOC                   ","WI","54220","MICHAEL D FURNNER                                  ","MICHAEL.D.FURNNER@hud.gov","414-935-6682","mn.incoming@hud.gov",{"$f":"HYPERLINK(\"mailto:\",Table_Front_desk_report.accdb[[#This Row],[inbox]])","v":"mn.incoming@hud.gov"}]
[800011329,"VALLEY VIEW APTS -- (HUTCHINSON)                  ","HUTCHINSON                  ","MN","55350","DARIAN JANE ZIEGLER                                ","Darian.Ziegler@hud.gov","612-370-3270","mn.incoming@hud.gov",{"$f":"HYPERLINK(\"mailto:\",Table_Front_desk_report.accdb[[#This Row],[inbox]])","v":"mn.incoming@hud.gov"}]
[800011333,"VALLEY VIEW COMMONS                               ","MAHNOMEN                    ","MN","56557","LAWRANCE C MUNDT                                   ","LAWRENCE.C.MUNDT@hud.gov","612-370-3082","mn.incoming@hud.gov",{"$f":"HYPERLINK(\"mailto:\",Table_Front_desk_report.accdb[[#This Row],[inbox]])","v":"mn.incoming@hud.gov"}]
[800209710,"Valley View Cooperative of Eden Prairie           ","EDEN PRAIRIE                ","MN","55344","TEENA M GEE                                        ","Teena.M.Gee@hud.gov","612-843-6414","mn.incoming@hud.gov",{"$f":"HYPERLINK(\"mailto:\",Table_Front_desk_report.accdb[[#This Row],[inbox]])","v":"mn.incoming@hud.gov"}]
[800011331,"VALLEY VIEW MANOR                                 ","ADA                         ","MN","56510","THOMAS G DURSCHER                                  ","Thomas.G.Durscher@hud.gov","612-370-3018","mn.incoming@hud.gov",{"$f":"HYPERLINK(\"mailto:\",Table_Front_desk_report.accdb[[#This Row],[inbox]])","v":"mn.incoming@hud.gov"}]
[800079721,"VALLEY VIEW MANOR -- HOUSTON, MN                  ","HOUSTON                     ","MN","55943","NATASHA D GUENOVA                                  ","NATASHA.D.GUENOVA@hud.gov","612-370-3035","mn.incoming@hud.gov",{"$f":"HYPERLINK(\"mailto:\",Table_Front_desk_report.accdb[[#This Row],[inbox]])","v":"mn.incoming@hud.gov"}]
[800011332,"Valley Vista Apartments                           ","BROWNS VALLEY               ","MN","56219","SHERRY K NORTON                                    ","Sherry.K.Norton@hud.gov","612-370-3087","mn.incoming@hud.gov",{"$f":"HYPERLINK(\"mailto:\",Table_Front_desk_report.accdb[[#This Row],[inbox]])","v":"mn.incoming@hud.gov"}]
[800236536,"VAN BUREN PLACE                                   ","Sun Prairie                 ","WI","53590","NINA M SMITH                                       ","nina.m.smith@hud.gov","312-913-8212","chi.incoming@hud.gov",{"$f":"HYPERLINK(\"mailto:\",Table_Front_desk_report.accdb[[#This Row],[inbox]])","v":"chi.incoming@hud.gov"}]
[800224671,"Vantage Flats                                     ","MINNEAPOLIS                 ","MN","55401","JULIE A LASOTA                                     ","Julie.A.Lasota@hud.gov","612-370-3066","mn.incoming@hud.gov",{"$f":"HYPERLINK(\"mailto:\",Table_Front_desk_report.accdb[[#This Row],[inbox]])","v":"mn.incoming@hud.gov"}]
[800223815,"Vasa House Apts  aka  Horizon Health Mora         ","Mora                        ","MN","55051","TERRI A MUNSON                                     ","Terri.A.Munson@hud.gov","612-370-3086","mn.incoming@hud.gov",{"$f":"HYPERLINK(\"mailto:\",Table_Front_desk_report.accdb[[#This Row],[inbox]])","v":"mn.incoming@hud.gov"}]
[800112373,"VEDA STONE VILLA                                  ","Minocqua                    ","WI","54548","MICHAEL D FURNNER                                  ","MICHAEL.D.FURNNER@hud.gov","414-935-6682","mn.incoming@hud.gov",{"$f":"HYPERLINK(\"mailto:\",Table_Front_desk_report.accdb[[#This Row],[inbox]])","v":"mn.incoming@hud.gov"}]
[800011334,"VICTORIA TOWNHOUSES                               ","BROOKLYN CENTER             ","MN","55429","SHERRY K NORTON                                    ","Sherry.K.Norton@hud.gov","612-370-3087","mn.incoming@hud.gov",{"$f":"HYPERLINK(\"mailto:\",Table_Front_desk_report.accdb[[#This Row],[inbox]])","v":"mn.incoming@hud.gov"}]
[800011335,"VICTORIA VILLA, A MN LIMITED PART.                ","STILLWATER                  ","MN","55082","LAWRANCE C MUNDT                                   ","LAWRENCE.C.MUNDT@hud.gov","612-370-3082","mn.incoming@hud.gov",{"$f":"HYPERLINK(\"mailto:\",Table_Front_desk_report.accdb[[#This Row],[inbox]])","v":"mn.incoming@hud.gov"}]
[800011098,"Victory Apartments (AKA) MERIDIAN APARTMENTS      ","DULUTH                      ","MN","55811","TERRI A MUNSON                                     ","Terri.A.Munson@hud.gov","612-370-3086","mn.incoming@hud.gov",{"$f":"HYPERLINK(\"mailto:\",Table_Front_desk_report.accdb[[#This Row],[inbox]])","v":"mn.incoming@hud.gov"}]
[800011336,"VIKING TERRACE                                    ","WORTHINGTON                 ","MN","56187","JULIE A LASOTA                                     ","Julie.A.Lasota@hud.gov","612-370-3066","mn.incoming@hud.gov",{"$f":"HYPERLINK(\"mailto:\",Table_Front_desk_report.accdb[[#This Row],[inbox]])","v":"mn.incoming@hud.gov"}]
[800212305,"VILLA CIERA APARTMENTS                            ","KENOSHA                     ","WI","53140","DEBORAH E MONROE                                   ","deborah.e.monroe@hud.gov","312-913-8210","chi.incoming@hud.gov",{"$f":"HYPERLINK(\"mailto:\",Table_Front_desk_report.accdb[[#This Row],[inbox]])","v":"chi.incoming@hud.gov"}]
[800023451,"VILLA NOVA APARTMENTS                             ","KENOSHA                     ","WI","53140","DORTHY L HOPKINS                                   ","dorthy.l.hopkins@hud.gov","312-913-8172","chi.incoming@hud.gov",{"$f":"HYPERLINK(\"mailto:\",Table_Front_desk_report.accdb[[#This Row],[inbox]])","v":"chi.incoming@hud.gov"}]
[800023452,"VILLA WEST APARTMENTS                             ","Green Bay                   ","WI","54304","JULIE A LASOTA                                     ","Julie.A.Lasota@hud.gov","612-370-3066","mn.incoming@hud.gov",{"$f":"HYPERLINK(\"mailto:\",Table_Front_desk_report.accdb[[#This Row],[inbox]])","v":"mn.incoming@hud.gov"}]
[800011338,"VILLAGE APARTMENTS -- (Shakopee)                  ","SHAKOPEE                    ","MN","55379","JULIE A LASOTA                                     ","Julie.A.Lasota@hud.gov","612-370-3066","mn.incoming@hud.gov",{"$f":"HYPERLINK(\"mailto:\",Table_Front_desk_report.accdb[[#This Row],[inbox]])","v":"mn.incoming@hud.gov"}]
[800234734,"Village Commons Apartments                        ","Savage                      ","MN","55378","DARIAN JANE ZIEGLER                                ","Darian.Ziegler@hud.gov","612-370-3270","mn.incoming@hud.gov",{"$f":"HYPERLINK(\"mailto:\",Table_Front_desk_report.accdb[[#This Row],[inbox]])","v":"mn.incoming@hud.gov"}]
[800044197,"VILLAGE COOP OF HUTCHINSON                        ","HUTCHINSON                  ","MN","55350","DARIAN JANE ZIEGLER                                ","Darian.Ziegler@hud.gov","612-370-3270","mn.incoming@hud.gov",{"$f":"HYPERLINK(\"mailto:\",Table_Front_desk_report.accdb[[#This Row],[inbox]])","v":"mn.incoming@hud.gov"}]
[800044188,"VILLAGE COOP OF LESUEUR                           ","LE SUEUR                    ","MN","56058","BEN OSBORN                                         ","Benjamin.M.Osborn@hud.gov","612-370-3091","mn.incoming@hud.gov",{"$f":"HYPERLINK(\"mailto:\",Table_Front_desk_report.accdb[[#This Row],[inbox]])","v":"mn.incoming@hud.gov"}]
[800221994,"Village Cooperative of Albert Lea                 ","Albert Lea                  ","MN","56007","CAROL DIXON                                        ","Carol.A.Dixon@hud.gov","612-370-3015","mn.incoming@hud.gov",{"$f":"HYPERLINK(\"mailto:\",Table_Front_desk_report.accdb[[#This Row],[inbox]])","v":"mn.incoming@hud.gov"}]
[800227356,"Village Cooperative of Alexandria                 ","Alexandria                  ","MN","56308","MARCIA A KOLB                                      ","MARCIA.A.KOLB@hud.gov","612-370-3055","mn.incoming@hud.gov",{"$f":"HYPERLINK(\"mailto:\",Table_Front_desk_report.accdb[[#This Row],[inbox]])","v":"mn.incoming@hud.gov"}]
[800223511,"Village Cooperative of Austin                     ","Austin                      ","MN","55912","TEENA M GEE                                        ","Teena.M.Gee@hud.gov","612-843-6414","mn.incoming@hud.gov",{"$f":"HYPERLINK(\"mailto:\",Table_Front_desk_report.accdb[[#This Row],[inbox]])","v":"mn.incoming@hud.gov"}]
[800223214,"Village Cooperative of Fairmont                   ","Fairmont                    ","MN","56031","DARIAN JANE ZIEGLER                                ","Darian.Ziegler@hud.gov","612-370-3270","mn.incoming@hud.gov",{"$f":"HYPERLINK(\"mailto:\",Table_Front_desk_report.accdb[[#This Row],[inbox]])","v":"mn.incoming@hud.gov"}]
[800220614,"Village Cooperative of Fergus Falls               ","Fergus Falls                ","MN","56537","TEENA M GEE                                        ","Teena.M.Gee@hud.gov","612-843-6414","mn.incoming@hud.gov",{"$f":"HYPERLINK(\"mailto:\",Table_Front_desk_report.accdb[[#This Row],[inbox]])","v":"mn.incoming@hud.gov"}]
[800222289,"Village Cooperative of Red Wing                   ","Red Wing                    ","MN","55066","TEENA M GEE                                        ","Teena.M.Gee@hud.gov","612-843-6414","mn.incoming@hud.gov",{"$f":"HYPERLINK(\"mailto:\",Table_Front_desk_report.accdb[[#This Row],[inbox]])","v":"mn.incoming@hud.gov"}]
[800224525,"VILLAGE COOPERATIVE OF WAUSAU                     ","Wausau                      ","WI","54401","LAWRANCE C MUNDT                                   ","LAWRENCE.C.MUNDT@hud.gov","612-370-3082","mn.incoming@hud.gov",{"$f":"HYPERLINK(\"mailto:\",Table_Front_desk_report.accdb[[#This Row],[inbox]])","v":"mn.incoming@hud.gov"}]
[800023455,"VILLAGE GLEN APARTMENTS                           ","WISCONSIN DELLS             ","WI","53965","MICHAEL D FURNNER                                  ","MICHAEL.D.FURNNER@hud.gov","414-935-6682","mn.incoming@hud.gov",{"$f":"HYPERLINK(\"mailto:\",Table_Front_desk_report.accdb[[#This Row],[inbox]])","v":"mn.incoming@hud.gov"}]
[800239203,"VILLAGE GREEN APARTMENTS                          ","Oak Creek                   ","WI","53154","MARY E WATKINS                                     ","mary.e.watkins@hud.gov","312-913-8552","chi.incoming@hud.gov",{"$f":"HYPERLINK(\"mailto:\",Table_Front_desk_report.accdb[[#This Row],[inbox]])","v":"chi.incoming@hud.gov"}]
[800234068,"Village Green Apartments of Faribault             ","Faribault                   ","MN","55021","TERRI A MUNSON                                     ","Terri.A.Munson@hud.gov","612-370-3086","mn.incoming@hud.gov",{"$f":"HYPERLINK(\"mailto:\",Table_Front_desk_report.accdb[[#This Row],[inbox]])","v":"mn.incoming@hud.gov"}]
[800234473,"Village Green Apartments of Fridley               ","Fridley                     ","MN","55432","CINDY BEHNKE                                       ","cynthia.behnke@hud.gov","612-370-3278","mn.incoming@hud.gov",{"$f":"HYPERLINK(\"mailto:\",Table_Front_desk_report.accdb[[#This Row],[inbox]])","v":"mn.incoming@hud.gov"}]
[800023457,"VILLAGE GREEN EAST                                ","TWO RIVERS                  ","WI","54241","MICHAEL D FURNNER                                  ","MICHAEL.D.FURNNER@hud.gov","414-935-6682","mn.incoming@hud.gov",{"$f":"HYPERLINK(\"mailto:\",Table_Front_desk_report.accdb[[#This Row],[inbox]])","v":"mn.incoming@hud.gov"}]
[800011341,"VILLAGE GREEN MANOR                               ","MOORHEAD                    ","MN","56560","CATHERINE A TEMPLE                                 ","Catherine.A.Temple@hud.gov","414-935-6695","mn.incoming@hud.gov",{"$f":"HYPERLINK(\"mailto:\",Table_Front_desk_report.accdb[[#This Row],[inbox]])","v":"mn.incoming@hud.gov"}]
[800023458,"VILLAGE GREEN WEST                                ","TWO RIVERS                  ","WI","54241","PAUL A DUHR                                        ","paul.a.duhr@hud.gov","414-935-6681","mn.incoming@hud.gov",{"$f":"HYPERLINK(\"mailto:\",Table_Front_desk_report.accdb[[#This Row],[inbox]])","v":"mn.incoming@hud.gov"}]
[800023459,"VILLAGE HOUSE APARTMENTS                          ","PORTAGE                     ","WI","53901","MICHAEL D FURNNER                                  ","MICHAEL.D.FURNNER@hud.gov","414-935-6682","mn.incoming@hud.gov",{"$f":"HYPERLINK(\"mailto:\",Table_Front_desk_report.accdb[[#This Row],[inbox]])","v":"mn.incoming@hud.gov"}]
[800241671,"Village of Matterhorn                             ","Duluth                      ","MN","55811","NATASHA D GUENOVA                                  ","NATASHA.D.GUENOVA@hud.gov","612-370-3035","mn.incoming@hud.gov",{"$f":"HYPERLINK(\"mailto:\",Table_Front_desk_report.accdb[[#This Row],[inbox]])","v":"mn.incoming@hud.gov"}]
[800011342,"VILLAGE TOWNHOUSES                                ","CHASKA                      ","MN","55318","BEN OSBORN                                         ","Benjamin.M.Osborn@hud.gov","612-370-3091","mn.incoming@hud.gov",{"$f":"HYPERLINK(\"mailto:\",Table_Front_desk_report.accdb[[#This Row],[inbox]])","v":"mn.incoming@hud.gov"}]
[800238738,"VILLAGER APARTMENTS                               ","Shorewood                   ","WI","53211","BONNIE D SIMS                                      ","bonnie.d.sims@hud.gov ","312-913-8325","chi.incoming@hud.gov",{"$f":"HYPERLINK(\"mailto:\",Table_Front_desk_report.accdb[[#This Row],[inbox]])","v":"chi.incoming@hud.gov"}]
[800023454,"VILLA-LYN MANOR                                   ","LYNDON STATION              ","WI","53944","MICHAEL D FURNNER                                  ","MICHAEL.D.FURNNER@hud.gov","414-935-6682","mn.incoming@hud.gov",{"$f":"HYPERLINK(\"mailto:\",Table_Front_desk_report.accdb[[#This Row],[inbox]])","v":"mn.incoming@hud.gov"}]
[800221142,"Villas Plus at Rosaland                           ","Savage                      ","MN","55378","CINDY BEHNKE                                       ","cynthia.behnke@hud.gov","612-370-3278","mn.incoming@hud.gov",{"$f":"HYPERLINK(\"mailto:\",Table_Front_desk_report.accdb[[#This Row],[inbox]])","v":"mn.incoming@hud.gov"}]
[800023209,"VINE COURT APARTMENTS                             ","NIAGARA                     ","WI","54151","PAUL A DUHR                                        ","paul.a.duhr@hud.gov","414-935-6681","mn.incoming@hud.gov",{"$f":"HYPERLINK(\"mailto:\",Table_Front_desk_report.accdb[[#This Row],[inbox]])","v":"mn.incoming@hud.gov"}]
[800011344,"VIRGINIA ROTARY APARTMENTS                        ","VIRGINIA                    ","MN","55792","LAWRANCE C MUNDT                                   ","LAWRENCE.C.MUNDT@hud.gov","612-370-3082","mn.incoming@hud.gov",{"$f":"HYPERLINK(\"mailto:\",Table_Front_desk_report.accdb[[#This Row],[inbox]])","v":"mn.incoming@hud.gov"}]
[800023461,"VIRGINIA WANTA APARTMENTS                         ","CLINTONVILLE                ","WI","54929","MICHAEL D FURNNER                                  ","MICHAEL.D.FURNNER@hud.gov","414-935-6682","mn.incoming@hud.gov",{"$f":"HYPERLINK(\"mailto:\",Table_Front_desk_report.accdb[[#This Row],[inbox]])","v":"mn.incoming@hud.gov"}]
[800011345,"VISTA VILLAGE                                     ","SAINT PAUL                  ","MN","55107","TERESA C PARKER                                    ","TERESA.C.PARKER@hud.gov","612-370-3092","mn.incoming@hud.gov",{"$f":"HYPERLINK(\"mailto:\",Table_Front_desk_report.accdb[[#This Row],[inbox]])","v":"mn.incoming@hud.gov"}]
[800069564,"VNA APARTMENTS                                    ","NEENAH                      ","WI","54956","PAUL A DUHR                                        ","paul.a.duhr@hud.gov","414-935-6681","mn.incoming@hud.gov",{"$f":"HYPERLINK(\"mailto:\",Table_Front_desk_report.accdb[[#This Row],[inbox]])","v":"mn.incoming@hud.gov"}]
[800217855,"VOA Mora                                          ","MORA                        ","MN","55051","CATHERINE A TEMPLE                                 ","Catherine.A.Temple@hud.gov","414-935-6695","mn.incoming@hud.gov",{"$f":"HYPERLINK(\"mailto:\",Table_Front_desk_report.accdb[[#This Row],[inbox]])","v":"mn.incoming@hud.gov"}]
[800023462,"VOSS HAUS                                         ","MIDDLETON                   ","WI","53562","ARNITA X SCOTT                                     ","arnita.scott@hud.gov","312-913-8574","chi.incoming@hud.gov",{"$f":"HYPERLINK(\"mailto:\",Table_Front_desk_report.accdb[[#This Row],[inbox]])","v":"chi.incoming@hud.gov"}]
[800010858,"VOSSEVANGEN I                                     ","ASKOV                       ","MN","55704","SUSAN K ROSKOS                                     ","Susan.K.Roskos@hud.gov","612-370-3110","mn.incoming@hud.gov",{"$f":"HYPERLINK(\"mailto:\",Table_Front_desk_report.accdb[[#This Row],[inbox]])","v":"mn.incoming@hud.gov"}]
[null,"W"]
[800023465,"WALDMAR HOUSING                                   ","MOUNT HOREB                 ","WI","53572","LADRENNA A FIGUEROA                                ","ladrenna.a.figueroa@hud.gov","312-913-8290","chi.incoming@hud.gov",{"$f":"HYPERLINK(\"mailto:\",Table_Front_desk_report.accdb[[#This Row],[inbox]])","v":"chi.incoming@hud.gov"}]
[800011347,"Walker Methodist Kenzie (AKA) WALKER ON KENZIE    ","SAINT ANTHONY               ","MN","55418","THOMAS G DURSCHER                                  ","Thomas.G.Durscher@hud.gov","612-370-3018","mn.incoming@hud.gov",{"$f":"HYPERLINK(\"mailto:\",Table_Front_desk_report.accdb[[#This Row],[inbox]])","v":"mn.incoming@hud.gov"}]
[800219901,"Walker Methodist Lyndale aka Walker on Lyndale    ","Minneapolis                 ","MN","55419","GREGORY T MERZ                                     ","GREGORY.T.MERZ@hud.gov","612-370-3077","mn.incoming@hud.gov",{"$f":"HYPERLINK(\"mailto:\",Table_Front_desk_report.accdb[[#This Row],[inbox]])","v":"mn.incoming@hud.gov"}]
[800011348,"Walker Methodist River (AKA) WALKER ON THE RIVER  ","ANOKA                       ","MN","55303","THOMAS G DURSCHER                                  ","Thomas.G.Durscher@hud.gov","612-370-3018","mn.incoming@hud.gov",{"$f":"HYPERLINK(\"mailto:\",Table_Front_desk_report.accdb[[#This Row],[inbox]])","v":"mn.incoming@hud.gov"}]
[800023466,"WALNUT PARK APTS                                  ","MILWAUKEE                   ","WI","53205","LADRENNA A FIGUEROA                                ","ladrenna.a.figueroa@hud.gov","312-913-8290","chi.incoming@hud.gov",{"$f":"HYPERLINK(\"mailto:\",Table_Front_desk_report.accdb[[#This Row],[inbox]])","v":"chi.incoming@hud.gov"}]
[800011349,"WALNUT PLACE                                      ","ROCKFORD                    ","MN","55373","NATASHA D GUENOVA                                  ","NATASHA.D.GUENOVA@hud.gov","612-370-3035","mn.incoming@hud.gov",{"$f":"HYPERLINK(\"mailto:\",Table_Front_desk_report.accdb[[#This Row],[inbox]])","v":"mn.incoming@hud.gov"}]
[800011350,"WALNUT TOWERS                                     ","MANKATO                     ","MN","56001","BEN OSBORN                                         ","Benjamin.M.Osborn@hud.gov","612-370-3091","mn.incoming@hud.gov",{"$f":"HYPERLINK(\"mailto:\",Table_Front_desk_report.accdb[[#This Row],[inbox]])","v":"mn.incoming@hud.gov"}]
[800240314,"Walnut Trails Townhome Apartments                 ","Eagan                       ","MN","55122","THOMAS G DURSCHER                                  ","Thomas.G.Durscher@hud.gov","612-370-3018","mn.incoming@hud.gov",{"$f":"HYPERLINK(\"mailto:\",Table_Front_desk_report.accdb[[#This Row],[inbox]])","v":"mn.incoming@hud.gov"}]
[800217803,"WALTER RILEY DAVIS MANOR                          ","MILWAUKEE                   ","WI","53224","LADRENNA A FIGUEROA                                ","ladrenna.a.figueroa@hud.gov","312-913-8290","chi.incoming@hud.gov",{"$f":"HYPERLINK(\"mailto:\",Table_Front_desk_report.accdb[[#This Row],[inbox]])","v":"chi.incoming@hud.gov"}]
[800023467,"WALWORTH APARTMENTS                               ","LAKE GENEVA                 ","WI","53147","LADRENNA A FIGUEROA                                ","ladrenna.a.figueroa@hud.gov","312-913-8290","chi.incoming@hud.gov",{"$f":"HYPERLINK(\"mailto:\",Table_Front_desk_report.accdb[[#This Row],[inbox]])","v":"chi.incoming@hud.gov"}]
[800221582,"WANDA FROGG VILLA                                 ","Burlington                  ","WI","53105","DEBORAH E MONROE                                   ","deborah.e.monroe@hud.gov","312-913-8210","chi.incoming@hud.gov",{"$f":"HYPERLINK(\"mailto:\",Table_Front_desk_report.accdb[[#This Row],[inbox]])","v":"chi.incoming@hud.gov"}]
[800011044,"Warroad Senior Living Center                      ","Warroad                     ","MN","56763","THOMAS G DURSCHER                                  ","Thomas.G.Durscher@hud.gov","612-370-3018","mn.incoming@hud.gov",{"$f":"HYPERLINK(\"mailto:\",Table_Front_desk_report.accdb[[#This Row],[inbox]])","v":"mn.incoming@hud.gov"}]
[800011351,"WARROAD TOWNHOUSES                                ","WARROAD                     ","MN","56763","NATASHA D GUENOVA                                  ","NATASHA.D.GUENOVA@hud.gov","612-370-3035","mn.incoming@hud.gov",{"$f":"HYPERLINK(\"mailto:\",Table_Front_desk_report.accdb[[#This Row],[inbox]])","v":"mn.incoming@hud.gov"}]
[800023468,"WASHBURN COUNTY HOUSING                           ","SPOONER                     ","WI","54801","PAUL A DUHR                                        ","paul.a.duhr@hud.gov","414-935-6681","mn.incoming@hud.gov",{"$f":"HYPERLINK(\"mailto:\",Table_Front_desk_report.accdb[[#This Row],[inbox]])","v":"mn.incoming@hud.gov"}]
[800023469,"WASHINGTON APARTMENTS                             ","RACINE                      ","WI","53403","MARCIA A KOLB                                      ","MARCIA.A.KOLB@hud.gov","612-370-3055","mn.incoming@hud.gov",{"$f":"HYPERLINK(\"mailto:\",Table_Front_desk_report.accdb[[#This Row],[inbox]])","v":"mn.incoming@hud.gov"}]
[800023471,"WASHINGTON COURT APARTMENTS                       ","RACINE                      ","WI","53406","VERONICA S SIMS                                    ","veronica.s.sims@hud.gov","312-913-8066","chi.incoming@hud.gov",{"$f":"HYPERLINK(\"mailto:\",Table_Front_desk_report.accdb[[#This Row],[inbox]])","v":"chi.incoming@hud.gov"}]
[800011353,"WASHINGTON SQUARE                                 ","WHITE BEAR LAKE             ","MN","55110","JULIE A LASOTA                                     ","Julie.A.Lasota@hud.gov","612-370-3066","mn.incoming@hud.gov",{"$f":"HYPERLINK(\"mailto:\",Table_Front_desk_report.accdb[[#This Row],[inbox]])","v":"mn.incoming@hud.gov"}]
[800023474,"WASHINGTON SQUARE APARTMENTS                      ","CUDAHY                      ","WI","53110","ELLIE L CHICOSKI                                   ","ellie.l.chicoski@hud.gov","312-913-8385","chi.incoming@hud.gov",{"$f":"HYPERLINK(\"mailto:\",Table_Front_desk_report.accdb[[#This Row],[inbox]])","v":"chi.incoming@hud.gov"}]
[800238518,"Waterford Commons                                 ","Rosemount                   ","MN","55068","THOMAS G DURSCHER                                  ","Thomas.G.Durscher@hud.gov","612-370-3018","mn.incoming@hud.gov",{"$f":"HYPERLINK(\"mailto:\",Table_Front_desk_report.accdb[[#This Row],[inbox]])","v":"mn.incoming@hud.gov"}]
[800011354,"WATERFORD TOWNHOUSES                              ","OAKDALE                     ","MN","55128","TEENA M GEE                                        ","Teena.M.Gee@hud.gov","612-843-6414","mn.incoming@hud.gov",{"$f":"HYPERLINK(\"mailto:\",Table_Front_desk_report.accdb[[#This Row],[inbox]])","v":"mn.incoming@hud.gov"}]
[800234601,"WATERS EDGE APARTMENTS                            ","Whitewater                  ","WI","53190","LATOYA A WASHINGTON                                ","latoya.a.washington@hud.gov","312-913-8271","chi.incoming@hud.gov",{"$f":"HYPERLINK(\"mailto:\",Table_Front_desk_report.accdb[[#This Row],[inbox]])","v":"chi.incoming@hud.gov"}]
[800211027,"Waters Edge Townhomes                             ","WATERTOWN                   ","MN","55388","GREGORY T MERZ                                     ","GREGORY.T.MERZ@hud.gov","612-370-3077","mn.incoming@hud.gov",{"$f":"HYPERLINK(\"mailto:\",Table_Front_desk_report.accdb[[#This Row],[inbox]])","v":"mn.incoming@hud.gov"}]
[800023475,"WATERSEDGE APARTMENTS                             ","MILWAUKEE                   ","WI","53212","NINA M SMITH                                       ","nina.m.smith@hud.gov","312-913-8212","chi.incoming@hud.gov",{"$f":"HYPERLINK(\"mailto:\",Table_Front_desk_report.accdb[[#This Row],[inbox]])","v":"chi.incoming@hud.gov"}]
[800217254,"Waterstone Place Apartments                       ","Hopkins                     ","MN","55305","TERRI A MUNSON                                     ","Terri.A.Munson@hud.gov","612-370-3086","mn.incoming@hud.gov",{"$f":"HYPERLINK(\"mailto:\",Table_Front_desk_report.accdb[[#This Row],[inbox]])","v":"mn.incoming@hud.gov"}]
[800023477,"WATERTOWN EAST I & II                             ","WATERTOWN                   ","WI","53094","ELLIE L CHICOSKI                                   ","ellie.l.chicoski@hud.gov","312-913-8385","chi.incoming@hud.gov",{"$f":"HYPERLINK(\"mailto:\",Table_Front_desk_report.accdb[[#This Row],[inbox]])","v":"chi.incoming@hud.gov"}]
[800079629,"WATERTOWN EAST III                                ","WATERTOWN                   ","WI","53094","ELLIE L CHICOSKI                                   ","ellie.l.chicoski@hud.gov","312-913-8385","chi.incoming@hud.gov",{"$f":"HYPERLINK(\"mailto:\",Table_Front_desk_report.accdb[[#This Row],[inbox]])","v":"chi.incoming@hud.gov"}]
[800011355,"WATKINS AREA HOMES II /St. Anthony Manor          ","WATKINS                     ","MN","55389","JOEL R KLEMM                                       ","JOEL.R.KLEMM@hud.gov","612-370-3053","mn.incoming@hud.gov",{"$f":"HYPERLINK(\"mailto:\",Table_Front_desk_report.accdb[[#This Row],[inbox]])","v":"mn.incoming@hud.gov"}]
[800023480,"WAUPACA COUNTY APARTMENTS                         ","NEW LONDON                  ","WI","54961","MICHAEL D FURNNER                                  ","MICHAEL.D.FURNNER@hud.gov","414-935-6682","mn.incoming@hud.gov",{"$f":"HYPERLINK(\"mailto:\",Table_Front_desk_report.accdb[[#This Row],[inbox]])","v":"mn.incoming@hud.gov"}]
[800023483,"WAUSHARA VILLAGES                                 ","Wautoma                     ","WI","54982","PAUL A DUHR                                        ","paul.a.duhr@hud.gov","414-935-6681","mn.incoming@hud.gov",{"$f":"HYPERLINK(\"mailto:\",Table_Front_desk_report.accdb[[#This Row],[inbox]])","v":"mn.incoming@hud.gov"}]
[800011356,"WAYBURY APARTMENTS                                ","CHASKA                      ","MN","55318","DARIAN JANE ZIEGLER                                ","Darian.Ziegler@hud.gov","612-370-3270","mn.incoming@hud.gov",{"$f":"HYPERLINK(\"mailto:\",Table_Front_desk_report.accdb[[#This Row],[inbox]])","v":"mn.incoming@hud.gov"}]
[800222949,"WEINBERG APTS   aka   SHOLOM                      ","SAINT PAUL                  ","MN","55102","TERRI A MUNSON                                     ","Terri.A.Munson@hud.gov","612-370-3086","mn.incoming@hud.gov",{"$f":"HYPERLINK(\"mailto:\",Table_Front_desk_report.accdb[[#This Row],[inbox]])","v":"mn.incoming@hud.gov"}]
[800217877,"Wellstone Commons  aka  Greenvale                 ","NORTHFIELD                  ","MN","55057","THOMAS G DURSCHER                                  ","Thomas.G.Durscher@hud.gov","612-370-3018","mn.incoming@hud.gov",{"$f":"HYPERLINK(\"mailto:\",Table_Front_desk_report.accdb[[#This Row],[inbox]])","v":"mn.incoming@hud.gov"}]
[800011357,"WEST APARTMENTS /ASI-Burnsville, Inc              ","BURNSVILLE                  ","MN","55306","SHERRY K NORTON                                    ","Sherry.K.Norton@hud.gov","612-370-3087","mn.incoming@hud.gov",{"$f":"HYPERLINK(\"mailto:\",Table_Front_desk_report.accdb[[#This Row],[inbox]])","v":"mn.incoming@hud.gov"}]
[800011358,"WEST BANK HOMES III                               ","MINNEAPOLIS                 ","MN","55454","CINDY BEHNKE                                       ","cynthia.behnke@hud.gov","612-370-3278","mn.incoming@hud.gov",{"$f":"HYPERLINK(\"mailto:\",Table_Front_desk_report.accdb[[#This Row],[inbox]])","v":"mn.incoming@hud.gov"}]
[800011359,"West Central Mental Health Hng, Inc               ","WILLMAR                     ","MN","56201","NATASHA D GUENOVA                                  ","NATASHA.D.GUENOVA@hud.gov","612-370-3035","mn.incoming@hud.gov",{"$f":"HYPERLINK(\"mailto:\",Table_Front_desk_report.accdb[[#This Row],[inbox]])","v":"mn.incoming@hud.gov"}]
[800011217,"WEST COURT APARTMENTS                             ","WATERVILLE                  ","MN","56096","TERESA C PARKER                                    ","TERESA.C.PARKER@hud.gov","612-370-3092","mn.incoming@hud.gov",{"$f":"HYPERLINK(\"mailto:\",Table_Front_desk_report.accdb[[#This Row],[inbox]])","v":"mn.incoming@hud.gov"}]
[800234472,"West End Apartments                               ","Saint Louis Park            ","MN","55416","JULIE A LASOTA                                     ","Julie.A.Lasota@hud.gov","612-370-3066","mn.incoming@hud.gov",{"$f":"HYPERLINK(\"mailto:\",Table_Front_desk_report.accdb[[#This Row],[inbox]])","v":"mn.incoming@hud.gov"}]
[800011360,"WEST FALLS ESTATES                                ","INTERNATIONAL FALLS         ","MN","56649","CAROL DIXON                                        ","Carol.A.Dixon@hud.gov","612-370-3015","mn.incoming@hud.gov",{"$f":"HYPERLINK(\"mailto:\",Table_Front_desk_report.accdb[[#This Row],[inbox]])","v":"mn.incoming@hud.gov"}]
[800011362,"WEST MAR APARTMENTS                               ","MARSHALL                    ","MN","56258","NATASHA D GUENOVA                                  ","NATASHA.D.GUENOVA@hud.gov","612-370-3035","mn.incoming@hud.gov",{"$f":"HYPERLINK(\"mailto:\",Table_Front_desk_report.accdb[[#This Row],[inbox]])","v":"mn.incoming@hud.gov"}]
[800238320,"West River                                        ","Minneapolis                 ","MN","55406","CAROL DIXON                                        ","Carol.A.Dixon@hud.gov","612-370-3015","mn.incoming@hud.gov",{"$f":"HYPERLINK(\"mailto:\",Table_Front_desk_report.accdb[[#This Row],[inbox]])","v":"mn.incoming@hud.gov"}]
[800011373,"West View Apartments                              ","FOREST LAKE                 ","MN","55025","MICHAEL P MORAN                                    ","MICHAEL.P.MORAN@HUD.GOV","612-370-3081","mn.incoming@hud.gov",{"$f":"HYPERLINK(\"mailto:\",Table_Front_desk_report.accdb[[#This Row],[inbox]])","v":"mn.incoming@hud.gov"}]
[800023486,"WEST VIEW APTS                                    ","WAUPUN                      ","WI","53963","CATHERINE A TEMPLE                                 ","Catherine.A.Temple@hud.gov","414-935-6695","mn.incoming@hud.gov",{"$f":"HYPERLINK(\"mailto:\",Table_Front_desk_report.accdb[[#This Row],[inbox]])","v":"mn.incoming@hud.gov"}]
[800011363,"WESTBANK HOMES COOPERATIVE                        ","MINNEAPOLIS                 ","MN","55454","CINDY BEHNKE                                       ","cynthia.behnke@hud.gov","612-370-3278","mn.incoming@hud.gov",{"$f":"HYPERLINK(\"mailto:\",Table_Front_desk_report.accdb[[#This Row],[inbox]])","v":"mn.incoming@hud.gov"}]
[800069922,"WESTBAY APARTMENTS                                ","SUPERIOR                    ","WI","54880","JOEL R KLEMM                                       ","JOEL.R.KLEMM@hud.gov","612-370-3053","mn.incoming@hud.gov",{"$f":"HYPERLINK(\"mailto:\",Table_Front_desk_report.accdb[[#This Row],[inbox]])","v":"mn.incoming@hud.gov"}]
[800023061,"WESTBY HOUSING                                    ","WESTBY                      ","WI","54667","CATHERINE A TEMPLE                                 ","Catherine.A.Temple@hud.gov","414-935-6695","mn.incoming@hud.gov",{"$f":"HYPERLINK(\"mailto:\",Table_Front_desk_report.accdb[[#This Row],[inbox]])","v":"mn.incoming@hud.gov"}]
[800244747,"Westby Housing Authority                          ","Westby                      ","WI","54667","CATHERINE A TEMPLE                                 ","Catherine.A.Temple@hud.gov","414-935-6695","mn.incoming@hud.gov",{"$f":"HYPERLINK(\"mailto:\",Table_Front_desk_report.accdb[[#This Row],[inbox]])","v":"mn.incoming@hud.gov"}]
[800011364,"WESTCHESTER VILLAGE                               ","PINE CITY                   ","MN","55063","TERESA C PARKER                                    ","TERESA.C.PARKER@hud.gov","612-370-3092","mn.incoming@hud.gov",{"$f":"HYPERLINK(\"mailto:\",Table_Front_desk_report.accdb[[#This Row],[inbox]])","v":"mn.incoming@hud.gov"}]
[800011365,"WESTERN MANOR APARTMENTS                          ","AUSTIN                      ","MN","55912","GREGORY T MERZ                                     ","GREGORY.T.MERZ@hud.gov","612-370-3077","mn.incoming@hud.gov",{"$f":"HYPERLINK(\"mailto:\",Table_Front_desk_report.accdb[[#This Row],[inbox]])","v":"mn.incoming@hud.gov"}]
[800023487,"WESTERN WISCONSIN HOUSING                         ","ELLSWORTH                   ","WI","54011","ANDREA L CARSON                                    ","andrea.carson@hud.gov","414-935-6679","mn.incoming@hud.gov",{"$f":"HYPERLINK(\"mailto:\",Table_Front_desk_report.accdb[[#This Row],[inbox]])","v":"mn.incoming@hud.gov"}]
[800011366,"WESTFALLS                                         ","REDWOOD FALLS               ","MN","56283","TERESA C PARKER                                    ","TERESA.C.PARKER@hud.gov","612-370-3092","mn.incoming@hud.gov",{"$f":"HYPERLINK(\"mailto:\",Table_Front_desk_report.accdb[[#This Row],[inbox]])","v":"mn.incoming@hud.gov"}]
[800011367,"WESTGATE                                          ","NEW PRAGUE                  ","MN","56071","MICHAEL P MORAN                                    ","MICHAEL.P.MORAN@HUD.GOV","612-370-3081","mn.incoming@hud.gov",{"$f":"HYPERLINK(\"mailto:\",Table_Front_desk_report.accdb[[#This Row],[inbox]])","v":"mn.incoming@hud.gov"}]
[800011368,"WESTGATE APARTMENTS -- (Hibbing)                  ","HIBBING                     ","MN","55746","MITCHELL S HILLMAN                                 ","MITCHELL.S.HILLMAN@hud.gov","612-370-3036","mn.incoming@hud.gov",{"$f":"HYPERLINK(\"mailto:\",Table_Front_desk_report.accdb[[#This Row],[inbox]])","v":"mn.incoming@hud.gov"}]
[800079719,"WESTGATE APARTMENTS -- GAYLORD                    ","GAYLORD                     ","MN","55334","CINDY BEHNKE                                       ","cynthia.behnke@hud.gov","612-370-3278","mn.incoming@hud.gov",{"$f":"HYPERLINK(\"mailto:\",Table_Front_desk_report.accdb[[#This Row],[inbox]])","v":"mn.incoming@hud.gov"}]
[800011369,"WESTMINSTER PLACE APARTMENTS                      ","Saint Paul                  ","MN","55130","TERESA C PARKER                                    ","TERESA.C.PARKER@hud.gov","612-370-3092","mn.incoming@hud.gov",{"$f":"HYPERLINK(\"mailto:\",Table_Front_desk_report.accdb[[#This Row],[inbox]])","v":"mn.incoming@hud.gov"}]
[800023488,"WESTNOR APARTMENTS                                ","FOND DU LAC                 ","WI","54935","PAUL A DUHR                                        ","paul.a.duhr@hud.gov","414-935-6681","mn.incoming@hud.gov",{"$f":"HYPERLINK(\"mailto:\",Table_Front_desk_report.accdb[[#This Row],[inbox]])","v":"mn.incoming@hud.gov"}]
[800011370,"Westonka Estates                                  ","MOUND                       ","MN","55364","LAWRANCE C MUNDT                                   ","LAWRENCE.C.MUNDT@hud.gov","612-370-3082","mn.incoming@hud.gov",{"$f":"HYPERLINK(\"mailto:\",Table_Front_desk_report.accdb[[#This Row],[inbox]])","v":"mn.incoming@hud.gov"}]
[800023490,"WESTPORT MEADOWS                                  ","PORT WASHINGTON             ","WI","53074","ANDREA L CARSON                                    ","andrea.carson@hud.gov","414-935-6679","mn.incoming@hud.gov",{"$f":"HYPERLINK(\"mailto:\",Table_Front_desk_report.accdb[[#This Row],[inbox]])","v":"mn.incoming@hud.gov"}]
[800023491,"WESTRIDGE APARTMENTS                              ","MILWAUKEE                   ","WI","53223","NINA M SMITH                                       ","nina.m.smith@hud.gov","312-913-8212","chi.incoming@hud.gov",{"$f":"HYPERLINK(\"mailto:\",Table_Front_desk_report.accdb[[#This Row],[inbox]])","v":"chi.incoming@hud.gov"}]
[800023492,"WESTRIDGE APTS                                    ","STURTEVANT                  ","WI","53177","GLORY J MCDONALD                                   ","glory.j.mcdonald@hud.gov","312-913-8126","chi.incoming@hud.gov",{"$f":"HYPERLINK(\"mailto:\",Table_Front_desk_report.accdb[[#This Row],[inbox]])","v":"chi.incoming@hud.gov"}]
[800240349,"Westridge Senior Housing Apartments               ","Minnetonka                  ","MN","55305","MITCHELL S HILLMAN                                 ","MITCHELL.S.HILLMAN@hud.gov","612-370-3036","mn.incoming@hud.gov",{"$f":"HYPERLINK(\"mailto:\",Table_Front_desk_report.accdb[[#This Row],[inbox]])","v":"mn.incoming@hud.gov"}]
[800011371,"WESTRIDGE TOWNHOMES                               ","FOREST LAKE                 ","MN","55025","TERESA C PARKER                                    ","TERESA.C.PARKER@hud.gov","612-370-3092","mn.incoming@hud.gov",{"$f":"HYPERLINK(\"mailto:\",Table_Front_desk_report.accdb[[#This Row],[inbox]])","v":"mn.incoming@hud.gov"}]
[800011372,"WESTSIDE APARTMENTS                               ","SLAYTON                     ","MN","56172","CINDY BEHNKE                                       ","cynthia.behnke@hud.gov","612-370-3278","mn.incoming@hud.gov",{"$f":"HYPERLINK(\"mailto:\",Table_Front_desk_report.accdb[[#This Row],[inbox]])","v":"mn.incoming@hud.gov"}]
[800023494,"WESTVIEW HAVEN                                    ","NEW LISBON                  ","WI","53950","MICHAEL D FURNNER                                  ","MICHAEL.D.FURNNER@hud.gov","414-935-6682","mn.incoming@hud.gov",{"$f":"HYPERLINK(\"mailto:\",Table_Front_desk_report.accdb[[#This Row],[inbox]])","v":"mn.incoming@hud.gov"}]
[800238189,"Westwind Apartments                               ","Saint Cloud                 ","MN","56303","TERRI A MUNSON                                     ","Terri.A.Munson@hud.gov","612-370-3086","mn.incoming@hud.gov",{"$f":"HYPERLINK(\"mailto:\",Table_Front_desk_report.accdb[[#This Row],[inbox]])","v":"mn.incoming@hud.gov"}]
[800023497,"WESTWOOD HEIGHTS                                  ","WAUKESHA                    ","WI","53188","MARY E WATKINS                                     ","mary.e.watkins@hud.gov","312-913-8552","chi.incoming@hud.gov",{"$f":"HYPERLINK(\"mailto:\",Table_Front_desk_report.accdb[[#This Row],[inbox]])","v":"chi.incoming@hud.gov"}]
[800217154,"Westwood Parkway Estates                          ","Saint Cloud                 ","MN","56303","LAWRANCE C MUNDT                                   ","LAWRENCE.C.MUNDT@hud.gov","612-370-3082","mn.incoming@hud.gov",{"$f":"HYPERLINK(\"mailto:\",Table_Front_desk_report.accdb[[#This Row],[inbox]])","v":"mn.incoming@hud.gov"}]
[800023498,"WESTWOOD TOWNHOUSES                               ","WISCONSIN RAPIDS            ","WI","54495","MICHAEL D FURNNER                                  ","MICHAEL.D.FURNNER@hud.gov","414-935-6682","mn.incoming@hud.gov",{"$f":"HYPERLINK(\"mailto:\",Table_Front_desk_report.accdb[[#This Row],[inbox]])","v":"mn.incoming@hud.gov"}]
[800023499,"WEXFORD RIDGE                                     ","MADISON                     ","WI","53717","DORTHY L HOPKINS                                   ","dorthy.l.hopkins@hud.gov","312-913-8172","chi.incoming@hud.gov",{"$f":"HYPERLINK(\"mailto:\",Table_Front_desk_report.accdb[[#This Row],[inbox]])","v":"chi.incoming@hud.gov"}]
[800233612,"White Pines Apartments                            ","Shakopee                    ","MN","55379","MARCIA A KOLB                                      ","MARCIA.A.KOLB@hud.gov","612-370-3055","mn.incoming@hud.gov",{"$f":"HYPERLINK(\"mailto:\",Table_Front_desk_report.accdb[[#This Row],[inbox]])","v":"mn.incoming@hud.gov"}]
[800023502,"WHITEWATER MANOR                                  ","WHITEWATER                  ","WI","53190","RAYMOND GUNTER                                     ","raymond.p.gunter@hud.gov","312-913-8309","chi.incoming@hud.gov",{"$f":"HYPERLINK(\"mailto:\",Table_Front_desk_report.accdb[[#This Row],[inbox]])","v":"chi.incoming@hud.gov"}]
[800239202,"WHITING AVENUE ESTATES                            ","Stevens Point               ","WI","54481","MICHAEL D FURNNER                                  ","MICHAEL.D.FURNNER@hud.gov","414-935-6682","mn.incoming@hud.gov",{"$f":"HYPERLINK(\"mailto:\",Table_Front_desk_report.accdb[[#This Row],[inbox]])","v":"mn.incoming@hud.gov"}]
[800239201,"WHITNALL GARDENS APARTMENTS                       ","Hales Corners               ","WI","53130","MARY E WATKINS                                     ","mary.e.watkins@hud.gov","312-913-8552","chi.incoming@hud.gov",{"$f":"HYPERLINK(\"mailto:\",Table_Front_desk_report.accdb[[#This Row],[inbox]])","v":"chi.incoming@hud.gov"}]
[800236535,"WHITNALL POINTE APARTMENTS                        ","Franklin                    ","WI","53132","SHERRY A CHANEY                                    ","sherry.a.chaney@hud.gov","312-913-8015","chi.incoming@hud.gov",{"$f":"HYPERLINK(\"mailto:\",Table_Front_desk_report.accdb[[#This Row],[inbox]])","v":"chi.incoming@hud.gov"}]
[800011375,"WHITTIER COMMUNITY HOUSING                        ","MINNEAPOLIS                 ","MN","55408","NATASHA D GUENOVA                                  ","NATASHA.D.GUENOVA@hud.gov","612-370-3035","mn.incoming@hud.gov",{"$f":"HYPERLINK(\"mailto:\",Table_Front_desk_report.accdb[[#This Row],[inbox]])","v":"mn.incoming@hud.gov"}]
[800011376,"WHITTIER TOWNHOMES                                ","MINNEAPOLIS                 ","MN","55404","MICHAEL P MORAN                                    ","MICHAEL.P.MORAN@HUD.GOV","612-370-3081","mn.incoming@hud.gov",{"$f":"HYPERLINK(\"mailto:\",Table_Front_desk_report.accdb[[#This Row],[inbox]])","v":"mn.incoming@hud.gov"}]
[800238366,"WIEDENBECK LOFTS & 699 STATION APARTMENTS         ","Madison                     ","WI","53703","TERRI A MUNSON                                     ","Terri.A.Munson@hud.gov","612-370-3086","mn.incoming@hud.gov",{"$f":"HYPERLINK(\"mailto:\",Table_Front_desk_report.accdb[[#This Row],[inbox]])","v":"mn.incoming@hud.gov"}]
[800023503,"WILD GOOSE LANDING                                ","OAKFIELD                    ","WI","53065","PAUL A DUHR                                        ","paul.a.duhr@hud.gov","414-935-6681","mn.incoming@hud.gov",{"$f":"HYPERLINK(\"mailto:\",Table_Front_desk_report.accdb[[#This Row],[inbox]])","v":"mn.incoming@hud.gov"}]
[800011379,"WILDER  SQUARE                                    ","SAINT PAUL                  ","MN","55104","THOMAS G DURSCHER                                  ","Thomas.G.Durscher@hud.gov","612-370-3018","mn.incoming@hud.gov",{"$f":"HYPERLINK(\"mailto:\",Table_Front_desk_report.accdb[[#This Row],[inbox]])","v":"mn.incoming@hud.gov"}]
[800011381,"WILDER 202 APTS aka 516 Humboldt Apts             ","SAINT PAUL                  ","MN","55107","THOMAS G DURSCHER                                  ","Thomas.G.Durscher@hud.gov","612-370-3018","mn.incoming@hud.gov",{"$f":"HYPERLINK(\"mailto:\",Table_Front_desk_report.accdb[[#This Row],[inbox]])","v":"mn.incoming@hud.gov"}]
[800011378,"WILDER APTS  aka  508/510 Humboldt                ","SAINT PAUL                  ","MN","55107","THOMAS G DURSCHER                                  ","Thomas.G.Durscher@hud.gov","612-370-3018","mn.incoming@hud.gov",{"$f":"HYPERLINK(\"mailto:\",Table_Front_desk_report.accdb[[#This Row],[inbox]])","v":"mn.incoming@hud.gov"}]
[800011380,"WILDER SQUARE COOP                                ","SAINT PAUL                  ","MN","55104","THOMAS G DURSCHER                                  ","Thomas.G.Durscher@hud.gov","612-370-3018","mn.incoming@hud.gov",{"$f":"HYPERLINK(\"mailto:\",Table_Front_desk_report.accdb[[#This Row],[inbox]])","v":"mn.incoming@hud.gov"}]
[800235024,"WILDWOOD APARTMENTS                               ","East Troy                   ","WI","53120","LATOYA A WASHINGTON                                ","latoya.a.washington@hud.gov","312-913-8271","chi.incoming@hud.gov",{"$f":"HYPERLINK(\"mailto:\",Table_Front_desk_report.accdb[[#This Row],[inbox]])","v":"chi.incoming@hud.gov"}]
[800011383,"WILDWOOD MANOR                                    ","MOUNDSVIEW                  ","MN","55112","LAWRANCE C MUNDT                                   ","LAWRENCE.C.MUNDT@hud.gov","612-370-3082","mn.incoming@hud.gov",{"$f":"HYPERLINK(\"mailto:\",Table_Front_desk_report.accdb[[#This Row],[inbox]])","v":"mn.incoming@hud.gov"}]
[800011384,"WILKINS TOWNHOMES                                 ","SAINT PAUL                  ","MN","55102","MITCHELL S HILLMAN                                 ","MITCHELL.S.HILLMAN@hud.gov","612-370-3036","mn.incoming@hud.gov",{"$f":"HYPERLINK(\"mailto:\",Table_Front_desk_report.accdb[[#This Row],[inbox]])","v":"mn.incoming@hud.gov"}]
[800023504,"WILKINSON MANOR/JEFFWORTH APTS                    ","OCONOMOWOC                  ","WI","53066","JULIE M WHITEFEATHER                               ","julie.m.whitefeather@hud.gov","312-913-8117","chi.incoming@hud.gov",{"$f":"HYPERLINK(\"mailto:\",Table_Front_desk_report.accdb[[#This Row],[inbox]])","v":"chi.incoming@hud.gov"}]
[800211409,"WILLIAM BECHTEL VILLA                             ","Ladysmith                   ","WI","54848","JOEL R KLEMM                                       ","JOEL.R.KLEMM@hud.gov","612-370-3053","mn.incoming@hud.gov",{"$f":"HYPERLINK(\"mailto:\",Table_Front_desk_report.accdb[[#This Row],[inbox]])","v":"mn.incoming@hud.gov"}]
[800022962,"WILLIAM JOHNSON MANOR                             ","DEER PARK                   ","WI","54007","JULIE A LASOTA                                     ","Julie.A.Lasota@hud.gov","612-370-3066","mn.incoming@hud.gov",{"$f":"HYPERLINK(\"mailto:\",Table_Front_desk_report.accdb[[#This Row],[inbox]])","v":"mn.incoming@hud.gov"}]
[800023505,"WILLO APARTMENTS                                  ","OSHKOSH                     ","WI","54901","BEN OSBORN                                         ","Benjamin.M.Osborn@hud.gov","612-370-3091","mn.incoming@hud.gov",{"$f":"HYPERLINK(\"mailto:\",Table_Front_desk_report.accdb[[#This Row],[inbox]])","v":"mn.incoming@hud.gov"}]
[800222290,"Willow Brook Cooperative of Mankato               ","Mankato                     ","MN","56001","MICHAEL P MORAN                                    ","MICHAEL.P.MORAN@HUD.GOV","612-370-3081","mn.incoming@hud.gov",{"$f":"HYPERLINK(\"mailto:\",Table_Front_desk_report.accdb[[#This Row],[inbox]])","v":"mn.incoming@hud.gov"}]
[800232591,"Willow Brook Cooperative of Winona                ","Winona                      ","MN","55108","MARCIA A KOLB                                      ","MARCIA.A.KOLB@hud.gov","612-370-3055","mn.incoming@hud.gov",{"$f":"HYPERLINK(\"mailto:\",Table_Front_desk_report.accdb[[#This Row],[inbox]])","v":"mn.incoming@hud.gov"}]
[800235330,"Willow Creek Apartments                           ","Plymouth                    ","MN","55441","TERESA C PARKER                                    ","TERESA.C.PARKER@hud.gov","612-370-3092","mn.incoming@hud.gov",{"$f":"HYPERLINK(\"mailto:\",Table_Front_desk_report.accdb[[#This Row],[inbox]])","v":"mn.incoming@hud.gov"}]
[800023506,"WILLOW PARK                                       ","WAUKESHA                    ","WI","53188","DONNA M SHEEHAN                                    ","Donna.Sheehan@hud.gov"," 312-957-4781 ","chi.incoming@hud.gov",{"$f":"HYPERLINK(\"mailto:\",Table_Front_desk_report.accdb[[#This Row],[inbox]])","v":"chi.incoming@hud.gov"}]
[800011387,"WILLOW RUN                                        ","WILLMAR                     ","MN","56201","SHERRY K NORTON                                    ","Sherry.K.Norton@hud.gov","612-370-3087","mn.incoming@hud.gov",{"$f":"HYPERLINK(\"mailto:\",Table_Front_desk_report.accdb[[#This Row],[inbox]])","v":"mn.incoming@hud.gov"}]
[800011346,"WILLOW WOOD APARTMENTS                            ","WHITE BEAR LAKE             ","MN","55110","MICHAEL P MORAN                                    ","MICHAEL.P.MORAN@HUD.GOV","612-370-3081","mn.incoming@hud.gov",{"$f":"HYPERLINK(\"mailto:\",Table_Front_desk_report.accdb[[#This Row],[inbox]])","v":"mn.incoming@hud.gov"}]
[800011389,"WILLOW WOOD ESTATES                               ","PLYMOUTH                    ","MN","55441","GREGORY T MERZ                                     ","GREGORY.T.MERZ@hud.gov","612-370-3077","mn.incoming@hud.gov",{"$f":"HYPERLINK(\"mailto:\",Table_Front_desk_report.accdb[[#This Row],[inbox]])","v":"mn.incoming@hud.gov"}]
[800023507,"WILLOWBROOK APTS                                  ","RIPON                       ","WI","54971","MICHAEL D FURNNER                                  ","MICHAEL.D.FURNNER@hud.gov","414-935-6682","mn.incoming@hud.gov",{"$f":"HYPERLINK(\"mailto:\",Table_Front_desk_report.accdb[[#This Row],[inbox]])","v":"mn.incoming@hud.gov"}]
[800023508,"WILLOWWOOD APARTMENTS                             ","RACINE                      ","WI","53404","ARNITA X SCOTT                                     ","arnita.scott@hud.gov","312-913-8574","chi.incoming@hud.gov",{"$f":"HYPERLINK(\"mailto:\",Table_Front_desk_report.accdb[[#This Row],[inbox]])","v":"chi.incoming@hud.gov"}]
[800237678,"WILMANOR APARTMENTS                               ","Racine                      ","WI","53404","JULIE M WHITEFEATHER                               ","julie.m.whitefeather@hud.gov","312-913-8117","chi.incoming@hud.gov",{"$f":"HYPERLINK(\"mailto:\",Table_Front_desk_report.accdb[[#This Row],[inbox]])","v":"chi.incoming@hud.gov"}]
[800011390,"WIMBLEDON GREEN                                   ","SAINT CLOUD                 ","MN","56303","THOMAS G DURSCHER                                  ","Thomas.G.Durscher@hud.gov","612-370-3018","mn.incoming@hud.gov",{"$f":"HYPERLINK(\"mailto:\",Table_Front_desk_report.accdb[[#This Row],[inbox]])","v":"mn.incoming@hud.gov"}]
[800023509,"WINCHESTER VILLAGE                                ","MILWAUKEE                   ","WI","53207","LADRENNA A FIGUEROA                                ","ladrenna.a.figueroa@hud.gov","312-913-8290","chi.incoming@hud.gov",{"$f":"HYPERLINK(\"mailto:\",Table_Front_desk_report.accdb[[#This Row],[inbox]])","v":"chi.incoming@hud.gov"}]
[800011391,"WINDOM APARTMENTS                                 ","WINDOM                      ","MN","56101","MITCHELL S HILLMAN                                 ","MITCHELL.S.HILLMAN@hud.gov","612-370-3036","mn.incoming@hud.gov",{"$f":"HYPERLINK(\"mailto:\",Table_Front_desk_report.accdb[[#This Row],[inbox]])","v":"mn.incoming@hud.gov"}]
[800011392,"WINDOM TOWNHOUSES /1500 Perkins Creek             ","WINDOM                      ","MN","56101","GREGORY T MERZ                                     ","GREGORY.T.MERZ@hud.gov","612-370-3077","mn.incoming@hud.gov",{"$f":"HYPERLINK(\"mailto:\",Table_Front_desk_report.accdb[[#This Row],[inbox]])","v":"mn.incoming@hud.gov"}]
[800023510,"WINDSONG VILLAGE                                  ","WEST ALLIS                  ","WI","53227","DONNA M SHEEHAN                                    ","Donna.Sheehan@hud.gov"," 312-957-4781 ","chi.incoming@hud.gov",{"$f":"HYPERLINK(\"mailto:\",Table_Front_desk_report.accdb[[#This Row],[inbox]])","v":"chi.incoming@hud.gov"}]
[800237327,"WINDSONG VILLAGE                                  ","Kenosha                     ","WI","53142","MARCIA A KOLB                                      ","MARCIA.A.KOLB@hud.gov","612-370-3055","mn.incoming@hud.gov",{"$f":"HYPERLINK(\"mailto:\",Table_Front_desk_report.accdb[[#This Row],[inbox]])","v":"mn.incoming@hud.gov"}]
[800011394,"WINDSOR APTS                                      ","WORTHINGTON                 ","MN","56187","GREGORY T MERZ                                     ","GREGORY.T.MERZ@hud.gov","612-370-3077","mn.incoming@hud.gov",{"$f":"HYPERLINK(\"mailto:\",Table_Front_desk_report.accdb[[#This Row],[inbox]])","v":"mn.incoming@hud.gov"}]
[800041913,"WINDSOR COURT                                     ","MILWAUKEE                   ","WI","53233","MARLENE X TRIMUEL                                  ","Marlene.Trimuel@hud.gov","312-913-8369","chi.incoming@hud.gov",{"$f":"HYPERLINK(\"mailto:\",Table_Front_desk_report.accdb[[#This Row],[inbox]])","v":"chi.incoming@hud.gov"}]
[800011337,"WINDWOOD TOWNHOMES                                ","DULUTH                      ","MN","55811","DARIAN JANE ZIEGLER                                ","Darian.Ziegler@hud.gov","612-370-3270","mn.incoming@hud.gov",{"$f":"HYPERLINK(\"mailto:\",Table_Front_desk_report.accdb[[#This Row],[inbox]])","v":"mn.incoming@hud.gov"}]
[800011395,"WINHAVEN COURT APARTMENTS                         ","WINONA                      ","MN","55987","MARCIA A KOLB                                      ","MARCIA.A.KOLB@hud.gov","612-370-3055","mn.incoming@hud.gov",{"$f":"HYPERLINK(\"mailto:\",Table_Front_desk_report.accdb[[#This Row],[inbox]])","v":"mn.incoming@hud.gov"}]
[800023512,"WINNEBAGO COUNTY HOUSING                          ","OSHKOSH                     ","WI","54904","MICHAEL D FURNNER                                  ","MICHAEL.D.FURNNER@hud.gov","414-935-6682","mn.incoming@hud.gov",{"$f":"HYPERLINK(\"mailto:\",Table_Front_desk_report.accdb[[#This Row],[inbox]])","v":"mn.incoming@hud.gov"}]
[800023513,"WINNESHIEK MANOR/HILLVIEW                         ","WAUZEKA                     ","WI","53826","ANDREA L CARSON                                    ","andrea.carson@hud.gov","414-935-6679","mn.incoming@hud.gov",{"$f":"HYPERLINK(\"mailto:\",Table_Front_desk_report.accdb[[#This Row],[inbox]])","v":"mn.incoming@hud.gov"}]
[800011396,"WINNETKA WEST                                     ","NEW HOPE                    ","MN","55428","CAROL DIXON                                        ","Carol.A.Dixon@hud.gov","612-370-3015","mn.incoming@hud.gov",{"$f":"HYPERLINK(\"mailto:\",Table_Front_desk_report.accdb[[#This Row],[inbox]])","v":"mn.incoming@hud.gov"}]
[800224811,"Winnipeg                                          ","Saint Paul                  ","MN","55117","TERRI A MUNSON                                     ","Terri.A.Munson@hud.gov","612-370-3086","mn.incoming@hud.gov",{"$f":"HYPERLINK(\"mailto:\",Table_Front_desk_report.accdb[[#This Row],[inbox]])","v":"mn.incoming@hud.gov"}]
[800011397,"WINONA ARMS                                       ","WINONA                      ","MN","55987","CAROL DIXON                                        ","Carol.A.Dixon@hud.gov","612-370-3015","mn.incoming@hud.gov",{"$f":"HYPERLINK(\"mailto:\",Table_Front_desk_report.accdb[[#This Row],[inbox]])","v":"mn.incoming@hud.gov"}]
[800220366,"WINONA MIDDLE SCHOOL RNOVATION                    ","WINONA                      ","MN","55987","DARIAN JANE ZIEGLER                                ","Darian.Ziegler@hud.gov","612-370-3270","mn.incoming@hud.gov",{"$f":"HYPERLINK(\"mailto:\",Table_Front_desk_report.accdb[[#This Row],[inbox]])","v":"mn.incoming@hud.gov"}]
[800213270,"WINONA SHORES                                     ","ALEXANDRIA                  ","MN","56308","SHERRY K NORTON                                    ","Sherry.K.Norton@hud.gov","612-370-3087","mn.incoming@hud.gov",{"$f":"HYPERLINK(\"mailto:\",Table_Front_desk_report.accdb[[#This Row],[inbox]])","v":"mn.incoming@hud.gov"}]
[800011399,"WINSLOW COMMONS                                   ","SAINT PAUL                  ","MN","55102","MITCHELL S HILLMAN                                 ","MITCHELL.S.HILLMAN@hud.gov","612-370-3036","mn.incoming@hud.gov",{"$f":"HYPERLINK(\"mailto:\",Table_Front_desk_report.accdb[[#This Row],[inbox]])","v":"mn.incoming@hud.gov"}]
[800239457,"WINSOR FOREST APARTMENTS                          ","Eau Claire                  ","WI","54703","BEN OSBORN                                         ","Benjamin.M.Osborn@hud.gov","612-370-3091","mn.incoming@hud.gov",{"$f":"HYPERLINK(\"mailto:\",Table_Front_desk_report.accdb[[#This Row],[inbox]])","v":"mn.incoming@hud.gov"}]
[800011313,"WINSTON COURT/aka ASI North                       ","HIBBING                     ","MN","55746","THOMAS G DURSCHER                                  ","Thomas.G.Durscher@hud.gov","612-370-3018","mn.incoming@hud.gov",{"$f":"HYPERLINK(\"mailto:\",Table_Front_desk_report.accdb[[#This Row],[inbox]])","v":"mn.incoming@hud.gov"}]
[800022875,"WINTERHAVEN APARTMENTS                            ","Winter                      ","WI","54896","CATHERINE A TEMPLE                                 ","Catherine.A.Temple@hud.gov","414-935-6695","mn.incoming@hud.gov",{"$f":"HYPERLINK(\"mailto:\",Table_Front_desk_report.accdb[[#This Row],[inbox]])","v":"mn.incoming@hud.gov"}]
[800023515,"WITTWER APTS-WHPC MONTICELLO                      ","MONTICELLO                  ","WI","53570","LADRENNA A FIGUEROA                                ","ladrenna.a.figueroa@hud.gov","312-913-8290","chi.incoming@hud.gov",{"$f":"HYPERLINK(\"mailto:\",Table_Front_desk_report.accdb[[#This Row],[inbox]])","v":"chi.incoming@hud.gov"}]
[800011400,"WOMENS ADVOCATES                                  ","SAINT PAUL                  ","MN","55102","NATASHA D GUENOVA                                  ","NATASHA.D.GUENOVA@hud.gov","612-370-3035","mn.incoming@hud.gov",{"$f":"HYPERLINK(\"mailto:\",Table_Front_desk_report.accdb[[#This Row],[inbox]])","v":"mn.incoming@hud.gov"}]
[800023516,"WOOD COURT APARTMENTS                             ","WOODRUFF                    ","WI","54568","SUSAN K ROSKOS                                     ","Susan.K.Roskos@hud.gov","612-370-3110","mn.incoming@hud.gov",{"$f":"HYPERLINK(\"mailto:\",Table_Front_desk_report.accdb[[#This Row],[inbox]])","v":"mn.incoming@hud.gov"}]
[800011401,"WOODCREST MANOR                                   ","MORA                        ","MN","55051","GREGORY T MERZ                                     ","GREGORY.T.MERZ@hud.gov","612-370-3077","mn.incoming@hud.gov",{"$f":"HYPERLINK(\"mailto:\",Table_Front_desk_report.accdb[[#This Row],[inbox]])","v":"mn.incoming@hud.gov"}]
[800011402,"WOODHAVEN aka Summit Point                        ","EDINA                       ","MN","55436","SHERRY K NORTON                                    ","Sherry.K.Norton@hud.gov","612-370-3087","mn.incoming@hud.gov",{"$f":"HYPERLINK(\"mailto:\",Table_Front_desk_report.accdb[[#This Row],[inbox]])","v":"mn.incoming@hud.gov"}]
[800010855,"WOODLAND COURT aka Park Rapids Senior Apts        ","PARK RAPIDS                 ","MN","56470","GREGORY T MERZ                                     ","GREGORY.T.MERZ@hud.gov","612-370-3077","mn.incoming@hud.gov",{"$f":"HYPERLINK(\"mailto:\",Table_Front_desk_report.accdb[[#This Row],[inbox]])","v":"mn.incoming@hud.gov"}]
[800011403,"WOODLAND GARDEN                                   ","DULUTH                      ","MN","55803","DARIAN JANE ZIEGLER                                ","Darian.Ziegler@hud.gov","612-370-3270","mn.incoming@hud.gov",{"$f":"HYPERLINK(\"mailto:\",Table_Front_desk_report.accdb[[#This Row],[inbox]])","v":"mn.incoming@hud.gov"}]
[800023518,"WOODLAND LAKE ESTATES                             ","WOODRUFF                    ","WI","54568","JOEL R KLEMM                                       ","JOEL.R.KLEMM@hud.gov","612-370-3053","mn.incoming@hud.gov",{"$f":"HYPERLINK(\"mailto:\",Table_Front_desk_report.accdb[[#This Row],[inbox]])","v":"mn.incoming@hud.gov"}]
[800214540,"WOODLAND PARK APARTMENTS                          ","LAKE DELTON                 ","WI","53965","ANDREA L CARSON                                    ","andrea.carson@hud.gov","414-935-6679","mn.incoming@hud.gov",{"$f":"HYPERLINK(\"mailto:\",Table_Front_desk_report.accdb[[#This Row],[inbox]])","v":"mn.incoming@hud.gov"}]
[800010837,"WOODLAND PARK APARTMENTS                          ","SAINT CLOUD                 ","MN","56301","DARIAN JANE ZIEGLER                                ","Darian.Ziegler@hud.gov","612-370-3270","mn.incoming@hud.gov",{"$f":"HYPERLINK(\"mailto:\",Table_Front_desk_report.accdb[[#This Row],[inbox]])","v":"mn.incoming@hud.gov"}]
[800238745,"WOODLAND PARK APARTMENTS II & III                 ","Lake Delton                 ","WI","53965","ANDREA L CARSON                                    ","andrea.carson@hud.gov","414-935-6679","mn.incoming@hud.gov",{"$f":"HYPERLINK(\"mailto:\",Table_Front_desk_report.accdb[[#This Row],[inbox]])","v":"mn.incoming@hud.gov"}]
[800241185,"Woodland Village Townhomes                        ","St. Cloud                   ","MN","56304","DARIAN JANE ZIEGLER                                ","Darian.Ziegler@hud.gov","612-370-3270","mn.incoming@hud.gov",{"$f":"HYPERLINK(\"mailto:\",Table_Front_desk_report.accdb[[#This Row],[inbox]])","v":"mn.incoming@hud.gov"}]
[800237841,"Woodlane Place                                    ","Woodbury                    ","MN","55125","DARIAN JANE ZIEGLER                                ","Darian.Ziegler@hud.gov","612-370-3270","mn.incoming@hud.gov",{"$f":"HYPERLINK(\"mailto:\",Table_Front_desk_report.accdb[[#This Row],[inbox]])","v":"mn.incoming@hud.gov"}]
[800011404,"WOODMERE APARTMENTS                               ","BUFFALO                     ","MN","55313","TEENA M GEE                                        ","Teena.M.Gee@hud.gov","612-843-6414","mn.incoming@hud.gov",{"$f":"HYPERLINK(\"mailto:\",Table_Front_desk_report.accdb[[#This Row],[inbox]])","v":"mn.incoming@hud.gov"}]
[800011405,"WOODMOUNT TOWNHOUSES                              ","COTTAGE GROVE               ","MN","55016","LAWRANCE C MUNDT                                   ","LAWRENCE.C.MUNDT@hud.gov","612-370-3082","mn.incoming@hud.gov",{"$f":"HYPERLINK(\"mailto:\",Table_Front_desk_report.accdb[[#This Row],[inbox]])","v":"mn.incoming@hud.gov"}]
[800239891,"WOODRIDGE APARTMENTS                              ","New Berlin                  ","WI","53151","MARY E WATKINS                                     ","mary.e.watkins@hud.gov","312-913-8552","chi.incoming@hud.gov",{"$f":"HYPERLINK(\"mailto:\",Table_Front_desk_report.accdb[[#This Row],[inbox]])","v":"chi.incoming@hud.gov"}]
[800023519,"WOODRIDGE GARDENS                                 ","APPLETON                    ","WI","54914","LAWRANCE C MUNDT                                   ","LAWRENCE.C.MUNDT@hud.gov","612-370-3082","mn.incoming@hud.gov",{"$f":"HYPERLINK(\"mailto:\",Table_Front_desk_report.accdb[[#This Row],[inbox]])","v":"mn.incoming@hud.gov"}]
[800023520,"WOODSIDE APARTMENTS                               ","MILWAUKEE                   ","WI","53223","ARNITA X SCOTT                                     ","arnita.scott@hud.gov","312-913-8574","chi.incoming@hud.gov",{"$f":"HYPERLINK(\"mailto:\",Table_Front_desk_report.accdb[[#This Row],[inbox]])","v":"chi.incoming@hud.gov"}]
[800214913,"WOODSIDE HAVEN                                    ","ASHWAUBENON                 ","WI","54304","PAUL A DUHR                                        ","paul.a.duhr@hud.gov","414-935-6681","mn.incoming@hud.gov",{"$f":"HYPERLINK(\"mailto:\",Table_Front_desk_report.accdb[[#This Row],[inbox]])","v":"mn.incoming@hud.gov"}]
[800023386,"WOODSIDE TERRACE                                  ","BELOIT                      ","WI","53511","DONNA M SHEEHAN                                    ","Donna.Sheehan@hud.gov"," 312-957-4781 ","chi.incoming@hud.gov",{"$f":"HYPERLINK(\"mailto:\",Table_Front_desk_report.accdb[[#This Row],[inbox]])","v":"chi.incoming@hud.gov"}]
[800240093,"WOODSVIEW APARTMENTS                              ","Janesville                  ","WI","53545","DORTHY L HOPKINS                                   ","dorthy.l.hopkins@hud.gov","312-913-8172","chi.incoming@hud.gov",{"$f":"HYPERLINK(\"mailto:\",Table_Front_desk_report.accdb[[#This Row],[inbox]])","v":"chi.incoming@hud.gov"}]
[800023522,"WOODVIEW APARTMENTS                               ","MILWAUKEE                   ","WI","53223","ARNITA X SCOTT                                     ","arnita.scott@hud.gov","312-913-8574","chi.incoming@hud.gov",{"$f":"HYPERLINK(\"mailto:\",Table_Front_desk_report.accdb[[#This Row],[inbox]])","v":"chi.incoming@hud.gov"}]
[800023523,"WOODVIEW PARK                                     ","DELAVAN                     ","WI","53115","LADRENNA A FIGUEROA                                ","ladrenna.a.figueroa@hud.gov","312-913-8290","chi.incoming@hud.gov",{"$f":"HYPERLINK(\"mailto:\",Table_Front_desk_report.accdb[[#This Row],[inbox]])","v":"chi.incoming@hud.gov"}]
[800222015,"WYNGATE TOWNHOMES - Maplewood                     ","Maplewood                   ","MN","55109","CINDY BEHNKE                                       ","cynthia.behnke@hud.gov","612-370-3278","mn.incoming@hud.gov",{"$f":"HYPERLINK(\"mailto:\",Table_Front_desk_report.accdb[[#This Row],[inbox]])","v":"mn.incoming@hud.gov"}]
[800023524,"WYONA LAKE APARTMENTS                             ","WYOCENA                     ","WI","53969","CATHERINE A TEMPLE                                 ","Catherine.A.Temple@hud.gov","414-935-6695","mn.incoming@hud.gov",{"$f":"HYPERLINK(\"mailto:\",Table_Front_desk_report.accdb[[#This Row],[inbox]])","v":"mn.incoming@hud.gov"}]
[null,"X"]
[null,"Y"]
[800235194,"YAHARA LANDING APARTMENTS                         ","Madison                     ","WI","53704","JULIE M WHITEFEATHER                               ","julie.m.whitefeather@hud.gov","312-913-8117","chi.incoming@hud.gov",{"$f":"HYPERLINK(\"mailto:\",Table_Front_desk_report.accdb[[#This Row],[inbox]])","v":"chi.incoming@hud.gov"}]
[800236705,"YANKEE HILL APARTMENTS                            ","Milwaukee                   ","WI","53202","CATHERINE A TEMPLE                                 ","Catherine.A.Temple@hud.gov","414-935-6695","mn.incoming@hud.gov",{"$f":"HYPERLINK(\"mailto:\",Table_Front_desk_report.accdb[[#This Row],[inbox]])","v":"mn.incoming@hud.gov"}]
[800023525,"YE OLDE FIREHOUSE APTS                            ","WAUPACA                     ","WI","54981","LAWRANCE C MUNDT                                   ","LAWRENCE.C.MUNDT@hud.gov","612-370-3082","mn.incoming@hud.gov",{"$f":"HYPERLINK(\"mailto:\",Table_Front_desk_report.accdb[[#This Row],[inbox]])","v":"mn.incoming@hud.gov"}]
[800011406,"YORK MANOR aka Franciscan Elderly                 ","BRECKENRIDGE                ","MN","56520","SHERRY K NORTON                                    ","Sherry.K.Norton@hud.gov","612-370-3087","mn.incoming@hud.gov",{"$f":"HYPERLINK(\"mailto:\",Table_Front_desk_report.accdb[[#This Row],[inbox]])","v":"mn.incoming@hud.gov"}]
[800011407,"YORKDALE TOWNHOMES                                ","EDINA                       ","MN","55435","DARIAN JANE ZIEGLER                                ","Darian.Ziegler@hud.gov","612-370-3270","mn.incoming@hud.gov",{"$f":"HYPERLINK(\"mailto:\",Table_Front_desk_report.accdb[[#This Row],[inbox]])","v":"mn.incoming@hud.gov"}]
[null,"Z"]
[800011410,"ZUMBROTA TOWERS                                   ","ZUMBROTA                    ","MN","55992","NATASHA D GUENOVA                                  ","NATASHA.D.GUENOVA@hud.gov","612-370-3035","mn.incoming@hud.gov",{"$f":"HYPERLINK(\"mailto:\",Table_Front_desk_report.accdb[[#This Row],[inbox]])","v":"mn.incoming@hud.gov"}]
[800242666,"Zvago Cooperative at Glen Lake                    ","Minnetonka                  ","MN","55402","MICHAEL P MORAN                                    ","MICHAEL.P.MORAN@HUD.GOV","612-370-3081","mn.incoming@hud.gov",{"$f":"HYPERLINK(\"mailto:\",Table_Front_desk_report.accdb[[#This Row],[inbox]])","v":"mn.incoming@hud.gov"}]

{"sheet":"Sheet2","index":1,"n_rows":30,"n_cols":9,"rows_kept":30,"cut":false,"hidden":true,"merged":[]}
[]
[]
[]
[null,"HUD ID","Property Name","City","State","Zip Code","Account Executive","Email","Phone"]
[null,null,"A"]
[null,null,"B"]
[null,null,"C"]
[null,null,"D"]
[null,null,"E"]
[null,null,"F"]
[null,null,"G"]
[null,null,"H"]
[null,null,"I"]
[null,null,"J"]
[null,null,"K"]
[null,null,"L"]
[null,null,"M"]
[null,null,"N"]
[null,null,"O"]
[null,null,"P"]
[null,null,"Q"]
[null,null,"R"]
[null,null,"S"]
[null,null,"T"]
[null,null,"U"]
[null,null,"V"]
[null,null,"W"]
[null,null,"X"]
[null,null,"Y"]
[null,null,"Z"]